Workbook

Sheet START
A1: =muni -> NW375 Moses Kotane

Sheet Instructions
D2: 2020
X4: Yes
X5: No
W7: Type of Entities Range: | X7: Parent Municipality
X8: Consolidated Information
W10: Date linked | X10: 11
W11: Date | X11: =VLOOKUP(X10,W39:X55,2) -> M11 May | Y11: 2013-08-01
W19: MTREF Range: | X19: 2008
X20: 2009
X21: 2010
X22: 2011
X23: 2012
X24: 2013
X25: 2014
X26: 2015
X27: 2016
X28: 2017
X29: 2018
X30: 2019
X31: 2020
X32: 2021
X33: 2022
W34: MTREF Linked:
W35: MTREF: | X35: 12
X36: =INDEX(X19:X33,X35,1) -> 2019
W37: Fin Year:
X38: =MTREF&"/"&RIGHT(MTREF,2)+1 -> 2019/20
V39: Date/type of report | W39: 1 | X39: M01 July
W40: 2 | X40: M02 August
W41: 3 | X41: M03 September
W42: 4 | X42: M04 October
W43: 5 | X43: M05 November
W44: 6 | X44: M06 December
W45: 7 | X45: M07 January
W46: 8 | X46: M08 February
W47: 9 | X47: M09 March
W48: 10 | X48: M10 April
W49: 11 | X49: M11 May
W50: 12 | X50: M12 June
W51: 13 | X51: Q1 First Quarter
W52: 14 | X52: Q2 Second Quarter
W53: 15 | X53: Q3 Third Quarter
W54: 16 | X54: Q4 Fourth Quarter
W55: 17 | X55: Mid-Year Assessment

Sheet Template names (hidden)
A1: Common sheet headings
A2: Head1 | B2: =HLOOKUP(MTREF,Headings,2) -> 2018/19 | C2: Prior year -1
A3: Head2 | B3: =HLOOKUP(MTREF,Headings,5) -> Budget Year 2019/20 | C3: Year of approved budget
A4: Head2A | B4: =HLOOKUP(MTREF,Headings,4) -> 2019/20 | C4: Approved budget year
A5: Head3 | B5: =HLOOKUP(MTREF,Headings,3) -> 2019/20 Medium Term Revenue & Expenditure Framework | C5: MTREF header name
A6: Head5 | B6: Audited Outcome
A7: Head5A | B7: Outcome
A8: Head5B | B8: Pre-audit outcome
A9: Head6 | B9: Original Budget
A10: Head7 | B10: Adjusted Budget
A11: Head8 | B11: Full Year Forecast
A12: Head9 | B12: =HLOOKUP(MTREF,Headings,5) -> Budget Year 2019/20 | C12: 1st year of MTREF | D12: Year1
A13: Head10 | B13: =HLOOKUP(MTREF,Headings,6) -> Budget Year +1 2020/21 | C13: 2nd year of MTREF | D13: Year2
A14: Head11 | B14: =HLOOKUP(MTREF,Headings,7) -> Budget Year +2 2021/22 | C14: 3rd year of MTREF | D14: Year3
A15: Head12 | B15: Forecast 2010/11 | D15: Year4
A16: Head13 | B16: Forecast 2011/12 | D16: Year5
A17: Head14 | B17: Forecast 2012/13 | D17: Year6
A18: Head15 | B18: Forecast 2013/14 | D18: Year7
A19: Head16 | B19: Forecast 2014/15 | D19: Year8
A20: Head17 | B20: Forecast 2015/16 | D20: Year9
A21: Head18 | B21: Forecast 2016/17 | D21: Year10
A22: Head19 | B22: Forecast 2017/18 | D22: Year11
A23: Head20 | B23: Forecast 2018/19 | D23: Year12
A24: Head21 | B24: Forecast 2019/20 | D24: Year13
A25: Head22 | B25: Forecast 2020/21 | D25: Year14
A26: Head23 | B26: Forecast 2021/22 | D26: Year15
A27: Head24 | B27: Description | D27: Desc
A28: Head25 | B28: Schedule of funding diligence | D28: fdil
A29: Head26 | B29: Vote Description | D29: VDesc
A30: Head27 | B30: Ref
A31: Head27a | B31: References
A32: Head28 | B32: Surplus/ (Deficit) for the year | D32: Result
A33: Head29 | B33: Annual target 2007/08
A34: Head30 | B34: Revised target 2007/08
A35: Head31 | B35: Quarter ended 30 September
A36: Head32 | B36: Quarter ended 31 December
A37: Head33 | B37: Quarter ended 31 March
A38: Head34 | B38: Quarter ended 30 June
A39: Head35 | B39: Variance explanation
A40: Head36 | B40: YTD Actual 31 Dec
A41: Head37 | B41: YTD Budget 31 Dec
A42: Head38 | B42: Monthly actual
A43: Head39 | B43: YearTD actual
A44: Head40 | B44: YearTD budget
A45: Head41 | B45: YTD variance
A46: Head42 | B46: Surplus/ (Deficit) for the yr/period
A47: Head43 | B47: =Head3&" Summary" -> 2019/20 Medium Term Revenue & Expenditure Framework Summary
A48: Head44 | B48: 1996 Census
A49: Head45 | B49: 2001 Census
A50: Head46 | B50: - Adjustments Budget - Month YYYY
A51: Head47 | B51: Previous target year to complete
A52: Head48 | B52: Present value
A53: Head49 | B53: Virement
A54: Head50 | B54: Other Adjusts.
A55: Head51 | B55: Accum. Funds
A56: Head52 | B56: Multi-year capital
A57: Head53 | B57: Unfore. Unavoid.
A58: Head54 | B58: Prior Adjusted
A59: Head55 | B59: Nat. or Prov. Govt
A60: Head56 | B60: Total Adjusts.
A61: Head57 | B61: =date -> M11 May
A62: Head58 | B62: Parent muni.
A63: Head59 | B63: Downward adjusts
A64: Head60 | B64: Month | C64: Report header part name | D64: =MONTH(date) -> 
A65: SFPerf1 | B65: Budgeted Financial Performance
A66: SFPerf2 | B66: Forecast Financial Performance
A67: SFPos1 | B67: Budgeted Financial Position
A68: SFPos2 | B68: Forecast Financial Position
A69: Cash1 | B69: Budget Cash Flow
A70: Cash2 | B70: Forecast Cash Flow
A71: RandM | B71: Expenditure includes repairs & maintenance of R'000
A72: Standard nomenclature
A73: Muni | B73: ='Lookup and lists'!B27 -> NW375 Moses Kotane
A74: Municipal Entities | B74: 2 | C74: Type of report: | D74: 1
A75: =IF((MuniEntities=1)*(MuniType=2),"YES","NO") -> NO | B75: Does this municipality have entities (consolidated budget and entity budgets required)? YES/NO
A76: s71 (Monthly Mayor report) schedules and charts
A77: S71sum | B77: =IF(Consolques="YES",E77,F77) -> Table C1 Monthly Budget Statement Summary | D77: Table C1 | E77: =D77&"Consolidated Monthly Budget Statement Summary" -> Table C1 Consolidated Monthly Budget Statement Summary | F77: =D77&"Monthly Budget Statement Summary" -> Table C1 Monthly Budget Statement Summary
A78: S71C | B78: Table C3 Monthly Budget Statement - Financial Performance (revenue and expenditure by municipal vote) | D78: Table C3 | E78: =D78&"Consolidated Monthly Budget Statement - Financial Performance (revenue and expenditure by municipal vote) " -> Table C3 Consolidated Monthly Budget Statement - Financial Performance (revenue and expenditure by municipal vote) | F78: =D78&"Monthly Budget Statement - Financial Performance (revenue and expenditure by municipal vote)" -> Table C3 Monthly Budget Statement - Financial Performance (revenue and expenditure by municipal vote)
A79: S71A | B79: =IF(Consolques="YES",E79,F79) -> Table C2 Monthly Budget Statement - Financial Performance (functional classification) | D79: Table C2 | E79: =D79&"Consolidated Monthly Budget Statement - Financial Performance (functional classification) " -> Table C2 Consolidated Monthly Budget Statement - Financial Performance (functional classification) | F79: =D79&"Monthly Budget Statement - Financial Performance (functional classification)" -> Table C2 Monthly Budget Statement - Financial Performance (functional classification)
A80: S71B | B80: =IF(Consolques="YES",E80,F80) -> Table C4 Monthly Budget Statement - Financial Performance (revenue and expenditure) | D80: Table C4 | E80: =D80&"Consolidated Monthly Budget Statement - Financial Performance (revenue and expenditure) " -> Table C4 Consolidated Monthly Budget Statement - Financial Performance (revenue and expenditure) | F80: =D80&"Monthly Budget Statement - Financial Performance (revenue and expenditure)" -> Table C4 Monthly Budget Statement - Financial Performance (revenue and expenditure)
A81: S71D | B81: =IF(Consolques="YES",E81,F81) -> Table C5 Monthly Budget Statement - Capital Expenditure (municipal vote, functional classification and funding) | D81: Table C5 | E81: =D81&"Consolidated Monthly Budget Statement - Capital Expenditure (municipal vote, functional classification and funding " -> Table C5 Consolidated Monthly Budget Statement - Capital Expenditure (municipal vote, functional classification and funding | F81: =D81&"Monthly Budget Statement - Capital Expenditure (municipal vote, functional classification and funding)" -> Table C5 Monthly Budget Statement - Capital Expenditure (municipal vote, functional classification and funding)
A82: S71E | B82: Table C6 Monthly Budget Statement - Financial Position | D82: Table C6 | E82: =D82&"Consolidated Monthly Budget Statement - Financial Position " -> Table C6 Consolidated Monthly Budget Statement - Financial Position | F82: =D82&"Monthly Budget Statement - Financial Position" -> Table C6 Monthly Budget Statement - Financial Position
A83: S71F | B83: Table C7 Monthly Budget Statement - Cash Flow | D83: Table C7 | E83: =D83&"Consolidated Monthly Budget Statement - Cash Flow " -> Table C7 Consolidated Monthly Budget Statement - Cash Flow | F83: =D83&"Monthly Budget Statement - Cash Flow " -> Table C7 Monthly Budget Statement - Cash Flow
A84: S71G | B84: =D84&"Material variance explanations " -> Supporting Table SC1 Material variance explanations | D84: Supporting Table SC1
A85: S71H | B85: =D85&"Monthly Budget Statement - performance indicators " -> Supporting Table SC2 Monthly Budget Statement - performance indicators | D85: Supporting Table SC2
A86: S71I | B86: =D86&"Monthly Budget Statement - aged debtors" -> Supporting Table SC3 Monthly Budget Statement - aged debtors | D86: Supporting Table SC3
A87: S71J | B87: =D87&"Monthly Budget Statement - aged creditors " -> Supporting Table SC4 Monthly Budget Statement - aged creditors | D87: Supporting Table SC4
A88: S71K | B88: =D88&"Monthly Budget Statement - investment portfolio " -> Supporting Table SC5 Monthly Budget Statement - investment portfolio | D88: Supporting Table SC5
A89: S71L | B89: =D89&"Monthly Budget Statement - transfers and grant receipts " -> Supporting Table SC6 Monthly Budget Statement - transfers and grant receipts | D89: Supporting Table SC6
A90: S71M | B90: =D90&" Monthly Budget Statement - transfers and grant expenditure " -> Supporting Table SC7(1) Monthly Budget Statement - transfers and grant expenditure | D90: Supporting Table SC7(1)
A91: S71N | B91: =D91&"Monthly Budget Statement - councillor and staff benefits " -> Supporting Table SC8 Monthly Budget Statement - councillor and staff benefits | D91: Supporting Table SC8
A92: S71O | B92: =D92&"Monthly Budget Statement - actuals and revised targets for cash receipts" -> Supporting Table SC9 Monthly Budget Statement - actuals and revised targets for cash receipts | D92: Supporting Table SC9
A93: S71P | B93: =IF(Consolques="YES",E93,F93) -> NOT REQUIRED - municipality does not have entities or this is the parent municipality's budget | D93: Supporting Table SC10 | E93: =D93&"Monthly Budget Statement - Parent Municipality Financial Performance (revenue and expenditure) " -> Supporting Table SC10 Monthly Budget Statement - Parent Municipality Financial Performance (revenue and expenditure) | F93: NOT REQUIRED - municipality does not have entities or this is the parent municipality's budget
A94: S71Q | B94: NOT REQUIRED - municipality does not have entities or this is the parent municipality's budget | D94: Supporting Table SC11 | E94: =D94&"Monthly Budget Statement - summary of municipal entities" -> Supporting Table SC11 Monthly Budget Statement - summary of municipal entities | F94: NOT REQUIRED - municipality does not have entities or this is the parent municipality's budget
A95: S71R | B95: Supporting Table SC12 Monthly Budget Statement - capital expenditure trend | D95: Supporting Table SC12 | E95: =D95&"Consolidated Monthly Budget Statement - capital expenditure trend " -> Supporting Table SC12 Consolidated Monthly Budget Statement - capital expenditure trend | F95: =D95&"Monthly Budget Statement - capital expenditure trend" -> Supporting Table SC12 Monthly Budget Statement - capital expenditure trend
A96: S71Sa | B96: Supporting Table SC13a Monthly Budget Statement - capital expenditure on new assets by asset class | D96: Supporting Table SC13a | E96: =D96&"Consolidated Monthly Budget Statement - capital expenditure on new assets by asset class" -> Supporting Table SC13a Consolidated Monthly Budget Statement - capital expenditure on new assets by asset class | F96: =D96&"Monthly Budget Statement - capital expenditure on new assets by asset class" -> Supporting Table SC13a Monthly Budget Statement - capital expenditure on new assets by asset class
A97: S71Sb | B97: Supporting Table SC13b Monthly Budget Statement - capital expenditure on renewal of existing assets by asset class | D97: Supporting Table SC13b | E97: =D97&"Consolidated Monthly Budget Statement - capital expenditure on renewal of existing assets by asset class" -> Supporting Table SC13b Consolidated Monthly Budget Statement - capital expenditure on renewal of existing assets by asset class | F97: =D97&"Monthly Budget Statement - capital expenditure on renewal of existing assets by asset class" -> Supporting Table SC13b Monthly Budget Statement - capital expenditure on renewal of existing assets by asset class
A98: S71Sc | B98: Supporting Table SC13c Monthly Budget Statement - expenditure on repairs and maintenance by asset class | D98: Supporting Table SC13c | E98: =D98&"Consolidated Monthly Budget Statement - expenditure on repairs and maintenance by asset class" -> Supporting Table SC13c Consolidated Monthly Budget Statement - expenditure on repairs and maintenance by asset class | F98: =D98&"Monthly Budget Statement - expenditure on repairs and maintenance by asset class" -> Supporting Table SC13c Monthly Budget Statement - expenditure on repairs and maintenance by asset class
A99: S71Sd | B99: Supporting Table SC13d Monthly Budget Statement - depreciation by asset class | D99: Supporting Table SC13d | E99: =D99&"Consolidated Monthly Budget Statement - depreciation by asset class" -> Supporting Table SC13d Consolidated Monthly Budget Statement - depreciation by asset class | F99: =D99&"Monthly Budget Statement - depreciation by asset class" -> Supporting Table SC13d Monthly Budget Statement - depreciation by asset class
A100: S71Se | B100: =IF(Consolques="YES",E100,F100) -> Supporting Table SC13e Monthly Budget Statement - capital expenditure on upgrading of existing assets by asset class | D100: Supporting Table SC13e | E100: =D100&"Consolidated Monthly Budget Statement - capital expenditure on upgrading of existing assets by asset class" -> Supporting Table SC13e Consolidated Monthly Budget Statement - capital expenditure on upgrading of existing assets by asset class | F100: =D100&"Monthly Budget Statement - capital expenditure on upgrading of existing assets by asset class" -> Supporting Table SC13e Monthly Budget Statement - capital expenditure on upgrading of existing assets by asset class
B101: s71 charts listing
B102: =D102&Head2A&" Capital Expenditure Monthly Trend: actual v target" -> Chart C1 2019/20 Capital Expenditure Monthly Trend: actual v target | D102: Chart C1
B103: =D103&Head2A&" Capital Expenditure: YTD actual v YTD target" -> Chart C2 2019/20 Capital Expenditure: YTD actual v YTD target | D103: Chart C2
B104: =D104&"Aged Consumer Debtors Analysis" -> Chart C3 Aged Consumer Debtors Analysis | D104: Chart C3
B105: =D105&"Consumer Debtors (total by Debtor Customer Category)" -> Chart C4 Consumer Debtors (total by Debtor Customer Category) | D105: Chart C4
B106: =D106&"Aged Creditors Analysis" -> Chart C5 Aged Creditors Analysis | D106: Chart C5
A107: S71T | B107: =D107&" Monthly Budget Statement - Expenditure against approved rollovers" -> Supporting Table SC7(2) Monthly Budget Statement - Expenditure against approved rollovers | D107: Supporting Table SC7(2)

Sheet Lookup and lists (hidden)
A1: Description | B1: 2007 | C1: 2008 | D1: 2009 | E1: 2010 | F1: 2011 | G1: 2012 | H1: 2013 | I1: 2014 | J1: 2015 | K1: 2016 | L1: 2017 | M1: 2018 | N1: 2019 | O1: 2020 | Q1: Grants: | R1: National - opex | S1: Provincial - opex | T1: National - capex | U1: Provincial - capex | V1: YESNO
A2: ='Template names'!C2 -> Prior year -1 | B2: 2006/07 | C2: 2007/08 | D2: 2008/09 | E2: =E1-1&"/"&RIGHT(E1,2)-0 -> 2009/10 | F2: =F1-1&"/"&RIGHT(F1,2)-0 -> 2010/11 | G2: 2011/12 | H2: 2012/13 | I2: 2013/14 | J2: 2014/15 | K2: 2015/16 | L2: 2016/17 | M2: 2017/18 | N2: 2018/19 | O2: 2019/20 | R2: Local Government Equitable Share | S2: Health subsidy | T2: Municipal Infrastructure Grant (MIG) | U2: Agriculture | V2: Yes
A3: ='Template names'!C5 -> MTREF header name | B3: 2007/08 Medium Term Revenue & Expenditure Framework | C3: 2008/09 Medium Term Revenue & Expenditure Framework | D3: 2009/10 Medium Term Revenue & Expenditure Framework | E3: =E1&"/"&RIGHT(E1,2)+1&" Medium Term Revenue & Expenditure Framework" -> 2010/11 Medium Term Revenue & Expenditure Framework | F3: =F1&"/"&RIGHT(F1,2)+1&" Medium Term Revenue & Expenditure Framework" -> 2011/12 Medium Term Revenue & Expenditure Framework | G3: 2012/13 Medium Term Revenue & Expenditure Framework | H3: 2013/14 Medium Term Revenue & Expenditure Framework | I3: 2014/15 Medium Term Revenue & Expenditure Framework | J3: 2015/16 Medium Term Revenue & Expenditure Framework | K3: 2016/17 Medium Term Revenue & Expenditure Framework | L3: 2017/18 Medium Term Revenue & Expenditure Framework | M3: 2018/19 Medium Term Revenue & Expenditure Framework | N3: 2019/20 Medium Term Revenue & Expenditure Framework | O3: 2020/21 Medium Term Revenue & Expenditure Framework | R3: RSC Levy Replacement | S3: Ambulance subsidy | T3: Public Transport and Systems | U3: Education | V3: No
A4: ='Template names'!C4 -> Approved budget year | B4: 2007/08 | C4: 2008/09 | D4: 2009/10 | E4: =E1&"/"&RIGHT(E1,2)+1 -> 2010/11 | F4: =F1&"/"&RIGHT(F1,2)+1 -> 2011/12 | G4: 2012/13 | H4: 2013/14 | I4: 2014/15 | J4: 2015/16 | K4: 2016/17 | L4: 2017/18 | M4: 2018/19 | N4: 2019/20 | O4: 2020/21 | R4: Finance Management | S4: Housing | T4: Rural Transport Services and Infrastructure | U4: Health
A5: ='Template names'!C12 -> 1st year of MTREF | B5: Budget Year 2007/08 | C5: Budget Year 2008/09 | D5: Budget Year 2009/10 | E5: ="Budget Year "&E1&"/"&RIGHT(E1,2)+1 -> Budget Year 2010/11 | F5: ="Budget Year "&F1&"/"&RIGHT(F1,2)+1 -> Budget Year 2011/12 | G5: Budget Year 2012/13 | H5: Budget Year 2013/14 | I5: Budget Year 2014/15 | J5: Budget Year 2015/16 | K5: Budget Year 2016/17 | L5: Budget Year 2017/18 | M5: Budget Year 2018/19 | N5: Budget Year 2019/20 | O5: Budget Year 2020/21 | R5: Municipal Systems Improvement | S5: Sport and Recreation | T5: Regional Bulk Infrastructure | U5: Housing and Local Government
A6: ='Template names'!C13 -> 2nd year of MTREF | B6: Budget Year +1 2008/09 | C6: Budget Year +1 2009/10 | D6: Budget Year +1 2010/11 | E6: ="Budget Year +1 "&E1+1&"/"&RIGHT(E1,2)+2 -> Budget Year +1 2011/12 | F6: ="Budget Year +1 "&F1+1&"/"&RIGHT(F1,2)+2 -> Budget Year +1 2012/13 | G6: Budget Year +1 2013/14 | H6: Budget Year +1 2014/15 | I6: Budget Year +1 2015/16 | J6: Budget Year +1 2016/17 | K6: Budget Year +1 2017/18 | L6: Budget Year +1 2018/19 | M6: Budget Year +1 2019/20 | N6: Budget Year +1 2020/21 | O6: Budget Year +1 2021/22 | R6: Water Services Operating Subsidy | T6: Rural Households Infrastructure | U6: Other Departments
A7: ='Template names'!C14 -> 3rd year of MTREF | B7: Budget Year +2 2009/10 | C7: Budget Year +2 2010/11 | D7: Budget Year +2 2011/12 | E7: ="Budget Year +2 "&E1+2&"/"&RIGHT(E1,2)+3 -> Budget Year +2 2012/13 | F7: ="Budget Year +2 "&F1+2&"/"&RIGHT(F1,2)+3 -> Budget Year +2 2013/14 | G7: Budget Year +2 2014/15 | H7: Budget Year +2 2015/16 | I7: Budget Year +2 2016/17 | J7: Budget Year +2 2017/18 | K7: Budget Year +2 2018/19 | L7: Budget Year +2 2019/20 | M7: Budget Year +2 2020/21 | N7: Budget Year +2 2021/22 | O7: Budget Year +2 2022/23 | R7: Energy Efficiency and Demand Management | T7: Neighbourhood Development Partnership | U7: Public Works, Roads, Transport
A8: NOTE: This sheet should not be directly amended - select headings from sheet 'S' | R8: Integrated National Electrification Programme | T8: 2010 FIFA World Cup Stadiums Development | U8: Sport and Recreation
R9: Municipal Drought Relief
R10: 2010 FIFA World Cup Operating
R11: Electricity Demand Side Management
R12: EPWP Incentive
A26: Name link | B26: 211
A27: Name of Muni | B27: =INDEX(B28:B311,B26,1) -> NW375 Moses Kotane
B28: Choose name from list | C28: Set name on 'Instructions' sheet
B29: BUF Buffalo City | C29: EC EASTERN CAPE
B30: NMA Nelson Mandela Bay | C30: EC EASTERN CAPE
B31: EC101 Dr Beyers Naude | C31: EC EASTERN CAPE
B32: EC102 Blue Crane Route | C32: EC EASTERN CAPE
B33: EC104 Makana | C33: EC EASTERN CAPE
B34: EC105 Ndlambe | C34: EC EASTERN CAPE
B35: EC106 Sundays River Valley | C35: EC EASTERN CAPE
B36: EC108 Kouga | C36: EC EASTERN CAPE
B37: EC109 Kou-Kamma | C37: EC EASTERN CAPE
B38: DC10 Sarah Baartman | C38: EC EASTERN CAPE
B39: EC121 Mbhashe | C39: EC EASTERN CAPE
B40: EC122 Mnquma | C40: EC EASTERN CAPE
B41: EC123 Great Kei | C41: EC EASTERN CAPE
B42: EC124 Amahlathi | C42: EC EASTERN CAPE
B43: EC126 Ngqushwa | C43: EC EASTERN CAPE
B44: EC129 Raymond Mhlaba | C44: EC EASTERN CAPE
B45: DC12 Amathole | C45: EC EASTERN CAPE
B46: EC131 Inxuba Yethemba | C46: EC EASTERN CAPE
B47: EC135 Intsika Yethu | C47: EC EASTERN CAPE
B48: EC136 Emalahleni (Ec) | C48: EC EASTERN CAPE
B49: EC137 Engcobo | C49: EC EASTERN CAPE
B50: EC138 Sakhisizwe | C50: EC EASTERN CAPE
B51: EC139 Enoch Mgijima | C51: EC EASTERN CAPE
B52: DC13 Chris Hani | C52: EC EASTERN CAPE
B53: EC141 Elundini | C53: EC EASTERN CAPE
B54: EC142 Senqu | C54: EC EASTERN CAPE
B55: EC145 Walter Sisulu | C55: EC EASTERN CAPE
B56: DC14 Joe Gqabi | C56: EC EASTERN CAPE
B57: EC153 Ngquza Hills | C57: EC EASTERN CAPE
B58: EC154 Port St Johns | C58: EC EASTERN CAPE
B59: EC155 Nyandeni | C59: EC EASTERN CAPE
B60: EC156 Mhlontlo | C60: EC EASTERN CAPE
B61: EC157 King Sabata Dalindyebo | C61: EC EASTERN CAPE
B62: DC15 O .R. Tambo | C62: EC EASTERN CAPE
B63: EC441 Matatiele | C63: EC EASTERN CAPE
B64: EC442 Umzimvubu | C64: EC EASTERN CAPE
B65: EC443 Mbizana | C65: EC EASTERN CAPE
B66: EC444 Ntabankulu | C66: EC EASTERN CAPE
B67: DC44 Alfred Nzo | C67: EC EASTERN CAPE
B68: MAN Mangaung | C68: FS FREE STATE
B69: FS161 Letsemeng | C69: FS FREE STATE
B70: FS162 Kopanong | C70: FS FREE STATE
B71: FS163 Mohokare | C71: FS FREE STATE
B72: DC16 Xhariep | C72: FS FREE STATE
B73: FS181 Masilonyana | C73: FS FREE STATE
B74: FS182 Tokologo | C74: FS FREE STATE
B75: FS183 Tswelopele | C75: FS FREE STATE
B76: FS184 Matjhabeng | C76: FS FREE STATE
B77: FS185 Nala | C77: FS FREE STATE
B78: DC18 Lejweleputswa | C78: FS FREE STATE
B79: FS191 Setsoto | C79: FS FREE STATE
B80: FS192 Dihlabeng | C80: FS FREE STATE
B81: FS193 Nketoana | C81: FS FREE STATE
B82: FS194 Maluti-a-Phofung | C82: FS FREE STATE
B83: FS195 Phumelela | C83: FS FREE STATE
B84: FS196 Mantsopa | C84: FS FREE STATE
B85: DC19 Thabo Mofutsanyana | C85: FS FREE STATE
B86: FS201 Moqhaka | C86: FS FREE STATE
B87: FS203 Ngwathe | C87: FS FREE STATE
B88: FS204 Metsimaholo | C88: FS FREE STATE
B89: FS205 Mafube | C89: FS FREE STATE
B90: DC20 Fezile Dabi | C90: FS FREE STATE
B91: EKU City of Ekurhuleni | C91: GT GAUTENG
B92: JHB City Of Johannesburg | C92: GT GAUTENG
B93: TSH City Of Tshwane | C93: GT GAUTENG
B94: GT421 Emfuleni | C94: GT GAUTENG
B95: GT422 Midvaal | C95: GT GAUTENG
B96: GT423 Lesedi | C96: GT GAUTENG
B97: DC42 Sedibeng | C97: GT GAUTENG
B98: GT481 Mogale City | C98: GT GAUTENG
B99: GT484 Merafong City | C99: GT GAUTENG
B100: GT485 Rand West City | C100: GT GAUTENG
B101: DC48 West Rand | C101: GT GAUTENG
B102: ETH eThekwini | C102: KZN KWAZULU-NATAL
B103: KZN212 Umdoni | C103: KZN KWAZULU-NATAL
B104: KZN213 Umzumbe | C104: KZN KWAZULU-NATAL
B105: KZN214 uMuziwabantu | C105: KZN KWAZULU-NATAL
B106: KZN216 Ray Nkonyeni | C106: KZN KWAZULU-NATAL
B107: DC21 Ugu | C107: KZN KWAZULU-NATAL
B108: KZN221 uMshwathi | C108: KZN KWAZULU-NATAL
B109: KZN222 uMngeni | C109: KZN KWAZULU-NATAL
B110: KZN223 Mpofana | C110: KZN KWAZULU-NATAL
B111: KZN224 Impendle | C111: KZN KWAZULU-NATAL
B112: KZN225 Msunduzi | C112: KZN KWAZULU-NATAL
B113: KZN226 Mkhambathini | C113: KZN KWAZULU-NATAL
B114: KZN227 Richmond | C114: KZN KWAZULU-NATAL
B115: DC22 uMgungundlovu | C115: KZN KWAZULU-NATAL
B116: KZN235 Okhahlamba | C116: KZN KWAZULU-NATAL
B117: KZN237 Inkosi Langalibalele | C117: KZN KWAZULU-NATAL
B118: KZN238 Alfred Duma | C118: KZN KWAZULU-NATAL
B119: DC23 Uthukela | C119: KZN KWAZULU-NATAL
B120: KZN241 Endumeni | C120: KZN KWAZULU-NATAL
B121: KZN242 Nquthu | C121: KZN KWAZULU-NATAL
B122: KZN244 Msinga | C122: KZN KWAZULU-NATAL
B123: KZN245 Umvoti | C123: KZN KWAZULU-NATAL
B124: DC24 Umzinyathi | C124: KZN KWAZULU-NATAL
B125: KZN252 Newcastle | C125: KZN KWAZULU-NATAL
B126: KZN253 Emadlangeni | C126: KZN KWAZULU-NATAL
B127: KZN254 Dannhauser | C127: KZN KWAZULU-NATAL
B128: DC25 Amajuba | C128: KZN KWAZULU-NATAL
B129: KZN261 eDumbe | C129: KZN KWAZULU-NATAL
B130: KZN262 uPhongolo | C130: KZN KWAZULU-NATAL
B131: KZN263 Abaqulusi | C131: KZN KWAZULU-NATAL
B132: KZN265 Nongoma | C132: KZN KWAZULU-NATAL
B133: KZN266 Ulundi | C133: KZN KWAZULU-NATAL
B134: DC26 Zululand | C134: KZN KWAZULU-NATAL
B135: KZN271 Umhlabuyalingana | C135: KZN KWAZULU-NATAL
B136: KZN272 Jozini | C136: KZN KWAZULU-NATAL
B137: KZN275 Mtubatuba | C137: KZN KWAZULU-NATAL
B138: KZN276 Hlabisa Big Five | C138: KZN KWAZULU-NATAL
B139: DC27 Umkhanyakude | C139: KZN KWAZULU-NATAL
B140: KZN281 Mfolozi | C140: KZN KWAZULU-NATAL
B141: KZN282 uMhlathuze | C141: KZN KWAZULU-NATAL
B142: KZN284 uMlalazi | C142: KZN KWAZULU-NATAL
B143: KZN285 Mthonjaneni | C143: KZN KWAZULU-NATAL
B144: KZN286 Nkandla | C144: KZN KWAZULU-NATAL
B145: DC28 King Cetshwayo | C145: KZN KWAZULU-NATAL
B146: KZN291 Mandeni | C146: KZN KWAZULU-NATAL
B147: KZN292 KwaDukuza | C147: KZN KWAZULU-NATAL
B148: KZN293 Ndwedwe | C148: KZN KWAZULU-NATAL
B149: KZN294 Maphumulo | C149: KZN KWAZULU-NATAL
B150: DC29 iLembe | C150: KZN KWAZULU-NATAL
B151: KZN433 Greater Kokstad | C151: KZN KWAZULU-NATAL
B152: KZN434 Ubuhlebezwe | C152: KZN KWAZULU-NATAL
B153: KZN435 Umzimkhulu | C153: KZN KWAZULU-NATAL
B154: KZN436 Dr Nkosazana Dlamini Zuma | C154: KZN KWAZULU-NATAL
B155: DC43 Harry Gwala | C155: KZN KWAZULU-NATAL
B156: LIM331 Greater Giyani | C156: LIM LIMPOPO
B157: LIM332 Greater Letaba | C157: LIM LIMPOPO
B158: LIM333 Greater Tzaneen | C158: LIM LIMPOPO
B159: LIM334 Ba-Phalaborwa | C159: LIM LIMPOPO
B160: LIM335 Maruleng | C160: LIM LIMPOPO
B161: DC33 Mopani | C161: LIM LIMPOPO
B162: LIM341 Musina | C162: LIM LIMPOPO
B163: LIM343 Thulamela | C163: LIM LIMPOPO
B164: LIM344 Makhado | C164: LIM LIMPOPO
B165: LIM345 Collins Chabane | C165: LIM LIMPOPO
B166: DC34 Vhembe | C166: LIM LIMPOPO
B167: LIM351 Blouberg | C167: LIM LIMPOPO
B168: LIM353 Molemole | C168: LIM LIMPOPO
B169: LIM354 Polokwane | C169: LIM LIMPOPO
B170: LIM355 Lepelle-Nkumpi | C170: LIM LIMPOPO
B171: DC35 Capricorn | C171: LIM LIMPOPO
B172: LIM361 Thabazimbi | C172: LIM LIMPOPO
B173: LIM362 Lephalale | C173: LIM LIMPOPO
B174: LIM366 Bela Bela | C174: LIM LIMPOPO
B175: LIM367 Mogalakwena | C175: LIM LIMPOPO
B176: LIM368 Modimolle-Mookgopong | C176: LIM LIMPOPO
B177: DC36 Waterberg | C177: LIM LIMPOPO
B178: LIM471 Ephraim Mogale | C178: LIM LIMPOPO
B179: LIM472 Elias Motsoaledi | C179: LIM LIMPOPO
B180: LIM473 Makhuduthamaga | C180: LIM LIMPOPO
B181: LIM476 Tubatse Fetakgomo | C181: LIM LIMPOPO
B182: DC47 Sekhukhune | C182: LIM LIMPOPO
B183: MP301 Albert Luthuli | C183: MP MPUMALANGA
B184: MP302 Msukaligwa | C184: MP MPUMALANGA
B185: MP303 Mkhondo | C185: MP MPUMALANGA
B186: MP304 Pixley Ka Seme (MP) | C186: MP MPUMALANGA
B187: MP305 Lekwa | C187: MP MPUMALANGA
B188: MP306 Dipaleseng | C188: MP MPUMALANGA
B189: MP307 Govan Mbeki | C189: MP MPUMALANGA
B190: DC30 Gert Sibande | C190: MP MPUMALANGA
B191: MP311 Victor Khanye | C191: MP MPUMALANGA
B192: MP312 Emalahleni (Mp) | C192: MP MPUMALANGA
B193: MP313 Steve Tshwete | C193: MP MPUMALANGA
B194: MP314 Emakhazeni | C194: MP MPUMALANGA
B195: MP315 Thembisile Hani | C195: MP MPUMALANGA
B196: MP316 Dr J.S. Moroka | C196: MP MPUMALANGA
B197: DC31 Nkangala | C197: MP MPUMALANGA
B198: MP321 Thaba Chweu | C198: MP MPUMALANGA
B199: MP324 Nkomazi | C199: MP MPUMALANGA
B200: MP325 Bushbuckridge | C200: MP MPUMALANGA
B201: MP326 City of Mbombela | C201: MP MPUMALANGA
B202: DC32 Ehlanzeni | C202: MP MPUMALANGA
B203: NC451 Joe Morolong | C203: NC NORTHERN CAPE
B204: NC452 Ga-Segonyana | C204: NC NORTHERN CAPE
B205: NC453 Gamagara | C205: NC NORTHERN CAPE
B206: DC45 John Taolo Gaetsewe | C206: NC NORTHERN CAPE
B207: NC061 Richtersveld | C207: NC NORTHERN CAPE
B208: NC062 Nama Khoi | C208: NC NORTHERN CAPE
B209: NC064 Kamiesberg | C209: NC NORTHERN CAPE
B210: NC065 Hantam | C210: NC NORTHERN CAPE
B211: NC066 Karoo Hoogland | C211: NC NORTHERN CAPE
B212: NC067 Khai-Ma | C212: NC NORTHERN CAPE
B213: DC6 Namakwa | C213: NC NORTHERN CAPE
... 73 more rows

Sheet Org structure
A1: Organisational Structure Votes | C1: Organisational Structure Sub-Votes | E1: Display Sub-Votes
A2: =B2&" - "&C2 -> Vote 01 - Municipal Council | B2: Vote 01 | C2: Municipal Council
A3: =B8&" - "&C8 -> Vote 02 - Office Of The Accounting Officer | B3: 01.1 | C3: Office Of The Mayor | D3: =CONCATENATE(B3, " - ", C3) -> 01.1 - Office Of The Mayor | E3: 01.1 - Office Of The Mayor
A4: =B15&" - "&C15 -> Vote 03 - Budget And Treasury Office | B4: 01.2 | C4: Office Of The Speaker | D4: =CONCATENATE(B4, " - ", C4) -> 01.2 - Office Of The Speaker | E4: 01.2 - Office Of The Speaker
A5: =B23&" - "&C23 -> Vote 04 - Corporate Services | B5: 01.3 | C5: Office Of The Chief Whip | D5: =CONCATENATE(B5, " - ", C5) -> 01.3 - Office Of The Chief Whip | E5: 01.3 - Office Of The Chief Whip
A6: =B32&" - "&C32 -> Vote 05 - Community Services | B6: 01.4 | C6: Mpac | D6: =CONCATENATE(B6, " - ", C6) -> 01.4 - Mpac | E6: 01.4 - Mpac
A7: =B47&" - "&C47 -> Vote 06 - Planning & Development | B7: 01.5 | C7: Council General Administration | D7: =CONCATENATE(B7, " - ", C7) -> 01.5 - Council General Administration | E7: 01.5 - Council General Administration
A8: =B58&" - "&C58 -> Vote 07 - Infrastructure & Technical Services | B8: Vote 02 | C8: Office Of The Accounting Officer
A9: =B78&" - "&C78 -> Vote 08 - | B9: 02.1 | C9: Office Of The Ao Admin | D9: =CONCATENATE(B9, " - ", C9) -> 02.1 - Office Of The Ao Admin | E9: 02.1 - Office Of The Ao Admin
A10: Vote 09 - | B10: 02.2 | C10: Strategic Planning Monitoring & Evaluat | D10: 02.2 - Strategic Planning Monitoring & Evaluat | E10: 02.2 - Strategic Planning Monitoring & Evaluat
A11: Vote 10 - | B11: 02.3 | C11: Perfomance Management System | D11: 02.3 - Perfomance Management System | E11: 02.3 - Perfomance Management System
A12: Vote 11 - | B12: 02.4 | C12: Internal Audit | D12: 02.4 - Internal Audit | E12: 02.4 - Internal Audit
A13: Vote 12 - | B13: 02.5 | C13: Municipal Planning Idp | D13: 02.5 - Municipal Planning Idp | E13: 02.5 - Municipal Planning Idp
A14: Vote 13 - | B14: 02.6 | C14: Risk | D14: 02.6 - Risk | E14: 02.6 - Risk
A15: Vote 14 - | B15: Vote 03 | C15: Budget And Treasury Office
A16: Vote 15 - Other | B16: 03.1 | C16: Chief Financial Officer Admin | D16: =CONCATENATE(B16, " - ", C16) -> 03.1 - Chief Financial Officer Admin | E16: 03.1 - Chief Financial Officer Admin
B17: 03.2 | C17: Budget Expenditure & Reporting | D17: 03.2 - Budget Expenditure & Reporting | E17: 03.2 - Budget Expenditure & Reporting
B18: 03.3 | C18: Budget Expenditure & Reporting | D18: 03.3 - Budget Expenditure & Reporting | E18: 03.3 - Budget Expenditure & Reporting
B19: 03.4 | C19: Revenue Management | D19: 03.4 - Revenue Management | E19: 03.4 - Revenue Management
B20: 03.5 | C20: Supply Chain Management | D20: 03.5 - Supply Chain Management | E20: 03.5 - Supply Chain Management
B21: 03.6 | C21: Assets Management | D21: 03.6 - Assets Management | E21: 03.6 - Assets Management
B22: 03.7 | C22: Expenditure | D22: 03.7 - Expenditure | E22: 03.7 - Expenditure
B23: Vote 04 | C23: Corporate Services
B24: 04.1 | C24: Legal Services | D24: =CONCATENATE(B24, " - ", C24) -> 04.1 - Legal Services | E24: 04.1 - Legal Services
B25: 04.2 | C25: Corporate Service Administration | D25: 04.2 - Corporate Service Administration | E25: 04.2 - Corporate Service Administration
B26: 04.3 | C26: Human Resources | D26: 04.3 - Human Resources | E26: 04.3 - Human Resources
B27: 04.4 | C27: Media & Communication | D27: 04.4 - Media & Communication | E27: 04.4 - Media & Communication
B28: 04.5 | C28: Organisational Development | D28: 04.5 - Organisational Development | E28: 04.5 - Organisational Development
B29: 04.6 | C29: Labour Relations | D29: 04.6 - Labour Relations | E29: 04.6 - Labour Relations
B30: 04.7 | C30: Legal Services | D30: 04.7 - Legal Services | E30: 04.7 - Legal Services
B31: 04.8 | C31: Information Technology Services | D31: 04.8 - Information Technology Services | E31: 04.8 - Information Technology Services
B32: Vote 05 | C32: Community Services
B33: 05.1 | C33: Municipal Buildings | D33: =CONCATENATE(B33, " - ", C33) -> 05.1 - Municipal Buildings | E33: 05.1 - Municipal Buildings
B34: 05.2 | C34: Fleet Management | D34: 05.2 - Fleet Management | E34: 05.2 - Fleet Management
B35: 05.3 | C35: Community Services Administration | D35: 05.3 - Community Services Administration | E35: 05.3 - Community Services Administration
B36: 05.4 | C36: Cemeteries | D36: 05.4 - Cemeteries | E36: 05.4 - Cemeteries
B37: 05.5 | C37: Disaster Management | D37: 05.5 - Disaster Management | E37: 05.5 - Disaster Management
B38: 05.6 | C38: Fires Service | D38: 05.6 - Fires Service | E38: 05.6 - Fires Service
B39: 05.7 | C39: Libraries | D39: 05.7 - Libraries | E39: 05.7 - Libraries
B40: 05.8 | C40: Municipal Buildings | D40: 05.8 - Municipal Buildings | E40: 05.8 - Municipal Buildings
B41: 05.9 | C41: Sports Recreation & Social Amenitie | D41: 05.9 - Sports Recreation & Social Amenitie | E41: 05.9 - Sports Recreation & Social Amenitie
B42: 05.10 | C42: Waste Management Solid Waste | D42: 05.10 - Waste Management Solid Waste | E42: 05.10 - Waste Management Solid Waste
B43: 05.11 | C43: Safety And Security | D43: 05.11 - Safety And Security | E43: 05.11 - Safety And Security
B44: 05.12 | C44: Traffic Service | D44: 05.12 - Traffic Service | E44: 05.12 - Traffic Service
B45: 05.13 | C45: Traffic Service | D45: 05.13 - Traffic Service | E45: 05.13 - Traffic Service
B46: 05.14 | C46: Fleet Management | D46: 05.14 - Fleet Management | E46: 05.14 - Fleet Management
B47: Vote 06 | C47: Planning & Development
B48: 06.1 | C48: Planning And Development Admin | D48: =CONCATENATE(B48, " - ", C48) -> 06.1 - Planning And Development Admin | E48: 06.1 - Planning And Development Admin
B49: 06.2 | C49: Municipal Planning Idp | D49: 06.2 - Municipal Planning Idp | E49: 06.2 - Municipal Planning Idp
B50: 06.3 | C50: Pms | D50: 06.3 - Pms | E50: 06.3 - Pms
B51: 06.4 | C51: Town Planning | D51: 06.4 - Town Planning | E51: 06.4 - Town Planning
B52: 06.5 | C52: Land Use And Housing Admin | D52: 06.5 - Land Use And Housing Admin | E52: 06.5 - Land Use And Housing Admin
B53: 06.6 | C53: Local Economic Development | D53: 06.6 - Local Economic Development | E53: 06.6 - Local Economic Development
B54: 06.7 | C54: Led | D54: 06.7 - Led | E54: 06.7 - Led
B55: 06.8 | C55: Agriculture & Rural Development | D55: 06.8 - Agriculture & Rural Development | E55: 06.8 - Agriculture & Rural Development
B56: 06.9 | C56: Tourism & Business Development | D56: 06.9 - Tourism & Business Development | E56: 06.9 - Tourism & Business Development
B57: 06.10 | C57: Arts & Culture | D57: 06.10 - Arts & Culture | E57: 06.10 - Arts & Culture
B58: Vote 07 | C58: Infrastructure & Technical Services
B59: 07.1 | C59: Infrastructure Admin & Tech Admin | D59: =CONCATENATE(B59, " - ", C59) -> 07.1 - Infrastructure Admin & Tech Admin | E59: 07.1 - Infrastructure Admin & Tech Admin
B60: 07.2 | C60: Fleet Management | D60: 07.2 - Fleet Management | E60: 07.2 - Fleet Management
B61: 07.3 | C61: Roads | D61: 07.3 - Roads | E61: 07.3 - Roads
B62: 07.4 | C62: Storm Water | D62: 07.4 - Storm Water | E62: 07.4 - Storm Water
B63: 07.5 | C63: Street Lighting | D63: 07.5 - Street Lighting | E63: 07.5 - Street Lighting
B64: 07.6 | C64: Project Management Unit | D64: 07.6 - Project Management Unit | E64: 07.6 - Project Management Unit
B65: 07.7 | C65: Sanitation Treatment Plant: Mogwase | D65: 07.7 - Sanitation Treatment Plant: Mogwase | E65: 07.7 - Sanitation Treatment Plant: Mogwase
B66: 07.8 | C66: Sanitation Treatment Plant: Madikwe | D66: 07.8 - Sanitation Treatment Plant: Madikwe | E66: 07.8 - Sanitation Treatment Plant: Madikwe
B67: 07.9 | C67: Sanitation Reticulation | D67: 07.9 - Sanitation Reticulation | E67: 07.9 - Sanitation Reticulation
B68: 07.10 | C68: Water Administration | D68: 07.10 - Water Administration | E68: 07.10 - Water Administration
B69: 07.11 | C69: Water Madikwe: Water Treatment Work | D69: 07.11 - Water Madikwe: Water Treatment Work | E69: 07.11 - Water Madikwe: Water Treatment Work
B70: 07.12 | C70: Water: Pella Water Treatment Works | D70: 07.12 - Water: Pella Water Treatment Works | E70: 07.12 - Water: Pella Water Treatment Works
B71: 07.13 | C71: Water: Madikwe Retail & Bulk Lines | D71: 07.13 - Water: Madikwe Retail & Bulk Lines | E71: 07.13 - Water: Madikwe Retail & Bulk Lines
B72: 07.14 | C72: Water: Madikwe Rural | D72: 07.14 - Water: Madikwe Rural | E72: 07.14 - Water: Madikwe Rural
B73: 07.15 | C73: Water: Molatedi | D73: 07.15 - Water: Molatedi | E73: 07.15 - Water: Molatedi
B74: 07.16 | C74: Water Eastern: Retail Mankwe | D74: 07.16 - Water Eastern: Retail Mankwe | E74: 07.16 - Water Eastern: Retail Mankwe
B75: 07.17 | C75: Water Vaalkopdam: Mankwe | D75: 07.17 - Water Vaalkopdam: Mankwe | E75: 07.17 - Water Vaalkopdam: Mankwe
B76: 07.18 | C76: Water Eastern: Retail Mankwe | D76: 07.18 - Water Eastern: Retail Mankwe | E76: 07.18 - Water Eastern: Retail Mankwe
B77: 07.19 | C77: Reporting Function Electricity | D77: 07.19 - Reporting Function Electricity | E77: 07.19 - Reporting Function Electricity
B78: Vote 08
B79: Vote 09
B80: Vote 10
B81: Vote 11
B82: Vote 12
B83: Vote 13
B84: Vote 14
B85: Vote 15 | C85: Other

Sheet Contacts
A1: =muni&" - "&" Contact Information" -> NW375 Moses Kotane - Contact Information
A3: A. GENERAL INFORMATION
A4: Municipality | B4: =muni -> NW375 Moses Kotane | C4: Set name on 'Instructions' sheet
A6: Grade | B6: 2 | C6: 1 Grade in terms of the Remuneration of Public Office Bearers Act.
A8: Province | B8: =IF(B4>" ",VLOOKUP(B4,'Lookup and lists'!B28:C311,2, FALSE)," ") -> NW NORTH WEST
A10: Web Address | B10: www.moseskotane.gov.za
A12: e-mail Address | B12: municipalmanager@moseskotane.gov.za
A14: B. CONTACT INFORMATION
A15: Postal address:
A16: P.O. Box | B16: 1011
A17: City / Town | B17: Mogwase
A18: Postal Code | B18: 0314
A20: Street address
A21: Building | B21: Mogwase Shopping Complex
A22: Street No. & Name | B22: 935 Station Road
A23: City / Town | B23: Mogwase
A24: Postal Code | B24: 0314
A26: General Contacts
A27: Telephone number | B27: 014 555 1300
A28: Fax number | B28: 014 555 6368
A30: C. POLITICAL LEADERSHIP
A31: Speaker: | C31: Secretary/PA to the Speaker:
A32: ID Number | B32: 7206135791081 | C32: ID Number
A33: Title | B33: Clr | C33: Title | D33: Ms
A34: Name | B34: Sipho Vava | C34: Name | D34: D MANAME
A35: Telephone number | B35: 014 555 1309 | C35: Telephone number | D35: 014 555 1309
A36: Cell number | B36: 0823079727 | C36: Cell number | D36: 073 973 7862
A37: Fax number | B37: 014 555 6368 | C37: Fax number | D37: 014 555 7635
A38: E-mail address | B38: speakersecretary@moseskotane.gov.za | C38: E-mail address | D38: speakersecretary@moseskotane.gov.za
A40: Mayor/Executive Mayor: | C40: Secretary/PA to the Mayor/Executive Mayor:
A41: ID Number | C41: ID Number
A42: Title | B42: Clr | C42: Title | D42: Mrs
A43: Name | B43: A R DIALE | C43: Name | D43: M MORUPI
A44: Telephone number | B44: 014 555 1305 | C44: Telephone number | D44: 014 555 1305
A45: Cell number | B45: 082 467 2895 | C45: Cell number | D45: 079 342 0861
A46: Fax number | B46: 014 555 6368 | C46: Fax number | D46: 014 555 6368
A47: E-mail address | B47: mayorssecretary@moseskotane.gov.za | C47: E-mail address | D47: mayorsecretary@moseskotane.gov.za
A49: Deputy Mayor/Executive Mayor: | C49: Secretary/PA to the Deputy Mayor/Executive Mayor:
A50: ID Number | C50: ID Number
A51: Title | C51: Title
A52: Name | C52: Name
A53: Telephone number | C53: Telephone number
A54: Cell number | C54: Cell number
A55: Fax number | C55: Fax number
A56: E-mail address | C56: E-mail address
A58: D. MANAGEMENT LEADERSHIP
A59: Municipal Manager: | C59: Secretary/PA to the Municipal Manager:
A60: ID Number | C60: ID Number
A61: Title | B61: Mr | C61: Title | D61: Ms
A62: Name | B62: M V LETSOALO | C62: Name | D62: WINNIE MABALANE
A63: Telephone number | B63: 014 555 1307 | C63: Telephone number | D63: 014 555 1307
A64: Cell number | B64: 066 300 6349 | C64: Cell number | D64: 082 543 4845
A65: Fax number | B65: 086 654 5962 | C65: Fax number | D65: 086 654 5962
A66: E-mail address | B66: 066 300 6349 | C66: E-mail address | D66: municipalmanager@moseskotane.gov.za
A68: Chief Financial Officer | C68: Secretary/PA to the Chief Financial Officer
A69: ID Number | B69: 8409265857081 | C69: ID Number
A70: Title | B70: Mr | C70: Title
A71: Name | B71: MR Mkhize | C71: Name
A72: Telephone number | B72: 014 555 1332 | C72: Telephone number
A73: Cell number | B73: 0609782021 | C73: Cell number
A74: Fax number | C74: Fax number
A75: E-mail address | B75: cfo@moseskotane.gov.za | C75: E-mail address
A77: Official responsible for submitting financial information | C77: Official responsible for submitting financial information
A78: ID Number | C78: ID Number
A79: Title | B79: Ms T Lebusa | C79: Title
A80: Name | B80: T LEBUSA | C80: Name
A81: Telephone number | B81: 014 555 1333 | C81: Telephone number
A82: Cell number | B82: 082 051 2347 | C82: Cell number
A83: Fax number | B83: 086 232 1786 | C83: Fax number
A84: E-mail address | B84: tlebusa@moseskotane.gov.za | C84: E-mail address
A85: Official responsible for submitting financial information | C85: Official responsible for submitting financial information
A86: ID Number | C86: ID Number
A87: Title | C87: Title
A88: Name | C88: Name
A89: Telephone number | C89: Telephone number
A90: Cell number | C90: Cell number
A91: Fax number | C91: Fax number
A92: E-mail address | C92: E-mail address
A93: Official responsible for submitting financial information | C93: Official responsible for submitting financial information
A94: ID Number | C94: ID Number
A95: Title | C95: Title
A96: Name | C96: Name
A97: Telephone number | C97: Telephone number
A98: Cell number | C98: Cell number
A99: Fax number | C99: Fax number
A100: E-mail address | C100: E-mail address
A101: Official responsible for submitting financial information | C101: Official responsible for submitting financial information
A102: ID Number | C102: ID Number
A103: Title | C103: Title
A104: Name | C104: Name
A105: Telephone number | C105: Telephone number
A106: Cell number | C106: Cell number
A107: Fax number | C107: Fax number
A108: E-mail address | C108: E-mail address
A109: Official responsible for submitting financial information | C109: Official responsible for submitting financial information
A110: ID Number | C110: ID Number
A111: Title | C111: Title
A112: Name | C112: Name
A113: Telephone number | C113: Telephone number
A114: Cell number | C114: Cell number
A115: Fax number | C115: Fax number
A116: E-mail address | C116: E-mail address
A117: Official responsible for submitting financial information | C117: Official responsible for submitting financial information
A118: ID Number | C118: ID Number
A119: Title | C119: Title
A120: Name | C120: Name
A121: Telephone number | C121: Telephone number
A122: Cell number | C122: Cell number
A123: Fax number | C123: Fax number
A124: E-mail address | C124: E-mail address
A125: Official responsible for submitting financial information | C125: Official responsible for submitting financial information
A126: ID Number | C126: ID Number
A127: Title | C127: Title
A128: Name | C128: Name
A129: Telephone number | C129: Telephone number
A130: Cell number | C130: Cell number
A131: Fax number | C131: Fax number
A132: E-mail address | C132: E-mail address
A133: Official responsible for submitting financial information
A134: ID Number
A135: Title
A136: Name
A137: Telephone number
A138: Cell number
A139: Fax number
A140: E-mail address

Sheet C1-Sum
A1: =muni& " - "&s71sum& " - "&date -> NW375 Moses Kotane - Table C1 Monthly Budget Statement Summary - M11 May
A2: =desc -> Description | B2: =Head1 -> 2018/19 | C2: =Head2 -> Budget Year 2019/20
B3: =Head5 -> Audited Outcome | C3: =Head6 -> Original Budget | D3: =Head7 -> Adjusted Budget | E3: =Head38 -> Monthly actual | F3: =Head39 -> YearTD actual | G3: =Head40 -> YearTD budget | H3: =Head41 -> YTD variance | I3: =Head41 -> YTD variance | J3: =Head8 -> Full Year Forecast
A4: R thousands | I4: %
A5: Financial Performance
A6: Property rates | B6: =SUM('C4-FinPerf RE'!C6:C6) -> 134800237.8 | C6: =SUM('C4-FinPerf RE'!D6:D6) -> 142163600 | D6: =SUM('C4-FinPerf RE'!E6:E6) -> 142163600 | E6: =SUM('C4-FinPerf RE'!F6:F6) -> 11706734.84 | F6: =SUM('C4-FinPerf RE'!G6:G6) -> 129532338.1 | G6: =SUM('C4-FinPerf RE'!H6:H6) -> 130316571 | H6: =F6-G6 -> -784232.92 | I6: =IF(H6=0,"",H6/G6) -> -0.006017906349 | J6: =SUM('C4-FinPerf RE'!K6:K6) -> 142163600
A7: Service charges | B7: =SUM('C4-FinPerf RE'!C7:C10) -> 154208722.6 | C7: =SUM('C4-FinPerf RE'!D7:D10) -> 184251428 | D7: =SUM('C4-FinPerf RE'!E7:E10) -> 184251428 | E7: =SUM('C4-FinPerf RE'!F7:F10) -> 11367294.05 | F7: =SUM('C4-FinPerf RE'!G7:G10) -> 156600005.3 | G7: =SUM('C4-FinPerf RE'!H7:H10) -> 168897080 | H7: =F7-G7 -> -12297074.72 | I7: =IF(H7=0,"",H7/G7) -> -0.07280809544 | J7: =SUM('C4-FinPerf RE'!K7:K10) -> 184251428
A8: Investment revenue | B8: ='C4-FinPerf RE'!C13 -> 452790.52 | C8: ='C4-FinPerf RE'!D13 -> 5400000 | D8: ='C4-FinPerf RE'!E13 -> 6400000 | E8: ='C4-FinPerf RE'!F13 -> 4248.06 | F8: ='C4-FinPerf RE'!G13 -> 5064116.08 | G8: ='C4-FinPerf RE'!H13 -> 5750000 | H8: =F8-G8 -> -685883.92 | I8: =IF(H8=0,"",H8/G8) -> -0.11928416 | J8: ='C4-FinPerf RE'!K13 -> 6400000
A9: Transfers and subsidies | B9: ='C4-FinPerf RE'!C19 -> 397007796.9 | C9: ='C4-FinPerf RE'!D19 -> 437829637 | D9: ='C4-FinPerf RE'!E19 -> 374550637 | E9: ='C4-FinPerf RE'!F19 -> 65600085.77 | F9: ='C4-FinPerf RE'!G19 -> 432704405.3 | G9: ='C4-FinPerf RE'!H19 -> 350694057.1 | H9: =F9-G9 -> 82010348.21 | I9: =IF(H9=0,"",H9/G9) -> 0.2338515482 | J9: ='C4-FinPerf RE'!K19 -> 374550637
A10: Other own revenue | B10: ='C4-FinPerf RE'!C12+'C4-FinPerf RE'!C14+'C4-FinPerf RE'!C15+'C4-FinPerf RE'!C16+'C4-FinPerf RE'!C17+'C4-FinPerf RE'!C18+'C4-FinPerf RE'!C20+'C4-FinPerf RE'!C21 -> 55859794.13 | C10: ='C4-FinPerf RE'!D12+'C4-FinPerf RE'!D14+'C4-FinPerf RE'!D15+'C4-FinPerf RE'!D16+'C4-FinPerf RE'!D17+'C4-FinPerf RE'!D18+'C4-FinPerf RE'!D20+'C4-FinPerf RE'!D21 -> 66921500 | D10: ='C4-FinPerf RE'!E12+'C4-FinPerf RE'!E14+'C4-FinPerf RE'!E15+'C4-FinPerf RE'!E16+'C4-FinPerf RE'!E17+'C4-FinPerf RE'!E18+'C4-FinPerf RE'!E20+'C4-FinPerf RE'!E21 -> 66918290 | E10: ='C4-FinPerf RE'!F12+'C4-FinPerf RE'!F14+'C4-FinPerf RE'!F15+'C4-FinPerf RE'!F16+'C4-FinPerf RE'!F17+'C4-FinPerf RE'!F18+'C4-FinPerf RE'!F20+'C4-FinPerf RE'!F21 -> 6506956.95 | F10: ='C4-FinPerf RE'!G12+'C4-FinPerf RE'!G14+'C4-FinPerf RE'!G15+'C4-FinPerf RE'!G16+'C4-FinPerf RE'!G17+'C4-FinPerf RE'!G18+'C4-FinPerf RE'!G20+'C4-FinPerf RE'!G21 -> 62676585.38 | G10: ='C4-FinPerf RE'!H12+'C4-FinPerf RE'!H14+'C4-FinPerf RE'!H15+'C4-FinPerf RE'!H16+'C4-FinPerf RE'!H17+'C4-FinPerf RE'!H18+'C4-FinPerf RE'!H20+'C4-FinPerf RE'!H21 -> 61255056 | H10: =F10-G10 -> 1421529.38 | I10: =IF(H10=0,"",H10/G10) -> 0.02320672729 | J10: ='C4-FinPerf RE'!K12+'C4-FinPerf RE'!K14+'C4-FinPerf RE'!K15+'C4-FinPerf RE'!K16+'C4-FinPerf RE'!K17+'C4-FinPerf RE'!K18+'C4-FinPerf RE'!K20+'C4-FinPerf RE'!K21 -> 66918290
A11: Total Revenue (excluding capital transfers and contributions) | B11: =SUM(B6:B10) -> 742329342 | C11: 836566165 | D11: 774283955 | E11: 95185319.67 | F11: 786577450.1 | G11: 716912764.1 | H11: =F11-G11 -> 69664686.03 | I11: =IF(H11=0,"",H11/G11) -> 0.09717317018 | J11: 774283955
A12: Employee costs | B12: ='C4-FinPerf RE'!C25 -> 194442064.3 | C12: ='C4-FinPerf RE'!D25 -> 270274660 | D12: ='C4-FinPerf RE'!E25 -> 248852359 | E12: ='C4-FinPerf RE'!F25 -> 16269525.72 | F12: ='C4-FinPerf RE'!G25 -> 198572423.5 | G12: ='C4-FinPerf RE'!H25 -> 228609340.9 | H12: -30036917.41 | I12: -0.1313897205 | J12: ='C4-FinPerf RE'!K25 -> 248852359
A13: Remuneration of Councillors | B13: ='C4-FinPerf RE'!C26 -> 22826948.04 | C13: ='C4-FinPerf RE'!D26 -> 25371420 | D13: ='C4-FinPerf RE'!E26 -> 25371420 | E13: ='C4-FinPerf RE'!F26 -> 1968883.12 | F13: ='C4-FinPerf RE'!G26 -> 22795152.59 | G13: ='C4-FinPerf RE'!H26 -> 23257157 | H13: -462004.41 | I13: -0.0198650424 | J13: ='C4-FinPerf RE'!K26 -> 25371420
A14: Depreciation & asset impairment | B14: ='C4-FinPerf RE'!C28 -> 159814360.2 | C14: ='C4-FinPerf RE'!D28 -> 154536733 | D14: ='C4-FinPerf RE'!E28 -> 154536733 | E14: ='C4-FinPerf RE'!F28 -> 12878072 | F14: ='C4-FinPerf RE'!G28 -> 124274178.9 | G14: ='C4-FinPerf RE'!H28 -> 141658759 | H14: -17384580.08 | I14: -0.1227215331 | J14: ='C4-FinPerf RE'!K28 -> 154536733
A15: Finance charges | B15: ='C4-FinPerf RE'!C29 -> 6177546.23 | C15: ='C4-FinPerf RE'!D29 -> 3688959 | D15: ='C4-FinPerf RE'!E29 -> 3688959 | E15: ='C4-FinPerf RE'!F29 -> 116641.59 | F15: ='C4-FinPerf RE'!G29 -> 2308833.63 | G15: ='C4-FinPerf RE'!H29 -> 3381565 | H15: -1072731.37 | I15: -0.3172292622 | J15: ='C4-FinPerf RE'!K29 -> 3688959
A16: Materials and bulk purchases | B16: =SUM('C4-FinPerf RE'!C30:C31) -> 114908202 | C16: =SUM('C4-FinPerf RE'!D30:D31) -> 109277250 | D16: =SUM('C4-FinPerf RE'!E30:E31) -> 92572189 | E16: =SUM('C4-FinPerf RE'!F30:F31) -> 2115134.35 | F16: =SUM('C4-FinPerf RE'!G30:G31) -> 82591010.78 | G16: =SUM('C4-FinPerf RE'!H30:H31) -> 86686446.28 | H16: -4095435.5 | I16: -0.04724424262 | J16: =SUM('C4-FinPerf RE'!K30:K31) -> 92572189
A17: Transfers and subsidies | B17: ='C4-FinPerf RE'!C33 -> 74558.5 | C17: ='C4-FinPerf RE'!D33 -> 0 | D17: ='C4-FinPerf RE'!E33 -> 0 | E17: ='C4-FinPerf RE'!F33 -> 0 | F17: ='C4-FinPerf RE'!G33 -> 0 | G17: ='C4-FinPerf RE'!H33 -> 0 | H17: 0 | J17: ='C4-FinPerf RE'!K33 -> 0
A18: Other expenditure | B18: ='C4-FinPerf RE'!C36-SUM('C1-Sum'!B12:B17) -> 577826781.7 | C18: ='C4-FinPerf RE'!D36-SUM('C1-Sum'!C12:C17) -> 404091300 | D18: ='C4-FinPerf RE'!E36-SUM('C1-Sum'!D12:D17) -> 380654087 | E18: ='C4-FinPerf RE'!F36-SUM('C1-Sum'!E12:E17) -> 15892139.87 | F18: ='C4-FinPerf RE'!G36-SUM('C1-Sum'!F12:F17) -> 358142494.3 | G18: ='C4-FinPerf RE'!H36-SUM('C1-Sum'!G12:G17) -> 351241724.2 | H18: 6900770.07 | I18: 0.01964678338 | J18: ='C4-FinPerf RE'!K36-SUM('C1-Sum'!J12:J17) -> 380654087
A19: Total Expenditure | B19: =SUM(B12:B18) -> 1076070461 | C19: 967240322 | D19: 905675747 | E19: 49240396.65 | F19: 788684093.7 | G19: 834834992.4 | H19: -46150898.7 | I19: -0.05528146175 | J19: =SUM(J12:J18) -> 905675747
A20: Surplus/(Deficit) | B20: =B11-B19 -> -333741119 | C20: -130674157 | D20: -131391792 | E20: 45944923.02 | F20: -2106643.55 | G20: -117922228.3 | H20: 115815584.7 | I20: -0.9821353143 | J20: =J11-J19 -> -131391792
A21: ='C4-FinPerf RE'!A39 -> Transfers and subsidies - capital (monetary allocations) (National / Provincial and District) | B21: ='C4-FinPerf RE'!C39 -> 88203014.84 | C21: ='C4-FinPerf RE'!D39 -> 87086153 | D21: ='C4-FinPerf RE'!E39 -> 93773318 | E21: ='C4-FinPerf RE'!F39 -> 15814526.09 | F21: ='C4-FinPerf RE'!G39 -> 44745434 | G21: ='C4-FinPerf RE'!H39 -> 85178690 | H21: -40433256 | I21: -0.47468746 | J21: ='C4-FinPerf RE'!K39 -> 93773318
A22: ='C4-FinPerf RE'!A40&" & "&'C4-FinPerf RE'!A41 -> Transfers and subsidies - capital (monetary allocations) (National / Provincial Departmental Agencies, Households, Non-profit Institutions, Private Enterprises, Public Corporatons, Higher Educational Institutions) & Transfers and subsidies - capital (in-kind - all) | B22: =SUM('C4-FinPerf RE'!C40:C41) -> 91481397.94 | C22: =SUM('C4-FinPerf RE'!D40:D41) -> 112438210 | D22: =SUM('C4-FinPerf RE'!E40:E41) -> 112332045 | E22: =SUM('C4-FinPerf RE'!F40:F41) -> 0 | F22: =SUM('C4-FinPerf RE'!G40:G41) -> 72797365.06 | G22: =SUM('C4-FinPerf RE'!H40:H41) -> 102983407 | H22: -30186041.94 | I22: -0.2931155884 | J22: =SUM('C4-FinPerf RE'!K40:K41) -> 112332045
A23: Surplus/(Deficit) after capital transfers & contributions | B23: =B20+B21+B22 -> -154056706.2 | C23: 68850206 | D23: 74713571 | E23: 61759449.11 | F23: 115436155.5 | G23: 70239868.72 | H23: 45196286.79 | I23: 0.6434563107 | J23: =J20+J21+J22 -> 74713571
A24: Share of surplus/ (deficit) of associate | B24: ='C4-FinPerf RE'!C47 -> 0 | C24: ='C4-FinPerf RE'!D47 -> 0 | D24: ='C4-FinPerf RE'!E47 -> 0 | E24: ='C4-FinPerf RE'!F47 -> 0 | F24: ='C4-FinPerf RE'!G47 -> 0 | G24: ='C4-FinPerf RE'!H47 -> 0 | H24: 0 | J24: ='C4-FinPerf RE'!K47 -> 0
A25: Surplus/ (Deficit) for the year | B25: =B23+B24 -> -154056706.2 | C25: 68850206 | D25: 74713571 | E25: 61759449.11 | F25: 115436155.5 | G25: 70239868.72 | H25: 45196286.79 | I25: 0.6434563107 | J25: =J23+J24 -> 74713571
A27: Capital expenditure & funds sources
A28: Capital expenditure | B28: ='C5-Capex'!C40 -> 70100395.84 | C28: ='C5-Capex'!D40 -> 204802147 | D28: ='C5-Capex'!E40 -> 206219337 | E28: ='C5-Capex'!F40 -> 7347078.27 | F28: ='C5-Capex'!G40 -> 109769191.3 | G28: ='C5-Capex'!H40 -> 188766110.2 | H28: =F28-G28 -> -78996918.84 | I28: =IF(H28=0,"",H28/G28) -> -0.4184910033 | J28: ='C5-Capex'!K40 -> 206219337
A29: Capital transfers recognised | B29: ='C5-Capex'!C70 -> 62181352.57 | C29: ='C5-Capex'!D70 -> 201361894 | D29: ='C5-Capex'!E70 -> 206105362 | E29: ='C5-Capex'!F70 -> 8087457.7 | F29: ='C5-Capex'!G70 -> 109629366.9 | G29: ='C5-Capex'!H70 -> 188376688.4 | H29: -78747321.5 | I29: -0.4180311384 | J29: ='C5-Capex'!K70 -> 206105362
A31: Borrowing | B31: ='C5-Capex'!C72 -> 0 | C31: ='C5-Capex'!D72 -> 0 | D31: ='C5-Capex'!E72 -> 0 | E31: ='C5-Capex'!F72 -> 0 | F31: ='C5-Capex'!G72 -> 0 | G31: ='C5-Capex'!H72 -> 0 | H31: 0 | J31: ='C5-Capex'!K72 -> 0
A32: Internally generated funds | B32: ='C5-Capex'!C73 -> 0 | C32: ='C5-Capex'!D73 -> 3440253 | D32: ='C5-Capex'!E73 -> 113975 | E32: ='C5-Capex'!F73 -> -740379.43 | F32: ='C5-Capex'!G73 -> 139824.44 | G32: ='C5-Capex'!H73 -> 389421.78 | H32: -249597.34 | I32: -0.6409434521 | J32: ='C5-Capex'!K73 -> 113975
A33: Total sources of capital funds | B33: =+B29+B31+B32 -> 62181352.57 | C33: 204802147 | D33: 206219337 | E33: 7347078.27 | F33: 109769191.3 | G33: 188766110.2 | H33: -78996918.84 | I33: -0.4184910033 | J33: =+J29+J31+J32 -> 206219337
A35: Financial position
A36: Total current assets | B36: ='C6-FinPos'!C13 -> 155835678.5 | C36: ='C6-FinPos'!D13 -> 572098000 | D36: ='C6-FinPos'!E13 -> 572098000 | F36: ='C6-FinPos'!F13 -> 223273602.4 | J36: ='C6-FinPos'!G13 -> 572098000
A37: Total non current assets | B37: ='C6-FinPos'!C25 -> 3493339856 | C37: ='C6-FinPos'!D25 -> 1785427147 | D37: ='C6-FinPos'!E25 -> 1786844337 | F37: ='C6-FinPos'!F25 -> 3349748565 | J37: ='C6-FinPos'!G25 -> 1786844337
A38: Total current liabilities | B38: ='C6-FinPos'!C35 -> 361268359 | C38: ='C6-FinPos'!D35 -> 172503000 | D38: ='C6-FinPos'!E35 -> 172503000 | F38: ='C6-FinPos'!F35 -> 307151783.8 | J38: ='C6-FinPos'!G35 -> 172503000
A39: Total non current liabilities | B39: ='C6-FinPos'!C40 -> 31542642.37 | C39: ='C6-FinPos'!D40 -> 24600000 | D39: ='C6-FinPos'!E40 -> 24600000 | F39: ='C6-FinPos'!F40 -> 32092642.37 | J39: ='C6-FinPos'!G40 -> 24600000
A40: Community wealth/Equity | B40: ='C6-FinPos'!C48 -> 3441503491 | C40: ='C6-FinPos'!D48 -> 2160422147 | D40: ='C6-FinPos'!E48 -> 2156151997 | F40: ='C6-FinPos'!F48 -> 3165517110 | J40: ='C6-FinPos'!G48 -> 2156151997
A42: Cash flows
A43: Net cash from (used) operating | B43: ='C7-CFlow'!C18 -> -617248748.5 | C43: ='C7-CFlow'!D18 -> -690163589 | D43: ='C7-CFlow'!E18 -> -570990814 | E43: ='C7-CFlow'!F18 -> -83766675.59 | F43: ='C7-CFlow'!G18 -> 515397750.6 | G43: ='C7-CFlow'!H18 -> 529557040.9 | H43: =G43-F43 -> 14159290.32 | I43: =IF(H43=0,"",H43/G43) -> 0.02673798897 | J43: ='C7-CFlow'!K18 -> 570990814
A44: Net cash from (used) investing | B44: ='C7-CFlow'!C28 -> 0 | C44: ='C7-CFlow'!D28 -> 0 | D44: ='C7-CFlow'!E28 -> 0 | E44: ='C7-CFlow'!F28 -> -602203000 | F44: ='C7-CFlow'!G28 -> 0 | G44: ='C7-CFlow'!H28 -> 0 | H44: =G44-F44 -> 0 | I44: =IF(H44=0,"",H44/G44) ->  | J44: ='C7-CFlow'!K28 -> 0
A45: Net cash from (used) financing | B45: ='C7-CFlow'!C37 -> 43829903.15 | C45: ='C7-CFlow'!D37 -> 132518500 | D45: ='C7-CFlow'!E37 -> 132503000 | E45: ='C7-CFlow'!F37 -> -7000 | F45: ='C7-CFlow'!G37 -> -34383128.74 | G45: ='C7-CFlow'!H37 -> -121461076 | H45: =G45-F45 -> -87077947.26 | I45: =IF(H45=0,"",H45/G45) -> 0.7169205982 | J45: ='C7-CFlow'!K37 -> -132503000
A46: Cash/cash equivalents at the month/year end | B46: ='C7-CFlow'!C41 -> -572109665.4 | C46: ='C7-CFlow'!D41 -> -533268089 | D46: ='C7-CFlow'!E41 -> -414110814 | E46: ='C7-CFlow'!F41 -> 0 | F46: ='C7-CFlow'!G41 -> 545687770.6 | G46: ='C7-CFlow'!H41 -> 408095964.9 | H46: =G46-F46 -> -137591805.7 | I46: =IF(H46=0,"",H46/G46) -> -0.3371555162 | J46: ='C7-CFlow'!K41 -> 438487814
A48: Debtors & creditors analysis | B48: ='SC3'!C3 -> 0-30 Days | C48: ='SC3'!D3 -> 31-60 Days | D48: ='SC3'!E3 -> 61-90 Days | E48: ='SC3'!F3 -> 91-120 Days | F48: ='SC3'!G3 -> 121-150 Dys | G48: ='SC3'!H3 -> 151-180 Dys | H48: ='SC3'!I3 -> 181 Dys-1 Yr | I48: ='SC3'!J3 -> Over 1Yr | J48: Total
A49: =LEFT('SC3'!A4,20) -> Debtors Age Analysis
A50: ='SC3'!A14 -> Total By Income Source | B50: ='SC3'!C14 -> 32603324 | C50: ='SC3'!D14 -> 34153034 | D50: ='SC3'!E14 -> 34656478 | E50: ='SC3'!F14 -> 32234501 | F50: ='SC3'!G14 -> 31217470 | G50: ='SC3'!H14 -> 24978294 | H50: ='SC3'!I14 -> 140002188 | I50: ='SC3'!J14 -> 881594193 | J50: ='SC3'!K14 -> 1211439482
A51: =LEFT('SC4'!A5,22) -> Creditors Age Analysis
A52: Total Creditors | B52: ='SC4'!C15 -> 2029945.41 | C52: ='SC4'!D15 -> 72178.74 | D52: ='SC4'!E15 -> 2197992.99 | E52: ='SC4'!F15 -> 0 | F52: ='SC4'!G15 -> 0 | G52: ='SC4'!H15 -> 0 | H52: ='SC4'!I15 -> 0 | I52: ='SC4'!J15 -> 0 | J52: ='SC4'!K15 -> 4300117.14

Sheet C2-FinPerf SC
A1: =muni& " - "&S71A& " - "&date -> NW375 Moses Kotane - Table C2 Monthly Budget Statement - Financial Performance (functional classification) - M11 May
A2: =desc -> Description | B2: =head27 -> Ref | C2: =Head1 -> 2018/19 | D2: =Head2 -> Budget Year 2019/20
C3: =Head5 -> Audited Outcome | D3: =Head6 -> Original Budget | E3: =Head7 -> Adjusted Budget | F3: =Head38 -> Monthly actual | G3: =Head39 -> YearTD actual | H3: =Head40 -> YearTD budget | I3: =Head41 -> YTD variance | J3: =Head41 -> YTD variance | K3: =Head8 -> Full Year Forecast
A4: R thousands | B4: 1 | J4: %
A5: Revenue - Functional
A6: Governance and administration | C6: =SUM(C7:C9) -> 576221720.9 | D6: 481392100 | E6: 420659890 | F6: 80736968.49 | G6: 460564247.9 | H6: 392522788 | I6: =G6-H6 -> 68041459.92 | J6: =IF(I6=0,"",I6/H6) -> 0.1733439739 | K6: =SUM(K7:K9) -> 420659890
A7: Executive and council | C7: ='C2C'!C7 -> 652738.76 | D7: ='C2C'!D7 -> 1695000 | E7: ='C2C'!E7 -> 1695000 | F7: ='C2C'!F7 -> 0 | G7: ='C2C'!G7 -> 784319.54 | H7: ='C2C'!H7 -> 1553739 | I7: -769419.46 | J7: =IF(I7=0,"",I7/H7) -> -0.4952050891 | K7: ='C2C'!K7 -> 1695000
A8: Finance and administration | C8: ='C2C'!C10 -> 575568982.1 | D8: ='C2C'!D10 -> 479697100 | E8: ='C2C'!E10 -> 418964890 | F8: ='C2C'!F10 -> 80736968.49 | G8: ='C2C'!G10 -> 459779928.4 | H8: ='C2C'!H10 -> 390969049 | I8: 68810879.38 | J8: 0.1760008358 | K8: ='C2C'!K10 -> 418964890
A9: Internal audit | C9: ='C2C'!C24 -> 0 | D9: ='C2C'!D24 -> 0 | E9: ='C2C'!E24 -> 0 | F9: ='C2C'!F24 -> 0 | G9: ='C2C'!G24 -> 0 | H9: ='C2C'!H24 -> 0 | I9: 0 | K9: ='C2C'!K24 -> 0
A10: Community and public safety | C10: =SUM(C11:C15) -> 27512511.76 | D10: 19245253 | E10: 35366754 | F10: 465881.67 | G10: 36650206.1 | H10: 30592494.9 | I10: 6057711.2 | J10: 0.1980129839 | K10: =SUM(K11:K15) -> 35366754
A11: Community and social services | C11: ='C2C'!C27 -> 24965723.95 | D11: ='C2C'!D27 -> 14640253 | E11: ='C2C'!E27 -> 31761754 | F11: ='C2C'!F27 -> 465881.67 | G11: ='C2C'!G27 -> 31467104.87 | H11: ='C2C'!H27 -> 27171266.9 | I11: 4295837.97 | J11: 0.158102233 | K11: ='C2C'!K27 -> 31761754
A12: Sport and recreation | C12: ='C2C'!C49 -> 41707.35 | D12: ='C2C'!D49 -> 55000 | E12: ='C2C'!E49 -> 55000 | F12: ='C2C'!F49 -> 0 | G12: ='C2C'!G49 -> 2101.23 | H12: ='C2C'!H49 -> 50402 | I12: -48300.77 | J12: -0.9583105829 | K12: ='C2C'!K49 -> 55000
A13: Public safety | C13: ='C2C'!C55 -> 2505080.46 | D13: ='C2C'!D55 -> 4550000 | E13: ='C2C'!E55 -> 3550000 | F13: ='C2C'!F55 -> 0 | G13: ='C2C'!G55 -> 5181000 | H13: ='C2C'!H55 -> 3370826 | I13: 1810174 | J13: 0.5370119965 | K13: ='C2C'!K55 -> 3550000
A14: Housing | C14: ='C2C'!C64 -> 0 | D14: ='C2C'!D64 -> 0 | E14: ='C2C'!E64 -> 0 | F14: ='C2C'!F64 -> 0 | G14: ='C2C'!G64 -> 0 | H14: ='C2C'!H64 -> 0 | I14: =G14-H14 -> 0 | J14: =IF(I14=0,"",I14/H14) ->  | K14: ='C2C'!K64 -> 0
A15: Health | C15: ='C2C'!C67 -> 0 | D15: ='C2C'!D67 -> 0 | E15: ='C2C'!E67 -> 0 | F15: ='C2C'!F67 -> 0 | G15: ='C2C'!G67 -> 0 | H15: ='C2C'!H67 -> 0 | I15: 0 | K15: ='C2C'!K67 -> 0
A16: Economic and environmental services | C16: =SUM(C17:C19) -> 58410002.55 | D16: 67460875 | E16: 64920955 | F16: 2615175.46 | G16: 33983591.24 | H16: 59807182 | I16: -25823590.76 | J16: -0.4317807644 | K16: =SUM(K17:K19) -> 64920955
A17: Planning and development | C17: ='C2C'!C76 -> 2445423.83 | D17: ='C2C'!D76 -> 5267637 | E17: ='C2C'!E76 -> 3732637 | F17: ='C2C'!F76 -> 2615175.46 | G17: ='C2C'!G76 -> 2730065.76 | H17: ='C2C'!H76 -> 3600659 | I17: -870593.24 | J17: -0.2417871951 | K17: ='C2C'!K76 -> 3732637
A18: Road transport | C18: ='C2C'!C87 -> 55964578.72 | D18: ='C2C'!D87 -> 62193238 | E18: ='C2C'!E87 -> 61188318 | F18: ='C2C'!F87 -> 0 | G18: ='C2C'!G87 -> 31253525.48 | H18: ='C2C'!H87 -> 56206523 | I18: -24952997.52 | J18: -0.4439519861 | K18: ='C2C'!K87 -> 61188318
A19: Environmental protection | C19: ='C2C'!C92 -> 0 | D19: ='C2C'!D92 -> 0 | E19: ='C2C'!E92 -> 0 | F19: ='C2C'!F92 -> 0 | G19: ='C2C'!G92 -> 0 | H19: ='C2C'!H92 -> 0 | I19: 0 | K19: ='C2C'!K92 -> 0
A20: Trading services | C20: =SUM(C21:C24) -> 259869519.6 | D20: =SUM(D21:D24) -> 467992300 | E20: 459441719 | F20: 27181820.14 | G20: 372922203.9 | H20: 422152396.2 | I20: -49230192.27 | J20: -0.1166171096 | K20: =SUM(K21:K24) -> 459441719
A21: Energy sources | C21: ='C2C'!C100 -> 5282036.29 | D21: ='C2C'!D100 -> 19857810 | E21: ='C2C'!E100 -> 20416973 | F21: ='C2C'!F100 -> 0 | G21: ='C2C'!G100 -> 9684229.93 | H21: ='C2C'!H100 -> 18650317.4 | I21: =G21-H21 -> -8966087.47 | J21: -0.4807471786 | K21: ='C2C'!K100 -> 20416973
A22: Water management | C22: ='C2C'!C104 -> 219467484.4 | D22: ='C2C'!D104 -> 324371603 | E22: ='C2C'!E104 -> 340838082 | F22: ='C2C'!F104 -> 26169336.55 | G22: ='C2C'!G104 -> 271447007.1 | H22: ='C2C'!H104 -> 310513776.2 | I22: =G22-H22 -> -39066769.08 | J22: -0.12581332 | K22: ='C2C'!K104 -> 340838082
A23: Waste water management | C23: ='C2C'!C108 -> 18298994.46 | D23: ='C2C'!D108 -> 43021550 | E23: ='C2C'!E108 -> 33242236 | F23: ='C2C'!F108 -> 185517.41 | G23: ='C2C'!G108 -> 26720884.21 | H23: ='C2C'!H108 -> 31612956.8 | I23: =G23-H23 -> -4892072.59 | J23: -0.1547489727 | K23: ='C2C'!K108 -> 33242236
A24: Waste management | C24: ='C2C'!C113 -> 16821004.45 | D24: ='C2C'!D113 -> 80741337 | E24: ='C2C'!E113 -> 64944428 | F24: ='C2C'!F113 -> 826966.18 | G24: ='C2C'!G113 -> 65070082.67 | H24: ='C2C'!H113 -> 61375345.8 | I24: =G24-H24 -> 3694736.87 | J24: 0.06019903956 | K24: ='C2C'!K113 -> 64944428
A25: Other | B25: 4 | C25: ='C2C'!C118 -> 0 | D25: ='C2C'!D118 -> 0 | E25: ='C2C'!E118 -> 0 | F25: ='C2C'!F118 -> 0 | G25: ='C2C'!G118 -> 0 | H25: ='C2C'!H118 -> 0 | I25: =G25-H25 -> 0 | K25: ='C2C'!K118 -> 0
A26: Total Revenue - Functional | B26: 2 | C26: =C6+C10+C16+C20+C25 -> 922013754.8 | D26: =D6+D10+D16+D20+D25 -> 1036090528 | E26: 980389318 | F26: 110999845.8 | G26: 904120249.2 | H26: 905074861.1 | I26: -954611.91 | J26: -0.001054732543 | K26: =K6+K10+K16+K20+K25 -> 980389318
A28: Expenditure - Functional
A29: Governance and administration | C29: =SUM(C30:C32) -> 402883396.6 | D29: 395399683 | E29: 330311524 | F29: 24414082.34 | G29: 272040998 | H29: 305336285.3 | I29: =G29-H29 -> -33295287.36 | J29: =IF(I29=0,"",I29/H29) -> -0.1090446467 | K29: =SUM(K30:K32) -> 330311524
A30: Executive and council | C30: ='C2C'!C129 -> 89330358.12 | D30: ='C2C'!D129 -> 107752328 | E30: ='C2C'!E129 -> 83503014 | F30: ='C2C'!F129 -> 5091044.56 | G30: ='C2C'!G129 -> 68409866.33 | H30: ='C2C'!H129 -> 77826532.12 | I30: -9416665.79 | J30: =IF(I30=0,"",I30/H30) -> -0.1209955722 | K30: ='C2C'!K129 -> 83503014
A31: Finance and administration | C31: ='C2C'!C132 -> 310102802.5 | D31: ='C2C'!D132 -> 283949994 | E31: ='C2C'!E132 -> 243346499 | F31: ='C2C'!F132 -> 19044541.69 | G31: ='C2C'!G132 -> 200398628 | H31: ='C2C'!H132 -> 224308735.2 | I31: -23910107.18 | J31: -0.1065946324 | K31: ='C2C'!K132 -> 243346499
A32: Internal audit | C32: ='C2C'!C146 -> 3450236.01 | D32: ='C2C'!D146 -> 3697361 | E32: ='C2C'!E146 -> 3462011 | F32: ='C2C'!F146 -> 278496.09 | G32: ='C2C'!G146 -> 3232503.61 | H32: ='C2C'!H146 -> 3201018 | I32: 31485.61 | J32: 0.009836124008 | K32: ='C2C'!K146 -> 3462011
A33: Community and public safety | C33: =SUM(C34:C38) -> 107525758.9 | D33: 101814686 | E33: 80924419 | F33: 5655351.93 | G33: 73793698.63 | H33: 75911190.26 | I33: -2117491.63 | J33: -0.02789432787 | K33: =SUM(K34:K38) -> 80924419
A34: Community and social services | C34: ='C2C'!C149 -> 45249125.1 | D34: ='C2C'!D149 -> 30482848 | E34: ='C2C'!E149 -> 22925929 | F34: ='C2C'!F149 -> 1595463.89 | G34: ='C2C'!G149 -> 14626795.07 | H34: ='C2C'!H149 -> 21617705.7 | I34: -6990910.63 | J34: -0.3233881859 | K34: ='C2C'!K149 -> 22925929
A35: Sport and recreation | C35: ='C2C'!C171 -> 33189132.41 | D35: ='C2C'!D171 -> 29288851 | E35: ='C2C'!E171 -> 25715503 | F35: ='C2C'!F171 -> 1947769.09 | G35: ='C2C'!G171 -> 34907837.71 | H35: ='C2C'!H171 -> 23957505.84 | I35: 10950331.87 | J35: 0.457073117 | K35: ='C2C'!K171 -> 25715503
A36: Public safety | C36: ='C2C'!C177 -> 29087501.38 | D36: ='C2C'!D177 -> 42042987 | E36: ='C2C'!E177 -> 32282987 | F36: ='C2C'!F177 -> 2112118.95 | G36: ='C2C'!G177 -> 24259065.85 | H36: ='C2C'!H177 -> 30335978.72 | I36: -6076912.87 | J36: -0.2003203169 | K36: ='C2C'!K177 -> 32282987
A37: Housing | C37: ='C2C'!C186 -> 0 | D37: ='C2C'!D186 -> 0 | E37: ='C2C'!E186 -> 0 | F37: ='C2C'!F186 -> 0 | G37: ='C2C'!G186 -> 0 | H37: ='C2C'!H186 -> 0 | I37: 0 | K37: ='C2C'!K186 -> 0
A38: Health | C38: ='C2C'!C189 -> 0 | D38: ='C2C'!D189 -> 0 | E38: ='C2C'!E189 -> 0 | F38: ='C2C'!F189 -> 0 | G38: ='C2C'!G189 -> 0 | H38: ='C2C'!H189 -> 0 | I38: 0 | K38: ='C2C'!K189 -> 0
A39: Economic and environmental services | C39: =SUM(C40:C42) -> 150851067.7 | D39: 115203608 | E39: 97236854 | F39: 7277547.83 | G39: 69518833.68 | H39: 90047553.88 | I39: -20528720.2 | J39: -0.2279764337 | K39: =SUM(K40:K42) -> 97236854
A40: Planning and development | C40: ='C2C'!C198 -> 17338781.37 | D40: ='C2C'!D198 -> 31369359 | E40: ='C2C'!E198 -> 25454605 | F40: ='C2C'!F198 -> 1687704.9 | G40: ='C2C'!G198 -> 18286937.49 | H40: ='C2C'!H198 -> 23679136.96 | I40: -5392199.47 | J40: -0.2277194257 | K40: ='C2C'!K198 -> 25454605
A41: Road transport | C41: ='C2C'!C209 -> 133512286.3 | D41: ='C2C'!D209 -> 83834249 | E41: ='C2C'!E209 -> 71782249 | F41: ='C2C'!F209 -> 5589842.93 | G41: ='C2C'!G209 -> 51231896.19 | H41: ='C2C'!H209 -> 66368416.92 | I41: -15136520.73 | J41: -0.2280681299 | K41: ='C2C'!K209 -> 71782249
A42: Environmental protection | C42: ='C2C'!C214 -> 0 | D42: ='C2C'!D214 -> 0 | E42: ='C2C'!E214 -> 0 | F42: ='C2C'!F214 -> 0 | G42: ='C2C'!G214 -> 0 | H42: ='C2C'!H214 -> 0 | I42: 0 | K42: ='C2C'!K214 -> 0
A43: Trading services | C43: =SUM(C44:C47) -> 414810237.7 | D43: =SUM(D44:D47) -> 354822345 | E43: 397202950 | F43: 11893414.55 | G43: 373330563.4 | H43: 363539962.9 | I43: 9790600.49 | J43: 0.02693129089 | K43: =SUM(K44:K47) -> 397202950
A44: Energy sources | C44: ='C2C'!C222 -> 27187906.04 | D44: ='C2C'!D222 -> 31908720 | E44: ='C2C'!E222 -> 31753758 | F44: ='C2C'!F222 -> 2910595.35 | G44: ='C2C'!G222 -> 28562011.17 | H44: ='C2C'!H222 -> 28805756.48 | I44: -243745.31 | J44: -0.008461687516 | K44: ='C2C'!K222 -> 31753758
A45: Water management | C45: ='C2C'!C226 -> 307502137.9 | D45: ='C2C'!D226 -> 241659927 | E45: ='C2C'!E226 -> 290898577 | F45: ='C2C'!F226 -> 6532521.6 | G45: ='C2C'!G226 -> 282639459.6 | H45: ='C2C'!H226 -> 265999594.7 | I45: 16639864.91 | J45: 0.06255597843 | K45: ='C2C'!K226 -> 290898577
A46: Waste water management | C46: ='C2C'!C230 -> 32008444.77 | D46: ='C2C'!D230 -> 18784460 | E46: ='C2C'!E230 -> 24789565 | F46: ='C2C'!F230 -> 1523006.92 | G46: ='C2C'!G230 -> 16999420.14 | H46: ='C2C'!H230 -> 22701857.56 | I46: -5702437.42 | J46: -0.251188142 | K46: ='C2C'!K230 -> 24789565
A47: Waste management | C47: ='C2C'!C235 -> 48111749.02 | D47: ='C2C'!D235 -> 62469238 | E47: ='C2C'!E235 -> 49761050 | F47: ='C2C'!F235 -> 927290.68 | G47: ='C2C'!G235 -> 45129672.47 | H47: ='C2C'!H235 -> 46032754.16 | I47: -903081.69 | J47: -0.01961824154 | K47: ='C2C'!K235 -> 49761050
A48: Other | C48: ='C2C'!C240 -> 0 | D48: ='C2C'!D240 -> 0 | E48: ='C2C'!E240 -> 0 | F48: ='C2C'!F240 -> 0 | G48: ='C2C'!G240 -> 0 | H48: ='C2C'!H240 -> 0 | I48: 0 | K48: ='C2C'!K240 -> 0
A49: Total Expenditure - Functional | B49: 3 | C49: =C29+C33+C39+C43+C48 -> 1076070461 | D49: =D29+D33+D39+D43+D48 -> 967240322 | E49: 905675747 | F49: 49240396.65 | G49: 788684093.7 | H49: 834834992.4 | I49: -46150898.7 | J49: -0.05528146175 | K49: =K29+K33+K39+K43+K48 -> 905675747
A50: Surplus/ (Deficit) for the year | C50: =C26-C49 -> -154056706.2 | D50: 68850206 | E50: 74713571 | F50: 61759449.11 | G50: 115436155.5 | H50: 70239868.72 | I50: =I26-I49 -> 45196286.79 | J50: =IF(I50=0,"",I50/H50) -> 0.6434563107 | K50: =K26-K49 -> 74713571
A51: =head27a -> References
A52: 1. Government Finance Statistics Functions and Sub-functions are standardised to assist the compilation of national and international accounts for comparison purposes
A53: 2. Total Revenue by functional classification must reconcile to Total Operating Revenue shown in the Financial Performance Statement
A54: 3. Total Expenditure by functional classification must reconcile to total operating expenditure shown in 'Financial Performance Statement'
A55: 4. All amounts must be classified under a functional classification (modified GFS). The GFS function 'Other' is only for Abbatoirs, Air Transport, Licensing and Regulation, Markets and Tourism - and if used must be supported by footnotes. Nothing else may be placed under 'Other'. Assign associate share to relevant classification

Sheet C2C
A1: =muni& " - "&S71A& " - "&date -> NW375 Moses Kotane - Table C2 Monthly Budget Statement - Financial Performance (functional classification) - M11 May
A2: =desc -> Description | B2: =head27 -> Ref | C2: =Head1 -> 2018/19 | D2: =Head2 -> Budget Year 2019/20
C3: =Head5 -> Audited Outcome | D3: =Head6 -> Original Budget | E3: =Head7 -> Adjusted Budget | F3: =Head38 -> Monthly actual | G3: =Head39 -> YearTD actual | H3: =Head40 -> YearTD budget | I3: =Head41 -> YTD variance | J3: =Head41 -> YTD variance | K3: =Head8 -> Full Year Forecast
A4: R thousands | B4: 1 | J4: %
A5: Revenue - Functional
A6: Municipal governance and administration | C6: =C7+C10+C24 -> 576221720.9 | D6: 481392100 | E6: 420659890 | F6: 80736968.49 | G6: 460564247.9 | H6: 392522788 | I6: =G6-H6 -> 68041459.92 | J6: =IF(I6=0,"",I6/H6) -> 0.1733439739 | K6: =K7+K10+K24 -> 420659890
A7: Executive and council | C7: =SUM(C8:C9) -> 652738.76 | D7: =SUM(D8:D9) -> 1695000 | E7: 1695000 | F7: 0 | G7: 784319.54 | H7: 1553739 | I7: =G7-H7 -> -769419.46 | J7: =IF(I7=0,"",I7/H7) -> -0.4952050891 | K7: 1695000
A8: Mayor and Council | C8: 652738.76 | D8: 1695000 | E8: 1695000 | F8: 0 | G8: 784319.54 | H8: 1553739 | I8: -769419.46 | J8: -0.4952050891 | K8: 1695000
A9: Municipal Manager, Town Secretary and Chief Executive | I9: 0
A10: Finance and administration | C10: =SUM(C11:C23) -> 575568982.1 | D10: 479697100 | E10: 418964890 | F10: 80736968.49 | G10: 459779928.4 | H10: 390969049 | I10: =G10-H10 -> 68810879.38 | J10: =IF(I10=0,"",I10/H10) -> 0.1760008358 | K10: =SUM(K11:K23) -> 418964890
A11: Administrative and Corporate Support | C11: 0 | D11: 0 | E11: 0 | F11: 0 | G11: 0 | H11: 0 | I11: 0 | K11: 0
A12: Asset Management | I12: 0
A13: Finance | C13: 575355291.6 | D13: 479197100 | E13: 418196890 | F13: 80341184.67 | G13: 460686883.2 | H13: 390376723 | I13: 70310160.2 | J13: 0.1801084851 | K13: 418196890
A14: Fleet Management | C14: 0 | D14: 0 | E14: 0 | F14: 0 | G14: 0 | H14: 0 | I14: 0 | K14: 0
A15: Human Resources | C15: 213690.48 | D15: 500000 | E15: 768000 | F15: 395783.82 | G15: -906954.82 | H15: 592326 | I15: -1499280.82 | J15: -2.531175096 | K15: 768000
A16: Information Technology | C16: 0 | D16: 0 | E16: 0 | F16: 0 | G16: 0 | H16: 0 | I16: =G16-H16 -> 0 | J16: =IF(I16=0,"",I16/H16) ->  | K16: 0
A17: Legal Services | I17: 0
A18: Marketing, Customer Relations, Publicity and Media Co-ordination | I18: 0
A19: Property Services | I19: 0
A20: Risk Management | I20: 0
A21: Security Services | I21: 0
A22: Supply Chain Management | I22: 0
A23: Valuation Service | I23: 0
A24: Internal audit | C24: =SUM(C25:C25) -> 0 | D24: 0 | E24: 0 | F24: 0 | G24: 0 | H24: 0 | I24: 0 | K24: =SUM(K25:K25) -> 0
A25: Governance Function | I25: 0
A26: Community and public safety | C26: =C27+C49+C55+C64+C67 -> 27512511.76 | D26: =D27+D49+D55+D64+D67 -> 19245253 | E26: 35366754 | F26: 465881.67 | G26: 36650206.1 | H26: 30592494.9 | I26: 6057711.2 | J26: 0.1980129839 | K26: 35366754
A27: Community and social services | C27: =SUM(C28:C48) -> 24965723.95 | D27: 14640253 | E27: 31761754 | F27: 465881.67 | G27: 31467104.87 | H27: 27171266.9 | I27: 4295837.97 | J27: 0.158102233 | K27: =SUM(K28:K48) -> 31761754
A28: Aged Care | I28: =G28-H28 -> 0 | J28: =IF(I28=0,"",I28/H28) -> 
A29: Agricultural | I29: 0
A30: Animal Care and Diseases | I30: 0
A31: Cemeteries, Funeral Parlours and Crematoriums | C31: 15477.86 | D31: 10000 | E31: 10000 | F31: 0 | G31: 9158.23 | H31: 9163 | I31: -4.77 | J31: -0.0005205718651 | K31: 10000
A32: Child Care Facilities | I32: 0
A33: Community Halls and Facilities | C33: 19325140.85 | D33: 14590253 | E33: 30726754 | F33: 0 | G33: 30967074.93 | H33: 26283594.8 | I33: 4683480.13 | J33: 0.1781902425 | K33: 30726754
A34: Consumer Protection | I34: 0
A35: Cultural Matters | I35: =G35-H35 -> 0 | J35: =IF(I35=0,"",I35/H35) -> 
A36: Disaster Management | I36: 0
A37: Education | I37: 0
A38: Indigenous and Customary Law | I38: 0
A39: Industrial Promotion | I39: 0
A40: Language Policy | I40: 0
A41: Libraries and Archives | C41: 5625105.24 | D41: 40000 | E41: 1025000 | F41: 465881.67 | G41: 490871.71 | H41: 878509.1 | I41: -387637.39 | J41: -0.4412445927 | K41: 1025000
A42: Literacy Programmes | I42: 0
A43: Media Services | I43: 0
A44: Museums and Art Galleries | I44: 0
A45: Population Development | I45: 0
A46: Provincial Cultural Matters | I46: 0
A47: Theatres | I47: 0
A48: Zoo's | I48: 0
A49: Sport and recreation | C49: =SUM(C50:C54) -> 41707.35 | D49: =SUM(D50:D54) -> 55000 | E49: 55000 | F49: 0 | G49: 2101.23 | H49: 50402 | I49: =G49-H49 -> -48300.77 | J49: =IF(I49=0,"",I49/H49) -> -0.9583105829 | K49: 55000
A50: Beaches and Jetties | I50: 0
A51: Casinos, Racing, Gambling, Wagering | I51: 0
A52: Community Parks (including Nurseries) | I52: 0
A53: Recreational Facilities | C53: 41707.35 | D53: 55000 | E53: 55000 | F53: 0 | G53: 2101.23 | H53: 50402 | I53: -48300.77 | J53: -0.9583105829 | K53: 55000
A54: Sports Grounds and Stadiums | I54: 0
A55: Public safety | C55: =SUM(C56:C63) -> 2505080.46 | D55: =SUM(D56:D63) -> 4550000 | E55: 3550000 | F55: 0 | G55: 5181000 | H55: 3370826 | I55: 1810174 | J55: 0.5370119965 | K55: 3550000
A56: Civil Defence | C56: 0 | D56: 0 | E56: 0 | F56: 0 | G56: 0 | H56: 0 | I56: 0 | K56: 0
A57: Cleansing | I57: 0
A58: Control of Public Nuisances | I58: =G58-H58 -> 0 | J58: =IF(I58=0,"",I58/H58) -> 
A59: Fencing and Fences | I59: 0
A60: Fire Fighting and Protection | I60: 0
A61: Licensing and Control of Animals | I61: =G61-H61 -> 0 | J61: =IF(I61=0,"",I61/H61) -> 
A62: Police Forces, Traffic and Street Parking Control | C62: 2505080.46 | D62: 4550000 | E62: 3550000 | F62: 0 | G62: 5181000 | H62: 3370826 | I62: =G62-H62 -> 1810174 | J62: =IF(I62=0,"",I62/H62) -> 0.5370119965 | K62: 3550000
A63: Pounds | I63: 0
A64: Housing | C64: =SUM(C65:C66) -> 0 | D64: 0 | E64: 0 | F64: 0 | G64: 0 | H64: 0 | I64: =G64-H64 -> 0 | J64: =IF(I64=0,"",I64/H64) ->  | K64: =SUM(K65:K66) -> 0
A65: Housing | I65: =G65-H65 -> 0 | J65: =IF(I65=0,"",I65/H65) -> 
A66: Informal Settlements | I66: =G66-H66 -> 0 | J66: =IF(I66=0,"",I66/H66) -> 
A67: Health | C67: =SUM(C68:C74) -> 0 | D67: 0 | E67: 0 | F67: 0 | G67: 0 | H67: 0 | I67: 0 | K67: =SUM(K68:K74) -> 0
A68: Ambulance | I68: 0
A69: Health Services | I69: 0
A70: Laboratory Services | I70: =G70-H70 -> 0 | J70: =IF(I70=0,"",I70/H70) -> 
A71: Food Control | I71: =G71-H71 -> 0 | J71: =IF(I71=0,"",I71/H71) -> 
A72: Health Surveillance and Prevention of Communicable Diseases including immunizations | I72: 0
A73: Vector Control | I73: 0
A74: Chemical Safety | I74: 0
A75: Economic and environmental services | C75: =C76+C87+C92 -> 58410002.55 | D75: 67460875 | E75: 64920955 | F75: 2615175.46 | G75: 33983591.24 | H75: 59807182 | I75: -25823590.76 | J75: -0.4317807644 | K75: =K76+K87+K92 -> 64920955
A76: Planning and development | C76: =SUM(C77:C86) -> 2445423.83 | D76: 5267637 | E76: 3732637 | F76: 2615175.46 | G76: 2730065.76 | H76: 3600659 | I76: -870593.24 | J76: -0.2417871951 | K76: =SUM(K77:K86) -> 3732637
A77: Billboards | I77: =G77-H77 -> 0 | J77: =IF(I77=0,"",I77/H77) -> 
A78: Corporate Wide Strategic Planning (IDPs, LEDs) | I78: 0
A79: Central City Improvement District | I79: 0
A80: Development Facilitation | I80: =G80-H80 -> 0 | J80: =IF(I80=0,"",I80/H80) -> 
A81: Economic Development/Planning | C81: 0 | D81: 0 | E81: 0 | F81: 0 | G81: 0 | H81: 0 | I81: =G81-H81 -> 0 | J81: =IF(I81=0,"",I81/H81) ->  | K81: 0
A82: Regional Planning and Development | I82: =G82-H82 -> 0 | J82: =IF(I82=0,"",I82/H82) -> 
A83: Town Planning, Building Regulations and Enforcement, and City Engineer | C83: 106926.07 | D83: 100000 | E83: 150000 | F83: 0 | G83: 114890.3 | H83: 131663 | I83: =G83-H83 -> -16772.7 | J83: =IF(I83=0,"",I83/H83) -> -0.1273911425 | K83: 150000
A84: Project Management Unit | C84: 2338497.76 | D84: 5167637 | E84: 3582637 | F84: 2615175.46 | G84: 2615175.46 | H84: 3468996 | I84: -853820.54 | J84: -0.2461290068 | K84: 3582637
A85: Provincial Planning | I85: 0
A86: Support to Local Municipalities | I86: 0
A87: Road transport | C87: =SUM(C88:C91) -> 55964578.72 | D87: 62193238 | E87: 61188318 | F87: 0 | G87: 31253525.48 | H87: 56206523 | I87: -24952997.52 | J87: -0.4439519861 | K87: =SUM(K88:K91) -> 61188318
A88: Public Transport | I88: 0
A89: Road and Traffic Regulation | I89: 0
A90: Roads | C90: 55964578.72 | D90: 62193238 | E90: 61188318 | F90: 0 | G90: 31253525.48 | H90: 56206523 | I90: -24952997.52 | J90: -0.4439519861 | K90: 61188318
A91: Taxi Ranks | I91: 0
A92: Environmental protection | C92: =SUM(C93:C98) -> 0 | D92: =SUM(D93:D98) -> 0 | E92: 0 | F92: 0 | G92: 0 | H92: 0 | I92: 0 | K92: 0
A93: Biodiversity and Landscape | I93: 0
A94: Coastal Protection | I94: 0
A95: Indigenous Forests | I95: =G95-H95 -> 0 | J95: =IF(I95=0,"",I95/H95) -> 
A96: Nature Conservation | I96: =G96-H96 -> 0 | J96: =IF(I96=0,"",I96/H96) -> 
A97: Pollution Control | I97: 0
A98: Soil Conservation | I98: 0
A99: Trading services | C99: =C100+C104+C108+C113 -> 259869519.6 | D99: =D100+D104+D108+D113 -> 467992300 | E99: 459441719 | F99: 27181820.14 | G99: 372922203.9 | H99: 422152396.2 | I99: -49230192.27 | J99: -0.1166171096 | K99: =K100+K104+K108+K113 -> 459441719
A100: Energy sources | C100: =SUM(C101:C103) -> 5282036.29 | D100: =SUM(D101:D103) -> 19857810 | E100: 20416973 | F100: 0 | G100: 9684229.93 | H100: 18650317.4 | I100: -8966087.47 | J100: -0.4807471786 | K100: 20416973
A101: Electricity | I101: 0
A102: Street Lighting and Signal Systems | C102: 5282036.29 | D102: 19857810 | E102: 20416973 | F102: 0 | G102: 9684229.93 | H102: 18650317.4 | I102: =G102-H102 -> -8966087.47 | J102: =IF(I102=0,"",I102/H102) -> -0.4807471786 | K102: 20416973
A103: Nonelectric Energy | I103: 0
A104: Water management | C104: =SUM(C105:C107) -> 219467484.4 | D104: =SUM(D105:D107) -> 324371603 | E104: 340838082 | F104: 26169336.55 | G104: 271447007.1 | H104: 310513776.2 | I104: -39066769.08 | J104: -0.12581332 | K104: 340838082
A105: Water Treatment | C105: 199744216.7 | D105: 236371603 | E105: 252838082 | F105: 26169336.55 | G105: 183447007.1 | H105: 229847124.2 | I105: -46400117.08 | J105: -0.2018738204 | K105: 252838082
A106: Water Distribution | C106: 19723267.64 | D106: 88000000 | E106: 88000000 | F106: 0 | G106: 88000000 | H106: 80666652 | I106: =G106-H106 -> 7333348 | J106: =IF(I106=0,"",I106/H106) -> 0.09090928926 | K106: 88000000
A107: Water Storage | I107: 0
A108: Waste water management | C108: =SUM(C109:C112) -> 18298994.46 | D108: =SUM(D109:D112) -> 43021550 | E108: 33242236 | F108: 185517.41 | G108: 26720884.21 | H108: 31612956.8 | I108: -4892072.59 | J108: -0.1547489727 | K108: 33242236
A109: Public Toilets | I109: 0
A110: Sewerage | C110: 18298994.46 | D110: 43021550 | E110: 33242236 | F110: 185517.41 | G110: 26720884.21 | H110: 31612956.8 | I110: -4892072.59 | J110: -0.1547489727 | K110: 33242236
A111: Storm Water Management | C111: 0 | D111: 0 | E111: 0 | F111: 0 | G111: 0 | H111: 0 | I111: =G111-H111 -> 0 | J111: =IF(I111=0,"",I111/H111) ->  | K111: 0
A112: Waste Water Treatment | I112: 0
A113: Waste management | C113: =SUM(C114:C117) -> 16821004.45 | D113: 80741337 | E113: 64944428 | F113: 826966.18 | G113: 65070082.67 | H113: 61375345.8 | I113: 3694736.87 | J113: 0.06019903956 | K113: =SUM(K114:K117) -> 64944428
A114: Recycling | I114: =G114-H114 -> 0 | J114: =IF(I114=0,"",I114/H114) -> 
A115: Solid Waste Disposal (Landfill Sites) | I115: =G115-H115 -> 0 | J115: =IF(I115=0,"",I115/H115) -> 
A116: Solid Waste Removal | C116: 16821004.45 | D116: 80741337 | E116: 64944428 | F116: 826966.18 | G116: 65070082.67 | H116: 61375345.8 | I116: 3694736.87 | J116: 0.06019903956 | K116: 64944428
A117: Street Cleaning | I117: =G117-H117 -> 0 | J117: =IF(I117=0,"",I117/H117) -> 
A118: Other | C118: =SUM(C119:C124) -> 0 | D118: =SUM(D119:D124) -> 0 | E118: 0 | F118: 0 | G118: 0 | H118: 0 | I118: 0 | K118: 0
A119: Abattoirs | I119: 0
A120: Air Transport | I120: 0
A121: Forestry | I121: =G121-H121 -> 0 | J121: =IF(I121=0,"",I121/H121) -> 
A122: Licensing and Regulation | I122: 0
A123: Markets | I123: 0
A124: Tourism | I124: =G124-H124 -> 0 | J124: =IF(I124=0,"",I124/H124) -> 
A125: ="Total "&A5 -> Total Revenue - Functional | B125: 2 | C125: =C6+C26+C75+C99+C118 -> 922013754.8 | D125: 1036090528 | E125: 980389318 | F125: 110999845.8 | G125: 904120249.2 | H125: 905074861.1 | I125: =G125-H125 -> -954611.91 | J125: =IF(I125=0,"",I125/H125) -> -0.001054732543 | K125: =K6+K26+K75+K99+K118 -> 980389318
A127: Expenditure - Functional
A128: =A6 -> Municipal governance and administration | C128: =C129+C132+C146 -> 402883396.6 | D128: 395399683 | E128: 330311524 | F128: 24414082.34 | G128: 272040998 | H128: 305336285.3 | I128: =G128-H128 -> -33295287.36 | J128: =IF(I128=0,"",I128/H128) -> -0.1090446467 | K128: =K129+K132+K146 -> 330311524
A129: Executive and council | C129: =SUM(C130:C131) -> 89330358.12 | D129: 107752328 | E129: 83503014 | F129: 5091044.56 | G129: 68409866.33 | H129: 77826532.12 | I129: -9416665.79 | J129: -0.1209955722 | K129: 83503014
A130: Mayor and Council | C130: 71893828.82 | D130: 82049260 | E130: 66834252 | F130: 4192280.3 | G130: 54454190.84 | H130: 62108076.24 | I130: -7653885.4 | J130: -0.1232349457 | K130: 66834252
A131: Municipal Manager, Town Secretary and Chief Executive | C131: 17436529.3 | D131: 25703068 | E131: 16668762 | F131: 898764.26 | G131: 13955675.49 | H131: 15718455.88 | I131: -1762780.39 | J131: -0.1121471729 | K131: 16668762
A132: Finance and administration | C132: =SUM(C133:C145) -> 310102802.5 | D132: 283949994 | E132: 243346499 | F132: 19044541.69 | G132: 200398628 | H132: 224308735.2 | I132: -23910107.18 | J132: -0.1065946324 | K132: =SUM(K133:K145) -> 243346499
A133: Administrative and Corporate Support | C133: -13467917.22 | D133: 46926909 | E133: 39692827 | F133: 3215294.09 | G133: 33795703.06 | H133: 36363891.6 | I133: -2568188.54 | J133: -0.07062468914 | K133: 39692827
A134: Asset Management | C134: 6678909.42 | D134: 11318519 | E134: 6766219 | F134: 247677.51 | G134: 4046900 | H134: 6545980.56 | I134: -2499080.56 | J134: -0.3817732939 | K134: 6766219
A135: Finance | C135: 205053263.8 | D135: 108624212 | E135: 107446118 | F135: 8856859.39 | G135: 67098464.09 | H135: 98367935.76 | I135: -31269471.67 | J135: -0.3178827677 | K135: 107446118
A136: Fleet Management | C136: 14370689.8 | D136: 17935850 | E136: 15293850 | F136: 703386.67 | G136: 11458335.88 | H136: 14141004.36 | I136: -2682668.48 | J136: -0.1897084826 | K136: 15293850
A137: Human Resources | C137: 14521642.51 | D137: 16861620 | E137: 11967680 | F137: 700953.84 | G137: 8173156.22 | H137: 11163276.48 | I137: -2990120.26 | J137: -0.2678532835 | K137: 11967680
A138: Information Technology | C138: 75644907.46 | D138: 74955189 | E138: 54785380 | F138: 4717236.59 | G138: 67998910.86 | H138: 50968589.76 | I138: 17030321.1 | J138: 0.3341336533 | K138: 54785380
A139: Legal Services | C139: 1077036.13 | D139: 1178495 | E139: 1148495 | F139: 95021.37 | G139: 1043346.18 | H139: 1056310 | I139: -12963.82 | J139: -0.0122727419 | K139: 1148495
A140: Marketing, Customer Relations, Publicity and Media Co-ordination | I140: 0
A141: Property Services | I141: 0
A142: Risk Management | C142: 0 | D142: 0 | E142: 0 | F142: 0 | G142: 0 | H142: 0 | I142: 0 | K142: 0
A143: Security Services | I143: 0
A144: Supply Chain Management | C144: 6224270.59 | D144: 6149200 | E144: 6245930 | F144: 508112.23 | G144: 6783811.73 | H144: 5701746.68 | I144: 1082065.05 | J144: 0.1897778191 | K144: 6245930
A145: Valuation Service | I145: 0
A146: Internal audit | C146: =SUM(C147:C147) -> 3450236.01 | D146: 3697361 | E146: 3462011 | F146: 278496.09 | G146: 3232503.61 | H146: 3201018 | I146: 31485.61 | J146: 0.009836124008 | K146: =SUM(K147:K147) -> 3462011
A147: Governance Function | C147: 3450236.01 | D147: 3697361 | E147: 3462011 | F147: 278496.09 | G147: 3232503.61 | H147: 3201018 | I147: 31485.61 | J147: 0.009836124008 | K147: 3462011
A148: Community and public safety | C148: =C149+C171+C177+C186+C189 -> 107525758.9 | D148: 101814686 | E148: 80924419 | F148: 5655351.93 | G148: 73793698.63 | H148: 75911190.26 | I148: -2117491.63 | J148: -0.02789432787 | K148: =K149+K171+K177+K186+K189 -> 80924419
A149: Community and social services | C149: =SUM(C150:C170) -> 45249125.1 | D149: 30482848 | E149: 22925929 | F149: 1595463.89 | G149: 14626795.07 | H149: 21617705.7 | I149: -6990910.63 | J149: -0.3233881859 | K149: =SUM(K150:K170) -> 22925929
A150: Aged Care | I150: 0
A151: Agricultural | C151: 0 | D151: 0 | E151: 0 | F151: 0 | G151: 0 | H151: 0 | I151: 0 | K151: 0
A152: Animal Care and Diseases | I152: 0
A153: Cemeteries, Funeral Parlours and Crematoriums | C153: 14207500.48 | D153: 605000 | E153: 605000 | F153: 50417 | G153: 50417 | H153: 554587 | I153: -504170 | J153: -0.9090909091 | K153: 605000
A154: Child Care Facilities | I154: 0
A155: Community Halls and Facilities | C155: 27303272.23 | D155: 26561133 | E155: 19069214 | F155: 1215143 | G155: 12496376.94 | H155: 18087561.16 | I155: -5591184.22 | J155: -0.30911764 | K155: 19069214
A156: Consumer Protection | I156: 0
A157: Cultural Matters | I157: =G157-H157 -> 0 | J157: =IF(I157=0,"",I157/H157) -> 
A158: Disaster Management | C158: 1150306.34 | D158: 660000 | E158: 110000 | F158: 0 | G158: 29958.9 | H158: 142788.84 | I158: =G158-H158 -> -112829.94 | J158: =IF(I158=0,"",I158/H158) -> -0.7901873844 | K158: 110000
A159: Education | I159: =G159-H159 -> 0 | J159: =IF(I159=0,"",I159/H159) -> 
A160: =A38 -> Indigenous and Customary Law | I160: 0
A161: Industrial Promotion | I161: 0
A162: Language Policy | I162: 0
A163: Libraries and Archives | C163: 2588046.05 | D163: 2656715 | E163: 3141715 | F163: 329903.89 | G163: 2050042.23 | H163: 2832768.7 | I163: -782726.47 | J163: -0.2763114652 | K163: 3141715
A164: Literacy Programmes | I164: 0
A165: Media Services | C165: 0 | D165: 0 | E165: 0 | F165: 0 | G165: 0 | H165: 0 | I165: 0 | K165: 0
A166: Museums and Art Galleries | C166: 0 | D166: 0 | E166: 0 | F166: 0 | G166: 0 | H166: 0 | I166: 0 | K166: 0
A167: Population Development | I167: 0
A168: Provincial Cultural Matters | I168: 0
A169: Theatres | I169: 0
A170: Zoo's | I170: 0
A171: Sport and recreation | C171: =SUM(C172:C176) -> 33189132.41 | D171: 29288851 | E171: 25715503 | F171: 1947769.09 | G171: 34907837.71 | H171: 23957505.84 | I171: =G171-H171 -> 10950331.87 | J171: =IF(I171=0,"",I171/H171) -> 0.457073117 | K171: 25715503
A172: Beaches and Jetties | I172: 0
A173: Casinos, Racing, Gambling, Wagering | I173: 0
A174: Community Parks (including Nurseries) | I174: 0
A175: Recreational Facilities | C175: 33189132.41 | D175: 29288851 | E175: 25715503 | F175: 1947769.09 | G175: 34907837.71 | H175: 23957505.84 | I175: 10950331.87 | J175: 0.457073117 | K175: 25715503
A176: Sports Grounds and Stadiums | I176: 0
A177: Public safety | C177: =SUM(C178:C185) -> 29087501.38 | D177: 42042987 | E177: 32282987 | F177: 2112118.95 | G177: 24259065.85 | H177: 30335978.72 | I177: -6076912.87 | J177: -0.2003203169 | K177: 32282987
A178: Civil Defence | C178: 21348680.42 | D178: 29150069 | E178: 21620069 | F178: 1726219.9 | G178: 18637674.45 | H178: 20390291.52 | I178: -1752617.07 | J178: -0.08595350725 | K178: 21620069
A179: Cleansing | I179: 0
A180: Control of Public Nuisances | I180: =G180-H180 -> 0 | J180: =IF(I180=0,"",I180/H180) -> 
A181: Fencing and Fences | I181: 0
A182: Fire Fighting and Protection | C182: 0 | D182: 0 | E182: 0 | F182: 0 | G182: 0 | H182: 0 | I182: 0 | K182: 0
A183: Licensing and Control of Animals | I183: =G183-H183 -> 0 | J183: =IF(I183=0,"",I183/H183) -> 
A184: Police Forces, Traffic and Street Parking Control | C184: 7738820.96 | D184: 12892918 | E184: 10662918 | F184: 385899.05 | G184: 5621391.4 | H184: 9945687.2 | I184: =G184-H184 -> -4324295.8 | J184: =IF(I184=0,"",I184/H184) -> -0.4347910519 | K184: 10662918
A185: Pounds | I185: 0
A186: Housing | C186: =SUM(C187:C188) -> 0 | D186: 0 | E186: 0 | F186: 0 | G186: 0 | H186: 0 | I186: =G186-H186 -> 0 | J186: =IF(I186=0,"",I186/H186) ->  | K186: =SUM(K187:K188) -> 0
A187: Housing | I187: =G187-H187 -> 0 | J187: =IF(I187=0,"",I187/H187) -> 
A188: Informal Settlements | I188: =G188-H188 -> 0 | J188: =IF(I188=0,"",I188/H188) -> 
A189: Health | C189: =SUM(C190:C196) -> 0 | D189: 0 | E189: 0 | F189: 0 | G189: 0 | H189: 0 | I189: 0 | K189: 0
A190: Ambulance | I190: 0
A191: Health Services | I191: 0
A192: =A70 -> Laboratory Services | I192: 0
A193: Food Control | I193: =G193-H193 -> 0 | J193: =IF(I193=0,"",I193/H193) -> 
A194: Health Surveillance and Prevention of Communicable Diseases including immunizations | I194: =G194-H194 -> 0 | J194: =IF(I194=0,"",I194/H194) -> 
A195: Vector Control | I195: 0
A196: Chemical Safety | I196: 0
A197: Economic and environmental services | C197: =C198+C209+C214 -> 150851067.7 | D197: 115203608 | E197: 97236854 | F197: 7277547.83 | G197: 69518833.68 | H197: 90047553.88 | I197: -20528720.2 | J197: -0.2279764337 | K197: =K198+K209+K214 -> 97236854
A198: Planning and development | C198: =SUM(C199:C208) -> 17338781.37 | D198: 31369359 | E198: 25454605 | F198: 1687704.9 | G198: 18286937.49 | H198: 23679136.96 | I198: -5392199.47 | J198: -0.2277194257 | K198: 25454605
A199: Billboards | I199: 0
A200: Corporate Wide Strategic Planning (IDPs, LEDs) | C200: 0 | D200: 0 | E200: 0 | F200: 0 | G200: 0 | H200: 0 | I200: 0 | K200: 0
A201: Central City Improvement District | I201: 0
... 54 more rows

Sheet C3-FinPerf V
A1: =muni& " - "&S71C& " - "&date -> NW375 Moses Kotane - Table C3 Monthly Budget Statement - Financial Performance (revenue and expenditure by municipal vote) - M11 May
A2: =Vdesc -> Vote Description | B2: =head27 -> Ref | C2: =Head1 -> 2018/19 | D2: =Head2 -> Budget Year 2019/20
C3: =Head5 -> Audited Outcome | D3: =Head6 -> Original Budget | E3: =Head7 -> Adjusted Budget | F3: =Head38 -> Monthly actual | G3: =Head39 -> YearTD actual | H3: =Head40 -> YearTD budget | I3: =Head41 -> YTD variance | J3: =Head41 -> YTD variance | K3: =Head8 -> Full Year Forecast
A4: R thousands | J4: %
A5: Revenue by Vote | B5: 1
A6: ='Org structure'!A2 -> Vote 01 - Municipal Council | C6: ='C3C'!C6 -> 652738.76 | D6: ='C3C'!D6 -> 1695000 | E6: ='C3C'!E6 -> 1695000 | F6: ='C3C'!F6 -> 0 | G6: ='C3C'!G6 -> 784319.54 | H6: ='C3C'!H6 -> 1553739 | I6: =G6-H6 -> -769419.46 | J6: =IF(I6=0,"",I6/H6) -> -0.4952050891 | K6: ='C3C'!K6 -> 1695000
A7: ='Org structure'!A3 -> Vote 02 - Office Of The Accounting Officer | C7: ='C3C'!C12 -> 0 | D7: ='C3C'!D12 -> 0 | E7: ='C3C'!E12 -> 0 | F7: ='C3C'!F12 -> 0 | G7: ='C3C'!G12 -> 0 | H7: ='C3C'!H12 -> 0 | I7: 0 | K7: ='C3C'!K12 -> 0
A8: ='Org structure'!A4 -> Vote 03 - Budget And Treasury Office | C8: ='C3C'!C19 -> 575355291.6 | D8: ='C3C'!D19 -> 479197100 | E8: ='C3C'!E19 -> 418196890 | F8: ='C3C'!F19 -> 80341184.67 | G8: ='C3C'!G19 -> 460686883.2 | H8: ='C3C'!H19 -> 390376723 | I8: 70310160.2 | J8: 0.1801084851 | K8: ='C3C'!K19 -> 418196890
A9: ='Org structure'!A5 -> Vote 04 - Corporate Services | C9: ='C3C'!C27 -> 213690.48 | D9: ='C3C'!D27 -> 500000 | E9: ='C3C'!E27 -> 768000 | F9: ='C3C'!F27 -> 395783.82 | G9: ='C3C'!G27 -> -906954.82 | H9: ='C3C'!H27 -> 592326 | I9: -1499280.82 | J9: -2.531175096 | K9: ='C3C'!K27 -> 768000
A10: ='Org structure'!A6 -> Vote 05 - Community Services | C10: ='C3C'!C36 -> 44333516.21 | D10: ='C3C'!D36 -> 99986590 | E10: ='C3C'!E36 -> 100311182 | F10: ='C3C'!F36 -> 1292847.85 | G10: ='C3C'!G36 -> 101720288.8 | H10: ='C3C'!H36 -> 91967840.7 | I10: 9752448.07 | J10: 0.1060419381 | K10: ='C3C'!K36 -> 100311182
A11: ='Org structure'!A7 -> Vote 06 - Planning & Development | C11: ='C3C'!C51 -> 106926.07 | D11: ='C3C'!D51 -> 100000 | E11: ='C3C'!E51 -> 150000 | F11: ='C3C'!F51 -> 0 | G11: ='C3C'!G51 -> 114890.3 | H11: ='C3C'!H51 -> 131663 | I11: -16772.7 | J11: -0.1273911425 | K11: ='C3C'!K51 -> 150000
A12: ='Org structure'!A8 -> Vote 07 - Infrastructure & Technical Services | C12: ='C3C'!C62 -> 301351591.6 | D12: ='C3C'!D62 -> 454611838 | E12: ='C3C'!E62 -> 459268246 | F12: ='C3C'!F62 -> 28970029.42 | G12: ='C3C'!G62 -> 341720822.2 | H12: ='C3C'!H62 -> 420452569.4 | I12: -78731747.2 | J12: -0.1872547653 | K12: ='C3C'!K62 -> 459268246
A13: ='Org structure'!A9 -> Vote 08 - | C13: ='C3C'!C82 -> 0 | D13: ='C3C'!D82 -> 0 | E13: ='C3C'!E82 -> 0 | F13: ='C3C'!F82 -> 0 | G13: ='C3C'!G82 -> 0 | H13: ='C3C'!H82 -> 0 | I13: =G13-H13 -> 0 | J13: =IF(I13=0,"",I13/H13) ->  | K13: ='C3C'!K82 -> 0
A14: ='Org structure'!A10 -> Vote 09 - | C14: ='C3C'!C83 -> 0 | D14: ='C3C'!D83 -> 0 | E14: ='C3C'!E83 -> 0 | F14: ='C3C'!F83 -> 0 | G14: ='C3C'!G83 -> 0 | H14: ='C3C'!H83 -> 0 | I14: 0 | K14: ='C3C'!K83 -> 0
A15: ='Org structure'!A11 -> Vote 10 - | C15: ='C3C'!C84 -> 0 | D15: ='C3C'!D84 -> 0 | E15: ='C3C'!E84 -> 0 | F15: ='C3C'!F84 -> 0 | G15: ='C3C'!G84 -> 0 | H15: ='C3C'!H84 -> 0 | I15: 0 | K15: ='C3C'!K84 -> 0
A16: ='Org structure'!A12 -> Vote 11 - | C16: ='C3C'!C85 -> 0 | D16: ='C3C'!D85 -> 0 | E16: ='C3C'!E85 -> 0 | F16: ='C3C'!F85 -> 0 | G16: ='C3C'!G85 -> 0 | H16: ='C3C'!H85 -> 0 | I16: 0 | K16: ='C3C'!K85 -> 0
A17: ='Org structure'!A13 -> Vote 12 - | C17: ='C3C'!C86 -> 0 | D17: ='C3C'!D86 -> 0 | E17: ='C3C'!E86 -> 0 | F17: ='C3C'!F86 -> 0 | G17: ='C3C'!G86 -> 0 | H17: ='C3C'!H86 -> 0 | I17: 0 | K17: ='C3C'!K86 -> 0
A18: ='Org structure'!A14 -> Vote 13 - | C18: ='C3C'!C87 -> 0 | D18: ='C3C'!D87 -> 0 | E18: ='C3C'!E87 -> 0 | F18: ='C3C'!F87 -> 0 | G18: ='C3C'!G87 -> 0 | H18: ='C3C'!H87 -> 0 | I18: 0 | K18: ='C3C'!K87 -> 0
A19: ='Org structure'!A15 -> Vote 14 - | C19: ='C3C'!C88 -> 0 | D19: ='C3C'!D88 -> 0 | E19: ='C3C'!E88 -> 0 | F19: ='C3C'!F88 -> 0 | G19: ='C3C'!G88 -> 0 | H19: ='C3C'!H88 -> 0 | I19: 0 | K19: ='C3C'!K88 -> 0
A20: ='Org structure'!A16 -> Vote 15 - Other | C20: ='C3C'!C89 -> 0 | D20: ='C3C'!D89 -> 0 | E20: ='C3C'!E89 -> 0 | F20: ='C3C'!F89 -> 0 | G20: ='C3C'!G89 -> 0 | H20: ='C3C'!H89 -> 0 | I20: 0 | K20: ='C3C'!K89 -> 0
A21: Total Revenue by Vote | B21: 2 | C21: =SUM(C6:C20) -> 922013754.8 | D21: =SUM(D6:D20) -> 1036090528 | E21: 980389318 | F21: 110999845.8 | G21: 904120249.2 | H21: 905074861.1 | I21: -954611.91 | J21: -0.001054732543 | K21: =SUM(K6:K20) -> 980389318
A23: Expenditure by Vote | B23: 1
A24: ='Org structure'!A2 -> Vote 01 - Municipal Council | C24: ='C3C'!C93 -> 71985866.22 | D24: ='C3C'!D93 -> 86146330 | E24: ='C3C'!E93 -> 67177252 | F24: ='C3C'!F93 -> 4297140.3 | G24: ='C3C'!G93 -> 54639450.84 | H24: ='C3C'!H93 -> 62542822.36 | I24: =G24-H24 -> -7903371.52 | J24: =IF(I24=0,"",I24/H24) -> -0.1263673627 | K24: ='C3C'!K93 -> 67177252
A25: ='Org structure'!A3 -> Vote 02 - Office Of The Accounting Officer | C25: ='C3C'!C99 -> 20794727.91 | D25: ='C3C'!D99 -> 25303359 | E25: ='C3C'!E99 -> 19787773 | F25: ='C3C'!F99 -> 1072400.35 | G25: ='C3C'!G99 -> 17002919.1 | H25: ='C3C'!H99 -> 18484727.76 | I25: -1481808.66 | J25: -0.08016394286 | K25: ='C3C'!K99 -> 19787773
A26: ='Org structure'!A4 -> Vote 03 - Budget And Treasury Office | C26: ='C3C'!C106 -> 217956443.8 | D26: ='C3C'!D106 -> 126091931 | E26: ='C3C'!E106 -> 120458267 | F26: ='C3C'!F106 -> 9612649.13 | G26: ='C3C'!G106 -> 77929175.82 | H26: ='C3C'!H106 -> 110615663 | I26: -32686487.18 | J26: -0.2954960111 | K26: ='C3C'!K106 -> 120458267
A27: ='Org structure'!A5 -> Vote 04 - Corporate Services | C27: ='C3C'!C114 -> 132098119.8 | D27: ='C3C'!D114 -> 137336122 | E27: ='C3C'!E114 -> 105218279 | F27: ='C3C'!F114 -> 8656024.4 | G27: ='C3C'!G114 -> 109711301.1 | H27: ='C3C'!H114 -> 97361859.64 | I27: 12349441.48 | J27: 0.1268406492 | K27: ='C3C'!K114 -> 105218279
A28: ='Org structure'!A6 -> Vote 05 - Community Services | C28: ='C3C'!C123 -> 170008197.7 | D28: ='C3C'!D123 -> 182219774 | E28: ='C3C'!E123 -> 145979319 | F28: ='C3C'!F123 -> 7286029.28 | G28: ='C3C'!G123 -> 130381707 | H28: ='C3C'!H123 -> 136084948.8 | I28: -5703241.8 | J28: -0.04190942386 | K28: ='C3C'!K123 -> 145979319
A29: ='Org structure'!A7 -> Vote 06 - Planning & Development | C29: ='C3C'!C138 -> 15000283.61 | D29: ='C3C'!D138 -> 26201722 | E29: ='C3C'!E138 -> 21871968 | F29: ='C3C'!F138 -> 1402498.42 | G29: ='C3C'!G138 -> 15525523 | H29: ='C3C'!H138 -> 20350974.68 | I29: -4825451.68 | J29: -0.237111576 | K29: ='C3C'!K138 -> 21871968
A30: ='Org structure'!A8 -> Vote 07 - Infrastructure & Technical Services | C30: ='C3C'!C149 -> 448226821.9 | D30: ='C3C'!D149 -> 383941084 | E30: ='C3C'!E149 -> 425182889 | F30: ='C3C'!F149 -> 16913654.77 | G30: ='C3C'!G149 -> 383494016.8 | H30: ='C3C'!H149 -> 389393996.2 | I30: -5899979.34 | J30: -0.01515169571 | K30: ='C3C'!K149 -> 425182889
A31: ='Org structure'!A9 -> Vote 08 - | C31: ='C3C'!C169 -> 0 | D31: ='C3C'!D169 -> 0 | E31: ='C3C'!E169 -> 0 | F31: ='C3C'!F169 -> 0 | G31: ='C3C'!G169 -> 0 | H31: ='C3C'!H169 -> 0 | I31: =G31-H31 -> 0 | J31: =IF(I31=0,"",I31/H31) ->  | K31: ='C3C'!K169 -> 0
A32: ='Org structure'!A10 -> Vote 09 - | C32: ='C3C'!C170 -> 0 | D32: ='C3C'!D170 -> 0 | E32: ='C3C'!E170 -> 0 | F32: ='C3C'!F170 -> 0 | G32: ='C3C'!G170 -> 0 | H32: ='C3C'!H170 -> 0 | I32: 0 | K32: ='C3C'!K170 -> 0
A33: ='Org structure'!A11 -> Vote 10 - | C33: ='C3C'!C171 -> 0 | D33: ='C3C'!D171 -> 0 | E33: ='C3C'!E171 -> 0 | F33: ='C3C'!F171 -> 0 | G33: ='C3C'!G171 -> 0 | H33: ='C3C'!H171 -> 0 | I33: 0 | J33: =IF(I33=0,"",I33/H33) ->  | K33: ='C3C'!K171 -> 0
A34: ='Org structure'!A12 -> Vote 11 - | C34: ='C3C'!C172 -> 0 | D34: ='C3C'!D172 -> 0 | E34: ='C3C'!E172 -> 0 | F34: ='C3C'!F172 -> 0 | G34: ='C3C'!G172 -> 0 | H34: ='C3C'!H172 -> 0 | I34: 0 | J34: =IF(I34=0,"",I34/H34) ->  | K34: ='C3C'!K172 -> 0
A35: ='Org structure'!A13 -> Vote 12 - | C35: ='C3C'!C173 -> 0 | D35: ='C3C'!D173 -> 0 | E35: ='C3C'!E173 -> 0 | F35: ='C3C'!F173 -> 0 | G35: ='C3C'!G173 -> 0 | H35: ='C3C'!H173 -> 0 | I35: 0 | J35: =IF(I35=0,"",I35/H35) ->  | K35: ='C3C'!K173 -> 0
A36: ='Org structure'!A14 -> Vote 13 - | C36: ='C3C'!C174 -> 0 | D36: ='C3C'!D174 -> 0 | E36: ='C3C'!E174 -> 0 | F36: ='C3C'!F174 -> 0 | G36: ='C3C'!G174 -> 0 | H36: ='C3C'!H174 -> 0 | I36: 0 | J36: =IF(I36=0,"",I36/H36) ->  | K36: ='C3C'!K174 -> 0
A37: ='Org structure'!A15 -> Vote 14 - | C37: ='C3C'!C175 -> 0 | D37: ='C3C'!D175 -> 0 | E37: ='C3C'!E175 -> 0 | F37: ='C3C'!F175 -> 0 | G37: ='C3C'!G175 -> 0 | H37: ='C3C'!H175 -> 0 | I37: 0 | J37: =IF(I37=0,"",I37/H37) ->  | K37: ='C3C'!K175 -> 0
A38: ='Org structure'!A16 -> Vote 15 - Other | C38: ='C3C'!C176 -> 0 | D38: ='C3C'!D176 -> 0 | E38: ='C3C'!E176 -> 0 | F38: ='C3C'!F176 -> 0 | G38: ='C3C'!G176 -> 0 | H38: ='C3C'!H176 -> 0 | I38: 0 | K38: ='C3C'!K176 -> 0
A39: Total Expenditure by Vote | B39: 2 | C39: =SUM(C24:C38) -> 1076070461 | D39: =SUM(D24:D38) -> 967240322 | E39: 905675747 | F39: 49240396.65 | G39: 788684093.7 | H39: 834834992.4 | I39: -46150898.7 | J39: =IF(I39=0,"",I39/H39) -> -0.05528146175 | K39: =SUM(K24:K38) -> 905675747
A40: =result -> Surplus/ (Deficit) for the year | B40: 2 | C40: =C21-C39 -> -154056706.2 | D40: 68850206 | E40: 74713571 | F40: 61759449.11 | G40: 115436155.5 | H40: 70239868.72 | I40: =I21-I39 -> 45196286.79 | J40: =IF(I40=0,"",I40/H40) -> 0.6434563107 | K40: =K21-K39 -> 74713571
A41: =head27a -> References
A42: 1. Insert 'Vote'; e.g. Department, if different to standard classification structure
A43: 2. Must reconcile to Monthly Budget Statement - Financial Performance Statement (standard classification)

Sheet C3C
A1: =muni& " - "&S71C& " - "&"A"& " - "&date -> NW375 Moses Kotane - Table C3 Monthly Budget Statement - Financial Performance (revenue and expenditure by municipal vote) - A - M11 May
A2: =Vdesc -> Vote Description | B2: =head27 -> Ref | C2: =Head1 -> 2018/19 | D2: =Head2 -> Budget Year 2019/20 | L2: =Head4 -> 
A3: R thousand | C3: =Head5 -> Audited Outcome | D3: =Head6 -> Original Budget | E3: =Head7 -> Adjusted Budget | F3: =Head38 -> Monthly actual | G3: =Head39 -> YearTD actual | H3: =Head40 -> YearTD budget | I3: =Head41 -> YTD variance | J3: =Head41 -> YTD variance | K3: =Head8 -> Full Year Forecast | L3: =Head12 -> Forecast 2010/11 | M3: =Head13 -> Forecast 2011/12 | N3: =Head14 -> Forecast 2012/13 | O3: =Head15 -> Forecast 2013/14 | P3: =Head16 -> Forecast 2014/15 | Q3: =Head17 -> Forecast 2015/16 | R3: =Head18 -> Forecast 2016/17 | S3: =Head19 -> Forecast 2017/18 | T3: =Head20 -> Forecast 2018/19 | U3: =Head21 -> Forecast 2019/20 | V3: =Head22 -> Forecast 2020/21 | W3: =Head23 -> Forecast 2021/22
J4: %
A5: Revenue by Vote | B5: 1
A6: ='Org structure'!A2 -> Vote 01 - Municipal Council | C6: =SUM(C7:C11) -> 652738.76 | D6: 1695000 | E6: 1695000 | F6: 0 | G6: 784319.54 | H6: 1553739 | I6: =G6-H6 -> -769419.46 | J6: =IF(I6=0,"",I6/H6) -> -0.4952050891 | K6: =SUM(K7:K11) -> 1695000
A7: ='Org structure'!E3 -> 01.1 - Office Of The Mayor | C7: 652738.76 | D7: 1695000 | E7: 1695000 | F7: 0 | G7: 784319.54 | H7: 1553750 | I7: =G7-H7 -> -769430.46 | J7: =IF(I7=0,"",I7/H7) -> -0.4952086629 | K7: 1695000
A8: ='Org structure'!E4 -> 01.2 - Office Of The Speaker | C8: 0 | D8: 0 | E8: 0 | F8: 0 | G8: 0 | H8: 0 | I8: =G8-H8 -> 0 | J8: =IF(I8=0,"",I8/H8) ->  | K8: 0
A9: ='Org structure'!E5 -> 01.3 - Office Of The Chief Whip | C9: 0 | D9: 0 | E9: 0 | F9: 0 | G9: 0 | H9: 0 | I9: =G9-H9 -> 0 | J9: =IF(I9=0,"",I9/H9) ->  | K9: 0
A10: ='Org structure'!E6 -> 01.4 - Mpac | C10: 0 | D10: 0 | E10: 0 | F10: 0 | G10: 0 | H10: 0 | I10: =G10-H10 -> 0 | J10: =IF(I10=0,"",I10/H10) ->  | K10: 0
A11: ='Org structure'!E7 -> 01.5 - Council General Administration | C11: 0 | D11: 0 | E11: 0 | F11: 0 | G11: 0 | H11: -11 | I11: =G11-H11 -> 11 | J11: =IF(I11=0,"",I11/H11) -> -1 | K11: 0
A12: ='Org structure'!A3 -> Vote 02 - Office Of The Accounting Officer | C12: =SUM(C13:C18) -> 0 | D12: 0 | E12: 0 | F12: 0 | G12: 0 | H12: 0 | I12: 0 | K12: =SUM(K13:K18) -> 0
A13: ='Org structure'!E9 -> 02.1 - Office Of The Ao Admin | C13: 0 | D13: 0 | E13: 0 | F13: 0 | G13: 0 | H13: 0 | I13: =G13-H13 -> 0 | J13: =IF(I13=0,"",I13/H13) ->  | K13: 0
A14: ='Org structure'!E10 -> 02.2 - Strategic Planning Monitoring & Evaluat | C14: 0 | D14: 0 | E14: 0 | F14: 0 | G14: 0 | H14: 0 | I14: 0 | K14: 0
A15: ='Org structure'!E11 -> 02.3 - Perfomance Management System | C15: 0 | D15: 0 | E15: 0 | F15: 0 | G15: 0 | H15: 0 | I15: 0 | K15: 0
A16: ='Org structure'!E12 -> 02.4 - Internal Audit | C16: 0 | D16: 0 | E16: 0 | F16: 0 | G16: 0 | H16: 0 | I16: 0 | K16: 0
A17: ='Org structure'!E13 -> 02.5 - Municipal Planning Idp | C17: 0 | D17: 0 | E17: 0 | F17: 0 | G17: 0 | H17: 0 | I17: 0 | K17: 0
A18: ='Org structure'!E14 -> 02.6 - Risk | C18: 0 | D18: 0 | E18: 0 | F18: 0 | G18: 0 | H18: 0 | I18: 0 | K18: 0
A19: ='Org structure'!A4 -> Vote 03 - Budget And Treasury Office | C19: =SUM(C20:C26) -> 575355291.6 | D19: 479197100 | E19: 418196890 | F19: 80341184.67 | G19: 460686883.2 | H19: 390376723 | I19: 70310160.2 | J19: 0.1801084851 | K19: =SUM(K20:K26) -> 418196890
A20: ='Org structure'!E16 -> 03.1 - Chief Financial Officer Admin | C20: 134802752.9 | D20: 142163600 | E20: 142163600 | F20: 11706734.84 | G20: 129605114.5 | H20: 130316571 | I20: =G20-H20 -> -711456.5 | J20: =IF(I20=0,"",I20/H20) -> -0.005459447671 | K20: 142163600
A21: ='Org structure'!E17 -> 03.2 - Budget Expenditure & Reporting | C21: 0 | D21: 0 | E21: 0 | F21: 0 | G21: 0 | H21: 0 | I21: 0 | K21: 0
A22: ='Org structure'!E18 -> 03.3 - Budget Expenditure & Reporting | C22: 0 | D22: 0 | E22: 0 | F22: 0 | G22: 0 | H22: 0 | I22: 0 | K22: 0
A23: ='Org structure'!E19 -> 03.4 - Revenue Management | C23: 440552538.8 | D23: 337033500 | E23: 276033290 | F23: 68634449.83 | G23: 331081768.7 | H23: 260060152 | I23: 71021616.7 | J23: 0.2730968822 | K23: 276033290
A24: ='Org structure'!E20 -> 03.5 - Supply Chain Management | C24: 0 | D24: 0 | E24: 0 | F24: 0 | G24: 0 | H24: 0 | I24: 0 | K24: 0
A25: ='Org structure'!E21 -> 03.6 - Assets Management | C25: 0 | D25: 0 | E25: 0 | F25: 0 | G25: 0 | H25: 0 | I25: 0 | K25: 0
A26: ='Org structure'!E22 -> 03.7 - Expenditure | C26: 0 | D26: 0 | E26: 0 | F26: 0 | G26: 0 | H26: 0 | I26: 0 | K26: 0
A27: ='Org structure'!A5 -> Vote 04 - Corporate Services | C27: =SUM(C28:C35) -> 213690.48 | D27: 500000 | E27: 768000 | F27: 395783.82 | G27: -906954.82 | H27: 592326 | I27: -1499280.82 | J27: -2.531175096 | K27: =SUM(K28:K35) -> 768000
A28: ='Org structure'!E24 -> 04.1 - Legal Services | C28: 0 | D28: 0 | E28: 0 | F28: 0 | G28: 0 | H28: 0 | I28: =G28-H28 -> 0 | J28: =IF(I28=0,"",I28/H28) ->  | K28: 0
A29: ='Org structure'!E25 -> 04.2 - Corporate Service Administration | C29: 0 | D29: 0 | E29: 0 | F29: 0 | G29: 0 | H29: 0 | I29: 0 | K29: 0
A30: ='Org structure'!E26 -> 04.3 - Human Resources | C30: 213690.48 | D30: 500000 | E30: 768000 | F30: 395783.82 | G30: -906954.82 | H30: 592326 | I30: -1499280.82 | J30: -2.531175096 | K30: 768000
A31: ='Org structure'!E27 -> 04.4 - Media & Communication | C31: 0 | D31: 0 | E31: 0 | F31: 0 | G31: 0 | H31: 0 | I31: 0 | K31: 0
A32: ='Org structure'!E28 -> 04.5 - Organisational Development | C32: 0 | D32: 0 | E32: 0 | F32: 0 | G32: 0 | H32: 0 | I32: 0 | K32: 0
A33: ='Org structure'!E29 -> 04.6 - Labour Relations | C33: 0 | D33: 0 | E33: 0 | F33: 0 | G33: 0 | H33: 0 | I33: 0 | K33: 0
A34: ='Org structure'!E30 -> 04.7 - Legal Services | C34: 0 | D34: 0 | E34: 0 | F34: 0 | G34: 0 | H34: 0 | I34: 0 | K34: 0
A35: ='Org structure'!E31 -> 04.8 - Information Technology Services | C35: 0 | D35: 0 | E35: 0 | F35: 0 | G35: 0 | H35: 0 | I35: 0 | K35: 0
A36: ='Org structure'!A6 -> Vote 05 - Community Services | C36: =SUM(C37:C50) -> 44333516.21 | D36: 99986590 | E36: 100311182 | F36: 1292847.85 | G36: 101720288.8 | H36: 91967840.7 | I36: 9752448.07 | J36: 0.1060419381 | K36: =SUM(K37:K50) -> 100311182
A37: ='Org structure'!E33 -> 05.1 - Municipal Buildings | C37: 19325140.85 | D37: 14590253 | E37: 30726754 | F37: 0 | G37: 30967074.93 | H37: 26283594.8 | I37: =G37-H37 -> 4683480.13 | J37: =IF(I37=0,"",I37/H37) -> 0.1781902425 | K37: 30726754
A38: ='Org structure'!E34 -> 05.2 - Fleet Management | C38: 0 | D38: 0 | E38: 0 | F38: 0 | G38: 0 | H38: 0 | I38: 0 | K38: 0
A39: ='Org structure'!E35 -> 05.3 - Community Services Administration | C39: 0 | D39: 0 | E39: 0 | F39: 0 | G39: 0 | H39: 0 | I39: 0 | K39: 0
A40: ='Org structure'!E36 -> 05.4 - Cemeteries | C40: 15477.86 | D40: 10000 | E40: 10000 | F40: 0 | G40: 9158.23 | H40: 9163 | I40: -4.77 | J40: -0.0005205718651 | K40: 10000
A41: ='Org structure'!E37 -> 05.5 - Disaster Management | C41: 0 | D41: 0 | E41: 0 | F41: 0 | G41: 0 | H41: 0 | I41: 0 | K41: 0
A42: ='Org structure'!E38 -> 05.6 - Fires Service | C42: 0 | D42: 0 | E42: 0 | F42: 0 | G42: 0 | H42: 0 | I42: 0 | K42: 0
A43: ='Org structure'!E39 -> 05.7 - Libraries | C43: 5625105.24 | D43: 40000 | E43: 1025000 | F43: 465881.67 | G43: 490871.71 | H43: 878509.1 | I43: -387637.39 | J43: -0.4412445927 | K43: 1025000
A44: ='Org structure'!E40 -> 05.8 - Municipal Buildings | C44: 0 | D44: 0 | E44: 0 | F44: 0 | G44: 0 | H44: 0 | I44: 0 | K44: 0
A45: ='Org structure'!E41 -> 05.9 - Sports Recreation & Social Amenitie | C45: 41707.35 | D45: 55000 | E45: 55000 | F45: 0 | G45: 2101.23 | H45: 50402 | I45: -48300.77 | J45: -0.9583105829 | K45: 55000
A46: ='Org structure'!E42 -> 05.10 - Waste Management Solid Waste | C46: 16821004.45 | D46: 80741337 | E46: 64944428 | F46: 826966.18 | G46: 65070082.67 | H46: 61375345.8 | I46: 3694736.87 | J46: 0.06019903956 | K46: 64944428
A47: ='Org structure'!E43 -> 05.11 - Safety And Security | C47: 0 | D47: 0 | E47: 0 | F47: 0 | G47: 0 | H47: 0 | I47: 0 | K47: 0
A48: ='Org structure'!E44 -> 05.12 - Traffic Service | C48: 178830.46 | D48: 0 | E48: 0 | F48: 0 | G48: 0 | H48: 0 | I48: 0 | K48: 0
A49: ='Org structure'!E45 -> 05.13 - Traffic Service | C49: 2326250 | D49: 4550000 | E49: 3550000 | F49: 0 | G49: 5181000 | H49: 3370826 | I49: 1810174 | J49: 0.5370119965 | K49: 3550000
A50: ='Org structure'!E46 -> 05.14 - Fleet Management | C50: 0 | D50: 0 | E50: 0 | F50: 0 | G50: 0 | H50: 0 | I50: 0 | K50: 0
A51: ='Org structure'!A7 -> Vote 06 - Planning & Development | C51: =SUM(C52:C61) -> 106926.07 | D51: 100000 | E51: 150000 | F51: 0 | G51: 114890.3 | H51: 131663 | I51: -16772.7 | J51: -0.1273911425 | K51: =SUM(K52:K61) -> 150000
A52: ='Org structure'!E48 -> 06.1 - Planning And Development Admin | C52: 0 | D52: 0 | E52: 0 | F52: 0 | G52: 0 | H52: 0 | I52: =G52-H52 -> 0 | J52: =IF(I52=0,"",I52/H52) ->  | K52: 0
A53: ='Org structure'!E49 -> 06.2 - Municipal Planning Idp | C53: 0 | D53: 0 | E53: 0 | F53: 0 | G53: 0 | H53: 0 | I53: 0 | K53: 0
A54: ='Org structure'!E50 -> 06.3 - Pms | C54: 0 | D54: 0 | E54: 0 | F54: 0 | G54: 0 | H54: 0 | I54: 0 | K54: 0
A55: ='Org structure'!E51 -> 06.4 - Town Planning | C55: 106926.07 | D55: 100000 | E55: 150000 | F55: 0 | G55: 114890.3 | H55: 131663 | I55: -16772.7 | J55: -0.1273911425 | K55: 150000
A56: ='Org structure'!E52 -> 06.5 - Land Use And Housing Admin | C56: 0 | D56: 0 | E56: 0 | F56: 0 | G56: 0 | H56: 0 | I56: 0 | K56: 0
A57: ='Org structure'!E53 -> 06.6 - Local Economic Development | C57: 0 | D57: 0 | E57: 0 | F57: 0 | G57: 0 | H57: 0 | I57: 0 | K57: 0
A58: ='Org structure'!E54 -> 06.7 - Led | C58: 0 | D58: 0 | E58: 0 | F58: 0 | G58: 0 | H58: 0 | I58: 0 | K58: 0
A59: ='Org structure'!E55 -> 06.8 - Agriculture & Rural Development | C59: 0 | D59: 0 | E59: 0 | F59: 0 | G59: 0 | H59: 0 | I59: 0 | K59: 0
A60: ='Org structure'!E56 -> 06.9 - Tourism & Business Development | C60: 0 | D60: 0 | E60: 0 | F60: 0 | G60: 0 | H60: 0 | I60: 0 | K60: 0
A61: ='Org structure'!E57 -> 06.10 - Arts & Culture | C61: 0 | D61: 0 | E61: 0 | F61: 0 | G61: 0 | H61: 0 | I61: 0 | K61: 0
A62: ='Org structure'!A8 -> Vote 07 - Infrastructure & Technical Services | C62: =SUM(C63:C81) -> 301351591.6 | D62: 454611838 | E62: 459268246 | F62: 28970029.42 | G62: 341720822.2 | H62: 420452569.4 | I62: =G62-H62 -> -78731747.2 | J62: =IF(I62=0,"",I62/H62) -> -0.1872547653 | K62: =SUM(K63:K81) -> 459268246
A63: ='Org structure'!E59 -> 07.1 - Infrastructure Admin & Tech Admin | C63: 0 | D63: 0 | E63: 0 | F63: 0 | G63: 0 | H63: 0 | I63: =G63-H63 -> 0 | J63: =IF(I63=0,"",I63/H63) ->  | K63: 0
A64: ='Org structure'!E60 -> 07.2 - Fleet Management | C64: 0 | D64: 0 | E64: 0 | F64: 0 | G64: 0 | H64: 0 | I64: 0 | K64: 0
A65: ='Org structure'!E61 -> 07.3 - Roads | C65: 55964578.72 | D65: 62193238 | E65: 61188318 | F65: 0 | G65: 31253525.48 | H65: 56206523 | I65: -24952997.52 | J65: -0.4439519861 | K65: 61188318
A66: ='Org structure'!E62 -> 07.4 - Storm Water | C66: 0 | D66: 0 | E66: 0 | F66: 0 | G66: 0 | H66: 0 | I66: 0 | K66: 0
A67: ='Org structure'!E63 -> 07.5 - Street Lighting | C67: 5282036.29 | D67: 19857810 | E67: 20416973 | F67: 0 | G67: 9684229.93 | H67: 18650317.4 | I67: -8966087.47 | J67: -0.4807471786 | K67: 20416973
A68: ='Org structure'!E64 -> 07.6 - Project Management Unit | C68: 2338497.76 | D68: 5167637 | E68: 3582637 | F68: 2615175.46 | G68: 2615175.46 | H68: 3468996 | I68: -853820.54 | J68: -0.2461290068 | K68: 3582637
A69: ='Org structure'!E65 -> 07.7 - Sanitation Treatment Plant: Mogwase | C69: 0 | D69: 0 | E69: 0 | F69: 0 | G69: 0 | H69: 0 | I69: 0 | K69: 0
A70: ='Org structure'!E66 -> 07.8 - Sanitation Treatment Plant: Madikwe | C70: 0 | D70: 0 | E70: 0 | F70: 0 | G70: 0 | H70: 0 | I70: 0 | K70: 0
A71: ='Org structure'!E67 -> 07.9 - Sanitation Reticulation | C71: 18298994.46 | D71: 43021550 | E71: 33242236 | F71: 185517.41 | G71: 26720884.21 | H71: 31612956.8 | I71: -4892072.59 | J71: -0.1547489727 | K71: 33242236
A72: ='Org structure'!E68 -> 07.10 - Water Administration | C72: 147289521 | D72: 236371603 | E72: 252838082 | F72: 26169336.55 | G72: 183447007.1 | H72: 229847124.2 | I72: -46400117.08 | J72: -0.2018738204 | K72: 252838082
A73: ='Org structure'!E69 -> 07.11 - Water Madikwe: Water Treatment Work | C73: 0 | D73: 0 | E73: 0 | F73: 0 | G73: 0 | H73: 0 | I73: 0 | K73: 0
A74: ='Org structure'!E70 -> 07.12 - Water: Pella Water Treatment Works | C74: 52454695.74 | D74: 0 | E74: 0 | F74: 0 | G74: 0 | H74: 0 | I74: 0 | K74: 0
A75: ='Org structure'!E71 -> 07.13 - Water: Madikwe Retail & Bulk Lines | C75: 0 | D75: 0 | E75: 0 | F75: 0 | G75: 0 | H75: 0 | I75: 0 | K75: 0
A76: ='Org structure'!E72 -> 07.14 - Water: Madikwe Rural | C76: 0 | D76: 0 | E76: 0 | F76: 0 | G76: 0 | H76: 0 | I76: 0 | K76: 0
A77: ='Org structure'!E73 -> 07.15 - Water: Molatedi | C77: 0 | D77: 0 | E77: 0 | F77: 0 | G77: 0 | H77: 0 | I77: 0 | K77: 0
A78: ='Org structure'!E74 -> 07.16 - Water Eastern: Retail Mankwe | C78: 0 | D78: 0 | E78: 0 | F78: 0 | G78: 0 | H78: 0 | I78: 0 | K78: 0
A79: ='Org structure'!E75 -> 07.17 - Water Vaalkopdam: Mankwe | C79: 0 | D79: 0 | E79: 0 | F79: 0 | G79: 0 | H79: 0 | I79: 0 | K79: 0
A80: ='Org structure'!E76 -> 07.18 - Water Eastern: Retail Mankwe | C80: 19723267.64 | D80: 88000000 | E80: 88000000 | F80: 0 | G80: 88000000 | H80: 80666652 | I80: 7333348 | J80: 0.09090928926 | K80: 88000000
A81: ='Org structure'!E77 -> 07.19 - Reporting Function Electricity | C81: 0 | D81: 0 | E81: 0 | F81: 0 | G81: 0 | H81: 0 | I81: 0 | K81: 0
A82: ='Org structure'!A9 -> Vote 08 - | C82: 0 | D82: 0 | E82: 0 | F82: 0 | G82: 0 | H82: 0 | I82: 0 | K82: 0
A83: ='Org structure'!A10 -> Vote 09 - | C83: 0 | D83: 0 | E83: 0 | F83: 0 | G83: 0 | H83: 0 | I83: 0 | K83: 0
A84: ='Org structure'!A11 -> Vote 10 - | C84: 0 | D84: 0 | E84: 0 | F84: 0 | G84: 0 | H84: 0 | I84: 0 | K84: 0
A85: ='Org structure'!A12 -> Vote 11 - | C85: 0 | D85: 0 | E85: 0 | F85: 0 | G85: 0 | H85: 0 | I85: 0 | K85: 0
A86: ='Org structure'!A13 -> Vote 12 - | C86: 0 | D86: 0 | E86: 0 | F86: 0 | G86: 0 | H86: 0 | I86: 0 | K86: 0
A87: ='Org structure'!A14 -> Vote 13 - | C87: 0 | D87: 0 | E87: 0 | F87: 0 | G87: 0 | H87: 0 | I87: =G87-H87 -> 0 | J87: =IF(I87=0,"",I87/H87) ->  | K87: 0
A88: ='Org structure'!A15 -> Vote 14 - | C88: 0 | D88: 0 | E88: 0 | F88: 0 | G88: 0 | H88: 0 | I88: 0 | K88: 0
A89: ='Org structure'!A16 -> Vote 15 - Other | C89: 0 | D89: 0 | E89: 0 | F89: 0 | G89: 0 | H89: 0 | I89: 0 | K89: 0
A90: Total Revenue by Vote | B90: 2 | C90: =C6+C12+C19+C27+C36+C51+C62+C82+C83+C84+C85+C86+C87+C88+C89 -> 922013754.8 | D90: 1036090528 | E90: 980389318 | F90: 110999845.8 | G90: 904120249.2 | H90: 905074861.1 | I90: -954611.91 | J90: -0.001054732543 | K90: =K6+K12+K19+K27+K36+K51+K62+K82+K83+K84+K85+K86+K87+K88+K89 -> 980389318
I91: 0
A92: Expenditure by Vote | B92: 1 | I92: 0
A93: ='Org structure'!A2 -> Vote 01 - Municipal Council | C93: =SUM(C94:C98) -> 71985866.22 | D93: 86146330 | E93: 67177252 | F93: 4297140.3 | G93: 54639450.84 | H93: 62542822.36 | I93: -7903371.52 | J93: -0.1263673627 | K93: =SUM(K94:K98) -> 67177252
A94: ='Org structure'!E3 -> 01.1 - Office Of The Mayor | C94: 6156528.28 | D94: 11081407 | E94: 7965947 | F94: 604097.85 | G94: 6385861.84 | H94: 7508325.88 | I94: =G94-H94 -> -1122464.04 | J94: =IF(I94=0,"",I94/H94) -> -0.149495914 | K94: 7965947
A95: ='Org structure'!E4 -> 01.2 - Office Of The Speaker | C95: 5355780.53 | D95: 10550463 | E95: 8665463 | F95: 533043.09 | G95: 5395076.86 | H95: 8015310.16 | I95: =G95-H95 -> -2620233.3 | J95: =IF(I95=0,"",I95/H95) -> -0.3269035443 | K95: 8665463
A96: ='Org structure'!E5 -> 01.3 - Office Of The Chief Whip | C96: 1489395.48 | D96: 1641146 | E96: 1596146 | F96: 132358.59 | G96: 1454734.89 | H96: 1468404 | I96: =G96-H96 -> -13669.11 | J96: =IF(I96=0,"",I96/H96) -> -0.009308821006 | K96: 1596146
A97: ='Org structure'!E6 -> 01.4 - Mpac | C97: 92037.4 | D97: 4097070 | E97: 343000 | F97: 104860 | G97: 185260 | H97: 434746.12 | I97: =G97-H97 -> -249486.12 | J97: =IF(I97=0,"",I97/H97) -> -0.5738662372 | K97: 343000
A98: ='Org structure'!E7 -> 01.5 - Council General Administration | C98: 58892124.53 | D98: 58776244 | E98: 48606696 | F98: 2922780.77 | G98: 41218517.25 | H98: 45116036.2 | I98: =G98-H98 -> -3897518.95 | J98: =IF(I98=0,"",I98/H98) -> -0.08638877167 | K98: 48606696
A99: ='Org structure'!A3 -> Vote 02 - Office Of The Accounting Officer | C99: =SUM(C100:C105) -> 20794727.91 | D99: 25303359 | E99: 19787773 | F99: 1072400.35 | G99: 17002919.1 | H99: 18484727.76 | I99: -1481808.66 | J99: -0.08016394286 | K99: =SUM(K100:K105) -> 19787773
A100: ='Org structure'!E9 -> 02.1 - Office Of The Ao Admin | C100: 13863678.73 | D100: 18771203 | E100: 13790967 | F100: 562230.61 | G100: 11865845.56 | H100: 12938436.04 | I100: =G100-H100 -> -1072590.48 | J100: =IF(I100=0,"",I100/H100) -> -0.08289954649 | K100: 13790967
A101: ='Org structure'!E10 -> 02.2 - Strategic Planning Monitoring & Evaluat | C101: 0 | D101: 0 | E101: 0 | F101: 0 | G101: 0 | H101: 0 | I101: 0 | K101: 0
A102: ='Org structure'!E11 -> 02.3 - Perfomance Management System | C102: 3480813.17 | D102: 2834795 | E102: 2534795 | F102: 231673.65 | G102: 1904569.93 | H102: 2345273.72 | I102: -440703.79 | J102: -0.187911452 | K102: 2534795
A103: ='Org structure'!E12 -> 02.4 - Internal Audit | C103: 3450236.01 | D103: 3697361 | E103: 3462011 | F103: 278496.09 | G103: 3232503.61 | H103: 3201018 | I103: 31485.61 | J103: 0.009836124008 | K103: 3462011
A104: ='Org structure'!E13 -> 02.5 - Municipal Planning Idp | C104: 0 | D104: 0 | E104: 0 | F104: 0 | G104: 0 | H104: 0 | I104: 0 | K104: 0
A105: ='Org structure'!E14 -> 02.6 - Risk | C105: 0 | D105: 0 | E105: 0 | F105: 0 | G105: 0 | H105: 0 | I105: 0 | K105: 0
A106: ='Org structure'!A4 -> Vote 03 - Budget And Treasury Office | C106: =SUM(C107:C113) -> 217956443.8 | D106: 126091931 | E106: 120458267 | F106: 9612649.13 | G106: 77929175.82 | H106: 110615663 | I106: -32686487.18 | J106: -0.2954960111 | K106: =SUM(K107:K113) -> 120458267
A107: ='Org structure'!E16 -> 03.1 - Chief Financial Officer Admin | C107: 9455379.28 | D107: 7608358 | E107: 10349464 | F107: 5150363.56 | G107: 27736861.84 | H107: 9160946.76 | I107: =G107-H107 -> 18575915.08 | J107: =IF(I107=0,"",I107/H107) -> 2.027728745 | K107: 10349464
A108: ='Org structure'!E17 -> 03.2 - Budget Expenditure & Reporting | C108: 0 | D108: 0 | E108: 0 | F108: 0 | G108: 0 | H108: 0 | I108: 0 | K108: 0
A109: ='Org structure'!E18 -> 03.3 - Budget Expenditure & Reporting | C109: 4606972.42 | D109: 14019292 | E109: 8176292 | F109: 379036.14 | G109: 4313576.83 | H109: 7661135.56 | I109: -3347558.73 | J109: -0.4369533346 | K109: 8176292
A110: ='Org structure'!E19 -> 03.4 - Revenue Management | C110: 190990912.1 | D110: 86996562 | E110: 88920362 | F110: 3327459.69 | G110: 35048025.42 | H110: 81545853.44 | I110: -46497828.02 | J110: -0.5702046892 | K110: 88920362
A111: ='Org structure'!E20 -> 03.5 - Supply Chain Management | C111: 6224270.59 | D111: 6149200 | E111: 6245930 | F111: 508112.23 | G111: 6783811.73 | H111: 5701746.68 | I111: 1082065.05 | J111: 0.1897778191 | K111: 6245930
A112: ='Org structure'!E21 -> 03.6 - Assets Management | C112: 6678909.42 | D112: 11318519 | E112: 6766219 | F112: 247677.51 | G112: 4046900 | H112: 6545980.56 | I112: -2499080.56 | J112: -0.3817732939 | K112: 6766219
A113: ='Org structure'!E22 -> 03.7 - Expenditure | C113: 0 | D113: 0 | E113: 0 | F113: 0 | G113: 0 | H113: 0 | I113: 0 | K113: 0
A114: ='Org structure'!A5 -> Vote 04 - Corporate Services | C114: =SUM(C115:C122) -> 132098119.8 | D114: 137336122 | E114: 105218279 | F114: 8656024.4 | G114: 109711301.1 | H114: 97361859.64 | I114: =G114-H114 -> 12349441.48 | J114: =IF(I114=0,"",I114/H114) -> 0.1268406492 | K114: =SUM(K115:K122) -> 105218279
A115: ='Org structure'!E24 -> 04.1 - Legal Services | C115: 1077036.13 | D115: 1178495 | E115: 1148495 | F115: 95021.37 | G115: 1043346.18 | H115: 1056310 | I115: =G115-H115 -> -12963.82 | J115: =IF(I115=0,"",I115/H115) -> -0.0122727419 | K115: 1148495
A116: ='Org structure'!E25 -> 04.2 - Corporate Service Administration | C116: 40854533.67 | D116: 44340818 | E116: 37316724 | F116: 3142812.6 | G116: 32495887.86 | H116: 34173683.4 | I116: -1677795.54 | J116: -0.04909612816 | K116: 37316724
A117: ='Org structure'!E26 -> 04.3 - Human Resources | C117: 14521642.51 | D117: 16861620 | E117: 11967680 | F117: 700953.84 | G117: 8173156.22 | H117: 11163276.48 | I117: -2990120.26 | J117: -0.2678532835 | K117: 11967680
A118: ='Org structure'!E27 -> 04.4 - Media & Communication | C118: 0 | D118: 0 | E118: 0 | F118: 0 | G118: 0 | H118: 0 | I118: 0 | K118: 0
A119: ='Org structure'!E28 -> 04.5 - Organisational Development | C119: 0 | D119: 0 | E119: 0 | F119: 0 | G119: 0 | H119: 0 | I119: 0 | K119: 0
A120: ='Org structure'!E29 -> 04.6 - Labour Relations | C120: 0 | D120: 0 | E120: 0 | F120: 0 | G120: 0 | H120: 0 | I120: 0 | K120: 0
A121: ='Org structure'!E30 -> 04.7 - Legal Services | C121: 0 | D121: 0 | E121: 0 | F121: 0 | G121: 0 | H121: 0 | I121: 0 | K121: 0
A122: ='Org structure'!E31 -> 04.8 - Information Technology Services | C122: 75644907.46 | D122: 74955189 | E122: 54785380 | F122: 4717236.59 | G122: 67998910.86 | H122: 50968589.76 | I122: 17030321.1 | J122: 0.3341336533 | K122: 54785380
A123: ='Org structure'!A6 -> Vote 05 - Community Services | C123: =SUM(C124:C137) -> 170008197.7 | D123: 182219774 | E123: 145979319 | F123: 7286029.28 | G123: 130381707 | H123: 136084948.8 | I123: -5703241.8 | J123: -0.04190942386 | K123: =SUM(K124:K137) -> 145979319
A124: ='Org structure'!E33 -> 05.1 - Municipal Buildings | C124: 27303272.23 | D124: 26561133 | E124: 19069214 | F124: 1215143 | G124: 12496376.94 | H124: 18087561.16 | I124: =G124-H124 -> -5591184.22 | J124: =IF(I124=0,"",I124/H124) -> -0.30911764 | K124: 19069214
A125: ='Org structure'!E34 -> 05.2 - Fleet Management | C125: 14370689.8 | D125: 17935850 | E125: 15293850 | F125: 703386.67 | G125: 11458335.88 | H125: 14141004.36 | I125: -2682668.48 | J125: -0.1897084826 | K125: 15293850
A126: ='Org structure'!E35 -> 05.3 - Community Services Administration | C126: 899700.89 | D126: 1829793 | E126: 3161244 | F126: 242772.53 | G126: 2898235.92 | H126: 2860890.84 | I126: 37345.08 | J126: 0.01305365429 | K126: 3161244
A127: ='Org structure'!E36 -> 05.4 - Cemeteries | C127: 14207500.48 | D127: 605000 | E127: 605000 | F127: 50417 | G127: 50417 | H127: 554587 | I127: -504170 | J127: -0.9090909091 | K127: 605000
A128: ='Org structure'!E37 -> 05.5 - Disaster Management | C128: 1150306.34 | D128: 660000 | E128: 110000 | F128: 0 | G128: 29958.9 | H128: 142788.84 | I128: -112829.94 | J128: -0.7901873844 | K128: 110000
A129: ='Org structure'!E38 -> 05.6 - Fires Service | C129: 0 | D129: 0 | E129: 0 | F129: 0 | G129: 0 | H129: 0 | I129: 0 | K129: 0
A130: ='Org structure'!E39 -> 05.7 - Libraries | C130: 2588046.05 | D130: 2656715 | E130: 3141715 | F130: 329903.89 | G130: 2050042.23 | H130: 2832768.7 | I130: -782726.47 | J130: -0.2763114652 | K130: 3141715
A131: ='Org structure'!E40 -> 05.8 - Municipal Buildings | C131: 0 | D131: 0 | E131: 0 | F131: 0 | G131: 0 | H131: 0 | I131: 0 | K131: 0
A132: ='Org structure'!E41 -> 05.9 - Sports Recreation & Social Amenitie | C132: 33189132.41 | D132: 29288851 | E132: 25715503 | F132: 1947769.09 | G132: 34907837.71 | H132: 23957505.84 | I132: 10950331.87 | J132: 0.457073117 | K132: 25715503
A133: ='Org structure'!E42 -> 05.10 - Waste Management Solid Waste | C133: 47212048.13 | D133: 60639445 | E133: 46599806 | F133: 684518.15 | G133: 42231436.55 | H133: 43171863.32 | I133: -940426.77 | J133: -0.02178332594 | K133: 46599806
A134: ='Org structure'!E43 -> 05.11 - Safety And Security | C134: 21348680.42 | D134: 29150069 | E134: 21620069 | F134: 1726219.9 | G134: 18637674.45 | H134: 20390291.52 | I134: -1752617.07 | J134: -0.08595350725 | K134: 21620069
A135: ='Org structure'!E44 -> 05.12 - Traffic Service | C135: 0 | D135: 0 | E135: 0 | F135: 0 | G135: 0 | H135: 0 | I135: 0 | K135: 0
A136: ='Org structure'!E45 -> 05.13 - Traffic Service | C136: 7738820.96 | D136: 12892918 | E136: 10662918 | F136: 385899.05 | G136: 5621391.4 | H136: 9945687.2 | I136: -4324295.8 | J136: -0.4347910519 | K136: 10662918
A137: ='Org structure'!E46 -> 05.14 - Fleet Management | C137: 0 | D137: 0 | E137: 0 | F137: 0 | G137: 0 | H137: 0 | I137: 0 | K137: 0
A138: ='Org structure'!A7 -> Vote 06 - Planning & Development | C138: =SUM(C139:C148) -> 15000283.61 | D138: 26201722 | E138: 21871968 | F138: 1402498.42 | G138: 15525523 | H138: 20350974.68 | I138: -4825451.68 | J138: -0.237111576 | K138: =SUM(K139:K148) -> 21871968
A139: ='Org structure'!E48 -> 06.1 - Planning And Development Admin | C139: 444576.11 | D139: 1909065 | E139: 3011311 | F139: 149282.49 | G139: 1671966.5 | H139: 2734941.76 | I139: =G139-H139 -> -1062975.26 | J139: =IF(I139=0,"",I139/H139) -> -0.3886646785 | K139: 3011311
A140: ='Org structure'!E49 -> 06.2 - Municipal Planning Idp | C140: 0 | D140: 0 | E140: 0 | F140: 0 | G140: 0 | H140: 0 | I140: 0 | K140: 0
A141: ='Org structure'!E50 -> 06.3 - Pms | C141: 0 | D141: 0 | E141: 0 | F141: 0 | G141: 0 | H141: 0 | I141: 0 | K141: 0
A142: ='Org structure'!E51 -> 06.4 - Town Planning | C142: 236193.85 | D142: 4420858 | E142: 3493858 | F142: 236985.37 | G142: 2581387.69 | H142: 3320087.6 | I142: -738699.91 | J142: -0.2224941023 | K142: 3493858
A143: ='Org structure'!E52 -> 06.5 - Land Use And Housing Admin | C143: 5366601.86 | D143: 5822286 | E143: 5522286 | F143: 424417.96 | G143: 4873446.06 | H143: 5083833.72 | I143: -210387.66 | J143: -0.04138366272 | K143: 5522286
A144: ='Org structure'!E53 -> 06.6 - Local Economic Development | C144: 8952911.79 | D144: 14049513 | E144: 9844513 | F144: 591812.6 | G144: 6398722.75 | H144: 9212111.6 | I144: -2813388.85 | J144: -0.305401082 | K144: 9844513
A145: ='Org structure'!E54 -> 06.7 - Led | C145: 0 | D145: 0 | E145: 0 | F145: 0 | G145: 0 | H145: 0 | I145: 0 | K145: 0
A146: ='Org structure'!E55 -> 06.8 - Agriculture & Rural Development | C146: 0 | D146: 0 | E146: 0 | F146: 0 | G146: 0 | H146: 0 | I146: 0 | K146: 0
A147: ='Org structure'!E56 -> 06.9 - Tourism & Business Development | C147: 0 | D147: 0 | E147: 0 | F147: 0 | G147: 0 | H147: 0 | I147: 0 | K147: 0
A148: ='Org structure'!E57 -> 06.10 - Arts & Culture | C148: 0 | D148: 0 | E148: 0 | F148: 0 | G148: 0 | H148: 0 | I148: 0 | K148: 0
A149: ='Org structure'!A8 -> Vote 07 - Infrastructure & Technical Services | C149: =SUM(C150:C168) -> 448226821.9 | D149: 383941084 | E149: 425182889 | F149: 16913654.77 | G149: 383494016.8 | H149: 389393996.2 | I149: -5899979.34 | J149: -0.01515169571 | K149: =SUM(K150:K168) -> 425182889
A150: ='Org structure'!E59 -> 07.1 - Infrastructure Admin & Tech Admin | C150: -54322450.89 | D150: 2586091 | E150: 2376103 | F150: 72481.49 | G150: 1299815.2 | H150: 2190208.2 | I150: =G150-H150 -> -890393 | J150: =IF(I150=0,"",I150/H150) -> -0.4065334976 | K150: 2376103
A151: ='Org structure'!E60 -> 07.2 - Fleet Management | C151: 0 | D151: 0 | E151: 0 | F151: 0 | G151: 0 | H151: 0 | I151: 0 | K151: 0
A152: ='Org structure'!E61 -> 07.3 - Roads | C152: 133512286.3 | D152: 83834249 | E152: 71782249 | F152: 5589842.93 | G152: 51231896.19 | H152: 66368416.92 | I152: -15136520.73 | J152: -0.2280681299 | K152: 71782249
A153: ='Org structure'!E62 -> 07.4 - Storm Water | C153: 0 | D153: 0 | E153: 0 | F153: 0 | G153: 0 | H153: 0 | I153: 0 | K153: 0
A154: ='Org structure'!E63 -> 07.5 - Street Lighting | C154: 15648707.12 | D154: 19208720 | E154: 13608720 | F154: 921450.8 | G154: 6455219.45 | H154: 12808052.08 | I154: -6352832.63 | J154: -0.4960030292 | K154: 13608720
A155: ='Org structure'!E64 -> 07.6 - Project Management Unit | C155: 2338497.76 | D155: 5167637 | E155: 3582637 | F155: 285206.48 | G155: 2761414.49 | H155: 3328162.28 | I155: -566747.79 | J155: -0.1702885083 | K155: 3582637
A156: ='Org structure'!E65 -> 07.7 - Sanitation Treatment Plant: Mogwase | C156: 11937927.37 | D156: 2979877 | E156: 7635060 | F156: 487116.04 | G156: 6963172.49 | H156: 6871152.84 | I156: 92019.65 | J156: 0.01339217045 | K156: 7635060
A157: ='Org structure'!E66 -> 07.8 - Sanitation Treatment Plant: Madikwe | C157: 5831583.32 | D157: 3878437 | E157: 5543359 | F157: 312044.88 | G157: 4451075.87 | H157: 5089498.84 | I157: -638422.97 | J157: -0.1254392603 | K157: 5543359
A158: ='Org structure'!E67 -> 07.9 - Sanitation Reticulation | C158: 14238934.08 | D158: 11926146 | E158: 11611146 | F158: 723846 | G158: 5585171.78 | H158: 10741205.88 | I158: -5156034.1 | J158: -0.4800237662 | K158: 11611146
A159: ='Org structure'!E68 -> 07.10 - Water Administration | C159: 116323750.2 | D159: 17934502 | E159: 45791014 | F159: 2804771.6 | G159: 37922133.99 | H159: 41002470.84 | I159: -3080336.85 | J159: -0.07512563967 | K159: 45791014
A160: ='Org structure'!E69 -> 07.11 - Water Madikwe: Water Treatment Work | C160: 1094736.93 | D160: 1552000 | E160: 1817737 | F160: 0 | G160: 1815737 | H160: 1635274.6 | I160: 180462.4 | J160: 0.1103560222 | K160: 1817737
A161: ='Org structure'!E70 -> 07.12 - Water: Pella Water Treatment Works | C161: 394868.25 | D161: 504000 | E161: 1634714 | F161: 0 | G161: 1179750.39 | H161: 1366593.2 | I161: -186842.81 | J161: -0.1367216008 | K161: 1634714
A162: ='Org structure'!E71 -> 07.13 - Water: Madikwe Retail & Bulk Lines | C162: 1819643.09 | D162: 2004000 | E162: 3548178 | F162: 0 | G162: 3860258.42 | H162: 3072353.4 | I162: 787905.02 | J162: 0.2564499969 | K162: 3548178
A163: ='Org structure'!E72 -> 07.14 - Water: Madikwe Rural | C163: 3881762.73 | D163: 3403000 | E163: 4096667 | F163: 42516 | G163: 3136182.6 | H163: 3674357.6 | I163: -538175 | J163: -0.1464677798 | K163: 4096667
A164: ='Org structure'!E73 -> 07.15 - Water: Molatedi | C164: 361114.55 | D164: 260000 | E164: 306286 | F164: 0 | G164: 297225.8 | H164: 275376.8 | I164: 21849 | J164: 0.07934219586 | K164: 306286
A165: ='Org structure'!E74 -> 07.16 - Water Eastern: Retail Mankwe | C165: 0 | D165: 10904131 | E165: 0 | F165: 0 | G165: 0 | H165: 302930.28 | I165: -302930.28 | J165: -1 | K165: 0
A166: ='Org structure'!E75 -> 07.17 - Water Vaalkopdam: Mankwe | C166: 0 | D166: 1366665 | E166: 0 | F166: 0 | G166: 0 | H166: 37998.96 | I166: -37998.96 | J166: -1 | K166: 0
A167: ='Org structure'!E76 -> 07.18 - Water Eastern: Retail Mankwe | C167: 183626262.1 | D167: 203731629 | E167: 233703981 | F167: 3685234 | G167: 234428171.4 | H167: 214632239 | I167: 19795932.39 | J167: 0.09223186823 | K167: 233703981
A168: ='Org structure'!E77 -> 07.19 - Reporting Function Electricity | C168: 11539198.92 | D168: 12700000 | E168: 18145038 | F168: 1989144.55 | G168: 22106791.72 | H168: 15997704.4 | I168: 6109087.32 | J168: 0.3818727467 | K168: 18145038
A169: ='Org structure'!A9 -> Vote 08 - | C169: 0 | D169: 0 | E169: 0 | F169: 0 | G169: 0 | H169: 0 | I169: 0 | K169: 0
A170: ='Org structure'!A10 -> Vote 09 - | C170: 0 | D170: 0 | E170: 0 | F170: 0 | G170: 0 | H170: 0 | I170: =G170-H170 -> 0 | J170: =IF(I170=0,"",I170/H170) ->  | K170: 0
A171: ='Org structure'!A11 -> Vote 10 - | C171: 0 | D171: 0 | E171: 0 | F171: 0 | G171: 0 | H171: 0 | I171: 0 | K171: 0
A172: ='Org structure'!A12 -> Vote 11 - | C172: 0 | D172: 0 | E172: 0 | F172: 0 | G172: 0 | H172: 0 | I172: 0 | K172: 0
A173: ='Org structure'!A13 -> Vote 12 - | C173: 0 | D173: 0 | E173: 0 | F173: 0 | G173: 0 | H173: 0 | I173: 0 | K173: 0
A174: ='Org structure'!A14 -> Vote 13 - | C174: 0 | D174: 0 | E174: 0 | F174: 0 | G174: 0 | H174: 0 | I174: 0 | K174: 0
A175: ='Org structure'!A15 -> Vote 14 - | C175: 0 | D175: 0 | E175: 0 | F175: 0 | G175: 0 | H175: 0 | I175: 0 | K175: 0
A176: ='Org structure'!A16 -> Vote 15 - Other | C176: 0 | D176: 0 | E176: 0 | F176: 0 | G176: 0 | H176: 0 | I176: =G176-H176 -> 0 | J176: =IF(I176=0,"",I176/H176) ->  | K176: 0
A177: Total Expenditure by Vote | B177: 2 | C177: =C93+C99+C106+C114+C123+C138+C149+C169+C170+C171+C172+C173+C174+C175+C176 -> 1076070461 | D177: 967240322 | E177: 905675747 | F177: 49240396.65 | G177: 788684093.7 | H177: 834834992.4 | I177: -46150898.7 | J177: -0.05528146175 | K177: =K93+K99+K106+K114+K123+K138+K149+K169+K170+K171+K172+K173+K174+K175+K176 -> 905675747
I178: 0 | L178: =#REF!-#REF! ->  | M178: =#REF!-#REF! ->  | N178: =#REF!-#REF! ->  | O178: =#REF!-#REF! ->  | P178: =#REF!-#REF! ->  | Q178: =#REF!-#REF! ->  | R178: =#REF!-#REF! ->  | S178: =#REF!-#REF! ->  | T178: =#REF!-#REF! ->  | U178: =#REF!-#REF! ->  | V178: =#REF!-#REF! ->  | W178: =#REF!-#REF! -> 
A179: =result -> Surplus/ (Deficit) for the year | B179: 2 | C179: =C90-C177 -> -154056706.2 | D179: 68850206 | E179: 74713571 | F179: 61759449.11 | G179: 115436155.5 | H179: 70239868.72 | I179: 45196286.79 | J179: 0.6434563107 | K179: =K90-K177 -> 74713571
A180: =head27a -> References
A181: 1. Insert 'Vote'; e.g. Department, if different to standard structure
A182: 2. Must reconcile to Financial Performance ('Revenue and Expenditure by Standard Classification' and 'Revenue and Expenditure')
A183: 3. Assign share in 'associate' to relevant Vote
A185: check revenue
A186: check expenditure

Sheet C4-FinPerf RE
A1: =muni& " - "&S71B& " - "&date -> NW375 Moses Kotane - Table C4 Monthly Budget Statement - Financial Performance (revenue and expenditure) - M11 May
A2: =desc -> Description | B2: =head27 -> Ref | C2: =Head1 -> 2018/19 | D2: =Head2 -> Budget Year 2019/20
C3: =Head5 -> Audited Outcome | D3: =Head6 -> Original Budget | E3: =Head7 -> Adjusted Budget | F3: =Head38 -> Monthly actual | G3: =Head39 -> YearTD actual | H3: =Head40 -> YearTD budget | I3: =Head41 -> YTD variance | J3: =Head41 -> YTD variance | K3: =Head8 -> Full Year Forecast
A4: R thousands | J4: %
A5: Revenue By Source
A6: Property rates | C6: 134800237.8 | D6: 142163600 | E6: 142163600 | F6: 11706734.84 | G6: 129532338.1 | H6: 130316571 | I6: =G6-H6 -> -784232.92 | J6: =IF(I6=0,"",I6/H6) -> -0.006017906349 | K6: 142163600
A7: Service charges - electricity revenue | C7: 0 | D7: 0 | E7: 0 | F7: 0 | G7: 0 | H7: -11 | I7: 11 | J7: -1 | K7: 0
A8: Service charges - water revenue | C8: 147289521 | D8: 171557000 | E8: 171557000 | F8: 10354810.46 | G8: 144957643.4 | H8: 157260554 | I8: -12302910.57 | J8: -0.07823265439 | K8: 171557000
A9: Service charges - sanitation revenue | C9: 2273943 | D9: 2750000 | E9: 2750000 | F9: 185517.41 | G9: 2464813.9 | H9: 2520826 | I9: -56012.1 | J9: -0.02221974067 | K9: 2750000
A10: Service charges - refuse revenue | C10: 4645258.64 | D10: 9944428 | E10: 9944428 | F10: 826966.18 | G10: 9177547.95 | H10: 9115711 | I10: 61836.95 | J10: 0.006783557531 | K10: 9944428
A12: Rental of facilities and equipment | C12: 42260.39 | D12: 51000 | E12: 71000 | F12: 6264.89 | G12: 67389.34 | H12: 62739 | I12: 4650.34 | J12: 0.07412199748 | K12: 71000
A13: Interest earned - external investments | C13: 452790.52 | D13: 5400000 | E13: 6400000 | F13: 4248.06 | G13: 5064116.08 | H13: 5750000 | I13: -685883.92 | J13: -0.11928416 | K13: 6400000
A14: Interest earned - outstanding debtors | C14: 45873512.41 | D14: 59790000 | E14: 59576790 | F14: 5938676.38 | G14: 56425147.47 | H14: 54636910 | I14: 1788237.47 | J14: 0.03272947665 | K14: 59576790
A15: Dividends received | C15: 4236526.67 | D15: 0 | E15: 0 | F15: 0 | G15: 0 | H15: 0 | I15: 0 | K15: 0
A16: Fines, penalties and forfeits | C16: 2326250 | D16: 4500000 | E16: 3500000 | F16: 0 | G16: 5181000 | H16: 3325000 | I16: 1856000 | J16: 0.5581954887 | K16: 3500000
A17: Licences and permits | C17: 178830.46 | D17: 50000 | E17: 50000 | F17: 0 | G17: 0 | H17: 45826 | I17: -45826 | J17: -1 | K17: 50000
A18: Agency services | I18: 0
A19: Transfers and subsidies | C19: 397007796.9 | D19: 437829637 | E19: 374550637 | F19: 65600085.77 | G19: 432704405.3 | H19: 350694057.1 | I19: 82010348.21 | J19: 0.2338515482 | K19: 374550637
A20: Other revenue | C20: 1933795.42 | D20: 2530500 | E20: 3720500 | F20: 562015.68 | G20: 930272.15 | H20: 3184581 | I20: -2254308.85 | J20: -0.7078824027 | K20: 3720500
A21: Gains | C21: 1268618.78 | D21: 0 | E21: 0 | F21: 0 | G21: 72776.42 | H21: 0 | I21: 72776.42 | K21: 0
A22: Total Revenue (excluding capital transfers and contributions) | C22: =SUM(C6:C10)+SUM(C12:C21) -> 742329342 | D22: 836566165 | E22: 774283955 | F22: 95185319.67 | G22: 786577450.1 | H22: 716912764.1 | I22: 69664686.03 | J22: 0.09717317018 | K22: =SUM(K6:K10)+SUM(K12:K21) -> 774283955
A24: Expenditure By Type
A25: Employee related costs | C25: 194442064.3 | D25: 270274660 | E25: 248852359 | F25: 16269525.72 | G25: 198572423.5 | H25: 228609340.9 | I25: =G25-H25 -> -30036917.41 | J25: =IF(I25=0,"",I25/H25) -> -0.1313897205 | K25: 248852359
A26: Remuneration of councillors | C26: 22826948.04 | D26: 25371420 | E26: 25371420 | F26: 1968883.12 | G26: 22795152.59 | H26: 23257157 | I26: -462004.41 | J26: -0.0198650424 | K26: 25371420
A27: Debt impairment | C27: 296210465 | D27: 122540000 | E27: 180148200 | F27: 0 | G27: 147767216.8 | H27: 163619192.5 | I27: -15851975.66 | J27: -0.09688335103 | K27: 180148200
A28: Depreciation & asset impairment | C28: 159814360.2 | D28: 154536733 | E28: 154536733 | F28: 12878072 | G28: 124274178.9 | H28: 141658759 | I28: -17384580.08 | J28: -0.1227215331 | K28: 154536733
A29: Finance charges | C29: 6177546.23 | D29: 3688959 | E29: 3688959 | F29: 116641.59 | G29: 2308833.63 | H29: 3381565 | I29: -1072731.37 | J29: -0.3172292622 | K29: 3688959
A30: Bulk purchases | C30: 110347056.5 | D30: 103700000 | E30: 89145038 | F30: 1989144.55 | G30: 81177687.59 | H30: 83414378.4 | I30: -2236690.81 | J30: -0.0268142118 | K30: 89145038
A31: Other materials | C31: 4561145.5 | D31: 5577250 | E31: 3427151 | F31: 125989.8 | G31: 1413323.19 | H31: 3272067.88 | I31: -1858744.69 | J31: -0.5680642206 | K31: 3427151
A32: Contracted services | C32: 139862498.2 | D32: 151836500 | E32: 111042019 | F32: 9616518.02 | G32: 117209173.2 | H32: 103681453.9 | I32: 13527719.31 | J32: 0.1304738581 | K32: 111042019
A33: Transfers and subsidies | C33: 74558.5 | D33: 0 | E33: 0 | F33: 0 | G33: 0 | H33: 0 | I33: 0 | K33: 0
A34: Other expenditure | C34: 138956931.3 | D34: 129714800 | E34: 89463868 | F34: 6275621.85 | G34: 91921156.84 | H34: 83941077.78 | I34: 7980079.06 | J34: 0.09506762685 | K34: 89463868
A35: Losses | C35: 2796887.2 | D35: 0 | E35: 0 | F35: 0 | G35: 1244947.36 | H35: 0 | I35: 1244947.36 | K35: 0
A36: Total Expenditure | C36: =SUM(C25:C35) -> 1076070461 | D36: =SUM(D25:D35) -> 967240322 | E36: =SUM(E25:E35) -> 905675747 | F36: 49240396.65 | G36: 788684093.7 | H36: 834834992.4 | I36: -46150898.7 | J36: -0.05528146175 | K36: 905675747
A38: Surplus/(Deficit) | C38: =C22-C36 -> -333741119 | D38: -130674157 | E38: -131391792 | F38: 45944923.02 | G38: -2106643.55 | H38: -117922228.3 | I38: =I22-I36 -> 115815584.7 | J38: -0.9821353143 | K38: =K22-K36 -> -131391792
A39: Transfers and subsidies - capital (monetary allocations) (National / Provincial and District) | C39: 88203014.84 | D39: 87086153 | E39: 93773318 | F39: 15814526.09 | G39: 44745434 | H39: 85178690 | I39: =G39-H39 -> -40433256 | J39: -0.47468746 | K39: 93773318
A40: Transfers and subsidies - capital (monetary allocations) (National / Provincial Departmental Agencies, Households, Non-profit Institutions, Private Enterprises, Public Corporatons, Higher Educational Institutions) | C40: 91481397.94 | D40: 112438210 | E40: 112332045 | F40: 0 | G40: 72797365.06 | H40: 102983407 | I40: =G40-H40 -> -30186041.94 | J40: -0.2931155884 | K40: 112332045
A41: Transfers and subsidies - capital (in-kind - all) | C41: 0 | D41: 0 | E41: 0 | F41: 0 | G41: 0 | H41: 0 | I41: =G41-H41 -> 0 | K41: 0
A42: Surplus/(Deficit) after capital transfers & contributions | C42: =C38+SUM(C39:C41) -> -154056706.2 | D42: 68850206 | E42: 74713571 | F42: 61759449.11 | G42: 115436155.5 | H42: 70239868.72 | K42: =K38+SUM(K39:K41) -> 74713571
A43: Taxation | I43: =G43-H43 -> 0 | J43: =IF(I43=0,"",I43/H43) -> 
A44: Surplus/(Deficit) after taxation | C44: =C42-C43 -> -154056706.2 | D44: 68850206 | E44: 74713571 | F44: 61759449.11 | G44: 115436155.5 | H44: 70239868.72 | K44: =K42-K43 -> 74713571
A45: Attributable to minorities
A46: Surplus/(Deficit) attributable to municipality | C46: =SUM(C44:C45) -> -154056706.2 | D46: 68850206 | E46: 74713571 | F46: 61759449.11 | G46: 115436155.5 | H46: 70239868.72 | K46: =SUM(K44:K45) -> 74713571
A47: Share of surplus/ (deficit) of associate
A48: Surplus/ (Deficit) for the year | C48: =C46+C47 -> -154056706.2 | D48: 68850206 | E48: 74713571 | F48: 61759449.11 | G48: 115436155.5 | H48: 70239868.72 | K48: =K46+K47 -> 74713571
A49: =head27a -> References
A50: 1. Material variances to be explained on Table SC1
A53: =A22&" including capital transfers/contributions etc" -> Total Revenue (excluding capital transfers and contributions) including capital transfers/contributions etc | C53: =C22+SUM(C39:C41) -> 922013754.8 | D53: 1036090528 | E53: 980389318 | F53: 110999845.8 | G53: 904120249.2 | H53: 905074861.1 | K53: =K22+SUM(K39:K41) -> 980389318

Sheet C5-Capex
A1: =muni& " - "&S71D& " - "&date -> NW375 Moses Kotane - Table C5 Monthly Budget Statement - Capital Expenditure (municipal vote, functional classification and funding) - M11 May
A2: =Vdesc -> Vote Description | B2: =head27 -> Ref | C2: =Head1 -> 2018/19 | D2: =Head2 -> Budget Year 2019/20
C3: =Head5 -> Audited Outcome | D3: =Head6 -> Original Budget | E3: =Head7 -> Adjusted Budget | F3: =Head38 -> Monthly actual | G3: =Head39 -> YearTD actual | H3: =Head40 -> YearTD budget | I3: =Head41 -> YTD variance | J3: =Head41 -> YTD variance | K3: =Head8 -> Full Year Forecast
A4: R thousands | B4: 1 | J4: %
A5: Multi-Year expenditure appropriation | B5: 2
A6: ='Org structure'!A2 -> Vote 01 - Municipal Council | C6: ='C5C'!C7 -> 0 | D6: ='C5C'!D7 -> 0 | E6: ='C5C'!E7 -> 0 | F6: ='C5C'!F7 -> 0 | G6: ='C5C'!G7 -> 0 | H6: ='C5C'!H7 -> 0 | I6: =G6-H6 -> 0 | J6: =IF(I6=0,"",I6/H6) ->  | K6: ='C5C'!K7 -> 0
A7: ='Org structure'!A3 -> Vote 02 - Office Of The Accounting Officer | C7: ='C5C'!C13 -> 0 | D7: ='C5C'!D13 -> 0 | E7: ='C5C'!E13 -> 0 | F7: ='C5C'!F13 -> 0 | G7: ='C5C'!G13 -> 0 | H7: ='C5C'!H13 -> 0 | I7: 0 | K7: ='C5C'!K13 -> 0
A8: ='Org structure'!A4 -> Vote 03 - Budget And Treasury Office | C8: ='C5C'!C20 -> 0 | D8: ='C5C'!D20 -> 0 | E8: ='C5C'!E20 -> 0 | F8: ='C5C'!F20 -> 0 | G8: ='C5C'!G20 -> 0 | H8: ='C5C'!H20 -> 0 | I8: 0 | K8: ='C5C'!K20 -> 0
A9: ='Org structure'!A5 -> Vote 04 - Corporate Services | C9: ='C5C'!C28 -> 106115.29 | D9: ='C5C'!D28 -> 0 | E9: ='C5C'!E28 -> 0 | F9: ='C5C'!F28 -> 0 | G9: ='C5C'!G28 -> 0 | H9: ='C5C'!H28 -> 0 | I9: 0 | K9: ='C5C'!K28 -> 0
A10: ='Org structure'!A6 -> Vote 05 - Community Services | C10: ='C5C'!C37 -> 1314881 | D10: ='C5C'!D37 -> 0 | E10: ='C5C'!E37 -> 0 | F10: ='C5C'!F37 -> 0 | G10: ='C5C'!G37 -> 0 | H10: ='C5C'!H37 -> 0 | I10: 0 | K10: ='C5C'!K37 -> 0
A11: ='Org structure'!A7 -> Vote 06 - Planning & Development | C11: ='C5C'!C52 -> 0 | D11: ='C5C'!D52 -> 0 | E11: ='C5C'!E52 -> 0 | F11: ='C5C'!F52 -> 0 | G11: ='C5C'!G52 -> 0 | H11: ='C5C'!H52 -> 0 | I11: 0 | K11: ='C5C'!K52 -> 0
A12: ='Org structure'!A8 -> Vote 07 - Infrastructure & Technical Services | C12: ='C5C'!C63 -> 53934205 | D12: ='C5C'!D63 -> 73297563 | E12: ='C5C'!E63 -> 77790502 | F12: ='C5C'!F63 -> 2165930.23 | G12: ='C5C'!G63 -> 47749653.71 | H12: ='C5C'!H63 -> 70783836.2 | I12: -23034182.49 | J12: -0.3254158538 | K12: ='C5C'!K63 -> 77790502
A13: ='Org structure'!A9 -> Vote 08 - | C13: ='C5C'!C83 -> 0 | D13: ='C5C'!D83 -> 0 | E13: ='C5C'!E83 -> 0 | F13: ='C5C'!F83 -> 0 | G13: ='C5C'!G83 -> 0 | H13: ='C5C'!H83 -> 0 | I13: =G13-H13 -> 0 | J13: =IF(I13=0,"",I13/H13) ->  | K13: ='C5C'!K83 -> 0
A14: ='Org structure'!A10 -> Vote 09 - | C14: ='C5C'!C84 -> 0 | D14: ='C5C'!D84 -> 0 | E14: ='C5C'!E84 -> 0 | F14: ='C5C'!F84 -> 0 | G14: ='C5C'!G84 -> 0 | H14: ='C5C'!H84 -> 0 | I14: 0 | K14: ='C5C'!K84 -> 0
A15: ='Org structure'!A11 -> Vote 10 - | C15: ='C5C'!C85 -> 0 | D15: ='C5C'!D85 -> 0 | E15: ='C5C'!E85 -> 0 | F15: ='C5C'!F85 -> 0 | G15: ='C5C'!G85 -> 0 | H15: ='C5C'!H85 -> 0 | I15: 0 | K15: ='C5C'!K85 -> 0
A16: ='Org structure'!A12 -> Vote 11 - | C16: ='C5C'!C86 -> 0 | D16: ='C5C'!D86 -> 0 | E16: ='C5C'!E86 -> 0 | F16: ='C5C'!F86 -> 0 | G16: ='C5C'!G86 -> 0 | H16: ='C5C'!H86 -> 0 | I16: 0 | K16: ='C5C'!K86 -> 0
A17: ='Org structure'!A13 -> Vote 12 - | C17: ='C5C'!C87 -> 0 | D17: ='C5C'!D87 -> 0 | E17: ='C5C'!E87 -> 0 | F17: ='C5C'!F87 -> 0 | G17: ='C5C'!G87 -> 0 | H17: ='C5C'!H87 -> 0 | I17: 0 | K17: ='C5C'!K87 -> 0
A18: ='Org structure'!A14 -> Vote 13 - | C18: ='C5C'!C88 -> 0 | D18: ='C5C'!D88 -> 0 | E18: ='C5C'!E88 -> 0 | F18: ='C5C'!F88 -> 0 | G18: ='C5C'!G88 -> 0 | H18: ='C5C'!H88 -> 0 | I18: =G18-H18 -> 0 | J18: =IF(I18=0,"",I18/H18) ->  | K18: ='C5C'!K88 -> 0
A19: ='Org structure'!A15 -> Vote 14 - | C19: ='C5C'!C89 -> 0 | D19: ='C5C'!D89 -> 0 | E19: ='C5C'!E89 -> 0 | F19: ='C5C'!F89 -> 0 | G19: ='C5C'!G89 -> 0 | H19: ='C5C'!H89 -> 0 | I19: =G19-H19 -> 0 | J19: =IF(I19=0,"",I19/H19) ->  | K19: ='C5C'!K89 -> 0
A20: ='Org structure'!A16 -> Vote 15 - Other | C20: ='C5C'!C90 -> 0 | D20: ='C5C'!D90 -> 0 | E20: ='C5C'!E90 -> 0 | F20: ='C5C'!F90 -> 0 | G20: ='C5C'!G90 -> 0 | H20: ='C5C'!H90 -> 0 | I20: =G20-H20 -> 0 | J20: =IF(I20=0,"",I20/H20) ->  | K20: ='C5C'!K90 -> 0
A21: Total Capital Multi-year expenditure | B21: 4,7 | C21: =SUM(C6:C20) -> 55355201.29 | D21: =SUM(D6:D20) -> 73297563 | E21: 77790502 | F21: 2165930.23 | G21: 47749653.71 | H21: 70783836.2 | I21: -23034182.49 | J21: =IF(I21=0,"",I21/H21) -> -0.3254158538 | K21: =SUM(K6:K20) -> 77790502
A23: Single Year expenditure appropriation | B23: 2
A24: ='C5C'!A95 -> Vote 01 - Municipal Council | C24: ='C5C'!C95 -> 0 | D24: ='C5C'!D95 -> 0 | E24: ='C5C'!E95 -> 0 | F24: ='C5C'!F95 -> 0 | G24: ='C5C'!G95 -> 0 | H24: ='C5C'!H95 -> 0 | I24: =G24-H24 -> 0 | J24: =IF(I24=0,"",I24/H24) ->  | K24: ='C5C'!K95 -> 0
A25: ='C5C'!A101 -> Vote 02 - Office Of The Accounting Officer | C25: ='C5C'!C101 -> 0 | D25: ='C5C'!D101 -> 0 | E25: ='C5C'!E101 -> 0 | F25: ='C5C'!F101 -> 0 | G25: ='C5C'!G101 -> 0 | H25: ='C5C'!H101 -> 0 | I25: 0 | K25: ='C5C'!K101 -> 0
A26: ='C5C'!A108 -> Vote 03 - Budget And Treasury Office | C26: ='C5C'!C108 -> 11700 | D26: ='C5C'!D108 -> 100000 | E26: ='C5C'!E108 -> 0 | F26: ='C5C'!F108 -> 0 | G26: ='C5C'!G108 -> 25850 | H26: ='C5C'!H108 -> 9376.24 | I26: 16473.76 | J26: 1.756968678 | K26: ='C5C'!K108 -> 0
A27: ='C5C'!A116 -> Vote 04 - Corporate Services | C27: ='C5C'!C116 -> 0 | D27: ='C5C'!D116 -> 550000 | E27: ='C5C'!E116 -> 113975 | F27: ='C5C'!F116 -> 0 | G27: ='C5C'!G116 -> 113974.44 | H27: ='C5C'!H116 -> 72283.7 | I27: 41690.74 | J27: 0.5767654395 | K27: ='C5C'!K116 -> 113975
A28: ='C5C'!A125 -> Vote 05 - Community Services | C28: ='C5C'!C125 -> 0 | D28: ='C5C'!D125 -> 30587162 | E28: ='C5C'!E125 -> 30726754 | F28: ='C5C'!F125 -> 1296771.51 | G28: ='C5C'!G125 -> 19709041.79 | H28: ='C5C'!H125 -> 28132147.84 | I28: -8423106.05 | J28: -0.2994121209 | K28: ='C5C'!K125 -> 30726754
A29: ='C5C'!A140 -> Vote 06 - Planning & Development | C29: ='C5C'!C140 -> 0 | D29: ='C5C'!D140 -> 0 | E29: ='C5C'!E140 -> 0 | F29: ='C5C'!F140 -> 0 | G29: ='C5C'!G140 -> 0 | H29: ='C5C'!H140 -> 0 | I29: 0 | K29: ='C5C'!K140 -> 0
A30: ='C5C'!A151 -> Vote 07 - Infrastructure & Technical Services | C30: ='C5C'!C151 -> 14733494.55 | D30: ='C5C'!D151 -> 100267422 | E30: ='C5C'!E151 -> 97588106 | F30: ='C5C'!F151 -> 3884376.53 | G30: ='C5C'!G151 -> 42170671.4 | H30: ='C5C'!H151 -> 89768466.2 | I30: -47597794.8 | J30: -0.5302284512 | K30: ='C5C'!K151 -> 97588106
A31: ='Org structure'!A9 -> Vote 08 - | C31: ='C5C'!C171 -> 0 | D31: ='C5C'!D171 -> 0 | E31: ='C5C'!E171 -> 0 | F31: ='C5C'!F171 -> 0 | G31: ='C5C'!G171 -> 0 | H31: ='C5C'!H171 -> 0 | I31: ='C5C'!I171 -> 0 | J31: =IF(I31=0,"",I31/H31) ->  | K31: ='C5C'!K171 -> 0
A32: ='Org structure'!A10 -> Vote 09 - | C32: ='C5C'!C172 -> 0 | D32: ='C5C'!D172 -> 0 | E32: ='C5C'!E172 -> 0 | F32: ='C5C'!F172 -> 0 | G32: ='C5C'!G172 -> 0 | H32: ='C5C'!H172 -> 0 | I32: ='C5C'!I172 -> 0 | K32: ='C5C'!K172 -> 0
A33: ='Org structure'!A11 -> Vote 10 - | C33: ='C5C'!C173 -> 0 | D33: ='C5C'!D173 -> 0 | E33: ='C5C'!E173 -> 0 | F33: ='C5C'!F173 -> 0 | G33: ='C5C'!G173 -> 0 | H33: ='C5C'!H173 -> 0 | I33: ='C5C'!I173 -> 0 | K33: ='C5C'!K173 -> 0
A34: ='Org structure'!A12 -> Vote 11 - | C34: ='C5C'!C174 -> 0 | D34: ='C5C'!D174 -> 0 | E34: ='C5C'!E174 -> 0 | F34: ='C5C'!F174 -> 0 | G34: ='C5C'!G174 -> 0 | H34: ='C5C'!H174 -> 0 | I34: ='C5C'!I174 -> 0 | K34: ='C5C'!K174 -> 0
A35: ='Org structure'!A13 -> Vote 12 - | C35: ='C5C'!C175 -> 0 | D35: ='C5C'!D175 -> 0 | E35: ='C5C'!E175 -> 0 | F35: ='C5C'!F175 -> 0 | G35: ='C5C'!G175 -> 0 | H35: ='C5C'!H175 -> 0 | I35: ='C5C'!I175 -> 0 | K35: ='C5C'!K175 -> 0
A36: ='Org structure'!A14 -> Vote 13 - | C36: ='C5C'!C176 -> 0 | D36: ='C5C'!D176 -> 0 | E36: ='C5C'!E176 -> 0 | F36: ='C5C'!F176 -> 0 | G36: ='C5C'!G176 -> 0 | H36: ='C5C'!H176 -> 0 | I36: ='C5C'!I176 -> 0 | K36: ='C5C'!K176 -> 0
A37: ='Org structure'!A15 -> Vote 14 - | C37: ='C5C'!C177 -> 0 | D37: ='C5C'!D177 -> 0 | E37: ='C5C'!E177 -> 0 | F37: ='C5C'!F177 -> 0 | G37: ='C5C'!G177 -> 0 | H37: ='C5C'!H177 -> 0 | I37: ='C5C'!I177 -> 0 | K37: ='C5C'!K177 -> 0
A38: ='Org structure'!A16 -> Vote 15 - Other | C38: ='C5C'!C178 -> 0 | D38: ='C5C'!D178 -> 0 | E38: ='C5C'!E178 -> 0 | F38: ='C5C'!F178 -> 0 | G38: ='C5C'!G178 -> 0 | H38: ='C5C'!H178 -> 0 | I38: ='C5C'!I178 -> 0 | K38: ='C5C'!K178 -> 0
A39: Total Capital single-year expenditure | B39: 4 | C39: =SUM(C24:C38) -> 14745194.55 | D39: 131504584 | E39: 128428835 | F39: 5181148.04 | G39: 62019537.63 | H39: 117982274 | I39: -55962736.35 | J39: -0.4743317319 | K39: =SUM(K24:K38) -> 128428835
A40: Total Capital Expenditure | C40: =C39+C21 -> 70100395.84 | D40: 204802147 | E40: 206219337 | F40: 7347078.27 | G40: 109769191.3 | H40: 188766110.2 | I40: -78996918.84 | J40: =IF(I40=0,"",I40/H40) -> -0.4184910033 | K40: =K39+K21 -> 206219337
A42: Capital Expenditure - Functional Classification
A43: Governance and administration | C43: =SUM(C44:C46) -> 117815.29 | D43: 650000 | E43: 113975 | F43: 0 | G43: 139824.44 | H43: 81659.94 | I43: =G43-H43 -> 58164.5 | J43: =IF(I43=0,"",I43/H43) -> 0.7122770357 | K43: =SUM(K44:K46) -> 113975
A44: Executive and council | I44: 0 | J44: =IF(I44=0,"",I44/H44) -> 
A45: Finance and administration | C45: 117815.29 | D45: 650000 | E45: 113975 | F45: 0 | G45: 139824.44 | H45: 81659.94 | I45: 58164.5 | J45: 0.7122770357 | K45: 113975
A46: Internal audit | I46: 0
A47: Community and public safety | C47: =SUM(C48:C52) -> 130000 | D47: 14790253 | E47: 30726754 | F47: 1296771.51 | G47: 19952011.96 | H47: 26289165.04 | I47: -6337153.08 | J47: -0.2410557 | K47: =SUM(K48:K52) -> 30726754
A48: Community and social services | C48: 0 | D48: 14590253 | E48: 30726754 | F48: 1296771.51 | G48: 19952011.96 | H48: 26283605.8 | I48: -6331593.84 | J48: -0.2408951758 | K48: 30726754
A49: Sport and recreation | C49: 130000 | D49: 200000 | E49: 0 | F49: 0 | G49: 0 | H49: 5559.24 | I49: -5559.24 | J49: -1 | K49: 0
A50: Public safety | C50: 0 | D50: 0 | E50: 0 | F50: 0 | G50: 0 | H50: 0 | I50: 0 | K50: 0
A51: Housing | I51: 0
A52: Health | I52: 0
A53: Economic and environmental services | C53: =SUM(C54:C56) -> 41041589.83 | D53: 62193238 | E53: 61188317 | F53: 2031106.7 | G53: 33256071.81 | H53: 56206555.2 | I53: -22950483.39 | J53: -0.4083239634 | K53: =SUM(K54:K56) -> 61188317
A54: Planning and development | I54: 0
A55: Road transport | C55: 41041589.83 | D55: 62193238 | E55: 61188317 | F55: 2031106.7 | G55: 33256071.81 | H55: 56206555.2 | I55: -22950483.39 | J55: -0.4083239634 | K55: 61188317
A56: Environmental protection | I56: 0
A57: Trading services | C57: =SUM(C58:C61) -> 28810990.72 | D57: 127168656 | E57: 114190291 | F57: 4019200.06 | G57: 56421283.13 | H57: 106188730 | I57: -49767446.87 | J57: -0.4686697625 | K57: =SUM(K58:K61) -> 114190291
A58: Energy sources | C58: -0.1 | D58: 22445688 | E58: 20416973 | F58: 1898325.87 | G58: 10401644.44 | H58: 18952308 | I58: -8550663.56 | J58: -0.4511674019 | K58: 20416973
A59: Water management | C59: 27626109.82 | D59: 64814603 | E59: 81281082 | F59: 1695330.3 | G59: 39940884.3 | H59: 72586614.2 | I59: -32645729.9 | J59: -0.4497486246 | K59: 81281082
A60: Waste water management | C60: 0 | D60: 24111456 | E60: 12492236 | F60: 425543.89 | G60: 6321724.56 | H60: 12806825 | I60: -6485100.44 | J60: -0.5063784693 | K60: 12492236
A61: Waste management | C61: 1184881 | D61: 15796909 | E61: 0 | F61: 0 | G61: -242970.17 | H61: 1842982.8 | I61: -2085952.97 | J61: -1.131835289 | K61: 0
A62: Other | I62: 0
A63: Total Capital Expenditure - Functional Classification | B63: 3 | C63: =C43+C47+C53+C57+C62 -> 70100395.84 | D63: =D43+D47+D53+D57+D62 -> 204802147 | E63: 206219337 | F63: 7347078.27 | G63: 109769191.3 | H63: 188766110.2 | I63: -78996918.84 | J63: -0.4184910033 | K63: =K43+K47+K53+K57+K62 -> 206219337
A65: Funded by:
A66: National Government | C66: 62181352.57 | D66: 201361894 | E66: 206105362 | F66: 8087457.7 | G66: 109629366.9 | H66: 188376688.4 | I66: =G66-H66 -> -78747321.5 | J66: =IF(I66=0,"",I66/H66) -> -0.4180311384 | K66: 206105362
A67: Provincial Government | I67: 0
A68: District Municipality | I68: 0
A69: ='C4-FinPerf RE'!A40 -> Transfers and subsidies - capital (monetary allocations) (National / Provincial Departmental Agencies, Households, Non-profit Institutions, Private Enterprises, Public Corporatons, Higher Educational Institutions) | C69: 0 | D69: 0 | E69: 0 | F69: 0 | G69: 0 | H69: 0 | I69: 0 | K69: 0
A70: Transfers recognised - capital | C70: =SUM(C66:C69) -> 62181352.57 | D70: 201361894 | E70: 206105362 | F70: 8087457.7 | G70: 109629366.9 | H70: 188376688.4 | I70: -78747321.5 | J70: -0.4180311384 | K70: =SUM(K66:K69) -> 206105362
A72: Borrowing | B72: 6 | I72: 0
A73: Internally generated funds | C73: 0 | D73: 3440253 | E73: 113975 | F73: -740379.43 | G73: 139824.44 | H73: 389421.78 | I73: -249597.34 | J73: -0.6409434521 | K73: 113975
A74: Total Capital Funding | C74: =+C70+C72+C73 -> 62181352.57 | D74: 204802147 | E74: 206219337 | F74: 7347078.27 | G74: 109769191.3 | H74: 188766110.2 | I74: -78996918.84 | J74: -0.4184910033 | K74: =+K70+K72+K73 -> 206219337
A75: =head27a -> References
A76: 1. Municipalities may choose to appropriate for capital expenditure for three years or for one year (if one year appropriation projected expenditure required for yr2 and yr3).
A77: 2. Include capital component of PPP unitary payment
A78: 3. Capital expenditure by functional classification must reconcile to the total of multi-year and single year appropriations
A79: 4. Include expenditure on investment property, intangible and biological assets
A81: 6. Include finance leases and PPP capital funding component of unitary payment - total borrowing/repayments to reconcile to changes in Table SA17
A86: check balance | C86: =C40-C74 -> 7919043.27 | D86: =D40-D74 -> 0 | E86: 0 | F86: 0 | G86: 0 | H86: 0 | K86: 0

Sheet C5C
A1: =muni& " - "&S71D& " - "&"A"& " - "&date -> NW375 Moses Kotane - Table C5 Monthly Budget Statement - Capital Expenditure (municipal vote, functional classification and funding) - A - M11 May
A2: =Vdesc -> Vote Description | B2: =head27 -> Ref | C2: =Head1 -> 2018/19 | D2: =Head2 -> Budget Year 2019/20 | L2: =Head4 -> 
A3: R thousand | C3: =Head5 -> Audited Outcome | D3: =Head6 -> Original Budget | E3: =Head7 -> Adjusted Budget | F3: =Head38 -> Monthly actual | G3: =Head39 -> YearTD actual | H3: =Head40 -> YearTD budget | I3: =Head41 -> YTD variance | J3: =Head41 -> YTD variance | K3: =Head8 -> Full Year Forecast | L3: =Head12 -> Forecast 2010/11 | M3: =Head13 -> Forecast 2011/12 | N3: =Head14 -> Forecast 2012/13 | O3: =Head15 -> Forecast 2013/14 | P3: =Head16 -> Forecast 2014/15 | Q3: =Head17 -> Forecast 2015/16 | R3: =Head18 -> Forecast 2016/17 | S3: =Head19 -> Forecast 2017/18 | T3: =Head20 -> Forecast 2018/19 | U3: =Head21 -> Forecast 2019/20 | V3: =Head22 -> Forecast 2020/21 | W3: =Head23 -> Forecast 2021/22
J4: %
A5: Capital expenditure - Municipal Vote
A6: Expenditure of multi-year capital appropriation | B6: 1
A7: ='Org structure'!A2 -> Vote 01 - Municipal Council | C7: =SUM(C8:C12) -> 0 | D7: 0 | E7: 0 | F7: 0 | G7: 0 | H7: 0 | I7: =G7-H7 -> 0 | J7: =IF(I7=0,"",I7/H7) ->  | K7: =SUM(K8:K12) -> 0
A8: ='Org structure'!E3 -> 01.1 - Office Of The Mayor | I8: =G8-H8 -> 0 | J8: =IF(I8=0,"",I8/H8) ->  | K8: 0
A9: ='Org structure'!E4 -> 01.2 - Office Of The Speaker | I9: =G9-H9 -> 0 | J9: =IF(I9=0,"",I9/H9) ->  | K9: 0
A10: ='Org structure'!E5 -> 01.3 - Office Of The Chief Whip | I10: =G10-H10 -> 0 | J10: =IF(I10=0,"",I10/H10) ->  | K10: 0
A11: ='Org structure'!E6 -> 01.4 - Mpac | I11: =G11-H11 -> 0 | J11: =IF(I11=0,"",I11/H11) ->  | K11: 0
A12: ='Org structure'!E7 -> 01.5 - Council General Administration | I12: =G12-H12 -> 0 | J12: =IF(I12=0,"",I12/H12) ->  | K12: 0
A13: ='Org structure'!A3 -> Vote 02 - Office Of The Accounting Officer | C13: =SUM(C14:C19) -> 0 | D13: 0 | E13: 0 | F13: 0 | G13: 0 | H13: 0 | I13: 0 | K13: =SUM(K14:K19) -> 0
A14: ='Org structure'!E9 -> 02.1 - Office Of The Ao Admin | I14: =G14-H14 -> 0 | J14: =IF(I14=0,"",I14/H14) ->  | K14: 0
A15: ='Org structure'!E10 -> 02.2 - Strategic Planning Monitoring & Evaluat | I15: 0 | K15: 0
A16: ='Org structure'!E11 -> 02.3 - Perfomance Management System | I16: 0 | K16: 0
A17: ='Org structure'!E12 -> 02.4 - Internal Audit | I17: 0 | K17: 0
A18: ='Org structure'!E13 -> 02.5 - Municipal Planning Idp | I18: 0 | K18: 0
A19: ='Org structure'!E14 -> 02.6 - Risk | I19: 0 | K19: 0
A20: ='Org structure'!A4 -> Vote 03 - Budget And Treasury Office | C20: =SUM(C21:C27) -> 0 | D20: 0 | E20: 0 | F20: 0 | G20: 0 | H20: 0 | I20: 0 | K20: =SUM(K21:K27) -> 0
A21: ='Org structure'!E16 -> 03.1 - Chief Financial Officer Admin | I21: =G21-H21 -> 0 | J21: =IF(I21=0,"",I21/H21) ->  | K21: 0
A22: ='Org structure'!E17 -> 03.2 - Budget Expenditure & Reporting | I22: 0 | K22: 0
A23: ='Org structure'!E18 -> 03.3 - Budget Expenditure & Reporting | I23: 0 | K23: 0
A24: ='Org structure'!E19 -> 03.4 - Revenue Management | I24: 0 | K24: 0
A25: ='Org structure'!E20 -> 03.5 - Supply Chain Management | I25: 0 | K25: 0
A26: ='Org structure'!E21 -> 03.6 - Assets Management | I26: 0 | K26: 0
A27: ='Org structure'!E22 -> 03.7 - Expenditure | I27: 0 | K27: 0
A28: ='Org structure'!A5 -> Vote 04 - Corporate Services | C28: =SUM(C29:C36) -> 106115.29 | D28: 0 | E28: 0 | F28: 0 | G28: 0 | H28: 0 | I28: 0 | K28: =SUM(K29:K36) -> 0
A29: ='Org structure'!E24 -> 04.1 - Legal Services | I29: =G29-H29 -> 0 | J29: =IF(I29=0,"",I29/H29) ->  | K29: 0
A30: ='Org structure'!E25 -> 04.2 - Corporate Service Administration | C30: 106115.3 | D30: 0 | E30: 0 | F30: 0 | G30: 0 | H30: 0 | I30: 0 | K30: 0
A31: ='Org structure'!E26 -> 04.3 - Human Resources | I31: 0 | K31: 0
A32: ='Org structure'!E27 -> 04.4 - Media & Communication | I32: 0 | K32: 0
A33: ='Org structure'!E28 -> 04.5 - Organisational Development | I33: 0 | K33: 0
A34: ='Org structure'!E29 -> 04.6 - Labour Relations | I34: 0 | K34: 0
A35: ='Org structure'!E30 -> 04.7 - Legal Services | I35: 0 | K35: 0
A36: ='Org structure'!E31 -> 04.8 - Information Technology Services | C36: -0.01 | D36: 0 | E36: 0 | F36: 0 | G36: 0 | H36: 0 | I36: 0 | K36: 0
A37: ='Org structure'!A6 -> Vote 05 - Community Services | C37: =SUM(C38:C51) -> 1314881 | D37: 0 | E37: 0 | F37: 0 | G37: 0 | H37: 0 | I37: 0 | K37: =SUM(K38:K51) -> 0
A38: ='Org structure'!E33 -> 05.1 - Municipal Buildings | I38: =G38-H38 -> 0 | J38: =IF(I38=0,"",I38/H38) ->  | K38: 0
A39: ='Org structure'!E34 -> 05.2 - Fleet Management | I39: 0 | K39: 0
A40: ='Org structure'!E35 -> 05.3 - Community Services Administration | I40: 0 | K40: 0
A41: ='Org structure'!E36 -> 05.4 - Cemeteries | C41: 0 | D41: 0 | E41: 0 | F41: 0 | G41: 0 | H41: 0 | I41: 0 | K41: 0
A42: ='Org structure'!E37 -> 05.5 - Disaster Management | I42: 0 | K42: 0
A43: ='Org structure'!E38 -> 05.6 - Fires Service | I43: 0 | K43: 0
A44: ='Org structure'!E39 -> 05.7 - Libraries | I44: 0 | K44: 0
A45: ='Org structure'!E40 -> 05.8 - Municipal Buildings | C45: 0 | D45: 0 | E45: 0 | F45: 0 | G45: 0 | H45: 0 | I45: 0 | K45: 0
A46: ='Org structure'!E41 -> 05.9 - Sports Recreation & Social Amenitie | C46: 130000 | D46: 0 | E46: 0 | F46: 0 | G46: 0 | H46: 0 | I46: 0 | K46: 0
A47: ='Org structure'!E42 -> 05.10 - Waste Management Solid Waste | C47: 1184881 | D47: 0 | E47: 0 | F47: 0 | G47: 0 | H47: 0 | I47: 0 | K47: 0
A48: ='Org structure'!E43 -> 05.11 - Safety And Security | C48: 0 | D48: 0 | E48: 0 | F48: 0 | G48: 0 | H48: 0 | I48: 0 | K48: 0
A49: ='Org structure'!E44 -> 05.12 - Traffic Service | I49: 0 | K49: 0
A50: ='Org structure'!E45 -> 05.13 - Traffic Service | I50: 0 | K50: 0
A51: ='Org structure'!E46 -> 05.14 - Fleet Management | C51: 0 | D51: 0 | E51: 0 | F51: 0 | G51: 0 | H51: 0 | I51: 0 | K51: 0
A52: ='Org structure'!A7 -> Vote 06 - Planning & Development | C52: =SUM(C53:C62) -> 0 | D52: 0 | E52: 0 | F52: 0 | G52: 0 | H52: 0 | I52: 0 | K52: =SUM(K53:K62) -> 0
A53: ='Org structure'!E48 -> 06.1 - Planning And Development Admin | I53: =G53-H53 -> 0 | J53: =IF(I53=0,"",I53/H53) ->  | K53: 0
A54: ='Org structure'!E49 -> 06.2 - Municipal Planning Idp | I54: 0 | K54: 0
A55: ='Org structure'!E50 -> 06.3 - Pms | I55: 0 | K55: 0
A56: ='Org structure'!E51 -> 06.4 - Town Planning | I56: 0 | K56: 0
A57: ='Org structure'!E52 -> 06.5 - Land Use And Housing Admin | I57: 0 | K57: 0
A58: ='Org structure'!E53 -> 06.6 - Local Economic Development | I58: 0 | K58: 0
A59: ='Org structure'!E54 -> 06.7 - Led | I59: 0 | K59: 0
A60: ='Org structure'!E55 -> 06.8 - Agriculture & Rural Development | I60: 0 | K60: 0
A61: ='Org structure'!E56 -> 06.9 - Tourism & Business Development | I61: 0 | K61: 0
A62: ='Org structure'!E57 -> 06.10 - Arts & Culture | I62: 0 | K62: 0
A63: ='Org structure'!A8 -> Vote 07 - Infrastructure & Technical Services | C63: =SUM(C64:C82) -> 53934205 | D63: 73297563 | E63: 77790502 | F63: 2165930.23 | G63: 47749653.71 | H63: 70783836.2 | I63: =G63-H63 -> -23034182.49 | J63: =IF(I63=0,"",I63/H63) -> -0.3254158538 | K63: =SUM(K64:K82) -> 77790502
A64: ='Org structure'!E59 -> 07.1 - Infrastructure Admin & Tech Admin | I64: =G64-H64 -> 0 | J64: =IF(I64=0,"",I64/H64) ->  | K64: 0
A65: ='Org structure'!E60 -> 07.2 - Fleet Management | C65: 0 | D65: 0 | E65: 0 | F65: 0 | G65: 0 | H65: 0 | I65: 0 | K65: 0
A66: ='Org structure'!E61 -> 07.3 - Roads | C66: 41041589.83 | D66: 62193238 | E66: 54731536 | F66: 2031106.7 | G66: 33256071.81 | H66: 51041130.4 | I66: -17785058.59 | J66: -0.3484456251 | K66: 54731536
A67: ='Org structure'!E62 -> 07.4 - Storm Water | I67: 0 | K67: 0
A68: ='Org structure'!E63 -> 07.5 - Street Lighting | C68: -0.1 | D68: 5604325 | E68: 4767440 | F68: 39794.91 | G68: 3119753.02 | H68: 4467811 | I68: -1348057.98 | J68: -0.3017267248 | K68: 4767440
A69: ='Org structure'!E64 -> 07.6 - Project Management Unit | I69: 0 | K69: 0
A70: ='Org structure'!E65 -> 07.7 - Sanitation Treatment Plant: Mogwase | I70: 0 | K70: 0
A71: ='Org structure'!E66 -> 07.8 - Sanitation Treatment Plant: Madikwe | I71: 0 | K71: 0
A72: ='Org structure'!E67 -> 07.9 - Sanitation Reticulation | C72: 0 | D72: 0 | E72: 0 | F72: 0 | G72: 0 | H72: 0 | I72: 0 | K72: 0
A73: ='Org structure'!E68 -> 07.10 - Water Administration | C73: 12892615.27 | D73: 5500000 | E73: 18291526 | F73: 95028.62 | G73: 11373828.88 | H73: 15274894.8 | I73: -3901065.92 | J73: -0.2553906898 | K73: 18291526
A74: ='Org structure'!E69 -> 07.11 - Water Madikwe: Water Treatment Work | I74: 0 | K74: 0
A75: ='Org structure'!E70 -> 07.12 - Water: Pella Water Treatment Works | I75: 0 | K75: 0
A76: ='Org structure'!E71 -> 07.13 - Water: Madikwe Retail & Bulk Lines | I76: 0 | K76: 0
A77: ='Org structure'!E72 -> 07.14 - Water: Madikwe Rural | I77: 0 | K77: 0
A78: ='Org structure'!E73 -> 07.15 - Water: Molatedi | I78: 0 | K78: 0
A79: ='Org structure'!E74 -> 07.16 - Water Eastern: Retail Mankwe | I79: 0 | K79: 0
A80: ='Org structure'!E75 -> 07.17 - Water Vaalkopdam: Mankwe | I80: 0 | K80: 0
A81: ='Org structure'!E76 -> 07.18 - Water Eastern: Retail Mankwe | I81: 0 | K81: 0
A82: ='Org structure'!E77 -> 07.19 - Reporting Function Electricity | I82: 0 | K82: 0
A83: ='Org structure'!A9 -> Vote 08 - | C83: 0 | D83: 0 | E83: 0 | F83: 0 | G83: 0 | H83: 0 | I83: 0 | K83: 0
A84: ='Org structure'!A10 -> Vote 09 - | C84: 0 | D84: 0 | E84: 0 | F84: 0 | G84: 0 | H84: 0 | I84: 0 | K84: 0
A85: ='Org structure'!A11 -> Vote 10 - | C85: 0 | D85: 0 | E85: 0 | F85: 0 | G85: 0 | H85: 0 | I85: 0 | K85: 0
A86: ='Org structure'!A12 -> Vote 11 - | C86: 0 | D86: 0 | E86: 0 | F86: 0 | G86: 0 | H86: 0 | I86: 0 | K86: 0
A87: ='Org structure'!A13 -> Vote 12 - | C87: 0 | D87: 0 | E87: 0 | F87: 0 | G87: 0 | H87: 0 | I87: 0 | K87: 0
A88: ='Org structure'!A14 -> Vote 13 - | C88: 0 | D88: 0 | E88: 0 | F88: 0 | G88: 0 | H88: 0 | I88: =G88-H88 -> 0 | J88: =IF(I88=0,"",I88/H88) ->  | K88: 0
A89: ='Org structure'!A15 -> Vote 14 - | C89: 0 | D89: 0 | E89: 0 | F89: 0 | G89: 0 | H89: 0 | I89: 0 | K89: 0
A90: ='Org structure'!A16 -> Vote 15 - Other | C90: 0 | D90: 0 | E90: 0 | F90: 0 | G90: 0 | H90: 0 | I90: 0 | K90: 0
A91: Total multi-year capital expenditure | C91: =C7+C13+C20+C28+C37+C52+C63+C83+C84+C85+C86+C87+C88+C89+C90 -> 55355201.29 | D91: 73297563 | E91: 77790502 | F91: 2165930.23 | G91: 47749653.71 | H91: 70783836.2 | I91: -23034182.49 | J91: -0.3254158538 | K91: =K7+K13+K20+K28+K37+K52+K63+K83+K84+K85+K86+K87+K88+K89+K90 -> 77790502
I92: 0
A93: Capital expenditure - Municipal Vote
A94: Expenditue of single-year capital appropriation | B94: 1 | I94: 0
A95: ='Org structure'!A2 -> Vote 01 - Municipal Council | C95: =SUM(C96:C100) -> 0 | D95: 0 | E95: 0 | F95: 0 | G95: 0 | H95: 0 | I95: 0 | K95: =SUM(K96:K100) -> 0
A96: ='Org structure'!E3 -> 01.1 - Office Of The Mayor | C96: 0 | D96: 0 | E96: 0 | F96: 0 | G96: 0 | H96: 0 | I96: 0 | K96: 0
A97: ='Org structure'!E4 -> 01.2 - Office Of The Speaker | C97: 0 | D97: 0 | E97: 0 | F97: 0 | G97: 0 | H97: 0 | I97: 0 | K97: 0
A98: ='Org structure'!E5 -> 01.3 - Office Of The Chief Whip | C98: 0 | D98: 0 | E98: 0 | F98: 0 | G98: 0 | H98: 0 | I98: 0 | K98: 0
A99: ='Org structure'!E6 -> 01.4 - Mpac | C99: 0 | D99: 0 | E99: 0 | F99: 0 | G99: 0 | H99: 0 | I99: 0 | K99: 0
A100: ='Org structure'!E7 -> 01.5 - Council General Administration | C100: 0 | D100: 0 | E100: 0 | F100: 0 | G100: 0 | H100: 0 | I100: 0 | K100: 0
A101: ='Org structure'!A3 -> Vote 02 - Office Of The Accounting Officer | C101: =SUM(C102:C107) -> 0 | D101: 0 | E101: 0 | F101: 0 | G101: 0 | H101: 0 | I101: 0 | K101: =SUM(K102:K107) -> 0
A102: ='Org structure'!E9 -> 02.1 - Office Of The Ao Admin | C102: 0 | D102: 0 | E102: 0 | F102: 0 | G102: 0 | H102: 0 | I102: 0 | K102: 0
A103: ='Org structure'!E10 -> 02.2 - Strategic Planning Monitoring & Evaluat | C103: 0 | D103: 0 | E103: 0 | F103: 0 | G103: 0 | H103: 0 | I103: 0 | K103: 0
A104: ='Org structure'!E11 -> 02.3 - Perfomance Management System | C104: 0 | D104: 0 | E104: 0 | F104: 0 | G104: 0 | H104: 0 | I104: 0 | K104: 0
A105: ='Org structure'!E12 -> 02.4 - Internal Audit | C105: 0 | D105: 0 | E105: 0 | F105: 0 | G105: 0 | H105: 0 | I105: 0 | K105: 0
A106: ='Org structure'!E13 -> 02.5 - Municipal Planning Idp | C106: 0 | D106: 0 | E106: 0 | F106: 0 | G106: 0 | H106: 0 | I106: 0 | K106: 0
A107: ='Org structure'!E14 -> 02.6 - Risk | C107: 0 | D107: 0 | E107: 0 | F107: 0 | G107: 0 | H107: 0 | I107: 0 | K107: 0
A108: ='Org structure'!A4 -> Vote 03 - Budget And Treasury Office | C108: =SUM(C109:C115) -> 11700 | D108: 100000 | E108: 0 | F108: 0 | G108: 25850 | H108: 9376.24 | I108: 16473.76 | J108: 1.756968678 | K108: =SUM(K109:K115) -> 0
A109: ='Org structure'!E16 -> 03.1 - Chief Financial Officer Admin | C109: 0 | D109: 0 | E109: 0 | F109: 0 | G109: 0 | H109: 0 | I109: 0 | K109: 0
A110: ='Org structure'!E17 -> 03.2 - Budget Expenditure & Reporting | C110: 0 | D110: 0 | E110: 0 | F110: 0 | G110: 0 | H110: 0 | I110: =G110-H110 -> 0 | J110: =IF(I110=0,"",I110/H110) ->  | K110: 0
A111: ='Org structure'!E18 -> 03.3 - Budget Expenditure & Reporting | C111: 0 | D111: 0 | E111: 0 | F111: 0 | G111: 0 | H111: 0 | I111: 0 | K111: 0
A112: ='Org structure'!E19 -> 03.4 - Revenue Management | C112: 11700 | D112: 100000 | E112: 0 | F112: 0 | G112: 25850 | H112: 9376.24 | I112: 16473.76 | J112: 1.756968678 | K112: 0
A113: ='Org structure'!E20 -> 03.5 - Supply Chain Management | C113: 0 | D113: 0 | E113: 0 | F113: 0 | G113: 0 | H113: 0 | I113: 0 | K113: 0
A114: ='Org structure'!E21 -> 03.6 - Assets Management | C114: 0 | D114: 0 | E114: 0 | F114: 0 | G114: 0 | H114: 0 | I114: 0 | K114: 0
A115: ='Org structure'!E22 -> 03.7 - Expenditure | C115: 0 | D115: 0 | E115: 0 | F115: 0 | G115: 0 | H115: 0 | I115: 0 | K115: 0
A116: ='Org structure'!A5 -> Vote 04 - Corporate Services | C116: =SUM(C117:C124) -> 0 | D116: 550000 | E116: 113975 | F116: 0 | G116: 113974.44 | H116: 72283.7 | I116: 41690.74 | J116: 0.5767654395 | K116: =SUM(K117:K124) -> 113975
A117: ='Org structure'!E24 -> 04.1 - Legal Services | C117: 0 | D117: 0 | E117: 0 | F117: 0 | G117: 0 | H117: 0 | I117: 0 | K117: 0
A118: ='Org structure'!E25 -> 04.2 - Corporate Service Administration | C118: 0 | D118: 300000 | E118: 113975 | F118: 0 | G118: 113974.44 | H118: 65331.86 | I118: 48642.58 | J118: 0.744546076 | K118: 113975
A119: ='Org structure'!E26 -> 04.3 - Human Resources | C119: 0 | D119: 0 | E119: 0 | F119: 0 | G119: 0 | H119: 0 | I119: 0 | K119: 0
A120: ='Org structure'!E27 -> 04.4 - Media & Communication | C120: 0 | D120: 0 | E120: 0 | F120: 0 | G120: 0 | H120: 0 | I120: 0 | K120: 0
A121: ='Org structure'!E28 -> 04.5 - Organisational Development | C121: 0 | D121: 0 | E121: 0 | F121: 0 | G121: 0 | H121: 0 | I121: 0 | K121: 0
A122: ='Org structure'!E29 -> 04.6 - Labour Relations | C122: 0 | D122: 0 | E122: 0 | F122: 0 | G122: 0 | H122: 0 | I122: 0 | K122: 0
A123: ='Org structure'!E30 -> 04.7 - Legal Services | C123: 0 | D123: 0 | E123: 0 | F123: 0 | G123: 0 | H123: 0 | I123: 0 | K123: 0
A124: ='Org structure'!E31 -> 04.8 - Information Technology Services | C124: 0 | D124: 250000 | E124: 0 | F124: 0 | G124: 0 | H124: 6951.84 | I124: -6951.84 | J124: -1 | K124: 0
A125: ='Org structure'!A6 -> Vote 05 - Community Services | C125: =SUM(C126:C139) -> 0 | D125: 30587162 | E125: 30726754 | F125: 1296771.51 | G125: 19709041.79 | H125: 28132147.84 | I125: -8423106.05 | J125: -0.2994121209 | K125: =SUM(K126:K139) -> 30726754
A126: ='Org structure'!E33 -> 05.1 - Municipal Buildings | C126: 0 | D126: 14590253 | E126: 30726754 | F126: 1296771.51 | G126: 19952011.96 | H126: 26283605.8 | I126: -6331593.84 | J126: -0.2408951758 | K126: 30726754
A127: ='Org structure'!E34 -> 05.2 - Fleet Management | C127: 0 | D127: 0 | E127: 0 | F127: 0 | G127: 0 | H127: 0 | I127: 0 | K127: 0
A128: ='Org structure'!E35 -> 05.3 - Community Services Administration | C128: 0 | D128: 0 | E128: 0 | F128: 0 | G128: 0 | H128: 0 | I128: 0 | K128: 0
A129: ='Org structure'!E36 -> 05.4 - Cemeteries | C129: 0 | D129: 0 | E129: 0 | F129: 0 | G129: 0 | H129: 0 | I129: 0 | K129: 0
A130: ='Org structure'!E37 -> 05.5 - Disaster Management | C130: 0 | D130: 0 | E130: 0 | F130: 0 | G130: 0 | H130: 0 | I130: 0 | K130: 0
A131: ='Org structure'!E38 -> 05.6 - Fires Service | C131: 0 | D131: 0 | E131: 0 | F131: 0 | G131: 0 | H131: 0 | I131: 0 | K131: 0
A132: ='Org structure'!E39 -> 05.7 - Libraries | C132: 0 | D132: 0 | E132: 0 | F132: 0 | G132: 0 | H132: 0 | I132: 0 | K132: 0
A133: ='Org structure'!E40 -> 05.8 - Municipal Buildings | C133: 0 | D133: 0 | E133: 0 | F133: 0 | G133: 0 | H133: 0 | I133: 0 | K133: 0
A134: ='Org structure'!E41 -> 05.9 - Sports Recreation & Social Amenitie | C134: 0 | D134: 200000 | E134: 0 | F134: 0 | G134: 0 | H134: 5559.24 | I134: -5559.24 | J134: -1 | K134: 0
A135: ='Org structure'!E42 -> 05.10 - Waste Management Solid Waste | C135: 0 | D135: 15796909 | E135: 0 | F135: 0 | G135: -242970.17 | H135: 1842982.8 | K135: 0
A136: ='Org structure'!E43 -> 05.11 - Safety And Security | C136: 0 | D136: 0 | E136: 0 | F136: 0 | G136: 0 | H136: 0 | K136: 0
A137: ='Org structure'!E44 -> 05.12 - Traffic Service | C137: 0 | D137: 0 | E137: 0 | F137: 0 | G137: 0 | H137: 0 | K137: 0
A138: ='Org structure'!E45 -> 05.13 - Traffic Service | C138: 0 | D138: 0 | E138: 0 | F138: 0 | G138: 0 | H138: 0 | K138: 0
A139: ='Org structure'!E46 -> 05.14 - Fleet Management | C139: 0 | D139: 0 | E139: 0 | F139: 0 | G139: 0 | H139: 0 | K139: 0
A140: ='Org structure'!A7 -> Vote 06 - Planning & Development | C140: =SUM(C141:C150) -> 0 | D140: 0 | E140: 0 | F140: 0 | G140: 0 | H140: 0 | I140: 0 | K140: =SUM(K141:K150) -> 0
A141: ='Org structure'!E48 -> 06.1 - Planning And Development Admin | C141: 0 | D141: 0 | E141: 0 | F141: 0 | G141: 0 | H141: 0 | I141: 0 | K141: 0
A142: ='Org structure'!E49 -> 06.2 - Municipal Planning Idp | C142: 0 | D142: 0 | E142: 0 | F142: 0 | G142: 0 | H142: 0 | I142: 0 | K142: 0
A143: ='Org structure'!E50 -> 06.3 - Pms | C143: 0 | D143: 0 | E143: 0 | F143: 0 | G143: 0 | H143: 0 | I143: 0 | K143: 0
A144: ='Org structure'!E51 -> 06.4 - Town Planning | C144: 0 | D144: 0 | E144: 0 | F144: 0 | G144: 0 | H144: 0 | I144: 0 | K144: 0
A145: ='Org structure'!E52 -> 06.5 - Land Use And Housing Admin | C145: 0 | D145: 0 | E145: 0 | F145: 0 | G145: 0 | H145: 0 | I145: 0 | K145: 0
A146: ='Org structure'!E53 -> 06.6 - Local Economic Development | C146: 0 | D146: 0 | E146: 0 | F146: 0 | G146: 0 | H146: 0 | I146: 0 | K146: 0
A147: ='Org structure'!E54 -> 06.7 - Led | C147: 0 | D147: 0 | E147: 0 | F147: 0 | G147: 0 | H147: 0 | I147: 0 | K147: 0
A148: ='Org structure'!E55 -> 06.8 - Agriculture & Rural Development | C148: 0 | D148: 0 | E148: 0 | F148: 0 | G148: 0 | H148: 0 | I148: 0 | K148: 0
A149: ='Org structure'!E56 -> 06.9 - Tourism & Business Development | C149: 0 | D149: 0 | E149: 0 | F149: 0 | G149: 0 | H149: 0 | I149: 0 | K149: 0
A150: ='Org structure'!E57 -> 06.10 - Arts & Culture | C150: 0 | D150: 0 | E150: 0 | F150: 0 | G150: 0 | H150: 0 | K150: 0
A151: ='Org structure'!A8 -> Vote 07 - Infrastructure & Technical Services | C151: =SUM(C152:C170) -> 14733494.55 | D151: 100267422 | E151: 97588106 | F151: 3884376.53 | G151: 42170671.4 | H151: 89768466.2 | I151: -47597794.8 | J151: -0.5302284512 | K151: =SUM(K152:K170) -> 97588106
A152: ='Org structure'!E59 -> 07.1 - Infrastructure Admin & Tech Admin | C152: 0 | D152: 0 | E152: 0 | F152: 0 | G152: 0 | H152: 0 | I152: 0 | K152: 0
A153: ='Org structure'!E60 -> 07.2 - Fleet Management | C153: 0 | D153: 0 | E153: 0 | F153: 0 | G153: 0 | H153: 0 | I153: 0 | K153: 0
A154: ='Org structure'!E61 -> 07.3 - Roads | C154: 0 | D154: 0 | E154: 6456781 | F154: 0 | G154: 0 | H154: 5165424.8 | I154: -5165424.8 | J154: -1 | K154: 6456781
A155: ='Org structure'!E62 -> 07.4 - Storm Water | C155: 0 | D155: 0 | E155: 0 | F155: 0 | G155: 0 | H155: 0 | I155: 0 | K155: 0
A156: ='Org structure'!E63 -> 07.5 - Street Lighting | C156: 0 | D156: 16841363 | E156: 15649533 | F156: 1858530.96 | G156: 7281891.42 | H156: 14484497 | I156: -7202605.58 | J156: -0.4972630793 | K156: 15649533
A157: ='Org structure'!E64 -> 07.6 - Project Management Unit | C157: 0 | D157: 0 | E157: 0 | F157: 0 | G157: 0 | H157: 0 | I157: 0 | K157: 0
A158: ='Org structure'!E65 -> 07.7 - Sanitation Treatment Plant: Mogwase | C158: 0 | D158: 0 | E158: 0 | F158: 0 | G158: 0 | H158: 0 | I158: 0 | K158: 0
A159: ='Org structure'!E66 -> 07.8 - Sanitation Treatment Plant: Madikwe | C159: 0 | D159: 0 | E159: 0 | F159: 0 | G159: 0 | H159: 0 | I159: 0 | K159: 0
A160: ='Org structure'!E67 -> 07.9 - Sanitation Reticulation | C160: 0 | D160: 24111456 | E160: 12492236 | F160: 425543.89 | G160: 6321724.56 | H160: 12806825 | I160: -6485100.44 | J160: -0.5063784693 | K160: 12492236
A161: ='Org structure'!E68 -> 07.10 - Water Administration | C161: 14733494.55 | D161: 59314603 | E161: 62989556 | F161: 1600301.68 | G161: 28567055.42 | H161: 57311719.4 | K161: 62989556
A162: ='Org structure'!E69 -> 07.11 - Water Madikwe: Water Treatment Work | C162: 0 | D162: 0 | E162: 0 | F162: 0 | G162: 0 | H162: 0 | K162: 0
A163: ='Org structure'!E70 -> 07.12 - Water: Pella Water Treatment Works | C163: 0 | D163: 0 | E163: 0 | F163: 0 | G163: 0 | H163: 0 | K163: 0
A164: ='Org structure'!E71 -> 07.13 - Water: Madikwe Retail & Bulk Lines | C164: 0 | D164: 0 | E164: 0 | F164: 0 | G164: 0 | H164: 0 | K164: 0
A165: ='Org structure'!E72 -> 07.14 - Water: Madikwe Rural | C165: 0 | D165: 0 | E165: 0 | F165: 0 | G165: 0 | H165: 0 | K165: 0
A166: ='Org structure'!E73 -> 07.15 - Water: Molatedi | C166: 0 | D166: 0 | E166: 0 | F166: 0 | G166: 0 | H166: 0 | K166: 0
A167: ='Org structure'!E74 -> 07.16 - Water Eastern: Retail Mankwe | C167: 0 | D167: 0 | E167: 0 | F167: 0 | G167: 0 | H167: 0 | K167: 0
A168: ='Org structure'!E75 -> 07.17 - Water Vaalkopdam: Mankwe | C168: 0 | D168: 0 | E168: 0 | F168: 0 | G168: 0 | H168: 0 | K168: 0
A169: ='Org structure'!E76 -> 07.18 - Water Eastern: Retail Mankwe | C169: 0 | D169: 0 | E169: 0 | F169: 0 | G169: 0 | H169: 0 | K169: 0
A170: ='Org structure'!E77 -> 07.19 - Reporting Function Electricity | C170: 0 | D170: 0 | E170: 0 | F170: 0 | G170: 0 | H170: 0 | K170: 0
A171: ='Org structure'!A9 -> Vote 08 - | C171: 0 | D171: 0 | E171: 0 | F171: 0 | G171: 0 | H171: 0 | I171: 0 | K171: 0
A172: ='Org structure'!A10 -> Vote 09 - | C172: 0 | D172: 0 | E172: 0 | F172: 0 | G172: 0 | H172: 0 | I172: =G172-H172 -> 0 | J172: =IF(I172=0,"",I172/H172) ->  | K172: 0
A173: ='Org structure'!A11 -> Vote 10 - | C173: 0 | D173: 0 | E173: 0 | F173: 0 | G173: 0 | H173: 0 | I173: 0 | K173: 0
A174: ='Org structure'!A12 -> Vote 11 - | C174: 0 | D174: 0 | E174: 0 | F174: 0 | G174: 0 | H174: 0 | I174: 0 | K174: 0
A175: ='Org structure'!A13 -> Vote 12 - | C175: 0 | D175: 0 | E175: 0 | F175: 0 | G175: 0 | H175: 0 | I175: 0 | K175: 0
A176: ='Org structure'!A14 -> Vote 13 - | C176: 0 | D176: 0 | E176: 0 | F176: 0 | G176: 0 | H176: 0 | I176: 0 | K176: 0
A177: ='Org structure'!A15 -> Vote 14 - | C177: 0 | D177: 0 | E177: 0 | F177: 0 | G177: 0 | H177: 0 | I177: 0 | K177: 0
A178: ='Org structure'!A16 -> Vote 15 - Other | C178: 0 | D178: 0 | E178: 0 | F178: 0 | G178: 0 | H178: 0 | I178: =G178-H178 -> 0 | J178: =IF(I178=0,"",I178/H178) ->  | K178: 0
A179: Total single-year capital expenditure | C179: =C95+C101+C108+C116+C125+C140+C151+C171+C172+C173+C174+C175+C176+C177+C178 -> 14745194.55 | D179: 131504584 | E179: 128428835 | F179: 5181148.04 | G179: 62019537.63 | H179: 117982274 | I179: -55962736.35 | J179: -0.4743317319 | K179: =K95+K101+K108+K116+K125+K140+K151+K171+K172+K173+K174+K175+K176+K177+K178 -> 128428835
A180: Total Capital Expenditure | C180: =C91+C179 -> 70100395.84 | D180: 204802147 | E180: 206219337 | F180: 7347078.27 | G180: 109769191.3 | H180: 188766110.2 | I180: -78996918.84 | J180: -0.4184910033 | K180: =K91+K179 -> 206219337
A181: =head27a -> References
A182: 1. Insert 'Vote'; e.g. Department, if different to standard structure

Sheet C6-FinPos
A1: =muni& " - "&S71E& " - "&date -> NW375 Moses Kotane - Table C6 Monthly Budget Statement - Financial Position - M11 May
A2: =desc -> Description | B2: =head27 -> Ref | C2: =Head1 -> 2018/19 | D2: =Head2 -> Budget Year 2019/20
C3: =Head5 -> Audited Outcome | D3: =Head6 -> Original Budget | E3: =Head7 -> Adjusted Budget | F3: =Head39 -> YearTD actual | G3: =Head8 -> Full Year Forecast
A4: R thousands | B4: 1
A5: ASSETS
A6: Current assets
A7: Cash | C7: 11869261.42 | D7: 10000000 | E7: 10000000 | F7: -28265345.47 | G7: 10000000
A8: Call investment deposits | C8: 52823887.35 | D8: 14377000 | E8: 14377000 | F8: 83989258.51 | G8: 14377000
A9: Consumer debtors | C9: 23662857.45 | D9: 475621000 | E9: 475621000 | F9: 95825088.91 | G9: 475621000
A10: Other debtors | C10: 55754724.65 | D10: 68100000 | E10: 68100000 | F10: 62851165.42 | G10: 68100000
A11: Current portion of long-term receivables
A12: Inventory | C12: 11724947.65 | D12: 4000000 | E12: 4000000 | F12: 8873435.04 | G12: 4000000
A13: Total current assets | C13: =SUM(C7:C12) -> 155835678.5 | D13: =SUM(D7:D12) -> 572098000 | E13: =SUM(E7:E12) -> 572098000 | F13: =SUM(F7:F12) -> 223273602.4 | G13: =SUM(G7:G12) -> 572098000
A15: Non current assets
A16: Long-term receivables | C16: 0 | D16: 0 | E16: 0 | F16: 0 | G16: 0
A17: Investments | C17: 0 | D17: 0 | E17: 0 | F17: 0 | G17: 0
A18: Investment property | C18: 155209866.6 | D18: 0 | E18: 0 | F18: 155209866.6 | G18: 0
A19: Investments in Associate
A20: Property, plant and equipment | C20: 3298336249 | D20: 1785177147 | E20: 1786844337 | F20: 3178047398 | G20: 1786844337
A22: Biological
A23: Intangible | C23: 39779740.16 | D23: 250000 | E23: 0 | F23: 16477300.19 | G23: 0
A24: Other non-current assets | C24: 14000 | D24: 0 | E24: 0 | F24: 14000 | G24: 0
A25: Total non current assets | C25: =SUM(C16:C20)+SUM(C22:C24) -> 3493339856 | D25: =SUM(D16:D20)+SUM(D22:D24) -> 1785427147 | E25: =SUM(E16:E20)+SUM(E22:E24) -> 1786844337 | F25: =SUM(F16:F20)+SUM(F22:F24) -> 3349748565 | G25: =SUM(G16:G20)+SUM(G22:G24) -> 1786844337
A26: TOTAL ASSETS | C26: =C13+C25 -> 3649175534 | D26: =D13+D25 -> 2357525147 | E26: =E13+E25 -> 2358942337 | F26: =F13+F25 -> 3573022167 | G26: =G13+G25 -> 2358942337
A28: LIABILITIES
A29: Current liabilities
A30: Bank overdraft | C30: 0 | D30: 0 | E30: 0 | F30: 0 | G30: 0
A31: Borrowing | C31: 43829903.15 | D31: 132503000 | E31: 132503000 | F31: 34367628.74 | G31: 132503000
A32: Consumer deposits | C32: 15500 | D32: 0 | E32: 0 | F32: 15500 | G32: 0
A33: Trade and other payables | C33: 289358740.8 | D33: 40000000 | E33: 40000000 | F33: 247248761.1 | G33: 40000000
A34: Provisions | C34: 28064215 | D34: 0 | E34: 0 | F34: 25519893.93 | G34: 0
A35: Total current liabilities | C35: =SUM(C30:C34) -> 361268359 | D35: =SUM(D30:D34) -> 172503000 | E35: =SUM(E30:E34) -> 172503000 | F35: =SUM(F30:F34) -> 307151783.8 | G35: =SUM(G30:G34) -> 172503000
A37: Non current liabilities
A38: Borrowing | C38: 0 | D38: 0 | E38: 0 | F38: 0 | G38: 0
A39: Provisions | C39: 31542642.37 | D39: 24600000 | E39: 24600000 | F39: 32092642.37 | G39: 24600000
A40: Total non current liabilities | C40: =SUM(C38:C39) -> 31542642.37 | D40: =SUM(D38:D39) -> 24600000 | E40: =SUM(E38:E39) -> 24600000 | F40: =SUM(F38:F39) -> 32092642.37 | G40: =SUM(G38:G39) -> 24600000
A41: TOTAL LIABILITIES | C41: =C35+C40 -> 392811001.3 | D41: =D35+D40 -> 197103000 | E41: =E35+E40 -> 197103000 | F41: =F35+F40 -> 339244426.2 | G41: =G35+G40 -> 197103000
A43: NET ASSETS | B43: 2 | C43: =C26-C41 -> 3256364533 | D43: =D26-D41 -> 2160422147 | E43: =E26-E41 -> 2161839337 | F43: =F26-F41 -> 3233777741 | G43: =G26-G41 -> 2161839337
A45: COMMUNITY WEALTH/EQUITY
A46: Accumulated Surplus/(Deficit) | C46: 3441503491 | D46: 2160422147 | E46: 2156151997 | F46: 3165517110 | G46: 2156151997
A47: Reserves | C47: 0 | D47: 0 | E47: 0 | F47: 0 | G47: 0
A48: TOTAL COMMUNITY WEALTH/EQUITY | B48: 2 | C48: =SUM(C46:C47) -> 3441503491 | D48: =SUM(D46:D47) -> 2160422147 | E48: =SUM(E46:E47) -> 2156151997 | F48: =SUM(F46:F47) -> 3165517110 | G48: =SUM(G46:G47) -> 2156151997
A49: =head27a -> References
A50: 1. Material variances to be explained in Table SC1
A51: 2. Net assets must balance with Total Community Wealth/Equity
A54: check balance | C54: =C43-C48 -> -185138958.2 | D54: =D43-D48 -> 0 | E54: =E43-E48 -> 5687340 | F54: =F43-F48 -> 68260630.51 | G54: =G43-G48 -> 5687340

Sheet C7-CFlow
A1: =muni& " - "&S71F& " - "&date -> NW375 Moses Kotane - Table C7 Monthly Budget Statement - Cash Flow - M11 May
A2: =desc -> Description | B2: =head27 -> Ref | C2: =Head1 -> 2018/19 | D2: =Head2 -> Budget Year 2019/20
C3: =Head5 -> Audited Outcome | D3: =Head6 -> Original Budget | E3: =Head7 -> Adjusted Budget | F3: =Head38 -> Monthly actual | G3: =Head39 -> YearTD actual | H3: =Head40 -> YearTD budget | I3: =Head41 -> YTD variance | J3: =Head41 -> YTD variance | K3: =Head8 -> Full Year Forecast
A4: R thousands | B4: 1 | J4: %
A5: CASH FLOW FROM OPERATING ACTIVITIES
A6: Receipts
A7: Property rates | F7: 923266 | I7: =G7-H7 -> 0 | J7: =IF(I7=0,"",I7/H7) -> 
A8: Service charges | F8: 780198 | I8: 0 | J8: =IF(I8=0,"",I8/H8) -> 
A9: Other revenue | F9: 606254 | I9: 0 | J9: =IF(I9=0,"",I9/H9) -> 
A10: Transfers and Subsidies - Operational | F10: 268000 | I10: 0 | J10: =IF(I10=0,"",I10/H10) -> 
A11: Transfers and Subsidies - Capital | I11: 0 | J11: =IF(I11=0,"",I11/H11) -> 
A12: Interest | F12: 4248 | I12: 0
A13: Dividends | I13: 0
A14: Payments
A15: Suppliers and employees | C15: -610996643.8 | D15: -686474630 | E15: -567301855 | F15: -86232000 | G15: 513088916.9 | H15: 526175475.9 | I15: =H15-G15 -> 13086558.95 | J15: 0.02487109253 | K15: 567301855
A16: Finance charges | C16: -6177546.23 | D16: -3688959 | E16: -3688959 | F16: -116641.59 | G16: 2308833.63 | H16: 3381565 | I16: =H16-G16 -> 1072731.37 | J16: 0.3172292622 | K16: 3688959
A17: Transfers and Grants | C17: -74558.5 | D17: 0 | E17: 0 | F17: 0 | G17: 0 | H17: 0 | I17: =H17-G17 -> 0 | K17: 0
A18: NET CASH FROM/(USED) OPERATING ACTIVITIES | C18: =SUM(C7:C13)+SUM(C15:C17) -> -617248748.5 | D18: -690163589 | E18: -570990814 | F18: -83766675.59 | G18: 515397750.6 | H18: 529557040.9 | I18: =H18-G18 -> 14159290.32 | J18: 0.02673798897 | K18: =SUM(K7:K13)+SUM(K15:K17) -> 570990814
A20: CASH FLOWS FROM INVESTING ACTIVITIES
A21: Receipts
A22: Proceeds on disposal of PPE | I22: =G22-H22 -> 0 | J22: =IF(I22=0,"",I22/H22) -> 
A24: Decrease (increase) in non-current receivables | I24: =G24-H24 -> 0
A25: Decrease (increase) in non-current investments | C25: 0 | D25: 0 | E25: 0 | F25: 0 | G25: 0 | H25: 0 | I25: =G25-H25 -> 0 | K25: 0
A26: Payments
A27: Capital assets | F27: -602203000 | I27: =H27-G27 -> 0
A28: NET CASH FROM/(USED) INVESTING ACTIVITIES | C28: =SUM(C22:C25)+C27 -> 0 | D28: =SUM(D22:D25)+D27 -> 0 | E28: 0 | F28: -602203000 | G28: 0 | H28: 0 | I28: =H28-G28 -> 0 | K28: =SUM(K22:K25)+K27 -> 0
A30: CASH FLOWS FROM FINANCING ACTIVITIES
A31: Receipts
A32: Short term loans | I32: =G32-H32 -> 0 | J32: =IF(I32=0,"",I32/H32) -> 
A33: Borrowing long term/refinancing | I33: =G33-H33 -> 0
A34: Increase (decrease) in consumer deposits | C34: 0 | D34: 15500 | E34: 0 | F34: 0 | G34: -15500 | H34: 0 | I34: =G34-H34 -> -15500 | K34: 0
A35: Payments
A36: Repayment of borrowing | C36: 43829903.15 | D36: 132503000 | E36: 132503000 | F36: -7000 | G36: -34367628.74 | H36: -121461076 | I36: =H36-G36 -> -87093447.26 | J36: 0.7170482111 | K36: -132503000
A37: NET CASH FROM/(USED) FINANCING ACTIVITIES | C37: =SUM(C32:C34)+C36 -> 43829903.15 | D37: 132518500 | E37: 132503000 | F37: -7000 | G37: -34383128.74 | H37: -121461076 | I37: =H37-G37 -> -87077947.26 | J37: 0.7169205982 | K37: =SUM(K32:K34)+K36 -> -132503000
A39: NET INCREASE/ (DECREASE) IN CASH HELD | C39: =C18+C28+C37 -> -573418845.4 | D39: -557645089 | E39: -438487814 | F39: -685976675.6 | G39: 481014621.8 | H39: 408095964.9 | K39: =K18+K28+K37 -> 438487814
A40: Cash/cash equivalents at beginning: | C40: 1309179.98 | D40: 24377000 | E40: 24377000 | G40: 64673148.77
A41: Cash/cash equivalents at month/year end: | C41: =C39+C40 -> -572109665.4 | D41: =D39+D40 -> -533268089 | E41: =E39+E40 -> -414110814 | G41: =G39+G40 -> 545687770.6 | H41: =H39+H40 -> 408095964.9 | K41: =K39+K40 -> 438487814
A42: References
A43: 1. Material variances to be explained in Table SC1

Sheet SC1
A1: =muni& " - "&S71G& " - "&date -> NW375 Moses Kotane - Supporting Table SC1 Material variance explanations - M11 May
A2: =head27 -> Ref | B2: =desc -> Description
C3: Variance | D3: Reasons for material deviations | E3: Remedial or corrective steps/remarks
B4: R thousands
A5: 1 | B5: ='C4-FinPerf RE'!A5 -> Revenue By Source
B6: Variances was not Calculated
A10: 2 | B10: ='C4-FinPerf RE'!A24 -> Expenditure By Type
B11: Variances was not Calculated
A15: 3 | B15: =RIGHT('C5-Capex'!A40,19) -> Capital Expenditure
B16: Variances was not Calculated
A20: 4 | B20: Financial Position
B21: Variances was not Calculated
A25: 5 | B25: Cash Flow
A30: 6 | B30: Measureable performance
A35: 7 | B35: Municipal Entities
A41: =head27a -> References
A42: 1. Revenue for each source, vote and standard classification
A43: 2. Expenditure for each type, vote and standard classification
A44: 3. Capital expenditure for each vote and standard classification
A45: 4. Explain any material variances between the annual budget and the expected financial position based on current trends
A46: 5. Cash receipts by source and cash payments by type where not explained under revenue and expenditure
A47: 6. For Sept, Dec, Mar and Jun statements explain any material variances in achievement of measurable performance objectives

Sheet SC2
A1: =muni& " - "&S71H& " - "&Head57 -> NW375 Moses Kotane - Supporting Table SC2 Monthly Budget Statement - performance indicators - M11 May
A2: Description of financial indicator | B2: Basis of calculation | C2: =head27 -> Ref | D2: =Head1 -> 2018/19 | E2: =Head2 -> Budget Year 2019/20
D3: =Head5 -> Audited Outcome | E3: =Head6 -> Original Budget | F3: =Head7 -> Adjusted Budget | G3: =Head39 -> YearTD actual | H3: =Head8 -> Full Year Forecast
A5: Borrowing Management
A7: Capital Charges to Operating Expenditure | B7: Interest & principal paid/Operating Expenditure | D7: =IF(ISERROR((D42-D43)/D45),0,((D42-D43)/D45)) -> 0.04647228151 | E7: =IF(ISERROR((E42+E44)/E45),0,((E42+E44)/E45)) -> 0.1635846732 | F7: =IF(ISERROR((F42+F44)/F45),0,((F42+F44)/F45)) -> 0.1747045701 | G7: =IF(ISERROR((G42+G44)/G45),0,((G42+G44)/G45)) -> 0.002927450482 | H7: =IF(ISERROR((H42+H44)/H45),0,((H42+H44)/H45)) -> 0.03208695728
A8: Borrowed funding of 'own' capital expenditure | B8: Borrowings/Capital expenditure excl. transfers and grants | D8: =IF(ISERROR(D47/D46),0,(D47/D46)) -> 0 | E8: =IF(ISERROR(E47/E46),0,(E47/E46)) -> 0 | F8: =IF(ISERROR(F47/F46),0,(F47/F46)) -> 0 | G8: =IF(ISERROR(G47/G46),0,(G47/G46)) -> 0 | H8: =IF(ISERROR(H47/H46),0,(H47/H46)) -> 0
A9: Safety of Capital
A10: Debt to Equity | B10: Loans, Accounts Payable, Overdraft & Tax Provision/ Funds & Reserves | D10: =IF(ISERROR(D48/D49),0,(D48/D49)) -> 0.09681484992 | E10: =IF(ISERROR(E48/E49),0,(E48/E49)) -> 0.07984689485 | F10: =IF(ISERROR(F48/F49),0,(F48/F49)) -> 0.08000502759 | G10: =IF(ISERROR(G48/G49),0,(G48/G49)) -> 0.08896378697 | H10: =IF(ISERROR(H48/H49),0,(H48/H49)) -> 0.08000502759
A11: Gearing | B11: Long Term Borrowing/ Funds & Reserves | D11: =IF(ISERROR(D51/D50),0,(D51/D50)) -> 0 | E11: =IF(ISERROR(E51/E50),0,(E51/E50)) -> 0 | F11: =IF(ISERROR(F51/F50),0,(F51/F50)) -> 0 | G11: =IF(ISERROR(G51/G50),0,(G51/G50)) -> 0 | H11: =IF(ISERROR(H51/H50),0,(H51/H50)) -> 0
A12: Liquidity
A13: Current Ratio | B13: Current assets/current liabilities | C13: 1 | D13: =IF(ISERROR(D52/D53),0,(D52/D53)) -> 0.431357119 | E13: =IF(ISERROR(E52/E53),0,(E52/E53)) -> 3.316452467 | F13: =IF(ISERROR(F52/F53),0,(F52/F53)) -> 3.316452467 | G13: =IF(ISERROR(G52/G53),0,(G52/G53)) -> 0.7269161835 | H13: =IF(ISERROR(H52/H53),0,(H52/H53)) -> 3.316452467
A14: Liquidity Ratio | B14: Monetary Assets/Current Liabilities | D14: =IF(ISERROR(D54/D53),0,(D54/D53)) -> 0.1790722801 | E14: =IF(ISERROR(E54/E53),0,(E54/E53)) -> 0.1413134844 | F14: =IF(ISERROR(F54/F53),0,(F54/F53)) -> 0.1413134844 | G14: =IF(ISERROR(G54/G53),0,(G54/G53)) -> 0.1814214209 | H14: =IF(ISERROR(H54/H53),0,(H54/H53)) -> 0.1413134844
A15: Revenue Management
A16: Annual Debtors Collection Rate (Payment Level %) | B16: Last 12 Mths Receipts/ Last 12 Mths Billing
A17: Outstanding Debtors to Revenue | B17: Total Outstanding Debtors to Annual Revenue | D17: =IF(ISERROR(D59/D55),0,(D59/D55)) -> 0.1069842961 | E17: =IF(ISERROR(E59/E55),0,(E59/E55)) -> 0.6499438093 | F17: =IF(ISERROR(F59/F55),0,(F59/F55)) -> 0.7022242893 | G17: =IF(ISERROR(G59/G55),0,(G59/G55)) -> 0.2017299813 | H17: =IF(ISERROR(H59/H55),0,(H59/H55)) -> 0.7022242893
A18: Longstanding Debtors Recovered | B18: Debtors > 12 Mths Recovered/Total Debtors > 12 Months Old | D18: =IF(ISERROR(D64/D63),0,(D64/D63)) -> 0 | E18: =IF(ISERROR(E64/E63),0,(E64/E63)) -> 0 | F18: =IF(ISERROR(F64/F63),0,(F64/F63)) -> 0 | G18: =IF(ISERROR(G64/G63),0,(G64/G63)) -> 0 | H18: =IF(ISERROR(H64/H63),0,(H64/H63)) -> 0
A19: Creditors Management
A20: Creditors System Efficiency | B20: % of Creditors Paid Within Terms (within MFMA s 65(e))
A21: Funding of Provisions
A22: Percentage Of Provisions Not Funded | B22: Unfunded Provisions/Total Provisions
A23: Other Indicators
A24: Electricity Distribution Losses | B24: % Volume (units purchased and generated less units sold)/units purchased and generated | C24: 2
A25: Water Distribution Losses | B25: % Volume (units purchased and own source less units sold)/Total units purchased and own source | C25: 2
A26: Employee costs | B26: Employee costs/Total Revenue - capital revenue | D26: =IF(ISERROR(D40/D55),0,(D40/D55)) -> 0.2619350378 | E26: =IF(ISERROR(E40/E55),0,(E40/E55)) -> 0.3230762506 | F26: =IF(ISERROR(F40/F55),0,(F40/F55)) -> 0.3213967659 | G26: =IF(ISERROR(G40/G55),0,(G40/G55)) -> 0.252451203 | H26: =IF(ISERROR(H40/H55),0,(H40/H55)) -> 0.3213967659
A27: Repairs & Maintenance | B27: R&M/Total Revenue - capital revenue | D27: =IF(ISERROR(D41/D55),0,(D41/D55)) -> 0.08470197199 | E27: =IF(ISERROR(E41/E55),0,(E41/E55)) -> 0.07786592708 | F27: =IF(ISERROR(F41/F55),0,(F41/F55)) -> 0.06075093601 | G27: =IF(ISERROR(G41/G55),0,(G41/G55)) -> 0.05492794832 | H27: =IF(ISERROR(H41/H55),0,(H41/H55)) -> 0.06075093601
A28: Interest & Depreciation | B28: I&D/Total Revenue - capital revenue | D28: =IF(ISERROR((D42+D44)/D55),0,((D42+D44)/D55)) -> 0.223609518 | E28: =IF(ISERROR((E42+E44)/E55),0,((E42+E44)/E55)) -> 0.1891370923 | F28: =IF(ISERROR((F42+F44)/F55),0,((F42+F44)/F55)) -> 0.204350989 | G28: =IF(ISERROR((G42+G44)/G55),0,((G42+G44)/G55)) -> 0.002935290898 | H28: =IF(ISERROR((H42+H44)/H55),0,((H42+H44)/H55)) -> 0.03753194007
A29: IDP regulation financial viability indicators
A30: i. Debt coverage | B30: (Total Operating Revenue - Operating Grants)/Debt service payments due within financial year)
A31: ii. O/S Service Debtors to Revenue | B31: Total outstanding service debtors/annual revenue received for services
A32: iii. Cost coverage | B32: (Available cash + Investments)/monthly fixed operational expenditure
A33: References
A34: 1. Consumer debtors > 12 months old are excluded from current assets.
A35: 2. Material variances to be explained.
A37: Calculations
A38: ='C6-FinPos'!A38 -> Borrowing | D38: ='C6-FinPos'!C38 -> 0 | E38: ='C6-FinPos'!D38 -> 0 | F38: ='C6-FinPos'!E38 -> 0 | G38: ='C6-FinPos'!F38 -> 0 | H38: 0
A39: Total Assets | D39: ='C6-FinPos'!C26 -> 3649175534 | E39: ='C6-FinPos'!D26 -> 2357525147 | F39: ='C6-FinPos'!E26 -> 2358942337 | G39: ='C6-FinPos'!F26 -> 3573022167 | H39: ='C6-FinPos'!G26 -> 2358942337
A40: ='C4-FinPerf RE'!A25 -> Employee related costs | D40: ='C4-FinPerf RE'!C25 -> 194442064.3 | E40: ='C4-FinPerf RE'!D25 -> 270274660 | F40: ='C4-FinPerf RE'!E25 -> 248852359 | G40: ='C4-FinPerf RE'!G25 -> 198572423.5 | H40: ='C4-FinPerf RE'!K25 -> 248852359
A41: =A27 -> Repairs & Maintenance | D41: 62876759.13 | E41: 65140000 | F41: 47038475 | G41: 43205085.53 | H41: 47038475
A42: Interest (finance charges) | D42: ='C4-FinPerf RE'!C29 -> 6177546.23 | E42: ='C4-FinPerf RE'!D29 -> 3688959 | F42: ='C4-FinPerf RE'!E29 -> 3688959 | G42: ='C4-FinPerf RE'!G29 -> 2308833.63 | H42: ='C4-FinPerf RE'!K29 -> 3688959
A43: Principal paid | D43: =-'C7-CFlow'!C36 -> -43829903.15 | E43: =-'C7-CFlow'!D36 -> -132503000 | F43: =-'C7-CFlow'!E36 -> -132503000 | G43: =-'C7-CFlow'!G36 -> 34367628.74 | H43: =-'C7-CFlow'!K36 -> 132503000
A44: Depreciation | D44: ='C4-FinPerf RE'!C28 -> 159814360.2 | E44: ='C4-FinPerf RE'!D28 -> 154536733 | F44: ='C4-FinPerf RE'!E28 -> 154536733 | H44: ='C4-FinPerf RE'!K26 -> 25371420
A45: Operating expenditure | D45: ='C4-FinPerf RE'!C36 -> 1076070461 | E45: ='C4-FinPerf RE'!D36 -> 967240322 | F45: ='C4-FinPerf RE'!E36 -> 905675747 | G45: ='C4-FinPerf RE'!G36 -> 788684093.7 | H45: ='C4-FinPerf RE'!K36 -> 905675747
A46: ='C5-Capex'!A40 -> Total Capital Expenditure | D46: ='C5-Capex'!C40 -> 70100395.84 | E46: ='C5-Capex'!D40 -> 204802147 | F46: ='C5-Capex'!E40 -> 206219337 | G46: ='C5-Capex'!G40 -> 109769191.3 | H46: ='C5-Capex'!K40 -> 206219337
A47: Borrowed funding for capital | D47: ='C5-Capex'!C72 -> 0 | E47: ='C5-Capex'!D72 -> 0 | F47: ='C5-Capex'!E72 -> 0 | G47: ='C5-Capex'!G72 -> 0 | H47: ='C5-Capex'!K72 -> 0
A48: Debt | D48: ='C6-FinPos'!C30+'C6-FinPos'!C31+'C6-FinPos'!C33+'C6-FinPos'!C38 -> 333188644 | E48: ='C6-FinPos'!D30+'C6-FinPos'!D31+'C6-FinPos'!D33+'C6-FinPos'!D38 -> 172503000 | F48: ='C6-FinPos'!E30+'C6-FinPos'!E31+'C6-FinPos'!E33+'C6-FinPos'!E38 -> 172503000 | G48: ='C6-FinPos'!F30+'C6-FinPos'!F31+'C6-FinPos'!F33+'C6-FinPos'!F38 -> 281616389.9 | H48: ='C6-FinPos'!G30+'C6-FinPos'!G31+'C6-FinPos'!G33+'C6-FinPos'!G38 -> 172503000
A49: Equity | D49: ='C6-FinPos'!C48 -> 3441503491 | E49: ='C6-FinPos'!D48 -> 2160422147 | F49: ='C6-FinPos'!E48 -> 2156151997 | G49: ='C6-FinPos'!F48 -> 3165517110 | H49: ='C6-FinPos'!G48 -> 2156151997
A50: ='C6-FinPos'!A47 -> Reserves | D50: ='C6-FinPos'!C47 -> 0 | E50: ='C6-FinPos'!D47 -> 0 | F50: ='C6-FinPos'!E47 -> 0 | G50: ='C6-FinPos'!F47 -> 0 | H50: ='C6-FinPos'!G47 -> 0
A51: ='C6-FinPos'!A38 -> Borrowing | D51: ='C6-FinPos'!C38 -> 0 | E51: ='C6-FinPos'!D38 -> 0 | F51: ='C6-FinPos'!E38 -> 0 | G51: ='C6-FinPos'!F38 -> 0 | H51: ='C6-FinPos'!G38 -> 0
A52: ='C6-FinPos'!A6 -> Current assets | D52: ='C6-FinPos'!C13 -> 155835678.5 | E52: ='C6-FinPos'!D13 -> 572098000 | F52: ='C6-FinPos'!E13 -> 572098000 | G52: ='C6-FinPos'!F13 -> 223273602.4 | H52: ='C6-FinPos'!G13 -> 572098000
A53: ='C6-FinPos'!A29 -> Current liabilities | D53: ='C6-FinPos'!C35 -> 361268359 | E53: ='C6-FinPos'!D35 -> 172503000 | F53: ='C6-FinPos'!E35 -> 172503000 | G53: ='C6-FinPos'!F35 -> 307151783.8 | H53: ='C6-FinPos'!G35 -> 172503000
A54: Monetary assets | D54: ='C6-FinPos'!C7+'C6-FinPos'!C8 -> 64693148.77 | E54: ='C6-FinPos'!D7+'C6-FinPos'!D8 -> 24377000 | F54: ='C6-FinPos'!E7+'C6-FinPos'!E8 -> 24377000 | G54: ='C6-FinPos'!F7+'C6-FinPos'!F8 -> 55723913.04 | H54: ='C6-FinPos'!G7+'C6-FinPos'!G8 -> 24377000
A55: ='C4-FinPerf RE'!A22 -> Total Revenue (excluding capital transfers and contributions) | D55: ='C4-FinPerf RE'!C22 -> 742329342 | E55: ='C4-FinPerf RE'!D22 -> 836566165 | F55: ='C4-FinPerf RE'!E22 -> 774283955 | G55: ='C4-FinPerf RE'!G22 -> 786577450.1 | H55: ='C4-FinPerf RE'!K22 -> 774283955
A56: ='C4-FinPerf RE'!A19 -> Transfers and subsidies | D56: ='C4-FinPerf RE'!C19 -> 397007796.9 | E56: ='C4-FinPerf RE'!D19 -> 437829637 | F56: ='C4-FinPerf RE'!E19 -> 374550637 | G56: ='C4-FinPerf RE'!G19 -> 432704405.3 | H56: ='C4-FinPerf RE'!K19 -> 374550637
A57: ='C4-FinPerf RE'!A39 -> Transfers and subsidies - capital (monetary allocations) (National / Provincial and District) | D57: ='C4-FinPerf RE'!C39 -> 88203014.84 | E57: ='C4-FinPerf RE'!D39 -> 87086153 | F57: ='C4-FinPerf RE'!E39 -> 93773318 | G57: ='C4-FinPerf RE'!G39 -> 44745434 | H57: ='C4-FinPerf RE'!K39 -> 93773318
A58: Debt service payments | D58: ='C7-CFlow'!C12+'C7-CFlow'!C36 -> 43829903.15 | E58: ='C7-CFlow'!D12+'C7-CFlow'!D36 -> 132503000 | F58: ='C7-CFlow'!E12+'C7-CFlow'!E36 -> 132503000 | G58: ='C7-CFlow'!G16+'C7-CFlow'!G36 -> -32058795.11 | H58: ='C7-CFlow'!K16+'C7-CFlow'!K36 -> -128814041
A59: Outstanding debtors (receivables) | D59: ='C6-FinPos'!C9+'C6-FinPos'!C10+'C6-FinPos'!C11+'C6-FinPos'!C16 -> 79417582.1 | E59: ='C6-FinPos'!D9+'C6-FinPos'!D10+'C6-FinPos'!D11+'C6-FinPos'!D16 -> 543721000 | F59: ='C6-FinPos'!E9+'C6-FinPos'!E10+'C6-FinPos'!E11+'C6-FinPos'!E16 -> 543721000 | G59: ='C6-FinPos'!F9+'C6-FinPos'!F10+'C6-FinPos'!F11+'C6-FinPos'!F16 -> 158676254.3 | H59: ='C6-FinPos'!G9+'C6-FinPos'!G10+'C6-FinPos'!G11+'C6-FinPos'!G16 -> 543721000
A60: Annual services revenue | D60: =SUM('C4-FinPerf RE'!C7:C11) -> 154208722.6 | E60: =SUM('C4-FinPerf RE'!D7:D11) -> 184251428 | F60: =SUM('C4-FinPerf RE'!E7:E11) -> 184251428 | G60: =SUM('C4-FinPerf RE'!G7:G11) -> 156600005.3
A61: Cash + investments | B61: Including LT investments | D61: ='C6-FinPos'!C7+'C6-FinPos'!C8+'C6-FinPos'!C17-'C6-FinPos'!C30 -> 64693148.77 | E61: ='C6-FinPos'!D7+'C6-FinPos'!D8+'C6-FinPos'!D17-'C6-FinPos'!D30 -> 24377000 | F61: ='C6-FinPos'!E7+'C6-FinPos'!E8+'C6-FinPos'!E17-'C6-FinPos'!E30 -> 24377000 | G61: ='C6-FinPos'!F7+'C6-FinPos'!F8+'C6-FinPos'!F17-'C6-FinPos'!F30 -> 55723913.04 | H61: ='C6-FinPos'!G7+'C6-FinPos'!G8+'C6-FinPos'!G17-'C6-FinPos'!G30 -> 24377000
A62: Fixed operational expend. (monthly)
A63: Longstanding debtors outstanding | D63: ='C6-FinPos'!C16 -> 0 | E63: ='C6-FinPos'!D16 -> 0 | F63: ='C6-FinPos'!E16 -> 0 | G63: ='C6-FinPos'!F16 -> 0 | H63: ='C6-FinPos'!G16 -> 0
A64: Longstanding debtors recovered
A65: Attorney collections

Sheet SC3
A1: =muni& " - "&S71I& " - "&Head57 -> NW375 Moses Kotane - Supporting Table SC3 Monthly Budget Statement - aged debtors - M11 May
A2: =desc -> Description | C2: =Head2 -> Budget Year 2019/20
A3: R thousands | B3: NT Code | C3: 0-30 Days | D3: 31-60 Days | E3: 61-90 Days | F3: 91-120 Days | G3: 121-150 Dys | H3: 151-180 Dys | I3: 181 Dys-1 Yr | J3: Over 1Yr | K3: Total | L3: Total over 90 days | M3: Actual Bad Debts Written Off against Debtors | N3: Impairment - Bad Debts i.t.o Council Policy
A4: Debtors Age Analysis By Income Source
A5: Trade and Other Receivables from Exchange Transactions - Water | B5: 1200 | C5: 14639225 | D5: 15952608 | E5: 17041385 | F5: 16852507 | G5: 16722629 | H5: 12111449 | I5: 69642644 | J5: 396125753 | K5: =SUM(C5:J5) -> 559088200 | L5: =SUM(F5:J5) -> 511454982 | M5: 0 | N5: 0
A6: Trade and Other Receivables from Exchange Transactions - Electricity | B6: 1300 | K6: =SUM(C6:J6) -> 0 | L6: =SUM(F6:J6) -> 0
A7: Receivables from Non-exchange Transactions - Property Rates | B7: 1400 | C7: 10881277 | D7: 11275803 | E7: 10614477 | F7: 8753303 | G7: 7891615 | H7: 6684334 | I7: 37226273 | J7: 171731218 | K7: =SUM(C7:J7) -> 265058300 | L7: 232286743 | M7: 0 | N7: 0
A8: Receivables from Exchange Transactions - Waste Water Management | B8: 1500 | C8: 202016 | D8: 222544 | E8: 229625 | F8: 210659 | G8: 202906 | H8: 213331 | I8: 1468486 | J8: 6938045 | K8: 9687612 | L8: 9033427 | M8: 0 | N8: 0
A9: Receivables from Exchange Transactions - Waste Management | B9: 1600 | C9: 937066 | D9: 935765 | E9: 937473 | F9: 933870 | G9: 933068 | H9: 928914 | I9: 5548792 | J9: 51778158 | K9: 62933106 | L9: =SUM(F9:J9) -> 60122802 | M9: 0 | N9: 0
A10: Receivables from Exchange Transactions - Property Rental Debtors | B10: 1700 | K10: 0 | L10: =SUM(F10:J10) -> 0
A11: Interest on Arrear Debtor Accounts | B11: 1810 | C11: 5941153 | D11: 5766216 | E11: 5643352 | F11: 5483574 | G11: 5360699 | H11: 5040266 | I11: 26029286 | J11: 225220888 | K11: 284485434 | L11: 267134713 | M11: 0 | N11: 0
A12: Recoverable unauthorised, irregular, fruitless and wasteful expenditure | B12: 1820 | C12: 2587 | D12: 98 | E12: 190166 | F12: 588 | G12: 106553 | H12: 0 | I12: 86707 | J12: 29800131 | K12: 30186830 | L12: 29993979 | M12: 0 | N12: 0
A13: Other | B13: 1900 | K13: 0 | L13: =SUM(F13:J13) -> 0
A14: Total By Income Source | B14: 2000 | C14: =SUM(C5:C13) -> 32603324 | D14: 34153034 | E14: 34656478 | F14: 32234501 | G14: 31217470 | H14: 24978294 | I14: 140002188 | J14: 881594193 | K14: 1211439482 | L14: =SUM(L5:L13) -> 1110026646 | M14: 0 | N14: 0
A15: =Head1&" - totals only" -> 2018/19 - totals only | K15: =SUM(C15:J15) -> 0 | L15: =SUM(F15:J15) -> 0
A16: Debtors Age Analysis By Customer Group
A17: Organs of State | B17: 2200 | C17: 7095430 | D17: 7862257 | E17: 7036667 | F17: 7031810 | G17: 6690943 | H17: 5532707 | I17: 30601745 | J17: 125257082 | K17: =SUM(C17:J17) -> 197108641 | L17: =SUM(F17:J17) -> 175114287 | M17: 0 | N17: 0
A18: Commercial | B18: 2300 | C18: 7700609 | D18: 8584649 | E18: 10891493 | F18: 8501917 | G18: 7191032 | H18: 3214691 | I18: 21988305 | J18: 150621644 | K18: =SUM(C18:J18) -> 218694340 | L18: =SUM(F18:J18) -> 191517589 | M18: 0 | N18: 0
A19: Households | B19: 2400 | C19: 17699065 | D19: 17627955 | E19: 16649721 | F19: 16597431 | G19: 16971054 | H19: 16158170 | I19: 86271654 | J19: 600545861 | K19: =SUM(C19:J19) -> 788520911 | L19: =SUM(F19:J19) -> 736544170 | M19: 0 | N19: 0
A20: Other | B20: 2500 | C20: 108220 | D20: 78173 | E20: 78597 | F20: 103343 | G20: 364441 | H20: 72686 | I20: 1140484 | J20: 5169606 | K20: =SUM(C20:J20) -> 7115550 | L20: =SUM(F20:J20) -> 6850560 | M20: 0 | N20: 0
A21: Total By Customer Group | B21: 2600 | C21: =SUM(C17:C20) -> 32603324 | D21: 34153034 | E21: 34656478 | F21: 32234501 | G21: 31217470 | H21: 24978254 | I21: 140002188 | J21: =SUM(J17:J20) -> 881594193 | K21: =SUM(K17:K20) -> 1211439442 | L21: =SUM(L17:L20) -> 1110026606 | M21: =SUM(M17:M20) -> 0 | N21: =SUM(N17:N20) -> 0
A22: Notes
A23: Material increases in value of debtors' categories compared to previous month to be explained
A24: Bad debts = amounts actually written off in the month
A25: Total by Income Source must reconcile with Total by Customer Group
C26: =C14-C21 -> 0 | D26: =D14-D21 -> 0 | E26: =E14-E21 -> 0 | F26: 0 | G26: 0 | H26: 40 | I26: 0 | J26: =J14-J21 -> 0 | K26: 40
C27: =IF(C26=0,"","MUST AGREE") ->  | D27: =IF(D26=0,"","MUST AGREE") ->  | H27: MUST AGREE | K27: MUST AGREE

Sheet SC4
A1: =muni& " - "&S71J& " - "&Head57 -> NW375 Moses Kotane - Supporting Table SC4 Monthly Budget Statement - aged creditors - M11 May
A2: =desc -> Description | B2: NT Code | C2: =Head2 -> Budget Year 2019/20 | L2: Prior year totals for chart (same period)
C3: 0 - 30 Days | D3: 31 - 60 Days | E3: 61 - 90 Days | F3: 91 - 120 Days | G3: 121 - 150 Days | H3: 151 - 180 Days | I3: 181 Days - 1 Year | J3: Over 1 Year | K3: Total
A4: R thousands
A5: Creditors Age Analysis By Customer Type
A6: Bulk Electricity | B6: 0100 | K6: =SUM(C6:J6) -> 0
A7: Bulk Water | B7: 0200 | K7: =SUM(C7:J7) -> 0
A8: PAYE deductions | B8: 0300 | K8: 0
A9: VAT (output less input) | B9: 0400 | K9: 0
A10: Pensions / Retirement deductions | B10: 0500 | K10: 0
A11: Loan repayments | B11: 0600 | K11: 0
A12: Trade Creditors | B12: 0700 | C12: 2029945.41 | D12: 72178.74 | E12: 2197992.99 | F12: 0 | G12: 0 | H12: 0 | I12: 0 | J12: 0 | K12: 4300117.14
A13: Auditor General | B13: 0800 | K13: 0
A14: Other | B14: 0900 | K14: =SUM(C14:J14) -> 0
A15: Total By Customer Type | B15: 1000 | C15: =SUM(C6:C14) -> 2029945.41 | D15: =SUM(D6:D14) -> 72178.74 | E15: 2197992.99 | F15: 0 | G15: 0 | H15: 0 | I15: 0 | J15: 0 | K15: =SUM(K6:K14) -> 4300117.14 | L15: =SUM(L6:L14) -> 0
A16: Notes
A17: Material increases in value of creditors' categories compared to previous month to be explained

Sheet SC5
A1: =muni& " - "&S71K& " - "&Head57 -> NW375 Moses Kotane - Supporting Table SC5 Monthly Budget Statement - investment portfolio - M11 May
A2: Investments by maturity Name of institution & investment ID | B2: Ref | C2: Period of Investment | D2: Type of Investment | E2: Capital Guarantee (Yes/ No) | F2: Variable or Fixed interest rate | G2: Interest Rate ᶟ | H2: Commission Paid (Rands) | I2: Commission Recipient | J2: Expiry date of investment | K2: Opening balance | L2: Interest to be realised | M2: Partial / Premature Withdrawal (4) | N2: Investment Top Up | O2: Closing Balance
A3: R thousands | C3: Yrs/Months
A4: Municipality
O5: =SUM(K5:N5) -> 0
A6: Municipality sub-total | K6: =SUM(K5:K5) -> 0 | M6: =SUM(M5:M5) -> 0 | N6: =SUM(N5:N5) -> 0 | O6: =SUM(O5:O5) -> 0
A8: Entities
O9: =SUM(K9:N9) -> 0
O10: 0
O11: 0
O12: 0
O13: 0
O14: 0
O15: 0
A16: Entities sub-total | K16: =SUM(K9:K15) -> 0 | M16: =SUM(M9:M15) -> 0 | N16: =SUM(N9:N15) -> 0 | O16: =SUM(O9:O15) -> 0
A18: TOTAL INVESTMENTS AND INTEREST | B18: 2 | K18: =K6+K16 -> 0 | M18: =M6+M16 -> 0 | N18: =N6+N16 -> 0 | O18: =O6+O16 -> 0
A19: =head27a -> References
A20: 2. List investments in expiry date order
A21: 3. If 'variable' is selected in column F, input interest rate range
A22: 4. Withdrawals to be entered as negative

Sheet SC6
A1: =muni& " - "&S71L& " - "&Head57 -> NW375 Moses Kotane - Supporting Table SC6 Monthly Budget Statement - transfers and grant receipts - M11 May
A2: =desc -> Description | B2: =head27 -> Ref | C2: =Head1 -> 2018/19 | D2: =Head2 -> Budget Year 2019/20
C3: =Head5 -> Audited Outcome | D3: =Head6 -> Original Budget | E3: =Head7 -> Adjusted Budget | F3: =Head38 -> Monthly actual | G3: =Head39 -> YearTD actual | H3: =Head40 -> YearTD budget | I3: =Head41 -> YTD variance | J3: =Head41 -> YTD variance | K3: =Head8 -> Full Year Forecast
A4: R thousands | J4: %
A5: RECEIPTS: | B5: 1,2
A7: Operating Transfers and Grants
A8: National Government: | C8: =SUM(C9:C16) -> 0 | D8: 437829637 | E8: 373565637 | F8: 65134204.16 | G8: 432238523.7 | H8: 349852211 | I8: =G8-H8 -> 82386312.7 | J8: =IF(H8=0,"",I8/H8) -> 0.2354889011 | K8: =SUM(K9:K16) -> 373565637
A9: Community Library | C9: 0 | D9: 0 | E9: 0 | F9: 0 | G9: 0 | H9: 0 | I9: 0 | K9: 0
A10: Equitable Share | C10: 0 | D10: 429267000 | E10: 366320000 | F10: 60609350.7 | G10: 426929350.7 | H10: 343137139 | I10: 83792211.7 | J10: 0.244194528 | K10: 366320000
A11: Expanded Public Works Programme Integrated Grant | C11: 0 | D11: 1695000 | E11: 1695000 | F11: 0 | G11: 784319.54 | H11: 1553750 | I11: -769430.46 | J11: -0.4952086629 | K11: 1695000
A12: Local Government Financial Management Grant | C12: 0 | D12: 1700000 | E12: 1700000 | F12: 1641678 | G12: 1641678 | H12: 1558326 | I12: 83352 | J12: 0.05348816615 | K12: 1700000
A13: Municipal Disaster Relief Grant | C13: 0 | D13: 0 | E13: 268000 | F13: 268000 | G13: 268000 | H13: 134000 | I13: 134000 | J13: 1 | K13: 268000
A14: Municipal Infrastructure Grant | B14: 3 | C14: 0 | D14: 5167637 | E14: 3582637 | F14: 2615175.46 | G14: 2615175.46 | H14: 3468996 | I14: -853820.54 | J14: -0.2461290068 | K14: 3582637
A15: Water Services Infrastructure Grant | C15: 0 | D15: 0 | E15: 0 | F15: 0 | G15: 0 | H15: 0 | I15: 0 | K15: 0
A16: Water Services Operating Subsidy Grant [Schedule 5B] | C16: 0 | D16: 0 | E16: 0 | F16: 0 | G16: 0 | H16: 0 | I16: 0 | K16: 0
A17: Other transfers and grants [insert description] | I17: =G17-H17 -> 0 | J17: =IF(I17=0,"",I17/H17) -> 
A18: Provincial Government: | C18: =SUM(C19:C20) -> 3910238.97 | D18: 0 | E18: 0 | F18: 0 | G18: 0 | H18: 0 | I18: =G18-H18 -> 0 | J18: =IF(H18=0,"",I18/H18) ->  | K18: =SUM(K19:K20) -> 0
A19: Libraries; Archives and Museums | C19: 3910238.97 | D19: 0 | E19: 0 | F19: 0 | G19: 0 | H19: 0 | I19: =G19-H19 -> 0 | J19: =IF(H19=0,"",I19/H19) ->  | K19: 0
A20: Specify (Add grant description) | C20: 0 | D20: 0 | E20: 0 | F20: 0 | G20: 0 | H20: 0 | I20: =G20-H20 -> 0 | J20: =IF(H20=0,"",I20/H20) ->  | K20: 0
A21: Other transfers and grants [insert description] | I21: =G21-H21 -> 0
A22: District Municipality: | C22: =SUM(C23:C23) -> 0 | D22: 0 | E22: 0 | F22: 0 | G22: 0 | H22: 0 | I22: 0 | K22: =SUM(K23:K23) -> 0
A23: [insert description] | I23: 0
A24: Other grant providers: | C24: =SUM(C25:C25) -> 0 | D24: 0 | E24: 985000 | F24: 465881.61 | G24: 465881.61 | H24: 841846.1 | I24: =G24-H24 -> -375964.49 | J24: =IF(H24=0,"",I24/H24) -> -0.4465952744 | K24: =SUM(K25:K25) -> 985000
A25: National Library South Africa | C25: 0 | D25: 0 | E25: 985000 | F25: 465881.61 | G25: 465881.61 | H25: 841846.1 | I25: =G25-H25 -> -375964.49 | J25: =IF(H25=0,"",I25/H25) -> -0.4465952744 | K25: 985000
A26: Total Operating Transfers and Grants | B26: 5 | C26: =C8+C18+C22+C24 -> 3910238.97 | D26: 437829637 | E26: 374550637 | F26: 65600085.77 | G26: 432704405.3 | H26: 350694057.1 | I26: 82010348.21 | J26: 0.2338515482 | K26: =K8+K18+K22+K24 -> 374550637
A28: Capital Transfers and Grants
A29: =A8 -> National Government: | C29: =SUM(C30:C32) -> 88203014.84 | D29: 87086153 | E29: 93773318 | F29: 15814526.09 | G29: 44745434 | H29: 85178690 | I29: =G29-H29 -> -40433256 | J29: =IF(H29=0,"",I29/H29) -> -0.47468746 | K29: =SUM(K30:K32) -> 93773318
A30: Municipal Infrastructure Grant | C30: 35748319.1 | D30: 32086153 | E30: 38773318 | F30: 0 | G30: 28930907.91 | H30: 34762027 | I30: -5831119.09 | J30: -0.1677439319 | K30: 38773318
A31: Municipal Water Infrastructure Grant | C31: 0 | D31: 0 | E31: 0 | F31: 0 | G31: 0 | H31: 0 | I31: 0 | K31: 0
A32: Water Services Infrastructure Grant | C32: 52454695.74 | D32: 55000000 | E32: 55000000 | F32: 15814526.09 | G32: 15814526.09 | H32: 50416663 | I32: -34602136.91 | J32: -0.6863234266 | K32: 55000000
A33: =A18 -> Provincial Government: | C33: =SUM(C34:C34) -> 0 | D33: 0 | E33: 0 | F33: 0 | G33: 0 | H33: 0 | I33: 0 | K33: =SUM(K34:K34) -> 0
A34: Waste Water Infrastructure | C34: 0 | D34: 0 | E34: 0 | F34: 0 | G34: 0 | H34: 0 | I34: 0 | K34: 0
A35: =A22 -> District Municipality: | C35: =SUM(C36:C36) -> 0 | D35: 0 | E35: 0 | F35: 0 | G35: 0 | H35: 0 | I35: =G35-H35 -> 0 | J35: =IF(I35=0,"",I35/H35) ->  | K35: =SUM(K36:K36) -> 0
A36: [insert description] | I36: 0
A37: =A24 -> Other grant providers: | C37: =SUM(C38:C40) -> 91481397.94 | D37: 112438210 | E37: 112332045 | F37: 0 | G37: 72797365.06 | H37: 102983407 | I37: =G37-H37 -> -30186041.94 | J37: =IF(H37=0,"",I37/H37) -> -0.2931155884 | K37: =SUM(K38:K40) -> 112332045
A38: [insert description] | I38: 0 | J38: =IF(I38=0,"",I38/H38) -> 
A39: Municipal Infrastructure Investment Unit | C39: 91481397.94 | D39: 112438210 | E39: 112332045 | F39: 0 | G39: 72797365.06 | H39: 102983407 | I39: =G39-H39 -> -30186041.94 | J39: =IF(H39=0,"",I39/H39) -> -0.2931155884 | K39: 112332045
A40: Registration of Deeds Trade Account | C40: 0 | D40: 0 | E40: 0 | F40: 0 | G40: 0 | H40: 0 | I40: =G40-H40 -> 0 | J40: =IF(H40=0,"",I40/H40) ->  | K40: 0
A41: Total Capital Transfers and Grants | B41: 5 | C41: =C29+C33+C35+C37 -> 179684412.8 | D41: 199524363 | E41: 206105363 | F41: 15814526.09 | G41: 117542799.1 | H41: 188162097 | I41: -70619297.94 | J41: -0.3753109636 | K41: =K29+K33+K35+K37 -> 206105363
A43: TOTAL RECEIPTS OF TRANSFERS & GRANTS | B43: 5 | C43: =C26+C41 -> 183594651.8 | D43: 637354000 | E43: 580656000 | F43: 81414611.86 | G43: 550247204.4 | H43: 538856154.1 | I43: 11391050.27 | J43: 0.02113931554 | K43: =K26+K41 -> 580656000
A44: =head27a -> References
A45: 1. Each grant is listed by name as gazetted together with the name of the transferring department or municipality, donor or other organisation
A46: 2. Grant expenditure must be separately listed for each grant received
A47: 3. Replacement of RSC levies
A48: 4. Housing subsidies for housing where ownership transferred
A49: 5. Total recurrent/capital grants and subsidies must reconcile to the 'Financial Performance' Statement

Sheet SC7(1)
A1: =muni& " - "&S71M& " - "&Head57 -> NW375 Moses Kotane - Supporting Table SC7(1) Monthly Budget Statement - transfers and grant expenditure - M11 May
A2: =desc -> Description | B2: =head27 -> Ref | C2: =Head1 -> 2018/19 | D2: =Head2 -> Budget Year 2019/20
C3: =Head5 -> Audited Outcome | D3: =Head6 -> Original Budget | E3: =Head7 -> Adjusted Budget | F3: =Head38 -> Monthly actual | G3: =Head39 -> YearTD actual | H3: =Head40 -> YearTD budget | I3: =Head41 -> YTD variance | J3: =Head41 -> YTD variance | K3: =Head8 -> Full Year Forecast
A4: R thousands | J4: %
A5: EXPENDITURE
A7: Operating expenditure of Transfers and Grants
A8: ='SC6'!A8 -> National Government: | C8: =SUM(C9:C13) -> 115671273.4 | D8: 114558916 | E8: 75663000 | F8: 2040751.73 | G8: 62002838.86 | H8: 72082877.17 | I8: -10080038.31 | J8: =IF(I8=0,"",I8/H8) -> -0.1398395667 | K8: =SUM(K9:K13) -> 75663000
I9: =G9-H9 -> 0
A10: Equitable Share | C10: 98807857.6 | D10: 91000000 | E10: 71000000 | F10: 0 | G10: 59070895.87 | H10: 67416674 | I10: =G10-H10 -> -8345778.13 | J10: =IF(H10=0,"",I10/H10) -> -0.1237939761 | K10: 71000000
A11: Expanded Public Works Programme Integrated Grant | C11: 3862344.98 | D11: 4470131 | E11: 1695000 | F11: 145556.15 | G11: 772951.29 | H11: 1630837.88 | I11: =G11-H11 -> -857886.59 | J11: =IF(H11=0,"",I11/H11) -> -0.5260403873 | K11: 1695000
A12: Local Government Financial Management Grant | C12: 13001070.81 | D12: 19088785 | E12: 2700000 | F12: 1769205.78 | G12: 2033001.9 | H12: 2901365.29 | I12: =G12-H12 -> -868363.39 | J12: =IF(H12=0,"",I12/H12) -> -0.2992947469 | K12: 2700000
A13: Municipal Disaster Relief Grant | C13: 0 | D13: 0 | E13: 268000 | F13: 125989.8 | G13: 125989.8 | H13: 134000 | I13: =G13-H13 -> -8010.2 | J13: =IF(H13=0,"",I13/H13) -> -0.05977761194 | K13: 268000
A14: ='SC6'!A18 -> Provincial Government: | C14: =SUM(C15:C15) -> 0 | D14: 0 | E14: 0 | F14: 0 | G14: 0 | H14: 0 | I14: 0 | K14: =SUM(K15:K15) -> 0
I15: =G15-H15 -> 0
A16: ='SC6'!A22 -> District Municipality: | C16: =SUM(C17:C17) -> 0 | D16: 0 | E16: 0 | F16: 0 | G16: 0 | H16: 0 | I16: 0 | K16: =SUM(K17:K17) -> 0
I17: 0
A18: ='SC6'!A24 -> Other grant providers: | C18: =SUM(C19:C19) -> 0 | D18: 0 | E18: 0 | F18: 0 | G18: 0 | H18: 0 | I18: 0 | K18: =SUM(K19:K19) -> 0
I19: 0
A20: Total operating expenditure of Transfers and Grants: | C20: =C8+C14+C16+C18 -> 115671273.4 | D20: 114558916 | E20: 75663000 | F20: 2040751.73 | G20: 62002838.86 | H20: 72082877.17 | I20: -10080038.31 | J20: -0.1398395667 | K20: =K8+K14+K16+K18 -> 75663000
A22: Capital expenditure of Transfers and Grants
A23: ='SC6'!A29 -> National Government: | C23: =SUM(C24:C25) -> 62181352.57 | D23: 201361894 | E23: 206105362 | F23: 8087457.7 | G23: 109629366.9 | H23: 188376688.4 | I23: -78747321.5 | J23: =IF(I23=0,"",I23/H23) -> -0.4180311384 | K23: =SUM(K24:K25) -> 206105362
A24: Municipal Infrastructure Grant | C24: 50275581.51 | D24: 146361894 | E24: 163108574 | F24: 6784621.62 | G24: 93462390.3 | H24: 147562562 | I24: =G24-H24 -> -54100171.7 | J24: =IF(H24=0,"",I24/H24) -> -0.3666253213 | K24: 163108574
A25: Water Services Infrastructure Grant | C25: 11905771.06 | D25: 55000000 | E25: 42996788 | F25: 1302836.08 | G25: 16166976.6 | H25: 40814126.4 | I25: =G25-H25 -> -24647149.8 | J25: =IF(H25=0,"",I25/H25) -> -0.6038877216 | K25: 42996788
A26: ='SC6'!A33 -> Provincial Government: | C26: =SUM(C27:C27) -> 0 | D26: 0 | E26: 0 | F26: 0 | G26: 0 | H26: 0 | I26: =G26-H26 -> 0 | K26: =SUM(K27:K27) -> 0
I27: 0
A28: ='SC6'!A35 -> District Municipality: | C28: =SUM(C29:C29) -> 0 | D28: 0 | E28: 0 | F28: 0 | G28: 0 | H28: 0 | I28: 0 | K28: =SUM(K29:K29) -> 0
I29: 0
A30: ='SC6'!A37 -> Other grant providers: | C30: =SUM(C31:C31) -> 0 | D30: 0 | E30: 0 | F30: 0 | G30: 0 | H30: 0 | I30: 0 | K30: =SUM(K31:K31) -> 0
A31: Municipal Infrastructure Investment Unit | C31: 0 | D31: 0 | E31: 0 | F31: 0 | G31: 0 | H31: 0 | I31: =G31-H31 -> 0 | J31: =IF(H31=0,"",I31/H31) ->  | K31: 0
A32: Total capital expenditure of Transfers and Grants | C32: =C23+C26+C28+C30 -> 62181352.57 | D32: 201361894 | E32: 206105362 | F32: 8087457.7 | G32: 109629366.9 | H32: 188376688.4 | I32: -78747321.5 | J32: =IF(I32=0,"",I32/H32) -> -0.4180311384 | K32: =K23+K26+K28+K30 -> 206105362
A34: TOTAL EXPENDITURE OF TRANSFERS AND GRANTS | C34: =C20+C32 -> 177852626 | D34: 315920810 | E34: 281768362 | F34: 10128209.43 | G34: 171632205.8 | H34: 260459565.6 | I34: -88827359.81 | J34: =IF(I34=0,"",I34/H34) -> -0.3410408814 | K34: =K20+K32 -> 281768362
A35: =head27a -> References

Sheet SC7(2)
A1: =muni& " - "&S71T& " - "&Head57 -> NW375 Moses Kotane - Supporting Table SC7(2) Monthly Budget Statement - Expenditure against approved rollovers - M11 May
A2: =desc -> Description | B2: =head27 -> Ref | C2: =Head2 -> Budget Year 2019/20
C3: ="Approved Rollover " &Head1 -> Approved Rollover 2018/19 | D3: =Head38 -> Monthly actual | E3: =Head39 -> YearTD actual | F3: =Head41 -> YTD variance | G3: =Head41 -> YTD variance
A4: R thousands | G4: %
A5: EXPENDITURE
A7: Operating expenditure of Approved Roll-overs
A8: ='SC6'!A8 -> National Government: | C8: =SUM(C9:C9) -> 0 | D8: =SUM(D9:D9) -> 0 | E8: =SUM(E9:E9) -> 0 | F8: =SUM(F9:F9) -> 0 | G8: =IF(F8=0,"",F8/C8) -> 
A9: Local Government Equitable Share | C9: 0 | D9: 0 | E9: 0 | F9: =E9-C9 -> 0 | G9: =IF(C9=0,"",F9/C9) -> 
A10: ='SC6'!A18 -> Provincial Government: | C10: =SUM(C11:C11) -> 0 | D10: =SUM(D11:D11) -> 0 | E10: =SUM(E11:E11) -> 0 | F10: =SUM(F11:F11) -> 0 | G10: =IF(F10=0,"",F10/C10) -> 
F11: =C11-E11 -> 0
A12: ='SC6'!A22 -> District Municipality: | C12: =SUM(C13:C13) -> 0 | D12: =SUM(D13:D13) -> 0 | E12: =SUM(E13:E13) -> 0 | F12: =SUM(F13:F13) -> 0
F13: =C13-E13 -> 0
A14: ='SC6'!A24 -> Other grant providers: | C14: =SUM(C15:C15) -> 0 | D14: =SUM(D15:D15) -> 0 | E14: =SUM(E15:E15) -> 0 | F14: =SUM(F15:F15) -> 0
F15: =C15-E15 -> 0
A16: Total operating expenditure of Approved Roll-overs | C16: =C8+C10+C12+C14 -> 0 | D16: =D8+D10+D12+D14 -> 0 | E16: =E8+E10+E12+E14 -> 0 | F16: =F8+F10+F12+F14 -> 0
A18: Capital expenditure of Approved Roll-overs
A19: ='SC6'!A29 -> National Government: | C19: =SUM(C20:C20) -> 0 | D19: =SUM(D20:D20) -> 0 | E19: =SUM(E20:E20) -> 0 | F19: =SUM(F20:F20) -> 0
F20: =C20-E20 -> 0
A21: ='SC6'!A33 -> Provincial Government: | C21: =SUM(C22:C22) -> 0 | D21: =SUM(D22:D22) -> 0 | E21: =SUM(E22:E22) -> 0 | F21: =SUM(F22:F22) -> 0
F22: =C22-E22 -> 0
A23: ='SC6'!A35 -> District Municipality: | C23: =SUM(C24:C24) -> 0 | D23: =SUM(D24:D24) -> 0 | E23: =SUM(E24:E24) -> 0 | F23: =SUM(F24:F24) -> 0
F24: =C24-E24 -> 0
A25: ='SC6'!A37 -> Other grant providers: | C25: =SUM(C26:C26) -> 0 | D25: =SUM(D26:D26) -> 0 | E25: =SUM(E26:E26) -> 0 | F25: =SUM(F26:F26) -> 0
F26: =C26-E26 -> 0
A27: Total capital expenditure of Approved Roll-overs | C27: =C19+C21+C23+C25 -> 0 | D27: =D19+D21+D23+D25 -> 0 | E27: =E19+E21+E23+E25 -> 0 | F27: =F19+F21+F23+F25 -> 0
A29: TOTAL EXPENDITURE OF APPROVED ROLL-OVERS | C29: =C16+C27 -> 0 | D29: =D16+D27 -> 0 | E29: =E16+E27 -> 0 | F29: =F16+F27 -> 0
A30: =head27a -> References

Sheet SC8
A1: =muni& " - "&S71N& " - "&Head57 -> NW375 Moses Kotane - Supporting Table SC8 Monthly Budget Statement - councillor and staff benefits - M11 May
A2: Summary of Employee and Councillor remuneration | B2: =head27 -> Ref | C2: =Head1 -> 2018/19 | D2: =Head2 -> Budget Year 2019/20
C3: =Head5 -> Audited Outcome | D3: =Head6 -> Original Budget | E3: =Head7 -> Adjusted Budget | F3: =Head38 -> Monthly actual | G3: =Head39 -> YearTD actual | H3: =Head40 -> YearTD budget | I3: =Head41 -> YTD variance | J3: =Head41 -> YTD variance | K3: =Head8 -> Full Year Forecast
A4: R thousands | J4: %
B5: 1 | C5: A | D5: B | E5: C | K5: D
A6: Councillors (Political Office Bearers plus Other)
A7: Basic Salaries and Wages | C7: 14964090.65 | D7: 16499368 | E7: 16499368 | F7: 1283356.25 | G7: 15357234.38 | H7: 15124439 | I7: =G7-H7 -> 232795.38 | J7: =IF(I7=0,"",I7/H7) -> 0.01539200099 | K7: 16499368
A8: Pension and UIF Contributions | C8: 0 | D8: 0 | E8: 0 | F8: 0 | G8: 0 | H8: 0 | I8: 0 | K8: 0
A9: Medical Aid Contributions | C9: 0 | D9: 0 | E9: 0 | F9: 0 | G9: 0 | H9: 0 | I9: 0 | K9: 0
A10: Motor Vehicle Allowance | I10: =G10-H10 -> 0 | J10: =IF(I10=0,"",I10/H10) -> 
A11: Cellphone Allowance | C11: 2741808.8 | D11: 3186888 | E11: 3186888 | F11: 248200 | G11: 2212488 | H11: 2921314 | I11: =G11-H11 -> -708826 | J11: =IF(I11=0,"",I11/H11) -> -0.2426394424 | K11: 3186888
A12: Housing Allowances | C12: 0 | D12: 0 | E12: 0 | F12: 0 | G12: 0 | H12: 0 | I12: =G12-H12 -> 0 | J12: =IF(I12=0,"",I12/H12) ->  | K12: 0
A13: Other benefits and allowances | C13: 5121048.59 | D13: 5685164 | E13: 5685164 | F13: 437326.87 | G13: 5225430.21 | H13: 5211404 | I13: 14026.21 | J13: 0.00269144553 | K13: 5685164
A14: Sub Total - Councillors | C14: =SUM(C7:C13) -> 22826948.04 | D14: 25371420 | E14: 25371420 | F14: 1968883.12 | G14: 22795152.59 | H14: 23257157 | I14: -462004.41 | J14: -0.0198650424 | K14: 25371420
A15: % increase | B15: 4 | D15: =IF(D14=0,"",(D14/C14)-1) -> 0.1114678999 | E15: =IF(E14=0,"",(E14/C14)-1) -> 0.1114678999 | K15: =IF(K14=0,"",(K14/C14)-1) -> 0.1114678999
A17: Senior Managers of the Municipality | B17: 3
A18: Basic Salaries and Wages | C18: 2838695.42 | D18: 8984087 | E18: 8984087 | F18: 211233.65 | G18: 2741770.93 | H18: 8235447 | I18: =G18-H18 -> -5493676.07 | J18: =IF(I18=0,"",I18/H18) -> -0.6670768533 | K18: 8984087
A19: Pension and UIF Contributions | C19: 130912.36 | D19: 193379 | E19: 193379 | F19: 32057.94 | G19: 286614.04 | H19: 177287 | I19: 109327.04 | J19: 0.6166669863 | K19: 193379
A20: Medical Aid Contributions | C20: 101225.29 | D20: 101236 | E20: 101236 | F20: 8544.75 | G20: 90647.97 | H20: 92818 | I20: -2170.03 | J20: -0.02337940917 | K20: 101236
A21: Overtime | C21: 0 | D21: 0 | E21: 0 | F21: 0 | G21: 0 | H21: 0 | I21: 0 | K21: 0
A22: Performance Bonus | C22: 93309.44 | D22: 192304 | E22: 193167 | F22: 0 | G22: 184472.07 | H22: 176976.4 | I22: =G22-H22 -> 7495.67 | J22: =IF(I22=0,"",I22/H22) -> 0.04235406529 | K22: 193167
A23: Motor Vehicle Allowance | C23: 528592.68 | D23: 582593 | E23: 582593 | F23: 36549.39 | G23: 462043.29 | H23: 534050 | I23: =G23-H23 -> -72006.71 | J23: =IF(I23=0,"",I23/H23) -> -0.1348314016 | K23: 582593
A24: Cellphone Allowance | C24: 0 | D24: 0 | E24: 0 | F24: 0 | G24: 0 | H24: 0 | I24: =G24-H24 -> 0 | J24: =IF(I24=0,"",I24/H24) ->  | K24: 0
A25: Housing Allowances | C25: 0 | D25: 0 | E25: 0 | F25: 0 | G25: 0 | H25: 0 | I25: =G25-H25 -> 0 | J25: =IF(I25=0,"",I25/H25) ->  | K25: 0
A26: Other benefits and allowances | C26: 323.75 | D26: 791 | E26: 791 | F26: 18.64 | G26: 251.64 | H26: 759 | I26: -507.36 | J26: -0.668458498 | K26: 791
A27: Payments in lieu of leave | C27: 0 | D27: 0 | E27: 0 | F27: 0 | G27: 0 | H27: 0 | I27: 0 | K27: 0
A28: Long service awards | C28: 0 | D28: 0 | E28: 0 | F28: 0 | G28: 0 | H28: 0 | I28: 0 | K28: 0
A29: Post-retirement benefit obligations | B29: 2 | C29: 0 | D29: 0 | E29: 0 | F29: 0 | G29: 0 | H29: 0 | I29: 0 | K29: 0
A30: Sub Total - Senior Managers of Municipality | C30: =SUM(C18:C29) -> 3693058.94 | D30: 10054390 | E30: 10055253 | F30: =SUM(F18:F29) -> 288404.37 | G30: =SUM(G18:G29) -> 3765799.94 | H30: =SUM(H18:H29) -> 9217337.4 | I30: -5451537.46 | J30: =IF(I30=0,"",I30/H30) -> -0.5914438436 | K30: 10055253
A31: % increase | B31: 4 | D31: =IF(D30=0,"",(D30/C30)-1) -> 1.722510029 | E31: =IF(E30=0,"",(E30/C30)-1) -> 1.72274371 | K31: =IF(K30=0,"",(K30/C30)-1) -> 1.72274371
A33: Other Municipal Staff
A34: Basic Salaries and Wages | C34: 127026681.9 | D34: 190978811 | E34: 171165847 | F34: 11959296.9 | G34: 136630277.2 | H34: 157452564.2 | I34: =G34-H34 -> -20822286.97 | J34: =IF(I34=0,"",I34/H34) -> -0.1322448261 | K34: 171165847
A35: Pension and UIF Contributions | C35: 26169660.42 | D35: 35698530 | E35: 33678695 | F35: 2521640.15 | G35: 27842032.2 | H35: 30928412.76 | I35: -3086380.56 | J35: -0.09979110742 | K35: 33678695
A36: Medical Aid Contributions | C36: 10436933.2 | D36: 11762518 | E36: 11890807 | F36: 1060596.3 | G36: 10953203.74 | H36: 10889191.44 | I36: 64012.3 | J36: 0.005878517276 | K36: 11890807
A37: Overtime | C37: 10765527.48 | D37: 5346000 | E37: 6623759 | F37: 0 | G37: 7344339.9 | H37: 5967673.4 | I37: 1376666.5 | J37: 0.230687306 | K37: 6623759
A38: Performance Bonus | C38: 8783945.23 | D38: 10939808 | E38: 10578061 | F38: 312179.86 | G38: 8317340.26 | H38: 9685782.28 | I38: -1368442.02 | J38: -0.1412835825 | K38: 10578061
A39: Motor Vehicle Allowance | C39: 500000 | D39: 763000 | E39: 523000 | F39: 30000 | G39: 330000 | H39: 486090.72 | I39: =G39-H39 -> -156090.72 | J39: =IF(I39=0,"",I39/H39) -> -0.3211143796 | K39: 523000
A40: Cellphone Allowance | I40: =G40-H40 -> 0 | J40: =IF(I40=0,"",I40/H40) -> 
A41: Housing Allowances | C41: 411318.4 | D41: 655601 | E41: 512517 | F41: 40516.44 | G41: 437522.93 | H41: 473887.56 | I41: =G41-H41 -> -36364.63 | J41: =IF(I41=0,"",I41/H41) -> -0.07673683183 | K41: 512517
A42: Other benefits and allowances | C42: 4865497.13 | D42: 4076002 | E42: 3824420 | F42: 56891.7 | G42: 2951907.31 | H42: 3508401.16 | I42: -556493.85 | J42: -0.1586175083 | K42: 3824420
A43: Payments in lieu of leave | C43: 0 | D43: 0 | E43: 0 | F43: 0 | G43: 0 | H43: 0 | I43: 0 | K43: 0
A44: Long service awards | I44: 0
A45: Post-retirement benefit obligations | B45: 2 | C45: 1789441.59 | D45: 0 | E45: 0 | F45: 0 | G45: 0 | H45: 0 | I45: 0 | K45: 0
A46: Sub Total - Other Municipal Staff | C46: =SUM(C34:C45) -> 190749005.3 | D46: 260220270 | E46: 238797106 | F46: =SUM(F34:F45) -> 15981121.35 | G46: =SUM(G34:G45) -> 194806623.6 | H46: =SUM(H34:H45) -> 219392003.5 | I46: -24585379.95 | J46: =IF(I46=0,"",I46/H46) -> -0.1120614223 | K46: 238797106
A47: % increase | B47: 4 | D47: =IF(D46=0,"",(D46/C46)-1) -> 0.3642025002 | E47: =IF(E46=0,"",(E46/C46)-1) -> 0.2518917494 | K47: =IF(K46=0,"",(K46/C46)-1) -> 0.2518917494
A49: Total Parent Municipality | C49: =C14+C30+C46 -> 217269012.3 | D49: =D14+D30+D46 -> 295646080 | E49: 274223779 | F49: 18238408.84 | G49: 221367576.1 | H49: 251866497.9 | I49: =G49-H49 -> -30498921.82 | J49: =IF(I49=0,"",I49/H49) -> -0.1210916183 | K49: 274223779
D50: =IF(D49=0,"",(D49/C49)-1) -> 0.3607374418 | E50: =IF(E49=0,"",(E49/C49)-1) -> 0.2621393915 | K50: =IF(K49=0,"",(K49/C49)-1) -> 0.2621393915
A51: Unpaid salary, allowances & benefits in arrears:
A53: Board Members of Entities
A54: Basic Salaries and Wages | I54: =G54-H54 -> 0 | J54: =IF(I54=0,"",I54/H54) -> 
A55: Pension and UIF Contributions | I55: 0
A56: Medical Aid Contributions | I56: 0
A57: Overtime | I57: =G57-H57 -> 0 | J57: =IF(I57=0,"",I57/H57) -> 
A58: Performance Bonus | I58: =G58-H58 -> 0 | J58: =IF(I58=0,"",I58/H58) -> 
A59: Motor Vehicle Allowance | I59: =G59-H59 -> 0 | J59: =IF(I59=0,"",I59/H59) -> 
A60: Cellphone Allowance | I60: =G60-H60 -> 0 | J60: =IF(I60=0,"",I60/H60) -> 
A61: Housing Allowances | I61: =G61-H61 -> 0 | J61: =IF(I61=0,"",I61/H61) -> 
A62: Other benefits and allowances | I62: 0
A63: Board Fees | I63: =G63-H63 -> 0 | J63: =IF(I63=0,"",I63/H63) -> 
A64: Payments in lieu of leave | I64: 0
A65: Long service awards | I65: 0
A66: Post-retirement benefit obligations | I66: 0
A67: Sub Total - Board Members of Entities | B67: 2 | C67: =SUM(C54:C66) -> 0 | D67: 0 | E67: 0 | F67: =SUM(F54:F66) -> 0 | G67: =SUM(G54:G66) -> 0 | H67: =SUM(H54:H66) -> 0 | I67: 0 | J67: =IF(I67=0,"",I67/H67) ->  | K67: 0
A68: % increase | B68: 4 | D68: =IF(D67=0,"",(D67/C67)-1) ->  | E68: =IF(E67=0,"",(E67/C67)-1) ->  | K68: =IF(K67=0,"",(K67/C67)-1) -> 
A70: Senior Managers of Entities
A71: Basic Salaries and Wages | I71: =G71-H71 -> 0 | J71: =IF(I71=0,"",I71/H71) -> 
A72: Pension and UIF Contributions | I72: 0
A73: Medical Aid Contributions | I73: 0
A74: Overtime | I74: 0
A75: Performance Bonus | I75: =G75-H75 -> 0 | J75: =IF(I75=0,"",I75/H75) -> 
A76: Motor Vehicle Allowance | I76: =G76-H76 -> 0 | J76: =IF(I76=0,"",I76/H76) -> 
A77: Cellphone Allowance | I77: =G77-H77 -> 0 | J77: =IF(I77=0,"",I77/H77) -> 
A78: Housing Allowances | I78: =G78-H78 -> 0 | J78: =IF(I78=0,"",I78/H78) -> 
A79: Other benefits and allowances | I79: 0
A80: Payments in lieu of leave | I80: 0
A81: Long service awards | I81: 0
A82: Post-retirement benefit obligations | B82: 2 | I82: 0
A83: Sub Total - Senior Managers of Entities | C83: =SUM(C71:C82) -> 0 | D83: 0 | E83: 0 | F83: =SUM(F71:F82) -> 0 | G83: =SUM(G71:G82) -> 0 | H83: =SUM(H71:H82) -> 0 | I83: 0 | J83: =IF(I83=0,"",I83/H83) ->  | K83: 0
A84: % increase | B84: 4 | D84: =IF(D83=0,"",(D83/C83)-1) ->  | E84: =IF(E83=0,"",(E83/C83)-1) ->  | K84: =IF(K83=0,"",(K83/C83)-1) -> 
A86: Other Staff of Entities
A87: Basic Salaries and Wages | I87: =G87-H87 -> 0 | J87: =IF(I87=0,"",I87/H87) -> 
A88: Pension and UIF Contributions | I88: 0
A89: Medical Aid Contributions | I89: =G89-H89 -> 0 | J89: =IF(I89=0,"",I89/H89) -> 
A90: Overtime | I90: =G90-H90 -> 0 | J90: =IF(I90=0,"",I90/H90) -> 
A91: Performance Bonus | I91: =G91-H91 -> 0 | J91: =IF(I91=0,"",I91/H91) -> 
A92: Motor Vehicle Allowance | I92: =G92-H92 -> 0 | J92: =IF(I92=0,"",I92/H92) -> 
A93: Cellphone Allowance | I93: 0
A94: Housing Allowances | I94: 0
A95: Other benefits and allowances | I95: 0
A96: Payments in lieu of leave | I96: 0
A97: Long service awards | I97: 0
A98: Post-retirement benefit obligations | I98: 0
A99: Sub Total - Other Staff of Entities | C99: =SUM(C87:C98) -> 0 | D99: 0 | E99: 0 | F99: 0 | G99: 0 | H99: 0 | I99: 0 | J99: =IF(I99=0,"",I99/H99) ->  | K99: =SUM(K87:K98) -> 0
A100: % increase | B100: 4 | D100: =IF(D99=0,"",(D99/C99)-1) ->  | E100: =IF(E99=0,"",(E99/C99)-1) ->  | K100: =IF(K99=0,"",(K99/C99)-1) -> 
A102: Total Municipal Entities | C102: =C67+C83+C99 -> 0 | D102: 0 | E102: 0 | F102: 0 | G102: 0 | H102: 0 | I102: =G102-H102 -> 0 | J102: =IF(I102=0,"",I102/H102) ->  | K102: =K67+K83+K99 -> 0
A104: TOTAL SALARY, ALLOWANCES & BENEFITS | C104: =C49+C102 -> 217269012.3 | D104: 295646080 | E104: 274223779 | F104: 18238408.84 | G104: 221367576.1 | H104: 251866497.9 | I104: =G104-H104 -> -30498921.82 | J104: =IF(I104=0,"",I104/H104) -> -0.1210916183 | K104: =K49+K102 -> 274223779
A105: % increase | B105: 4 | D105: =IF(D104=0,"",(D104/C104)-1) -> 0.3607374418 | E105: =IF(E104=0,"",(E104/C104)-1) -> 0.2621393915 | K105: =IF(K104=0,"",(K104/C104)-1) -> 0.2621393915
A106: TOTAL MANAGERS AND STAFF | C106: =C30+C46+C83+C99 -> 194442064.3 | D106: 270274660 | E106: 248852359 | F106: 16269525.72 | G106: 198572423.5 | H106: 228609340.9 | I106: -30036917.41 | J106: =IF(I106=0,"",I106/H106) -> -0.1313897205 | K106: =K30+K46+K83+K99 -> 248852359
A107: =head27a -> References
A108: 1. Include 'Loans and advances' where applicable if any reportable amounts until phased compliance with s164 of MFMA achieved
A109: 2. If benefits in kind are provided (e.g. provision of living quarters) the full market value must be shown as the cost to the municipality
A110: 3. s57 of the Systems Act
A111: 4. B/A, C/A, D/A
A112: Column Definitions:
A113: A. Audited actual 2005/06 (audited financial statements). If audited amounts unavailable, unaudited amounts must be provided with a note stating these are unaudited
A114: B. The original budget approved by council for the 2006/07 budget year.
A115: C. The budget for 2006/07 budget year as adjusted by council resolution in terms of section 28 of the MFMA.
A116: D. An estimate of final actual amounts (pre audit - 2006/07 budget year) at the time of preparing the budget for the 2007/08 budget year. This may differ from C.

Sheet SC9
A1: =muni& " - "&S71O& " - "&Head57 -> NW375 Moses Kotane - Supporting Table SC9 Monthly Budget Statement - actuals and revised targets for cash receipts - M11 May
A2: =desc -> Description | B2: =head27 -> Ref | C2: =Head2 -> Budget Year 2019/20 | O2: ='Template names'!B5 -> 2019/20 Medium Term Revenue & Expenditure Framework
C3: July | D3: August | E3: Sept | F3: October | G3: Nov | H3: Dec | I3: January | J3: Feb | K3: March | L3: April | M3: May | N3: June | O3: =Head9 -> Budget Year 2019/20 | P3: =Head10 -> Budget Year +1 2020/21 | Q3: =Head11 -> Budget Year +2 2021/22
A4: R thousands | B4: 1 | C4: Outcome | D4: Outcome | E4: Outcome | F4: Outcome | G4: Outcome | H4: Outcome | I4: Outcome | J4: Outcome | K4: Outcome | L4: Outcome | M4: Outcome | N4: Budget
A5: Cash Receipts By Source
A6: Property rates | M6: 923266 | N6: =O6-SUM(C6:M6) -> -923266
A7: Service charges - electricity revenue | N7: 0
A8: Service charges - water revenue | M8: 761372 | N8: -761372
A9: Service charges - sanitation revenue | M9: 9017 | N9: -9017
A10: Service charges - refuse | M10: 9809 | N10: -9809
A12: Rental of facilities and equipment | M12: 6265 | N12: -6265
A13: Interest earned - external investments | M13: 4248 | N13: -4248
A14: Interest earned - outstanding debtors | N14: 0
A15: Dividends received | N15: 0
A16: Fines, penalties and forfeits | M16: 37000 | N16: -37000
A17: Licences and permits | N17: 0
A18: Agency services | N18: 0
A19: Transfers and Subsidies - Operational | M19: 268000 | N19: -268000
A20: Other revenue | M20: 562989 | N20: -562989
A21: Cash Receipts by Source | C21: =SUM(C6:C10)+SUM(C12:C20) -> 0 | D21: =SUM(D6:D10)+SUM(D12:D20) -> 0 | E21: 0 | F21: 0 | G21: 0 | H21: 0 | I21: 0 | J21: 0 | K21: 0 | L21: 0 | M21: 2581966 | N21: -2581966 | O21: 0 | P21: 0 | Q21: 0
N22: =O22-SUM(C22:M22) -> 0
A23: Other Cash Flows by Source | N23: 0
A24: ='C4-FinPerf RE'!A39 -> Transfers and subsidies - capital (monetary allocations) (National / Provincial and District) | N24: 0
A25: ='C4-FinPerf RE'!A40 -> Transfers and subsidies - capital (monetary allocations) (National / Provincial Departmental Agencies, Households, Non-profit Institutions, Private Enterprises, Public Corporatons, Higher Educational Institutions) | N25: 0
A26: Proceeds on Disposal of Fixed and Intangible Assets | N26: 0
A27: Short term loans | N27: 0
A28: Borrowing long term/refinancing | N28: 0
A29: Increase (decrease) in consumer deposits | C29: 0 | D29: 0 | E29: 0 | F29: 0 | G29: 0 | H29: 0 | I29: 0 | J29: 0 | K29: 0 | L29: 0 | M29: 0 | N29: 0 | O29: 0 | P29: 0 | Q29: 0
A31: Decrease (increase) in non-current receivables | N31: 0
A32: Decrease (increase) in non-current investments | C32: 0 | D32: 0 | E32: 0 | F32: 0 | G32: 0 | H32: 0 | I32: 0 | J32: 0 | K32: 0 | L32: 0 | M32: 0 | N32: 0 | O32: 0 | P32: 0 | Q32: 0
A33: Total Cash Receipts by Source | C33: =SUM(C21:C29)+SUM(C31:C32) -> 0 | D33: =SUM(D21:D29)+SUM(D31:D32) -> 0 | E33: 0 | F33: 0 | G33: 0 | H33: 0 | I33: 0 | J33: 0 | K33: 0 | L33: 0 | M33: 2581966 | N33: -2581966 | O33: 0 | P33: 0 | Q33: 0
N34: =O34-SUM(C34:M34) -> 0
A35: Cash Payments by Type | N35: 0
A36: Employee related costs | C36: 18021255.77 | D36: 17056466.07 | E36: 17503042.06 | F36: 17949507.22 | G36: 17970591.78 | H36: 19519560.19 | I36: 18792316.39 | J36: 19929668.83 | K36: 17022437.56 | L36: 18538051.92 | M36: 16269525.72 | N36: 50279935.49 | O36: 248852359 | P36: 278331407 | Q36: 293509032
A37: Remuneration of councillors | C37: 1678235.09 | D37: 1697864.68 | E37: 1771559.98 | F37: 1946220.6 | G37: 1946220.6 | H37: 1948668.42 | I37: 0 | J37: 3928346.39 | K37: 3940270.6 | L37: 1968883.11 | M37: 1968883.12 | N37: 2576267.41 | O37: 25371420 | P37: 24819114 | Q37: 26060071
A38: Interest paid | C38: 1761333.32 | D38: 0 | E38: -1677236.3 | F38: 118965.11 | G38: 55473.12 | H38: 1660719.75 | I38: -271618.45 | J38: 290758.77 | K38: 245851.9 | L38: 7944.82 | M38: 116641.59 | N38: 1380125.37 | O38: 3688959 | P38: 3043808 | Q38: 2729218
A39: Bulk purchases - Electricity | C39: 2496852.22 | D39: 876405.85 | E39: 2446529.56 | F39: 2290618 | G39: 1789733.95 | H39: 1781638.64 | I39: 1763259.66 | J39: 1645905.11 | K39: 1806623.62 | L39: 3220080.56 | M39: 1989144.55 | N39: -3961753.72 | O39: 18145038 | P39: 11000000 | Q39: 11506000
A40: Bulk purchases - Water & Sewer | C40: 0 | D40: 0 | E40: 6061048.81 | F40: 0 | G40: 0 | H40: 25389226.66 | I40: 0 | J40: 9065144.65 | K40: 18555475.75 | L40: 0 | M40: 0 | N40: 11929104.13 | O40: 71000000 | P40: 100000000 | Q40: 104600000
A41: Other materials | C41: 15912.17 | D41: 611277.24 | E41: 4050.35 | F41: 3958 | G41: 185478 | H41: 81514 | I41: 14219.28 | J41: 186082.65 | K41: 181160.7 | L41: 3681 | M41: 125989.8 | N41: 2013827.81 | O41: 3427151 | P41: 5127300 | Q41: 5361500
A42: Contracted services | C42: 6096264.22 | D42: 6745326.08 | E42: 6955351.64 | F42: 16758762.86 | G42: 7873047.38 | H42: 21683735.15 | I42: 7959410.92 | J42: 3527482.41 | K42: 16724906.86 | L42: 13268367.69 | M42: 9616518.02 | N42: -6167154.23 | O42: 111042019 | P42: 121189200 | Q42: 131288734
A43: Grants and subsidies paid - other municipalities | N43: 0
A44: Grants and subsidies paid - other | C44: 0 | D44: 0 | E44: 0 | F44: 0 | G44: 0 | H44: 0 | I44: 0 | J44: 0 | K44: 0 | L44: 0 | M44: 0 | N44: 0 | O44: 0 | P44: 0 | Q44: 0
A45: General expenses | C45: 4936485.9 | D45: 14332815.98 | E45: 9059522.77 | F45: 9118268.1 | G45: 2696324.21 | H45: 16152357.7 | I45: 10604420.37 | J45: 2274881.16 | K45: 10092713.35 | L45: 6377745.45 | M45: 6275621.85 | N45: -2457288.84 | O45: 89463868 | P45: 66888300 | Q45: 70314784
A46: Cash Payments by Type | B46: =SUM(B36:B45) -> 0 | C46: =SUM(C36:C45) -> 35006338.69 | D46: =SUM(D36:D45) -> 41320155.9 | E46: 42123868.87 | F46: 48186299.89 | G46: 32516869.04 | H46: 88217420.51 | I46: 38862008.17 | J46: 40848269.97 | K46: 68569440.34 | L46: 43384754.55 | M46: 36362324.65 | N46: 55593063.42 | O46: 570990814 | P46: 610399129 | Q46: 645369339
N47: =O47-SUM(C47:M47) -> 0
A48: Other Cash Flows/Payments by Type
A49: Capital assets | N49: =O49-SUM(C49:M49) -> 0
A50: Repayment of borrowing | C50: 2813354.93 | D50: 15970.52 | E50: 2691838.59 | F50: 137703.43 | G50: -39502.6 | H50: -1644749.23 | I50: 4847994.07 | J50: -275008.67 | K50: 768529.97 | L50: 7305.2 | M50: 602203 | N50: =O50-SUM(C50:M50) -> -142428639.2 | O50: -132503000 | P50: -41362000 | Q50: -43264652
A51: Other Cash Flows/Payments | M51: 49986730 | N51: =O51-SUM(C51:M51) -> -49986730
A52: Total Cash Payments by Type | B52: =SUM(B46:B51) -> 0 | C52: 37819693.62 | D52: 41336126.42 | E52: 44815707.46 | F52: 48324003.32 | G52: 32477366.44 | H52: 86572671.28 | I52: 43710002.24 | J52: 40573261.3 | K52: 69337970.31 | L52: 43392059.75 | M52: 86951257.65 | N52: -136822305.8 | O52: 438487814 | P52: 569037129 | Q52: 602104687
N53: =O53-SUM(C53:M53) -> 0
A54: NET INCREASE/(DECREASE) IN CASH HELD | B54: =B33-B52 -> 0 | C54: -37819693.62 | D54: -41336126.42 | E54: -44815707.46 | F54: -48324003.32 | G54: -32477366.44 | H54: -86572671.28 | I54: -43710002.24 | J54: -40573261.3 | K54: -69337970.31 | L54: -43392059.75 | M54: -84369291.65 | N54: 134240339.8 | O54: -438487814 | P54: -569037129 | Q54: -602104687
A55: Cash/cash equivalents at the month/year beginning: | C55: 0 | D55: 0 | E55: 0 | F55: 0 | G55: 0 | H55: 0 | I55: 0 | J55: 0 | K55: 0 | L55: 0 | M55: 0 | N55: =M56 -> -84369291.65 | O55: 24377000 | P55: 18712753 | Q55: 24851089
A56: Cash/cash equivalents at the month/year end: | C56: =C54+C55 -> -37819693.62 | D56: =D54+D55 -> -41336126.42 | E56: =E54+E55 -> -44815707.46 | F56: -48324003.32 | G56: -32477366.44 | H56: -86572671.28 | I56: -43710002.24 | J56: -40573261.3 | K56: -69337970.31 | L56: -43392059.75 | M56: -84369291.65 | N56: 49871048.14 | O56: =O54+O55 -> -414110814 | P56: =P54+P55 -> -550324376 | Q56: =Q54+Q55 -> -577253598
A57: =head27a -> References
A58: 1. Replace 'budget' heading with adjusted budget, or 'outcome' only for month/s complete
A59: 2. Total of monthly amounts must always agree to the approved or adjusted budget
A60: 3. Amend 'cash-at-beginning' when prior year actual known (as part of the adjustments budget)
E65: =E46+E64 -> 42123868.87 | F65: 48186299.89 | G65: 32516869.04 | H65: 88217420.51 | I65: 38862008.17 | J65: 40848269.97 | K65: 68569440.34 | L65: 43384754.55 | N65: =N46+N64 -> 55593063.42 | O65: 570990814 | P65: 610399129
E66: =E54-E64 -> -44815707.46 | F66: -48324003.32 | G66: -32477366.44 | H66: -86572671.28 | I66: -43710002.24 | J66: -40573261.3 | K66: -69337970.31 | L66: -43392059.75 | M66: =M54-M64 -> -84369291.65 | N66: =N54-N64 -> 134240339.8 | O66: -438487814 | P66: -569037129

Sheet SC10
A1: =muni& " - "&S71P& " - "&Head57 -> NW375 Moses Kotane - NOT REQUIRED - municipality does not have entities or this is the parent municipality's budget - M11 May
A2: =desc -> Description | B2: =head27 -> Ref | C2: =Head1 -> 2018/19 | D2: =Head2 -> Budget Year 2019/20
C3: =Head5 -> Audited Outcome | D3: =Head6 -> Original Budget | E3: =Head7 -> Adjusted Budget | F3: =Head38 -> Monthly actual | G3: =Head39 -> YearTD actual | H3: =Head40 -> YearTD budget | I3: =Head41 -> YTD variance | J3: =Head41 -> YTD variance | K3: =Head8 -> Full Year Forecast
A4: R thousands | B4: 1 | J4: %
A5: ='C4-FinPerf RE'!A5 -> Revenue By Source
A6: ='C4-FinPerf RE'!A6 -> Property rates | I6: =G6-H6 -> 0 | J6: =IF(I6=0,"",I6/H6) -> 
A7: ='C4-FinPerf RE'!A7 -> Service charges - electricity revenue | I7: 0 | J7: =IF(I7=0,"",I7/H7) -> 
A8: ='C4-FinPerf RE'!A8 -> Service charges - water revenue | I8: 0
A9: ='C4-FinPerf RE'!A9 -> Service charges - sanitation revenue | I9: 0
A10: ='C4-FinPerf RE'!A10 -> Service charges - refuse revenue | I10: 0
A12: ='C4-FinPerf RE'!A12 -> Rental of facilities and equipment | I12: 0
A13: ='C4-FinPerf RE'!A13 -> Interest earned - external investments | I13: 0
A14: ='C4-FinPerf RE'!A14 -> Interest earned - outstanding debtors | I14: 0
A15: ='C4-FinPerf RE'!A15 -> Dividends received | I15: 0
A16: ='C4-FinPerf RE'!A16 -> Fines, penalties and forfeits | I16: 0
A17: ='C4-FinPerf RE'!A17 -> Licences and permits | I17: 0
A18: ='C4-FinPerf RE'!A18 -> Agency services | I18: 0
A19: ='C4-FinPerf RE'!A19 -> Transfers and subsidies | I19: 0
A20: ='C4-FinPerf RE'!A20 -> Other revenue | I20: 0
A21: ='C4-FinPerf RE'!A21 -> Gains | I21: 0
A22: Total Revenue (excluding capital transfers and contributions) | C22: =SUM(C6:C10)+SUM(C12:C21) -> 0 | D22: 0 | E22: 0 | F22: 0 | G22: 0 | H22: 0 | I22: =G22-H22 -> 0 | K22: =SUM(K6:K10)+SUM(K12:K21) -> 0
A24: Expenditure By Type
A25: ='C4-FinPerf RE'!A25 -> Employee related costs | I25: =G25-H25 -> 0 | J25: =IF(I25=0,"",I25/H25) -> 
A26: ='C4-FinPerf RE'!A26 -> Remuneration of councillors | I26: 0
A27: ='C4-FinPerf RE'!A27 -> Debt impairment | I27: 0
A28: ='C4-FinPerf RE'!A28 -> Depreciation & asset impairment | I28: 0
A29: ='C4-FinPerf RE'!A29 -> Finance charges | I29: 0
A30: ='C4-FinPerf RE'!A30 -> Bulk purchases | I30: 0
A31: ='C4-FinPerf RE'!A31 -> Other materials | I31: 0
A32: ='C4-FinPerf RE'!A32 -> Contracted services | I32: 0
A33: ='C4-FinPerf RE'!A33 -> Transfers and subsidies | I33: 0
A34: ='C4-FinPerf RE'!A34 -> Other expenditure | I34: 0
A35: ='C4-FinPerf RE'!A35 -> Losses | I35: 0
A36: Total Expenditure | C36: =SUM(C25:C35) -> 0 | D36: 0 | E36: 0 | F36: 0 | G36: 0 | H36: 0 | I36: 0 | K36: =SUM(K25:K35) -> 0
I37: 0
A38: ='C4-FinPerf RE'!A38 -> Surplus/(Deficit) | C38: =C22-C36 -> 0 | D38: 0 | E38: 0 | F38: 0 | G38: 0 | H38: 0 | I38: 0 | K38: =K22-K36 -> 0
A39: ='C4-FinPerf RE'!A39 -> Transfers and subsidies - capital (monetary allocations) (National / Provincial and District) | I39: 0
A40: ='C4-FinPerf RE'!A40 -> Transfers and subsidies - capital (monetary allocations) (National / Provincial Departmental Agencies, Households, Non-profit Institutions, Private Enterprises, Public Corporatons, Higher Educational Institutions) | I40: 0
A41: ='C4-FinPerf RE'!A41 -> Transfers and subsidies - capital (in-kind - all) | I41: 0
A42: ='C4-FinPerf RE'!A42 -> Surplus/(Deficit) after capital transfers & contributions | C42: =C38+SUM(C39:C41) -> 0 | D42: =D38+SUM(D39:D41) -> 0 | E42: 0 | F42: 0 | G42: 0 | H42: 0 | I42: 0 | K42: 0
A43: ='C4-FinPerf RE'!A43 -> Taxation | I43: 0
A44: ='C4-FinPerf RE'!A44 -> Surplus/(Deficit) after taxation | C44: =C42-C43 -> 0 | D44: 0 | E44: 0 | F44: 0 | G44: 0 | H44: 0 | I44: 0 | K44: =K42-K43 -> 0
A45: =head27a -> References
A46: 1. Votes (consolidated) are revenue sources and expenditure type

Sheet SC11
A1: =muni& " - "&S71Q& " - "&Head57 -> NW375 Moses Kotane - NOT REQUIRED - municipality does not have entities or this is the parent municipality's budget - M11 May
A2: =desc -> Description | B2: =head27 -> Ref | C2: =Head1 -> 2018/19 | D2: =Head2 -> Budget Year 2019/20
C3: =Head5 -> Audited Outcome | D3: =Head6 -> Original Budget | E3: =Head7 -> Adjusted Budget | F3: =Head38 -> Monthly actual | G3: =Head39 -> YearTD actual | H3: =Head40 -> YearTD budget | I3: =Head41 -> YTD variance | J3: =Head41 -> YTD variance | K3: =Head8 -> Full Year Forecast
A4: R thousands | J4: %
A5: Revenue By Municipal Entity
A6: Insert name of municipal entity | I6: =G6-H6 -> 0 | J6: =IF(I6=0,"",I6/H6) -> 
I7: 0 | J7: =IF(I7=0,"",I7/H7) -> 
I8: 0
I9: 0
I10: 0
I11: 0
I12: 0
I13: 0
I14: 0
I15: 0
A16: Total Operating Revenue | B16: 1 | C16: =SUM(C6:C15) -> 0 | D16: 0 | E16: 0 | F16: 0 | G16: 0 | H16: 0 | I16: 0 | K16: =SUM(K6:K15) -> 0
A18: Expenditure By Municipal Entity
A19: =A6 -> Insert name of municipal entity | I19: 0 | J19: =IF(I19=0,"",I19/H19) -> 
A20: =IF(A7="","",A7) ->  | I20: 0
A21: =IF(A8="","",A8) ->  | I21: 0
I22: 0
I23: 0
I24: 0
I25: 0
I26: 0
I27: 0
I28: 0
A29: Total Operating Expenditure | B29: 2 | C29: =SUM(C19:C28) -> 0 | D29: 0 | E29: 0 | F29: 0 | G29: 0 | H29: 0 | I29: 0 | K29: =SUM(K19:K28) -> 0
A31: =Head42 -> Surplus/ (Deficit) for the yr/period | C31: =C16-C29 -> 0 | D31: =D16-D29 -> 0 | E31: 0 | F31: 0 | G31: 0 | H31: 0 | I31: =I16+I29 -> 0 | K31: 0
A32: Capital Expenditure By Municipal Entity
A33: =$A$6 -> Insert name of municipal entity | I33: 0
A34: =IF(A7="","",A7) ->  | I34: 0
A35: =IF(A8="","",A8) ->  | I35: 0
I36: 0
I37: 0
I38: 0
I39: 0
I40: 0
I41: 0
A43: Total Capital Expenditure | B43: 3 | C43: =SUM(C32:C42) -> 0 | D43: =SUM(D32:D42) -> 0 | E43: 0 | F43: 0 | G43: 0 | H43: =SUM(H32:H42) -> 0 | I43: =G43-H43 -> 0 | K43: 0
A44: =head27a -> References
A45: 1. Must reconcile to the sum of all municipal entity monthly revenue reports
A46: 2. Must reconcile to the sum of all municipal entity monthly expenditure reports
A47: 3. YTD = Year to date; FAV - favourable variance or unfavourable variance
A48: 4. Material variances to be explained
A49: 5. Insert additional 'Adjustment' Budget column for each Adjustment made by an entity

Sheet SC12
A1: =muni& " - "&S71R& " - "&Head57 -> NW375 Moses Kotane - Supporting Table SC12 Monthly Budget Statement - capital expenditure trend - M11 May
A2: Month | B2: =Head1 -> 2018/19 | C2: =Head2 -> Budget Year 2019/20
B3: =Head5 -> Audited Outcome | C3: =Head6 -> Original Budget | D3: =Head7 -> Adjusted Budget | E3: =Head38 -> Monthly actual | F3: =Head39 -> YearTD actual | G3: =Head40 -> YearTD budget | H3: =Head41 -> YTD variance | I3: =Head41 -> YTD variance | J3: % spend of Original Budget
A4: R thousands | I4: %
A5: Monthly expenditure performance trend
A6: July | B6: 4289209.91 | C6: 17066845.61 | D6: 17066865 | E6: 456868.82 | F6: =IF(E6>0,E6,"") -> 456868.82 | G6: =IF(D6>0,D6,C6) -> 17066865 | H6: =IF(F6="",0,G6-F6) -> 16609996.18 | I6: =IF(F6="","",IF(H6=0,"",H6/G6)) -> 0.9732306537 | J6: =IF(F6="","",F6/$C$18) -> 0.002230781399
A7: August | B7: 12612655.4 | C7: 17066845.61 | D7: 17066865 | E7: 15381965.96 | F7: =IF(E7>0,E7+F6,"") -> 15838834.78 | G7: =IF(D7>0,D7+D6,C7+C6) -> 34133730 | H7: 18294895.22 | I7: 0.5359770298 | J7: 0.07733724969
A8: September | B8: 14144053.18 | C8: 17066845.61 | D8: 17066865 | E8: 7655673.58 | F8: =IF(E8>0,E8+F7,"") -> 23494508.36 | G8: =IF(D8>0,D8+G7,C8+G7) -> 51200595 | H8: 27706086.64 | I8: 0.5411282162 | J8: 0.1147180765
A9: October | B9: 15239157.49 | C9: 17066845.61 | D9: 16980659.46 | E9: 9883858.19 | F9: 33378366.55 | G9: =IF(D9>0,D9+G8,C9+G8) -> 68181254.46 | H9: 34802887.91 | I9: 0.5104465763 | J9: 0.1629785969
A10: November | B10: 2697176.21 | C10: 17066845.61 | D10: 16980659.46 | E10: 12336810.07 | F10: 45715176.62 | G10: 85161913.92 | H10: 39446737.3 | I10: 0.4631969326 | J10: 0.2232162958
A11: December | B11: 28255901.47 | C11: 17066845.61 | D11: 16980659.46 | E11: 19986773.06 | F11: 65701949.68 | G11: 102142573.4 | H11: 36440623.7 | I11: 0.356762342 | J11: 0.320806938
A12: January | B12: 8655091.86 | C12: 17066845.61 | D12: 16980659.46 | E12: 12180241.45 | F12: 77882191.13 | G12: 119123232.8 | H12: 41241041.71 | I12: 0.3462048563 | J12: 0.3802801497
A13: February | B13: 14197650.46 | C13: 17066845.61 | D13: 17396472.46 | E13: 9130612.42 | F13: 87012803.55 | G13: 136519705.3 | H13: 49506901.75 | I13: 0.3626355744 | J13: 0.4248627508
A14: March | B14: 10866814.81 | C14: 17066845.61 | D14: 17396472.46 | E14: 11503317.72 | F14: 98516121.27 | G14: 153916177.8 | H14: 55400056.49 | I14: 0.3599365401 | J14: 0.4810307056
A15: April | B15: 10571885.29 | C15: 17066845.61 | D15: 17396472.46 | E15: 3905991.8 | F15: 102422113.1 | G15: 171312650.2 | H15: 68890537.15 | I15: 0.4021333921 | J15: 0.5001027312
A16: May | B16: 18862238.55 | C16: 17066845.61 | D16: 17453459.96 | E16: 7347078.27 | F16: 109769191.3 | G16: 188766110.2 | H16: 78996918.84 | I16: 0.4184910033 | J16: 0.5359767607
A17: June | B17: -70291438.79 | C17: 17066845.29 | D17: 17453226.82 | E17: 0 | G17: 206219337 | H17: =IF(F17="",0,G17-F17) -> 0 | I17: =IF(F17="","",IF(H17=0,"",H17/G17)) ->  | J17: =IF(F17="","",F17/$C$18) -> 
A18: Total Capital expenditure | B18: =SUM(B6:B17) -> 70100395.84 | C18: =SUM(C6:C17) -> 204802147 | D18: =SUM(D6:D17) -> 206219337 | E18: =SUM(E6:E17) -> 109769191.3

Sheet SC13a
A1: =muni& " - "&S71Sa& " - "&Head57 -> NW375 Moses Kotane - Supporting Table SC13a Monthly Budget Statement - capital expenditure on new assets by asset class - M11 May
A2: =desc -> Description | B2: =head27 -> Ref | C2: =Head1 -> 2018/19 | D2: =Head2 -> Budget Year 2019/20
C3: =Head5 -> Audited Outcome | D3: =Head6 -> Original Budget | E3: =Head7 -> Adjusted Budget | F3: =Head38 -> Monthly actual | G3: =Head39 -> YearTD actual | H3: =Head40 -> YearTD budget | I3: =Head41 -> YTD variance | J3: =Head41 -> YTD variance | K3: =Head8 -> Full Year Forecast
A4: R thousands | B4: 1 | J4: %
A5: Capital expenditure on new assets by Asset Class/Sub-class
A7: Infrastructure | C7: =C8+C13+C17+C27+C38+C45+C53+C63+C69 -> 13540025.35 | D7: 133361894 | E7: 103266698 | F7: 3924171.44 | G7: 47284525.63 | H7: 98172409.2 | I7: =H7-G7 -> 50887883.57 | J7: =IF(I7=0,"",I7/H7) -> 0.5183521927 | K7: =K8+K13+K17+K27+K38+K45+K53+K63+K69 -> 103266698
A8: Roads Infrastructure | C8: =SUM(C9:C12) -> 0 | D8: 0 | E8: 0 | F8: 0 | G8: 0 | H8: 0 | I8: 0 | K8: =SUM(K9:K12) -> 0
A9: Roads | C9: 0 | D9: 0 | E9: 0 | F9: 0 | G9: 0 | H9: 0 | I9: 0 | K9: 0
A10: Road Structures | I10: 0
A11: Road Furniture | I11: 0
A12: Capital Spares | I12: 0
A13: Storm water Infrastructure | C13: =SUM(C14:C16) -> 0 | D13: 6193238 | E13: 0 | F13: 0 | G13: 0 | H13: 722553.6 | I13: 722553.6 | J13: 1 | K13: =SUM(K14:K16) -> 0
A14: Drainage Collection | C14: 0 | D14: 6193238 | E14: 0 | F14: 0 | G14: 0 | H14: 722553.6 | I14: 722553.6 | J14: 1 | K14: 0
A15: Storm water Conveyance | I15: 0
A16: Attenuation | I16: 0
A17: Electrical Infrastructure | C17: =SUM(C18:C26) -> 0 | D17: 22445688 | E17: 20416973 | F17: 1898325.87 | G17: 10401644.44 | H17: 18952308 | I17: 8550663.56 | J17: 0.4511674019 | K17: =SUM(K18:K26) -> 20416973
A18: Power Plants | I18: 0
A19: HV Substations | I19: 0
A20: HV Switching Station | I20: 0
A21: HV Transmission Conductors | I21: 0
A22: MV Substations | I22: 0
A23: MV Switching Stations | I23: 0
A24: MV Networks | I24: 0
A25: LV Networks | C25: 0 | D25: 22445688 | E25: 20416973 | F25: 1898325.87 | G25: 10401644.44 | H25: 18952308 | I25: 8550663.56 | J25: 0.4511674019 | K25: 20416973
A26: Capital Spares | I26: 0
A27: Water Supply Infrastructure | C27: =SUM(C28:C37) -> 12355144.35 | D27: 64814603 | E27: 70357489 | F27: 1600301.68 | G27: 30804126.8 | H27: 63847739.8 | I27: 33043613 | J27: 0.5175377093 | K27: =SUM(K28:K37) -> 70357489
A28: Dams and Weirs | I28: 0
A29: Boreholes | I29: 0
A30: Reservoirs | C30: 0 | D30: 0 | E30: 0 | F30: 0 | G30: 0 | H30: 0 | I30: 0 | K30: 0
A31: Pump Stations | I31: 0
A32: Water Treatment Works | I32: 0
A33: Bulk Mains | C33: 0 | D33: 0 | E33: 0 | F33: 0 | G33: 0 | H33: 0 | I33: 0 | K33: 0
A34: Distribution | C34: 12355144.35 | D34: 64814603 | E34: 70357489 | F34: 1600301.68 | G34: 30804126.8 | H34: 63847739.8 | I34: 33043613 | J34: 0.5175377093 | K34: 70357489
A35: Distribution Points | I35: 0
A36: PRV Stations | I36: 0
A37: Capital Spares | I37: 0
A38: Sanitation Infrastructure | C38: =SUM(C39:C44) -> 0 | D38: 24111456 | E38: 12492236 | F38: 425543.89 | G38: 6321724.56 | H38: 12806825 | I38: =H38-G38 -> 6485100.44 | J38: =IF(I38=0,"",I38/H38) -> 0.5063784693 | K38: =SUM(K39:K44) -> 12492236
A39: Pump Station | I39: 0
A40: Reticulation | I40: =H40-G40 -> 0 | J40: =IF(I40=0,"",I40/H40) -> 
A41: Waste Water Treatment Works | I41: =H41-G41 -> 0 | J41: =IF(I41=0,"",I41/H41) -> 
A42: Outfall Sewers | I42: =H42-G42 -> 0 | J42: =IF(I42=0,"",I42/H42) -> 
A43: Toilet Facilities | C43: 0 | D43: 24111456 | E43: 12492236 | F43: 425543.89 | G43: 6321724.56 | H43: 12806825 | I43: 6485100.44 | J43: 0.5063784693 | K43: 12492236
A44: Capital Spares | I44: 0
A45: Solid Waste Infrastructure | C45: =SUM(C46:C52) -> 1184881 | D45: 15796909 | E45: 0 | F45: 0 | G45: -242970.17 | H45: 1842982.8 | I45: =H45-G45 -> 2085952.97 | J45: =IF(I45=0,"",I45/H45) -> 1.131835289 | K45: =SUM(K46:K52) -> 0
A46: Landfill Sites | C46: 1184881 | D46: 15796909 | E46: 0 | F46: 0 | G46: -242970.17 | H46: 1842982.8 | I46: 2085952.97 | J46: 1.131835289 | K46: 0
A47: Waste Transfer Stations | I47: 0
A48: Waste Processing Facilities | I48: =H48-G48 -> 0 | J48: =IF(I48=0,"",I48/H48) -> 
A49: Waste Drop-off Points | I49: 0
A50: Waste Separation Facilities | I50: 0
A51: Electricity Generation Facilities | I51: 0
A52: Capital Spares | I52: 0
A53: Rail Infrastructure | C53: =SUM(C54:C62) -> 0 | D53: 0 | E53: 0 | F53: 0 | G53: 0 | H53: 0 | I53: 0 | K53: =SUM(K54:K62) -> 0
A54: Rail Lines | I54: 0
A55: Rail Structures | I55: 0
A56: Rail Furniture | I56: 0
A57: Drainage Collection | I57: 0
A58: Storm water Conveyance | I58: 0
A59: Attenuation | I59: 0
A60: MV Substations | I60: 0
A61: LV Networks | I61: 0
A62: Capital Spares | I62: 0
A63: Coastal Infrastructure | C63: =SUM(C64:C68) -> 0 | D63: 0 | E63: 0 | F63: 0 | G63: 0 | H63: 0 | I63: 0 | K63: =SUM(K64:K68) -> 0
A64: Sand Pumps | I64: 0
A65: Piers | I65: 0
A66: Revetments | I66: 0
A67: Promenades | I67: 0
A68: Capital Spares | I68: 0
A69: Information and Communication Infrastructure | C69: =SUM(C70:C73) -> 0 | D69: 0 | E69: 0 | F69: 0 | G69: 0 | H69: 0 | I69: =H69-G69 -> 0 | J69: =IF(I69=0,"",I69/H69) ->  | K69: =SUM(K70:K73) -> 0
A70: Data Centres | I70: =H70-G70 -> 0
A71: Core Layers | I71: =H71-G71 -> 0
A72: Distribution Layers | I72: =H72-G72 -> 0
A73: Capital Spares | I73: =H73-G73 -> 0
A75: Community Assets | C75: =+C76+C99 -> 0 | D75: 0 | E75: 0 | F75: 0 | G75: 0 | H75: 0 | I75: =H75-G75 -> 0 | K75: =+K76+K99 -> 0
A76: Community Facilities | C76: =SUM(C77:C98) -> 0 | D76: 0 | E76: 0 | F76: 0 | G76: 0 | H76: 0 | I76: =H76-G76 -> 0 | J76: =IF(I76=0,"",I76/H76) ->  | K76: =SUM(K77:K98) -> 0
A77: Halls | I77: 0
A78: Centres | I78: 0
A79: Crèches | I79: 0
A80: Clinics/Care Centres | I80: 0
A81: Fire/Ambulance Stations | I81: 0
A82: Testing Stations | I82: 0
A83: Museums | I83: 0
A84: Galleries | I84: 0
A85: Theatres | I85: 0
A86: Libraries | I86: 0
A87: Cemeteries/Crematoria | I87: 0
A88: Police | I88: =H88-G88 -> 0 | J88: =IF(I88=0,"",I88/H88) -> 
A89: Purls | I89: 0
A90: Public Open Space | I90: 0
A91: Nature Reserves | I91: 0
A92: Public Ablution Facilities | I92: 0
A93: Markets | I93: 0
A94: Stalls | I94: 0
A95: Abattoirs | I95: 0
A96: Airports | I96: 0
A97: Taxi Ranks/Bus Terminals | I97: 0
A98: Capital Spares | I98: 0
A99: Sport and Recreation Facilities | C99: =SUM(C100:C102) -> 0 | D99: 0 | E99: 0 | F99: 0 | G99: 0 | H99: 0 | I99: 0 | K99: =SUM(K100:K102) -> 0
A100: Indoor Facilities | I100: 0
A101: Outdoor Facilities | I101: 0
A102: Capital Spares | I102: 0
A103: Heritage assets | C103: =SUM(C104:C108) -> 0 | D103: 0 | E103: 0 | F103: 0 | G103: 0 | H103: 0 | I103: 0 | K103: =SUM(K104:K108) -> 0
A104: Monuments | I104: 0
A105: Historic Buildings | I105: 0
A106: Works of Art | I106: 0
A107: Conservation Areas | I107: 0
A108: Other Heritage | I108: 0
I109: 0
A110: Investment properties | C110: =+C111+C114 -> 0 | D110: 0 | E110: 0 | F110: 0 | G110: 0 | H110: 0 | I110: 0 | K110: =+K111+K114 -> 0
A111: Revenue Generating | C111: =SUM(C112:C113) -> 0 | D111: 0 | E111: 0 | F111: 0 | G111: 0 | H111: 0 | I111: 0 | K111: =SUM(K112:K113) -> 0
A112: Improved Property | I112: 0
A113: Unimproved Property | I113: 0
A114: Non-revenue Generating | C114: =SUM(C115:C116) -> 0 | D114: 0 | E114: 0 | F114: 0 | G114: 0 | H114: 0 | I114: 0 | K114: =SUM(K115:K116) -> 0
A115: Improved Property | I115: 0
A116: Unimproved Property | I116: 0
A117: Other assets | C117: =+C118+C130 -> 0 | D117: 0 | E117: 0 | F117: 0 | G117: 0 | H117: 0 | I117: 0 | K117: =+K118+K130 -> 0
A118: Operational Buildings | C118: =SUM(C119:C129) -> 0 | D118: 0 | E118: 0 | F118: 0 | G118: 0 | H118: 0 | I118: 0 | K118: =SUM(K119:K129) -> 0
A119: Municipal Offices | C119: 0 | D119: 0 | E119: 0 | F119: 0 | G119: 0 | H119: 0 | I119: 0 | K119: 0
A120: Pay/Enquiry Points | I120: 0 | J120: =IF(I120=0,"",I120/H120) -> 
A121: Building Plan Offices | I121: 0
A122: Workshops | I122: 0
A123: Yards | I123: 0
A124: Stores | I124: 0
A125: Laboratories | I125: 0
A126: Training Centres | I126: 0
A127: Manufacturing Plant | I127: 0
A128: Depots | I128: 0
A129: Capital Spares | I129: 0
A130: Housing | C130: =SUM(C131:C133) -> 0 | D130: 0 | E130: 0 | F130: 0 | G130: 0 | H130: 0 | I130: 0 | K130: =SUM(K131:K133) -> 0
A131: Staff Housing | I131: 0
A132: Social Housing | I132: 0
A133: Capital Spares | I133: 0
A135: Biological or Cultivated Assets | C135: =SUM(C136:C136) -> 0 | D135: 0 | E135: 0 | F135: 0 | G135: 0 | H135: 0 | I135: =H135-G135 -> 0 | K135: =SUM(K136) -> 0
A136: Biological or Cultivated Assets | I136: =H136-G136 -> 0
A138: Intangible Assets | C138: =SUM(C139:C140) -> 0 | D138: 0 | E138: 0 | F138: 0 | G138: 0 | H138: 0 | I138: =H138-G138 -> 0 | K138: =SUM(K139:K140) -> 0
A139: Servitudes | I139: 0
A140: Licences and Rights | C140: =SUM(C141:C146) -> 0 | D140: 0 | E140: 0 | F140: 0 | G140: 0 | H140: 0 | I140: 0 | K140: =SUM(K141:K146) -> 0
A141: Water Rights | I141: 0
A142: Effluent Licenses | I142: 0
A143: Solid Waste Licenses | I143: 0
A144: Computer Software and Applications | C144: 0 | D144: 0 | E144: 0 | F144: 0 | G144: 0 | H144: 0 | I144: 0 | K144: 0
A145: Load Settlement Software Applications | I145: 0
A146: Unspecified | I146: 0
A148: Computer Equipment | C148: =SUM(C149:C149) -> 0 | D148: 0 | E148: 0 | F148: 0 | G148: 0 | H148: 0 | I148: =H148-G148 -> 0 | J148: =IF(I148=0,"",I148/H148) ->  | K148: =SUM(K149) -> 0
A149: Computer Equipment | I149: =H149-G149 -> 0 | J149: =IF(I149=0,"",I149/H149) -> 
A151: Furniture and Office Equipment | C151: =SUM(C152:C152) -> 117815.3 | D151: 300000 | E151: 113975 | F151: 0 | G151: 139824.44 | H151: 71922.98 | I151: =H151-G151 -> -67901.46 | J151: =IF(I151=0,"",I151/H151) -> -0.9440857428 | K151: =SUM(K152) -> 113975
A152: Furniture and Office Equipment | C152: 117815.3 | D152: 300000 | E152: 113975 | F152: 0 | G152: 139824.44 | H152: 71922.98 | I152: =H152-G152 -> -67901.46 | J152: =IF(I152=0,"",I152/H152) -> -0.9440857428 | K152: 113975
J153: =IF(I153=0,"",I153/H153) -> 
A154: Machinery and Equipment | C154: =SUM(C155:C155) -> 130000 | D154: 300000 | E154: 0 | F154: 0 | G154: 0 | H154: 8344.36 | I154: =H154-G154 -> 8344.36 | J154: =IF(I154=0,"",I154/H154) -> 1 | K154: =SUM(K155) -> 0
A155: Machinery and Equipment | C155: 130000 | D155: 300000 | E155: 0 | F155: 0 | G155: 0 | H155: 8344.36 | I155: =H155-G155 -> 8344.36 | J155: =IF(I155=0,"",I155/H155) -> 1 | K155: 0
A157: Transport Assets | C157: =SUM(C158:C158) -> 0 | D157: 0 | E157: 0 | F157: 0 | G157: 0 | H157: 0 | I157: =H157-G157 -> 0 | J157: =IF(I157=0,"",I157/H157) ->  | K157: =SUM(K158) -> 0
A158: Transport Assets | I158: =H158-G158 -> 0 | J158: =IF(I158=0,"",I158/H158) -> 
A160: Land | C160: =SUM(C161:C161) -> 0 | D160: 0 | E160: 0 | F160: 0 | G160: 0 | H160: 0 | I160: =H160-G160 -> 0 | J160: =IF(I160=0,"",I160/H160) ->  | K160: =SUM(K161) -> 0
A161: Land | I161: =H161-G161 -> 0 | J161: =IF(I161=0,"",I161/H161) -> 
A163: Zoo's, Marine and Non-biological Animals | C163: =SUM(C164:C164) -> 0 | D163: 0 | E163: 0 | F163: 0 | G163: 0 | H163: 0 | I163: =H163-G163 -> 0 | J163: =IF(I163=0,"",I163/H163) ->  | K163: =SUM(K164) -> 0
A164: Zoo's, Marine and Non-biological Animals | I164: =H164-G164 -> 0 | J164: =IF(I164=0,"",I164/H164) -> 
J165: =IF(I165=0,"",I165/H165) -> 
A166: Total Capital Expenditure on new assets | B166: 1 | C166: =C7+C75+C103+C110+C117+C135+C138+C148+C151+C154+C157+C160+C163 -> 13787840.65 | D166: 133961894 | E166: 103380673 | F166: 3924171.44 | G166: 47424350.07 | H166: 98252676.54 | I166: =H166-G166 -> 50828326.47 | J166: =IF(I166=0,"",I166/H166) -> 0.5173225632 | K166: =K7+K75+K103+K110+K117+K135+K138+K148+K151+K154+K157+K160+K163 -> 103380673
A168: =head27a -> References
A169: 1. Total Capital Expenditure on new assets (SC13a) plus Total Capital Expenditure on renewal of existing assets (SC13b) plus Total Capital Expenditure on upgrading of existing assets (SC13e) must reconcile to total capital expenditure in Table C5
A171: check balance | C171: =C166+SC13b!C166+SC13e!C166-'C5-Capex'!C40 -> 0 | D171: =D166+SC13b!D166+SC13e!D166-'C5-Capex'!D40 -> 0 | E171: =E166+SC13b!E166+SC13e!E166-'C5-Capex'!E40 -> 0 | F171: =F166+SC13b!F166+SC13e!F166-'C5-Capex'!F40 -> 0 | G171: =G166+SC13b!G166+SC13e!G166-'C5-Capex'!G40 -> 0 | H171: =H166+SC13b!H166+SC13e!H166-'C5-Capex'!H40 -> 0 | K171: =K166+SC13b!K166+SC13e!K166-'C5-Capex'!K40 -> 0

Sheet SC13b
A1: =muni& " - "&S71Sb& " - "&Head57 -> NW375 Moses Kotane - Supporting Table SC13b Monthly Budget Statement - capital expenditure on renewal of existing assets by asset class - M11 May
A2: =desc -> Description | B2: =head27 -> Ref | C2: =Head1 -> 2018/19 | D2: =Head2 -> Budget Year 2019/20
C3: =Head5 -> Audited Outcome | D3: =Head6 -> Original Budget | E3: =Head7 -> Adjusted Budget | F3: =Head38 -> Monthly actual | G3: =Head39 -> YearTD actual | H3: =Head40 -> YearTD budget | I3: =Head41 -> YTD variance | J3: =Head41 -> YTD variance | K3: =Head8 -> Full Year Forecast
A4: R thousands | B4: 1 | J4: %
A5: Capital expenditure on renewal of existing assets by Asset Class/Sub-class
A7: Infrastructure | C7: =C8+C13+C17+C27+C38+C45+C53+C63+C69 -> 15191171.41 | D7: 0 | E7: 10923593 | F7: 95028.62 | G7: 9136757.5 | H7: 8738874.4 | I7: =H7-G7 -> -397883.1 | J7: =IF(I7=0,"",I7/H7) -> -0.04553024586 | K7: =K8+K13+K17+K27+K38+K45+K53+K63+K69 -> 10923593
A8: Roads Infrastructure | C8: =SUM(C9:C12) -> 0 | D8: 0 | E8: 0 | F8: 0 | G8: 0 | H8: 0 | I8: 0 | K8: =SUM(K9:K12) -> 0
A9: Roads | I9: 0
A10: Road Structures | I10: 0
A11: Road Furniture | I11: 0
A12: Capital Spares | I12: 0
A13: Storm water Infrastructure | C13: =SUM(C14:C16) -> 0 | D13: 0 | E13: 0 | F13: 0 | G13: 0 | H13: 0 | I13: 0 | K13: =SUM(K14:K16) -> 0
A14: Drainage Collection | I14: 0
A15: Storm water Conveyance | I15: 0
A16: Attenuation | I16: 0
A17: Electrical Infrastructure | C17: =SUM(C18:C26) -> 0 | D17: 0 | E17: 0 | F17: 0 | G17: 0 | H17: 0 | I17: 0 | K17: =SUM(K18:K26) -> 0
A18: Power Plants | I18: 0
A19: HV Substations | I19: 0
A20: HV Switching Station | I20: 0
A21: HV Transmission Conductors | I21: 0
A22: MV Substations | I22: 0
A23: MV Switching Stations | I23: 0
A24: MV Networks | I24: 0
A25: LV Networks | I25: 0
A26: Capital Spares | I26: 0
A27: Water Supply Infrastructure | C27: =SUM(C28:C37) -> 15191171.41 | D27: 0 | E27: 10923593 | F27: 95028.62 | G27: 9136757.5 | H27: 8738874.4 | I27: -397883.1 | J27: -0.04553024586 | K27: =SUM(K28:K37) -> 10923593
A28: Dams and Weirs | I28: 0
A29: Boreholes | C29: 15191171.41 | D29: 0 | E29: 10923593 | F29: 95028.62 | G29: 9136757.5 | H29: 8738874.4 | I29: -397883.1 | J29: -0.04553024586 | K29: 10923593
A30: Reservoirs | I30: 0
A31: Pump Stations | I31: 0
A32: Water Treatment Works | I32: 0
A33: Bulk Mains | I33: 0
A34: Distribution | I34: 0
A35: Distribution Points | I35: 0
A36: PRV Stations | I36: 0
A37: Capital Spares | I37: 0
A38: Sanitation Infrastructure | C38: =SUM(C39:C44) -> 0 | D38: 0 | E38: 0 | F38: 0 | G38: 0 | H38: 0 | I38: 0 | K38: =SUM(K39:K44) -> 0
A39: Pump Station | I39: 0
A40: Reticulation | I40: 0
A41: Waste Water Treatment Works | I41: 0
A42: Outfall Sewers | I42: 0
A43: Toilet Facilities | I43: 0
A44: Capital Spares | I44: 0
A45: Solid Waste Infrastructure | C45: =SUM(C46:C52) -> 0 | D45: 0 | E45: 0 | F45: 0 | G45: 0 | H45: 0 | I45: 0 | K45: =SUM(K46:K52) -> 0
A46: Landfill Sites | I46: 0
A47: Waste Transfer Stations | I47: 0
A48: Waste Processing Facilities | I48: 0
A49: Waste Drop-off Points | I49: 0
A50: Waste Separation Facilities | I50: 0
A51: Electricity Generation Facilities | I51: 0
A52: Capital Spares | I52: 0
A53: Rail Infrastructure | C53: =SUM(C54:C62) -> 0 | D53: 0 | E53: 0 | F53: 0 | G53: 0 | H53: 0 | I53: 0 | K53: =SUM(K54:K62) -> 0
A54: Rail Lines | I54: 0
A55: Rail Structures | I55: 0
A56: Rail Furniture | I56: 0
A57: Drainage Collection | I57: 0
A58: Storm water Conveyance | I58: 0
A59: Attenuation | I59: 0
A60: MV Substations | I60: 0
A61: LV Networks | I61: 0
A62: Capital Spares | I62: 0
A63: Coastal Infrastructure | C63: =SUM(C64:C68) -> 0 | D63: 0 | E63: 0 | F63: 0 | G63: 0 | H63: 0 | I63: 0 | K63: =SUM(K64:K68) -> 0
A64: Sand Pumps | I64: 0
A65: Piers | I65: 0
A66: Revetments | I66: 0
A67: Promenades | I67: 0
A68: Capital Spares | I68: 0
A69: Information and Communication Infrastructure | C69: =SUM(C70:C73) -> 0 | D69: 0 | E69: 0 | F69: 0 | G69: 0 | H69: 0 | I69: 0 | K69: =SUM(K70:K73) -> 0
A70: Data Centres | I70: 0
A71: Core Layers | I71: 0
A72: Distribution Layers | I72: 0
A73: Capital Spares | I73: 0
A75: Community Assets | C75: =+C76+C99 -> -0.1 | D75: 12000000 | E75: 20106309 | F75: 560633.7 | G75: 11925969.99 | H75: 17485047.2 | I75: 5559077.21 | J75: 0.3179332115 | K75: =+K76+K99 -> 20106309
A76: Community Facilities | C76: =SUM(C77:C98) -> -0.1 | D76: 12000000 | E76: 20106309 | F76: 560633.7 | G76: 11925969.99 | H76: 17485047.2 | I76: 5559077.21 | J76: 0.3179332115 | K76: =SUM(K77:K98) -> 20106309
A77: Halls | C77: -0.1 | D77: 12000000 | E77: 20106309 | F77: 560633.7 | G77: 11925969.99 | H77: 17485047.2 | I77: 5559077.21 | J77: 0.3179332115 | K77: 20106309
A78: Centres | I78: 0
A79: Crèches | I79: 0
A80: Clinics/Care Centres | I80: 0
A81: Fire/Ambulance Stations | I81: 0
A82: Testing Stations | C82: 0 | D82: 0 | E82: 0 | F82: 0 | G82: 0 | H82: 0 | I82: 0 | K82: 0
A83: Museums | I83: 0
A84: Galleries | I84: 0
A85: Theatres | I85: 0
A86: Libraries | I86: 0
A87: Cemeteries/Crematoria | I87: 0
A88: Police | I88: 0
A89: Purls | I89: 0
A90: Public Open Space | C90: 0 | D90: 0 | E90: 0 | F90: 0 | G90: 0 | H90: 0 | I90: 0 | K90: 0
A91: Nature Reserves | I91: 0
A92: Public Ablution Facilities | I92: 0
A93: Markets | I93: 0
A94: Stalls | I94: 0
A95: Abattoirs | I95: 0
A96: Airports | I96: 0
A97: Taxi Ranks/Bus Terminals | C97: 0 | D97: 0 | E97: 0 | F97: 0 | G97: 0 | H97: 0 | I97: 0 | K97: 0
A98: Capital Spares | I98: 0
A99: Sport and Recreation Facilities | C99: =SUM(C100:C102) -> 0 | D99: 0 | E99: 0 | F99: 0 | G99: 0 | H99: 0 | I99: 0 | K99: =SUM(K100:K102) -> 0
A100: Indoor Facilities | I100: 0
A101: Outdoor Facilities | I101: =H101-G101 -> 0 | J101: =IF(I101=0,"",I101/H101) -> 
A102: Capital Spares | I102: 0
A103: Heritage assets | C103: =SUM(C104:C108) -> 0 | D103: 0 | E103: 0 | F103: 0 | G103: 0 | H103: 0 | I103: 0 | K103: =SUM(K104:K108) -> 0
A104: Monuments | I104: 0
A105: Historic Buildings | I105: 0
A106: Works of Art | I106: 0
A107: Conservation Areas | I107: 0
A108: Other Heritage | I108: 0
I109: 0
A110: Investment properties | C110: =+C111+C114 -> 0 | D110: 0 | E110: 0 | F110: 0 | G110: 0 | H110: 0 | I110: 0 | K110: =+K111+K114 -> 0
A111: Revenue Generating | C111: =SUM(C112:C113) -> 0 | D111: 0 | E111: 0 | F111: 0 | G111: 0 | H111: 0 | I111: 0 | K111: =SUM(K112:K113) -> 0
A112: Improved Property | I112: 0
A113: Unimproved Property | I113: 0
A114: Non-revenue Generating | C114: =SUM(C115:C116) -> 0 | D114: 0 | E114: 0 | F114: 0 | G114: 0 | H114: 0 | I114: 0 | K114: =SUM(K115:K116) -> 0
A115: Improved Property | I115: 0
A116: Unimproved Property | I116: =H116-G116 -> 0 | J116: =IF(I116=0,"",I116/H116) -> 
A117: Other assets | C117: =+C118+C130 -> 0 | D117: 2590253 | E117: 10620445 | F117: 736137.81 | G117: 8026041.97 | H117: 8798558.6 | I117: 772516.63 | J117: 0.08780036198 | K117: =+K118+K130 -> 10620445
A118: Operational Buildings | C118: =SUM(C119:C129) -> 0 | D118: 2590253 | E118: 10620445 | F118: 736137.81 | G118: 8026041.97 | H118: 8798558.6 | I118: 772516.63 | J118: 0.08780036198 | K118: =SUM(K119:K129) -> 10620445
A119: Municipal Offices | C119: 0 | D119: 0 | E119: 0 | F119: 0 | G119: 0 | H119: 0 | I119: 0 | K119: 0
A120: Pay/Enquiry Points | I120: 0
A121: Building Plan Offices | I121: 0
A122: Workshops | I122: 0
A123: Yards | I123: 0
A124: Stores | C124: 0 | D124: 2590253 | E124: 10620445 | F124: 736137.81 | G124: 8026041.97 | H124: 8798558.6 | I124: 772516.63 | J124: 0.08780036198 | K124: 10620445
A125: Laboratories | I125: 0
A126: Training Centres | I126: 0
A127: Manufacturing Plant | I127: 0
A128: Depots | I128: 0
A129: Capital Spares | I129: 0
A130: Housing | C130: =SUM(C131:C133) -> 0 | D130: 0 | E130: 0 | F130: 0 | G130: 0 | H130: 0 | I130: 0 | K130: =SUM(K131:K133) -> 0
A131: Staff Housing | I131: 0
A132: Social Housing | I132: 0
A133: Capital Spares | I133: 0
A135: Biological or Cultivated Assets | C135: =SUM(C136:C136) -> 0 | D135: 0 | E135: 0 | F135: 0 | G135: 0 | H135: 0 | I135: =H135-G135 -> 0 | K135: =SUM(K136) -> 0
A136: Biological or Cultivated Assets | I136: =H136-G136 -> 0
J137: =IF(I137=0,"",I137/H137) -> 
A138: Intangible Assets | C138: =SUM(C139:C140) -> -0.01 | D138: 250000 | E138: 0 | F138: 0 | G138: 0 | H138: 6951.84 | I138: =H138-G138 -> 6951.84 | J138: 1 | K138: =SUM(K139:K140) -> 0
A139: Servitudes | I139: 0
A140: Licences and Rights | C140: =SUM(C141:C146) -> -0.01 | D140: 250000 | E140: 0 | F140: 0 | G140: 0 | H140: 6951.84 | I140: 6951.84 | J140: 1 | K140: =SUM(K141:K146) -> 0
A141: Water Rights | I141: 0
A142: Effluent Licenses | I142: 0
A143: Solid Waste Licenses | I143: 0
A144: Computer Software and Applications | C144: -0.01 | D144: 250000 | E144: 0 | F144: 0 | G144: 0 | H144: 6951.84 | I144: 6951.84 | J144: 1 | K144: 0
A145: Load Settlement Software Applications | I145: 0
A146: Unspecified | I146: 0
A148: Computer Equipment | C148: =SUM(C149:C149) -> 0 | D148: 0 | E148: 0 | F148: 0 | G148: 0 | H148: 0 | I148: =H148-G148 -> 0 | J148: =IF(I148=0,"",I148/H148) ->  | K148: =SUM(K149) -> 0
A149: Computer Equipment | I149: =H149-G149 -> 0 | J149: =IF(I149=0,"",I149/H149) -> 
A151: Furniture and Office Equipment | C151: =SUM(C152:C152) -> 0 | D151: 0 | E151: 0 | F151: 0 | G151: 0 | H151: 0 | I151: =H151-G151 -> 0 | J151: =IF(I151=0,"",I151/H151) ->  | K151: =SUM(K152) -> 0
A152: Furniture and Office Equipment | I152: =H152-G152 -> 0 | J152: =IF(I152=0,"",I152/H152) -> 
J153: =IF(I153=0,"",I153/H153) -> 
A154: Machinery and Equipment | C154: =SUM(C155:C155) -> 0 | D154: 0 | E154: 0 | F154: 0 | G154: 0 | H154: 0 | I154: =H154-G154 -> 0 | J154: =IF(I154=0,"",I154/H154) ->  | K154: =SUM(K155) -> 0
A155: Machinery and Equipment | I155: =H155-G155 -> 0 | J155: =IF(I155=0,"",I155/H155) -> 
A157: Transport Assets | C157: =SUM(C158:C158) -> 0 | D157: 0 | E157: 0 | F157: 0 | G157: 0 | H157: 0 | I157: =H157-G157 -> 0 | J157: =IF(I157=0,"",I157/H157) ->  | K157: =SUM(K158) -> 0
A158: Transport Assets | I158: =H158-G158 -> 0 | J158: =IF(I158=0,"",I158/H158) -> 
A160: Land | C160: =SUM(C161:C161) -> 0 | D160: 0 | E160: 0 | F160: 0 | G160: 0 | H160: 0 | I160: =H160-G160 -> 0 | J160: =IF(I160=0,"",I160/H160) ->  | K160: =SUM(K161) -> 0
A161: Land | I161: =H161-G161 -> 0 | J161: =IF(I161=0,"",I161/H161) -> 
J162: .
A163: Zoo's, Marine and Non-biological Animals | C163: =SUM(C164:C164) -> 0 | D163: 0 | E163: 0 | F163: 0 | G163: 0 | H163: 0 | I163: =H163-G163 -> 0 | J163: =IF(I163=0,"",I163/H163) ->  | K163: =SUM(K164) -> 0
A164: Zoo's, Marine and Non-biological Animals | I164: =H164-G164 -> 0 | J164: =IF(I164=0,"",I164/H164) -> 
J165: =IF(I165=0,"",I165/H165) -> 
A166: Total Capital Expenditure on renewal of existing assets | B166: 1 | C166: =C7+C75+C103+C110+C117+C135+C138+C148+C151+C154+C157+C160+C163 -> 15191171.3 | D166: 14840253 | E166: 41650347 | F166: 1391800.13 | G166: 29088769.46 | H166: 35029432.04 | I166: =H166-G166 -> 5940662.58 | J166: =IF(I166=0,"",I166/H166) -> 0.1695906052 | K166: =K7+K75+K103+K110+K117+K135+K138+K148+K151+K154+K157+K160+K163 -> 41650347
A168: =head27a -> References
A169: 1. Total Capital Expenditure on new assets (SC13a) plus Total Capital Expenditure on renewal of existing assets (SC13b) plus Total Capital Expenditure on upgrading of existing assets (SC13e) must reconcile to total capital expenditure in Table C5
A171: check balance | C171: =C166+SC13a!C166+SC13e!C166-'C5-Capex'!C40 -> 0 | D171: =D166+SC13a!D166+SC13e!D166-'C5-Capex'!D40 -> 0 | E171: =E166+SC13a!E166+SC13e!E166-'C5-Capex'!E40 -> 0 | F171: =F166+SC13a!F166+SC13e!F166-'C5-Capex'!F40 -> 0 | G171: =G166+SC13a!G166+SC13e!G166-'C5-Capex'!G40 -> 0 | H171: =H166+SC13a!H166+SC13e!H166-'C5-Capex'!H40 -> 0 | K171: =K166+SC13a!K166+SC13e!K166-'C5-Capex'!K40 -> 0

Sheet SC13c
A1: =muni& " - "&S71Sc& " - "&Head57 -> NW375 Moses Kotane - Supporting Table SC13c Monthly Budget Statement - expenditure on repairs and maintenance by asset class - M11 May
A2: =desc -> Description | B2: =head27 -> Ref | C2: =Head1 -> 2018/19 | D2: =Head2 -> Budget Year 2019/20
C3: =Head5 -> Audited Outcome | D3: =Head6 -> Original Budget | E3: =Head7 -> Adjusted Budget | F3: =Head38 -> Monthly actual | G3: =Head39 -> YearTD actual | H3: =Head40 -> YearTD budget | I3: =Head41 -> YTD variance | J3: =Head41 -> YTD variance | K3: =Head8 -> Full Year Forecast
A4: R thousands | B4: 1 | J4: %
A5: Repairs and maintenance expenditure by Asset Class/Sub-class
A7: Infrastructure | C7: =C8+C13+C17+C27+C38+C45+C53+C63+C69 -> 48829401.29 | D7: 47910000 | E7: 36338475 | F7: 102673 | G7: 32896767.08 | H7: 33375868.76 | I7: =H7-G7 -> 479101.68 | J7: =IF(I7=0,"",I7/H7) -> 0.01435473286 | K7: =K8+K13+K17+K27+K38+K45+K53+K63+K69 -> 36338475
A8: Roads Infrastructure | C8: =SUM(C9:C12) -> 2704722.19 | D8: 9400000 | E8: 1050000 | F8: 0 | G8: 165025.5 | H8: 1391912.2 | I8: 1226886.7 | J8: 0.8814397201 | K8: =SUM(K9:K12) -> 1050000
A9: Roads | C9: 2696400.45 | D9: 9000000 | E9: 1000000 | F9: 0 | G9: 165025.5 | H9: 1323015.96 | I9: 1157990.46 | J9: 0.8752656771 | K9: 1000000
A10: Road Structures | I10: 0
A11: Road Furniture | C11: 8321.74 | D11: 400000 | E11: 50000 | F11: 0 | G11: 0 | H11: 68896.24 | I11: 68896.24 | J11: 1 | K11: 50000
A12: Capital Spares | I12: 0
A13: Storm water Infrastructure | C13: =SUM(C14:C16) -> 820894.95 | D13: 2000000 | E13: 450000 | F13: 0 | G13: 31011.78 | H13: 482225.96 | I13: 451214.18 | J13: 0.9356903556 | K13: =SUM(K14:K16) -> 450000
A14: Drainage Collection | I14: 0
A15: Storm water Conveyance | C15: 820894.95 | D15: 2000000 | E15: 450000 | F15: 0 | G15: 31011.78 | H15: 482225.96 | I15: 451214.18 | J15: 0.9356903556 | K15: 450000
A16: Attenuation | I16: 0
A17: Electrical Infrastructure | C17: =SUM(C18:C26) -> 8481628.48 | D17: 6000000 | E17: 1000000 | F17: 0 | G17: 670 | H17: 1233333.36 | I17: 1232663.36 | J17: 0.9994567568 | K17: =SUM(K18:K26) -> 1000000
A18: Power Plants | I18: 0
A19: HV Substations | I19: 0
A20: HV Switching Station | I20: 0
A21: HV Transmission Conductors | I21: 0
A22: MV Substations | I22: 0
A23: MV Switching Stations | I23: 0
A24: MV Networks | I24: 0
A25: LV Networks | C25: 8481628.48 | D25: 6000000 | E25: 1000000 | F25: 0 | G25: 670 | H25: 1233333.36 | I25: 1232663.36 | J25: 0.9994567568 | K25: 1000000
A26: Capital Spares | I26: 0
A27: Water Supply Infrastructure | C27: =SUM(C28:C37) -> 523157.55 | D27: 300000 | E27: 150000 | F27: 0 | G27: 68879.95 | H27: 155000 | I27: 86120.05 | J27: 0.5556132258 | K27: =SUM(K28:K37) -> 150000
A28: Dams and Weirs | I28: 0
A29: Boreholes | I29: 0
A30: Reservoirs | C30: 523157.55 | D30: 300000 | E30: 150000 | F30: 0 | G30: 68879.95 | H30: 155000 | I30: 86120.05 | J30: 0.5556132258 | K30: 150000
A31: Pump Stations | I31: 0
A32: Water Treatment Works | I32: 0
A33: Bulk Mains | I33: 0
A34: Distribution | I34: 0
A35: Distribution Points | I35: 0
A36: PRV Stations | I36: 0
A37: Capital Spares | I37: 0
A38: Sanitation Infrastructure | C38: =SUM(C39:C44) -> 0 | D38: 0 | E38: 0 | F38: 0 | G38: 0 | H38: 0 | I38: 0 | K38: =SUM(K39:K44) -> 0
A39: Pump Station | I39: 0
A40: Reticulation | I40: 0
A41: Waste Water Treatment Works | I41: 0
A42: Outfall Sewers | I42: 0
A43: Toilet Facilities | I43: 0
A44: Capital Spares | I44: 0
A45: Solid Waste Infrastructure | C45: =SUM(C46:C52) -> 36298998.12 | D45: 30210000 | E45: 33688475 | F45: 102673 | G45: 32631179.85 | H45: 30113397.24 | I45: -2517782.61 | J45: -0.08361004871 | K45: =SUM(K46:K52) -> 33688475
A46: Landfill Sites | C46: 36298998.12 | D46: 30210000 | E46: 33688475 | F46: 102673 | G46: 32631179.85 | H46: 30113397.24 | I46: -2517782.61 | J46: -0.08361004871 | K46: 33688475
A47: Waste Transfer Stations | C47: 0 | D47: 0 | E47: 0 | F47: 0 | G47: 0 | H47: 0 | I47: 0 | K47: 0
A48: Waste Processing Facilities | I48: 0
A49: Waste Drop-off Points | I49: 0
A50: Waste Separation Facilities | I50: 0
A51: Electricity Generation Facilities | I51: 0
A52: Capital Spares | I52: 0
A53: Rail Infrastructure | C53: =SUM(C54:C62) -> 0 | D53: 0 | E53: 0 | F53: 0 | G53: 0 | H53: 0 | I53: 0 | K53: =SUM(K54:K62) -> 0
A54: Rail Lines | I54: 0
A55: Rail Structures | I55: 0
A56: Rail Furniture | I56: 0
A57: Drainage Collection | I57: 0
A58: Storm water Conveyance | I58: 0
A59: Attenuation | I59: 0
A60: MV Substations | I60: 0
A61: LV Networks | I61: 0
A62: Capital Spares | I62: 0
A63: Coastal Infrastructure | C63: =SUM(C64:C68) -> 0 | D63: 0 | E63: 0 | F63: 0 | G63: 0 | H63: 0 | I63: 0 | K63: =SUM(K64:K68) -> 0
A64: Sand Pumps | I64: 0
A65: Piers | I65: 0
A66: Revetments | I66: 0
A67: Promenades | I67: 0
A68: Capital Spares | I68: 0
A69: Information and Communication Infrastructure | C69: =SUM(C70:C73) -> 0 | D69: 0 | E69: 0 | F69: 0 | G69: 0 | H69: 0 | I69: 0 | K69: =SUM(K70:K73) -> 0
A70: Data Centres | I70: 0
A71: Core Layers | I71: 0
A72: Distribution Layers | I72: 0
A73: Capital Spares | I73: 0
A75: Community Assets | C75: =+C76+C99 -> 489481.92 | D75: 500000 | E75: 200000 | F75: 0 | G75: 8590.65 | H75: 209448.12 | I75: 200857.47 | J75: 0.9589843537 | K75: =+K76+K99 -> 200000
A76: Community Facilities | C76: =SUM(C77:C98) -> 0 | D76: 0 | E76: 0 | F76: 0 | G76: 0 | H76: 0 | I76: 0 | K76: =SUM(K77:K98) -> 0
A77: Halls | I77: 0
A78: Centres | I78: 0
A79: Crèches | I79: 0
A80: Clinics/Care Centres | I80: 0
A81: Fire/Ambulance Stations | I81: 0
A82: Testing Stations | C82: 0 | D82: 0 | E82: 0 | F82: 0 | G82: 0 | H82: 0 | I82: 0 | K82: 0
A83: Museums | I83: 0
A84: Galleries | I84: 0
A85: Theatres | I85: 0
A86: Libraries | I86: 0
A87: Cemeteries/Crematoria | C87: 0 | D87: 0 | E87: 0 | F87: 0 | G87: 0 | H87: 0 | I87: 0 | K87: 0
A88: Police | I88: 0
A89: Purls | I89: 0
A90: Public Open Space | I90: 0
A91: Nature Reserves | I91: 0
A92: Public Ablution Facilities | I92: 0
A93: Markets | I93: 0
A94: Stalls | I94: 0
A95: Abattoirs | I95: 0
A96: Airports | I96: 0
A97: Taxi Ranks/Bus Terminals | I97: 0
A98: Capital Spares | I98: 0
A99: Sport and Recreation Facilities | C99: =SUM(C100:C102) -> 489481.92 | D99: 500000 | E99: 200000 | F99: 0 | G99: 8590.65 | H99: 209448.12 | I99: 200857.47 | J99: 0.9589843537 | K99: =SUM(K100:K102) -> 200000
A100: Indoor Facilities | I100: 0
A101: Outdoor Facilities | C101: 489481.92 | D101: 500000 | E101: 200000 | F101: 0 | G101: 8590.65 | H101: 209448.12 | I101: =H101-G101 -> 200857.47 | J101: =IF(I101=0,"",I101/H101) -> 0.9589843537 | K101: 200000
A102: Capital Spares | I102: 0
A103: Heritage assets | C103: =SUM(C104:C108) -> 0 | D103: 0 | E103: 0 | F103: 0 | G103: 0 | H103: 0 | I103: 0 | K103: =SUM(K104:K108) -> 0
A104: Monuments | I104: 0
A105: Historic Buildings | I105: 0
A106: Works of Art | I106: 0
A107: Conservation Areas | I107: 0
A108: Other Heritage | I108: 0
I109: 0
A110: Investment properties | C110: =+C111+C114 -> 0 | D110: 0 | E110: 0 | F110: 0 | G110: 0 | H110: 0 | I110: 0 | K110: =+K111+K114 -> 0
A111: Revenue Generating | C111: =SUM(C112:C113) -> 0 | D111: 0 | E111: 0 | F111: 0 | G111: 0 | H111: 0 | I111: 0 | K111: =SUM(K112:K113) -> 0
A112: Improved Property | I112: 0
A113: Unimproved Property | I113: 0
A114: Non-revenue Generating | C114: =SUM(C115:C116) -> 0 | D114: 0 | E114: 0 | F114: 0 | G114: 0 | H114: 0 | I114: 0 | K114: =SUM(K115:K116) -> 0
A115: Improved Property | I115: 0
A116: Unimproved Property | I116: =H116-G116 -> 0 | J116: =IF(I116=0,"",I116/H116) -> 
A117: Other assets | C117: =+C118+C130 -> 6835900.54 | D117: 7800000 | E117: 2500000 | F117: 140277.76 | G117: 1776105 | H117: 2838888.96 | I117: 1062783.96 | J117: 0.3743661605 | K117: =+K118+K130 -> 2500000
A118: Operational Buildings | C118: =SUM(C119:C129) -> 6835900.54 | D118: 7800000 | E118: 2500000 | F118: 140277.76 | G118: 1776105 | H118: 2838888.96 | I118: 1062783.96 | J118: 0.3743661605 | K118: =SUM(K119:K129) -> 2500000
A119: Municipal Offices | C119: 6835900.54 | D119: 7800000 | E119: 2500000 | F119: 140277.76 | G119: 1776105 | H119: 2838888.96 | I119: 1062783.96 | J119: 0.3743661605 | K119: 2500000
A120: Pay/Enquiry Points | I120: 0
A121: Building Plan Offices | I121: 0
A122: Workshops | I122: 0
A123: Yards | I123: 0
A124: Stores | I124: 0
A125: Laboratories | I125: 0
A126: Training Centres | I126: 0
A127: Manufacturing Plant | I127: 0
A128: Depots | I128: 0
A129: Capital Spares | I129: 0
A130: Housing | C130: =SUM(C131:C133) -> 0 | D130: 0 | E130: 0 | F130: 0 | G130: 0 | H130: 0 | I130: 0 | K130: =SUM(K131:K133) -> 0
A131: Staff Housing | I131: 0
A132: Social Housing | I132: 0
A133: Capital Spares | I133: 0
A135: Biological or Cultivated Assets | C135: =SUM(C136:C136) -> 0 | D135: 0 | E135: 0 | F135: 0 | G135: 0 | H135: 0 | I135: =H135-G135 -> 0 | K135: =SUM(K136) -> 0
A136: Biological or Cultivated Assets | I136: =H136-G136 -> 0
J137: =IF(I137=0,"",I137/H137) -> 
A138: Intangible Assets | C138: =SUM(C139:C140) -> 422650.89 | D138: 3000000 | E138: 2000000 | F138: 0 | G138: 17042.61 | H138: 1772222.24 | I138: =H138-G138 -> 1755179.63 | J138: 0.9903834803 | K138: =SUM(K139:K140) -> 2000000
A139: Servitudes | I139: 0
A140: Licences and Rights | C140: =SUM(C141:C146) -> 422650.89 | D140: 3000000 | E140: 2000000 | F140: 0 | G140: 17042.61 | H140: 1772222.24 | I140: 1755179.63 | J140: 0.9903834803 | K140: =SUM(K141:K146) -> 2000000
A141: Water Rights | I141: 0
A142: Effluent Licenses | I142: 0
A143: Solid Waste Licenses | I143: 0
A144: Computer Software and Applications | C144: 422650.89 | D144: 3000000 | E144: 2000000 | F144: 0 | G144: 17042.61 | H144: 1772222.24 | I144: 1755179.63 | J144: 0.9903834803 | K144: 2000000
A145: Load Settlement Software Applications | I145: 0
A146: Unspecified | I146: 0
A148: Computer Equipment | C148: =SUM(C149:C149) -> 65711.83 | D148: 80000 | E148: 50000 | F148: 0 | G148: 3887 | H148: 49337 | I148: =H148-G148 -> 45450 | J148: =IF(I148=0,"",I148/H148) -> 0.9212153151 | K148: =SUM(K149) -> 50000
A149: Computer Equipment | C149: 65711.83 | D149: 80000 | E149: 50000 | F149: 0 | G149: 3887 | H149: 49337 | I149: =H149-G149 -> 45450 | J149: =IF(I149=0,"",I149/H149) -> 0.9212153151 | K149: 50000
A151: Furniture and Office Equipment | C151: =SUM(C152:C152) -> 0 | D151: 0 | E151: 0 | F151: 0 | G151: 0 | H151: 0 | I151: =H151-G151 -> 0 | J151: =IF(I151=0,"",I151/H151) ->  | K151: =SUM(K152) -> 0
A152: Furniture and Office Equipment | I152: =H152-G152 -> 0 | J152: =IF(I152=0,"",I152/H152) -> 
J153: =IF(I153=0,"",I153/H153) -> 
A154: Machinery and Equipment | C154: =SUM(C155:C155) -> 0 | D154: 0 | E154: 0 | F154: 0 | G154: 0 | H154: 0 | I154: =H154-G154 -> 0 | J154: =IF(I154=0,"",I154/H154) ->  | K154: =SUM(K155) -> 0
A155: Machinery and Equipment | C155: 0 | D155: 0 | E155: 0 | F155: 0 | G155: 0 | H155: 0 | I155: =H155-G155 -> 0 | J155: =IF(I155=0,"",I155/H155) ->  | K155: 0
A157: Transport Assets | C157: =SUM(C158:C158) -> 6233612.66 | D157: 5850000 | E157: 5950000 | F157: 234519.73 | G157: 8502693.19 | H157: 5353611.12 | I157: =H157-G157 -> -3149082.07 | J157: =IF(I157=0,"",I157/H157) -> -0.5882164392 | K157: =SUM(K158) -> 5950000
A158: Transport Assets | C158: 6233612.66 | D158: 5850000 | E158: 5950000 | F158: 234519.73 | G158: 8502693.19 | H158: 5353611.12 | I158: =H158-G158 -> -3149082.07 | J158: =IF(I158=0,"",I158/H158) -> -0.5882164392 | K158: 5950000
A160: Land | C160: =SUM(C161:C161) -> 0 | D160: 0 | E160: 0 | F160: 0 | G160: 0 | H160: 0 | I160: =H160-G160 -> 0 | J160: =IF(I160=0,"",I160/H160) ->  | K160: =SUM(K161) -> 0
A161: Land | I161: =H161-G161 -> 0 | J161: =IF(I161=0,"",I161/H161) -> 
A163: Zoo's, Marine and Non-biological Animals | C163: =SUM(C164:C164) -> 0 | D163: 0 | E163: 0 | F163: 0 | G163: 0 | H163: 0 | I163: =H163-G163 -> 0 | J163: =IF(I163=0,"",I163/H163) ->  | K163: =SUM(K164) -> 0
A164: Zoo's, Marine and Non-biological Animals | I164: =H164-G164 -> 0 | J164: =IF(I164=0,"",I164/H164) -> 
J165: =IF(I165=0,"",I165/H165) -> 
A166: Total Repairs and Maintenance Expenditure | B166: 1 | C166: =C7+C75+C103+C110+C117+C135+C138+C148+C151+C154+C157+C160+C163 -> 62876759.13 | D166: 65140000 | E166: 47038475 | F166: 477470.49 | G166: 43205085.53 | H166: 43599376.2 | I166: 394290.67 | J166: 0.009043493379 | K166: =K7+K75+K103+K110+K117+K135+K138+K148+K151+K154+K157+K160+K163 -> 47038475

Sheet SC13d
A1: =muni& " - "&S71Sd& " - "&Head57 -> NW375 Moses Kotane - Supporting Table SC13d Monthly Budget Statement - depreciation by asset class - M11 May
A2: =desc -> Description | B2: =head27 -> Ref | C2: =Head1 -> 2018/19 | D2: =Head2 -> Budget Year 2019/20
C3: =Head5 -> Audited Outcome | D3: =Head6 -> Original Budget | E3: =Head7 -> Adjusted Budget | F3: =Head38 -> Monthly actual | G3: =Head39 -> YearTD actual | H3: =Head40 -> YearTD budget | I3: =Head41 -> YTD variance | J3: =Head41 -> YTD variance | K3: =Head8 -> Full Year Forecast
A4: R thousands | B4: 1 | J4: %
A5: Depreciation by Asset Class/Sub-class
A7: Infrastructure | C7: =C8+C13+C17+C27+C38+C45+C53+C63+C69 -> 208589437.9 | D7: 22482248 | E7: 22482248 | F7: 1873522 | G7: 79498306.67 | H7: 20608742 | I7: =H7-G7 -> -58889564.67 | J7: =IF(I7=0,"",I7/H7) -> -2.857504096 | K7: =K8+K13+K17+K27+K38+K45+K53+K63+K69 -> 22482248
A8: Roads Infrastructure | C8: =SUM(C9:C12) -> 114819008.6 | D8: 0 | E8: 0 | F8: 0 | G8: 34426475.25 | H8: 0 | I8: -34426475.25 | K8: =SUM(K9:K12) -> 0
A9: Roads | C9: 114819008.6 | D9: 0 | E9: 0 | F9: 0 | G9: 34426475.25 | H9: 0 | I9: -34426475.25 | K9: 0
A10: Road Structures | C10: 0 | D10: 0 | E10: 0 | F10: 0 | G10: 0 | H10: 0 | I10: 0 | K10: 0
A11: Road Furniture | C11: 0 | D11: 0 | E11: 0 | F11: 0 | G11: 0 | H11: 0 | I11: 0 | K11: 0
A12: Capital Spares | C12: 0 | D12: 0 | E12: 0 | F12: 0 | G12: 0 | H12: 0 | I12: 0 | K12: 0
A13: Storm water Infrastructure | C13: =SUM(C14:C16) -> 3308227.91 | D13: 0 | E13: 0 | F13: 0 | G13: 2525401.02 | H13: 0 | I13: -2525401.02 | K13: =SUM(K14:K16) -> 0
A14: Drainage Collection | C14: 3308227.91 | D14: 0 | E14: 0 | F14: 0 | G14: 2525401.02 | H14: 0 | I14: -2525401.02 | K14: 0
A15: Storm water Conveyance | C15: 0 | D15: 0 | E15: 0 | F15: 0 | G15: 0 | H15: 0 | I15: 0 | K15: 0
A16: Attenuation | C16: 0 | D16: 0 | E16: 0 | F16: 0 | G16: 0 | H16: 0 | I16: 0 | K16: 0
A17: Electrical Infrastructure | C17: =SUM(C18:C26) -> 2613050.57 | D17: 8099870 | E17: 8099870 | F17: 674990 | G17: 2770164.19 | H17: 7424890 | I17: 4654725.81 | J17: 0.6269083865 | K17: =SUM(K18:K26) -> 8099870
A18: Power Plants | C18: 2613050.57 | D18: 8099870 | E18: 8099870 | F18: 674990 | G18: 2770164.19 | H18: 7424890 | I18: 4654725.81 | J18: 0.6269083865 | K18: 8099870
A19: HV Substations | C19: 0 | D19: 0 | E19: 0 | F19: 0 | G19: 0 | H19: 0 | I19: 0 | K19: 0
A20: HV Switching Station | C20: 0 | D20: 0 | E20: 0 | F20: 0 | G20: 0 | H20: 0 | I20: 0 | K20: 0
A21: HV Transmission Conductors | C21: 0 | D21: 0 | E21: 0 | F21: 0 | G21: 0 | H21: 0 | I21: 0 | K21: 0
A22: MV Substations | C22: 0 | D22: 0 | E22: 0 | F22: 0 | G22: 0 | H22: 0 | I22: 0 | K22: 0
A23: MV Switching Stations | C23: 0 | D23: 0 | E23: 0 | F23: 0 | G23: 0 | H23: 0 | I23: 0 | K23: 0
A24: MV Networks | C24: 0 | D24: 0 | E24: 0 | F24: 0 | G24: 0 | H24: 0 | I24: 0 | K24: 0
A25: LV Networks | C25: 0 | D25: 0 | E25: 0 | F25: 0 | G25: 0 | H25: 0 | I25: 0 | K25: 0
A26: Capital Spares | C26: 0 | D26: 0 | E26: 0 | F26: 0 | G26: 0 | H26: 0 | I26: 0 | K26: 0
A27: Water Supply Infrastructure | C27: =SUM(C28:C37) -> 83812235.51 | D27: 0 | E27: 0 | F27: 0 | G27: 35799543.21 | H27: 0 | I27: -35799543.21 | K27: =SUM(K28:K37) -> 0
A28: Dams and Weirs | C28: 0 | D28: 0 | E28: 0 | F28: 0 | G28: 0 | H28: 0 | I28: 0 | K28: 0
A29: Boreholes | C29: 0 | D29: 0 | E29: 0 | F29: 0 | G29: 0 | H29: 0 | I29: 0 | K29: 0
A30: Reservoirs | C30: 0 | D30: 0 | E30: 0 | F30: 0 | G30: 0 | H30: 0 | I30: 0 | K30: 0
A31: Pump Stations | C31: 0 | D31: 0 | E31: 0 | F31: 0 | G31: 0 | H31: 0 | I31: 0 | K31: 0
A32: Water Treatment Works | C32: 0 | D32: 0 | E32: 0 | F32: 0 | G32: 0 | H32: 0 | I32: 0 | K32: 0
A33: Bulk Mains | C33: 0 | D33: 0 | E33: 0 | F33: 0 | G33: 0 | H33: 0 | I33: 0 | K33: 0
A34: Distribution | C34: 83812235.51 | D34: 0 | E34: 0 | F34: 0 | G34: 35799543.21 | H34: 0 | I34: -35799543.21 | K34: 0
A35: Distribution Points | C35: 0 | D35: 0 | E35: 0 | F35: 0 | G35: 0 | H35: 0 | I35: 0 | K35: 0
A36: PRV Stations | C36: 0 | D36: 0 | E36: 0 | F36: 0 | G36: 0 | H36: 0 | I36: 0 | K36: 0
A37: Capital Spares | C37: 0 | D37: 0 | E37: 0 | F37: 0 | G37: 0 | H37: 0 | I37: 0 | K37: 0
A38: Sanitation Infrastructure | C38: =SUM(C39:C44) -> 3438952.45 | D38: 8686146 | E38: 8686146 | F38: 723846 | G38: 3045274.13 | H38: 7962306 | I38: 4917031.87 | J38: 0.6175386716 | K38: =SUM(K39:K44) -> 8686146
A39: Pump Station | C39: 0 | D39: 0 | E39: 0 | F39: 0 | G39: 0 | H39: 0 | I39: 0 | K39: 0
A40: Reticulation | C40: 0 | D40: 0 | E40: 0 | F40: 0 | G40: 0 | H40: 0 | I40: 0 | K40: 0
A41: Waste Water Treatment Works | C41: 3438952.45 | D41: 8686146 | E41: 8686146 | F41: 723846 | G41: 3045274.13 | H41: 7962306 | I41: 4917031.87 | J41: 0.6175386716 | K41: 8686146
A42: Outfall Sewers | C42: 0 | D42: 0 | E42: 0 | F42: 0 | G42: 0 | H42: 0 | I42: 0 | K42: 0
A43: Toilet Facilities | C43: 0 | D43: 0 | E43: 0 | F43: 0 | G43: 0 | H43: 0 | I43: 0 | K43: 0
A44: Capital Spares | C44: 0 | D44: 0 | E44: 0 | F44: 0 | G44: 0 | H44: 0 | I44: 0 | K44: 0
A45: Solid Waste Infrastructure | C45: =SUM(C46:C52) -> 597962.94 | D45: 5696232 | E45: 5696232 | F45: 474686 | G45: 931448.87 | H45: 5221546 | I45: 4290097.13 | J45: 0.8216143514 | K45: =SUM(K46:K52) -> 5696232
A46: Landfill Sites | C46: 597962.94 | D46: 5696232 | E46: 5696232 | F46: 474686 | G46: 931448.87 | H46: 5221546 | I46: 4290097.13 | J46: 0.8216143514 | K46: 5696232
A47: Waste Transfer Stations | C47: 0 | D47: 0 | E47: 0 | F47: 0 | G47: 0 | H47: 0 | I47: 0 | K47: 0
A48: Waste Processing Facilities | C48: 0 | D48: 0 | E48: 0 | F48: 0 | G48: 0 | H48: 0 | I48: 0 | K48: 0
A49: Waste Drop-off Points | C49: 0 | D49: 0 | E49: 0 | F49: 0 | G49: 0 | H49: 0 | I49: 0 | K49: 0
A50: Waste Separation Facilities | C50: 0 | D50: 0 | E50: 0 | F50: 0 | G50: 0 | H50: 0 | I50: 0 | K50: 0
A51: Electricity Generation Facilities | C51: 0 | D51: 0 | E51: 0 | F51: 0 | G51: 0 | H51: 0 | I51: 0 | K51: 0
A52: Capital Spares | C52: 0 | D52: 0 | E52: 0 | F52: 0 | G52: 0 | H52: 0 | I52: 0 | K52: 0
A53: Rail Infrastructure | C53: =SUM(C54:C62) -> 0 | D53: 0 | E53: 0 | F53: 0 | G53: 0 | H53: 0 | I53: 0 | K53: =SUM(K54:K62) -> 0
A54: Rail Lines | I54: 0
A55: Rail Structures | I55: 0
A56: Rail Furniture | I56: 0
A57: Drainage Collection | I57: 0
A58: Storm water Conveyance | I58: 0
A59: Attenuation | I59: 0
A60: MV Substations | I60: 0
A61: LV Networks | I61: 0
A62: Capital Spares | I62: 0
A63: Coastal Infrastructure | C63: =SUM(C64:C68) -> 0 | D63: 0 | E63: 0 | F63: 0 | G63: 0 | H63: 0 | I63: 0 | K63: =SUM(K64:K68) -> 0
A64: Sand Pumps | I64: 0
A65: Piers | I65: 0
A66: Revetments | I66: 0
A67: Promenades | I67: 0
A68: Capital Spares | I68: 0
A69: Information and Communication Infrastructure | C69: =SUM(C70:C73) -> 0 | D69: 0 | E69: 0 | F69: 0 | G69: 0 | H69: 0 | I69: 0 | K69: =SUM(K70:K73) -> 0
A70: Data Centres | I70: 0
A71: Core Layers | I71: 0
A72: Distribution Layers | I72: 0
A73: Capital Spares | I73: 0
A75: Community Assets | C75: =+C76+C99 -> 24551069.11 | D75: 3671000 | E75: 3671000 | F75: 305917 | G75: 13094751.58 | H75: 3365087 | I75: -9729664.58 | J75: -2.891356027 | K75: =+K76+K99 -> 3671000
A76: Community Facilities | C76: =SUM(C77:C98) -> 24551069.11 | D76: 3671000 | E76: 3671000 | F76: 305917 | G76: 13094751.58 | H76: 3365087 | I76: -9729664.58 | J76: -2.891356027 | K76: =SUM(K77:K98) -> 3671000
A77: Halls | C77: 21076904.1 | D77: 3671000 | E77: 3671000 | F77: 305917 | G77: 10187660.55 | H77: 3365087 | I77: -6822573.55 | J77: -2.027458295 | K77: 3671000
A78: Centres | C78: 3474165.01 | D78: 0 | E78: 0 | F78: 0 | G78: 2907091.03 | H78: 0 | I78: -2907091.03 | K78: 0
A79: Crèches | C79: 0 | D79: 0 | E79: 0 | F79: 0 | G79: 0 | H79: 0 | I79: 0 | K79: 0
A80: Clinics/Care Centres | C80: 0 | D80: 0 | E80: 0 | F80: 0 | G80: 0 | H80: 0 | I80: 0 | K80: 0
A81: Fire/Ambulance Stations | C81: 0 | D81: 0 | E81: 0 | F81: 0 | G81: 0 | H81: 0 | I81: 0 | K81: 0
A82: Testing Stations | C82: 0 | D82: 0 | E82: 0 | F82: 0 | G82: 0 | H82: 0 | I82: 0 | K82: 0
A83: Museums | C83: 0 | D83: 0 | E83: 0 | F83: 0 | G83: 0 | H83: 0 | I83: 0 | K83: 0
A84: Galleries | C84: 0 | D84: 0 | E84: 0 | F84: 0 | G84: 0 | H84: 0 | I84: 0 | K84: 0
A85: Theatres | C85: 0 | D85: 0 | E85: 0 | F85: 0 | G85: 0 | H85: 0 | I85: 0 | K85: 0
A86: Libraries | C86: 0 | D86: 0 | E86: 0 | F86: 0 | G86: 0 | H86: 0 | I86: 0 | K86: 0
A87: Cemeteries/Crematoria | C87: 0 | D87: 0 | E87: 0 | F87: 0 | G87: 0 | H87: 0 | I87: 0 | K87: 0
A88: Police | C88: 0 | D88: 0 | E88: 0 | F88: 0 | G88: 0 | H88: 0 | I88: 0 | K88: 0
A89: Purls | C89: 0 | D89: 0 | E89: 0 | F89: 0 | G89: 0 | H89: 0 | I89: 0 | K89: 0
A90: Public Open Space | C90: 0 | D90: 0 | E90: 0 | F90: 0 | G90: 0 | H90: 0 | I90: 0 | K90: 0
A91: Nature Reserves | C91: 0 | D91: 0 | E91: 0 | F91: 0 | G91: 0 | H91: 0 | I91: 0 | K91: 0
A92: Public Ablution Facilities | C92: 0 | D92: 0 | E92: 0 | F92: 0 | G92: 0 | H92: 0 | I92: 0 | K92: 0
A93: Markets | C93: 0 | D93: 0 | E93: 0 | F93: 0 | G93: 0 | H93: 0 | I93: 0 | K93: 0
A94: Stalls | C94: 0 | D94: 0 | E94: 0 | F94: 0 | G94: 0 | H94: 0 | I94: 0 | K94: 0
A95: Abattoirs | C95: 0 | D95: 0 | E95: 0 | F95: 0 | G95: 0 | H95: 0 | I95: 0 | K95: 0
A96: Airports | C96: 0 | D96: 0 | E96: 0 | F96: 0 | G96: 0 | H96: 0 | I96: 0 | K96: 0
A97: Taxi Ranks/Bus Terminals | C97: 0 | D97: 0 | E97: 0 | F97: 0 | G97: 0 | H97: 0 | I97: 0 | K97: 0
A98: Capital Spares | C98: 0 | D98: 0 | E98: 0 | F98: 0 | G98: 0 | H98: 0 | I98: 0 | K98: 0
A99: Sport and Recreation Facilities | C99: =SUM(C100:C102) -> 0 | D99: 0 | E99: 0 | F99: 0 | G99: 0 | H99: 0 | I99: 0 | K99: =SUM(K100:K102) -> 0
A100: Indoor Facilities | I100: 0
A101: Outdoor Facilities | I101: =H101-G101 -> 0 | J101: =IF(I101=0,"",I101/H101) -> 
A102: Capital Spares | I102: 0
A103: Heritage assets | C103: =SUM(C104:C108) -> 0 | D103: 0 | E103: 0 | F103: 0 | G103: 0 | H103: 0 | I103: 0 | K103: =SUM(K104:K108) -> 0
A104: Monuments | I104: 0
A105: Historic Buildings | I105: 0
A106: Works of Art | I106: 0
A107: Conservation Areas | I107: 0
A108: Other Heritage | I108: 0
I109: 0
